Workbook

Sheet Contents
C1: Go to Charts by Pressing Shift and Enter on Menu Item
C3: Sheet Tab | D3: Description | E3: Author
B4: 1 | C4: Contents
B5: 2 | C5: Colour Codes
B6: 3 | C6: Summary
B7: 4 | C7: Inputs
B8: 5 | C8: Actuals
B9: 6 | C9: Scenario
B10: 7 | C10: Project Finance Model
B11: 8 | C11: Annual FS
B12: 9 | C12: Actual and Forecast
B13: 10 | C13: Act vs Forecat Graph
B14: 11 | C14: Tornado Diagram
B15: 12 | C15: Backup -->
B16: 13 | C16: Net Capacity
B17: 14 | C17: Solar Example
B18: 15 | C18: IRR Examples
B19: 16 | C19: Circular
B20: 17 | C20: Debt maths
B21: 18 | C21: DataTables
B23: File Name: | D23: =File_name() -> C:\Chapters\Chapter 1. Models and Analysis\B. Project Finance Models and Exercises\A. Featured Project Finance Models\B. Wind Models\Elvis Wind Model.xlsm
B25: Last Save Date | D25: =lastsaved() -> 8/10/2019 10:14:35 PM
B26: Last Save By | D26: =last_save_by() -> Kim Jon-Un
B28: Colour Codes

Sheet Colour Codes
A1: Contents | B1: Colour Codes
A15: Section Separator
B17: Input Data (Should only be in Input Sheet) | E17: 100
B19: Links from Other Sheets | E19: =Inputs!G21 -> 340.3
B21: Flag for True | E21: TRUE
B23: Flag for Not True | E23: =NOT(E21) -> FALSE
B25: Flag for True as 1 | E25: 1 | F25: 0
B27: Flag for False as 0 | E27: 0 | F27: 1
B29: Sum Column in Sheets | D29: =SUM(E25:F27) -> 2

Sheet Summary
A1: Contents | B1: Summary
J2: Capacity | L2: =Inputs!G19 -> 94
G3: P50 DSCR
G4: P90 DSCR | J4: Cost/kW | L4: =H11/L2 -> 1440 | S4: Cost per kW | U4: $/KW | V4: 650
B5: Constrution period | D5: =Inputs!G5 -> 16 | G5: Debt to capital | H5: =Inputs!F91 -> 0.8 | J5: Capacity Factor | L5: =Inputs!G23 -> 0.4132662975 | S5: Capacity Factor | U5: % | V5: 0.25
B6: Inflate PPA | D6: =Inputs!F55 -> TRUE | J6: O&M Cost | L6: =Inputs!F82 -> 54.1089489 | S6: OPEX | U6: $/KW | V6: 8
G7: Uses of Funds | S7: Financing cost | U7: % | V7: 0.15
G8: ='Project Finance Model'!B28 -> Development Expenditure | H8: ='Project Finance Model'!I170 -> 4700
B9: Pre-tax Project IRR | D9: ='Project Finance Model'!J117 -> 0.08547826707 | G9: ='Project Finance Model'!C35 -> EPC Expenditures | H9: ='Project Finance Model'!I171 -> 112800
B10: Project After Tax IRR | D10: ='Project Finance Model'!H163 -> 0.07485733926 | G10: ='Project Finance Model'!C42 -> Other Expenditures | H10: ='Project Finance Model'!I172 -> 17860 | S10: Carrying charge | U10: $/KW/y | V10: =V4*V7 -> 97.5
B11: Debt IRR Pre-tax | G11: Total | H11: =SUM(H8:H10) -> 135360 | S11: O&M cost | U11: $/KW/y | V11: =V6 -> 8
B12: Debt IRR After-tax | S12: Total annual cost | V12: =SUM(V10:V11) -> 105.5
B13: Equity IRR | D13: ='Project Finance Model'!I341 -> 0.1445684969 | G13: Sources of Funds | S13: Total annual cost | U13: $/MWh | V13: =V12*1000/(365*24*V5) -> 48.17351598
G14: Debt | H14: ='Project Finance Model'!I179 -> 109669.0008
B15: Holding period | C15: =Inputs!F127 -> 3 | D15: ='Project Finance Model'!H146 -> 0.1355046451 | G15: Equity | H15: ='Project Finance Model'!I180 -> 27417.2502
G16: Total | H16: =SUM(H14:H15) -> 137086.251

Sheet Inputs
A1: Contents | B1: Inputs
F2: Unit
A3: Timing input
B4: Start Date | F4: Date | G4: 2019-01-01
B5: Development period | F5: Months | G5: 16 | K5: 16 | L5: dev per
B6: Financial Close Date | F6: Date | G6: =EDATE(G4,G5) -> 2020-05-01
B7: Construction period | F7: Months | G7: =Scenario!$E$20 -> 18 | K7: 18 | L7: constr per
B8: Commercial Operations | F8: Date | G8: =EDATE(G6,G7) -> 2021-11-01
B9: Operations period | F9: Years | G9: 30
B10: Decommissioning date | F10: Date | G10: =EDATE(G8,G9*12) -> 2051-11-01
B11: PPA period | F11: Years | G11: 20
B12: Start of Merchant period | F12: Date | G12: =EDATE(G8,G11*12) -> 2041-11-01
B14: Months pre COD | F14: Months | G14: 1
B15: Months post COD | F15: Months | G15: 6
B16: Total Months pre COD | F16: Months | G16: =G5+G7 -> 34
A18: Operating input
B19: Capacity | F19: MW | G19: =Scenario!$F$20 -> 94
B21: P50 generation | F21: GWh p.a. | G21: ='Net Capacity'!C11 -> 340.3
B22: P50 Average Generation/Hr | F22: MW | G22: =G21/8760*1000 -> 38.84703196
B23: P50 Capacity Factor | F23: % | G23: =G22/G19 -> 0.4132662975
B25: P99 1-Year Generation | F25: GWh p.a. | G25: ='Net Capacity'!D27 -> 256.086207
B26: P99 1-Year Average Generation | F26: MW | G26: =G25/8760*1000 -> 29.23358527
B27: P99 1-Year Capacity factor | F27: % | G27: =G26/G19 -> 0.310995588
B29: P99 20-Year Generation | F29: GWh p.a. | G29: ='Net Capacity'!E18 -> 283.2
B30: P99 20-Year Average Generation | F30: MW | G30: =G29/8760*1000 -> 32.32876712
B31: P99 20-Year Capacity factor | F31: % | G31: =G30/G19 -> 0.3439230545 | I31: 1 | J31: P 50
I32: 2 | J32: P 99-1 year
B33: Selected Preduction | F33: Code | G33: =Scenario!G20 -> 1 | I33: 3 | J33: P 99-10 years
B34: Selected Name | F34: Label | G34: =INDEX(J31:J33,G33) -> P 50
A35: Development & CAPEX
B36: Total Cost | G36: Euro/kW
C37: Development Cost | E37: € 000's | F37: =G37*G19 -> 4700 | G37: 50
C39: EPC Cost | E39: € 000's | F39: =Scenario!$D$20 -> 112800 | G39: 1200
C40: Interconnection Cost | E40: € 000's | F40: =G40*G19 -> 3760 | G40: 40
C41: Other Cost | E41: € 000's | F41: =G41*G19 -> 14100 | G41: 150
D42: Total | E42: € 000's
B44: S-Curve
C45: Month | F45: Alpha | G45: Gamma | H45: Beta | I45: 0 | J45: 1 | K45: 2 | L45: 3 | M45: 4 | N45: 5 | O45: 6 | P45: 7 | Q45: 8 | R45: 9 | S45: 10 | T45: 11 | U45: 12 | V45: 13 | W45: 14 | X45: 15 | Y45: 16 | Z45: 17 | AA45: 18 | AB45: 19 | AC45: 20 | AD45: 21 | AE45: 22
C46: Development Cost | E46: % p.m. | F46: 3 | G46: 0.98 | H46: =G5/2*G46 -> 7.84 | J46: 0.006212577418 | K46: 0.02449194007 | L46: 0.0529763847 | M46: 0.08721963065 | N46: 0.12007682 | O46: 0.1431560309 | P46: 0.1497086489 | Q46: 0.1376964505 | R46: 0.1110863411 | S46: 0.07815235007 | T46: 0.04757950838 | U46: 0.02484324739 | V46: 0.01101679419 | W46: 0.004106305384 | X46: 0.001272626401 | Y46: 0.0003243178279 | Z46: 6.719283587e-05 | AA46: 1.118764937e-05 | AB46: 1.479574367e-06 | AC46: 1.535978066e-07 | AD46: 1.236833721e-08
C47: EPC Cost | E47: % p.m. | F47: 1.2 | G47: 0.98 | H47: =G7/2*G47 -> 8.82 | J47: 0.08938165261 | K47: 0.09335156041 | L47: 0.09108994489 | M47: 0.08617270932 | N47: 0.08000584718 | O47: 0.07331752637 | P47: 0.06652996917 | Q47: 0.05989904981 | R47: 0.05358007105 | S47: 0.04766364961 | T47: 0.04219733993 | U47: 0.03719958293 | V47: 0.03266912931 | W47: 0.02859160185 | X47: 0.02494415096 | Y47: 0.02169878835 | Z47: 0.01882477816 | AA47: 0.0529 | AB47: 0 | AC47: 0 | AD47: 0
C48: Interconnection & other Cost | E48: % p.m. | F48: 4 | G48: 0.98 | H48: =G7/2*G48 -> 8.82 | J48: 0.0006608630864 | K48: 0.00527381648 | L48: 0.01760897571 | M48: 0.04055006062 | N48: 0.07451443754 | O48: 0.1152471388 | P48: 0.1524651876 | Q48: 0.1719909597 | R48: 0.1629534537 | S48: 0.1266303336 | T48: 0.07828102906 | U48: 0.03712079525 | V48: 0.01295227273 | W48: 0.003174390732 | X48: 0.0005192501754 | Y48: 5.362676581e-05 | Z48: 3.293691931e-06 | AA48: 1.128353784e-07 | AB48: 2.013798613e-09 | AC48: 1.741586776e-11 | AD48: 6.760822586e-14
A50: Revenue inputs
B51: PPA Price | E51: €/MWH | F51: 49.5647455 | G51: Price
B53: Year | F53: 2018 | G53: 2019 | H53: 2020 | I53: 2021 | J53: 2022 | K53: 2023
B54: Inflation in PPA Price | E54: % p.a. | F54: 0.012 | G54: 0.0135 | H54: 0.0145 | I54: 0.018 | J54: 0.019 | K54: 0.02
B55: Apply Inflation | E55: Switch | F55: TRUE
F57: 2018 | G57: 2019 | H57: 2020 | I57: 2021 | J57: 2022 | K57: 2023 | L57: 2024 | M57: 2025 | N57: 2026 | O57: 2027 | P57: 2028 | Q57: 2029 | R57: 2030 | S57: 2031 | T57: 2032 | U57: 2033 | V57: 2034 | W57: 2035 | X57: 2036 | Y57: 2037 | Z57: 2038 | AA57: 2039 | AB57: 2040 | AC57: 2041 | AD57: 2042 | AE57: 2043 | AF57: 2044 | AG57: 2045 | AH57: 2046 | AI57: 2047 | AJ57: 2048 | AK57: 2049 | AL57: 2050 | AM57: 2051 | AN57: 2052 | AO57: 2053 | AP57: 2054 | AQ57: 2055 | AR57: 2056 | AS57: 2057 | AT57: 2058
B58: Merchant Price | E58: €/MWH | F58: =Scenario!D37 -> 35 | G58: =Scenario!E37 -> 35.42 | H58: =Scenario!F37 -> 35.84504 | I58: =Scenario!G37 -> 36.27518048 | J58: =Scenario!H37 -> 36.71048265 | K58: =Scenario!I37 -> 37.15100844 | L58: =Scenario!J37 -> 37.59682054 | M58: =Scenario!K37 -> 38.04798239 | N58: =Scenario!L37 -> 38.50455817 | O58: =Scenario!M37 -> 38.96661287 | P58: =Scenario!N37 -> 39.43421223 | Q58: =Scenario!O37 -> 39.90742277 | R58: =Scenario!P37 -> 40.38631185 | S58: =Scenario!Q37 -> 40.87094759 | T58: =Scenario!R37 -> 41.36139896 | U58: =Scenario!S37 -> 41.85773575 | V58: =Scenario!T37 -> 42.36002858 | W58: =Scenario!U37 -> 42.36002858 | X58: =Scenario!V37 -> 42.36002858 | Y58: =Scenario!W37 -> 42.36002858 | Z58: =Scenario!X37 -> 42.36002858 | AA58: =Scenario!Y37 -> 42.36002858 | AB58: =Scenario!Z37 -> 42.36002858 | AC58: =Scenario!AA37 -> 42.36002858 | AD58: =Scenario!AB37 -> 42.36002858 | AE58: =Scenario!AC37 -> 42.36002858 | AF58: =Scenario!AD37 -> 42.36002858 | AG58: =Scenario!AE37 -> 42.36002858 | AH58: =Scenario!AF37 -> 42.36002858 | AI58: =Scenario!AG37 -> 42.36002858 | AJ58: =Scenario!AH37 -> 42.36002858 | AK58: =Scenario!AI37 -> 42.36002858 | AL58: =Scenario!AJ37 -> 42.36002858 | AM58: =Scenario!AK37 -> 42.36002858 | AN58: =Scenario!AL37 -> 42.36002858 | AO58: =Scenario!AM37 -> 42.36002858 | AP58: =Scenario!AN37 -> 42.36002858 | AQ58: =Scenario!AO37 -> 42.36002858 | AR58: =Scenario!AP37 -> 42.36002858 | AS58: =Scenario!AQ37 -> 42.36002858 | AT58: =Scenario!AR37 -> 42.36002858
A61: Operating Cost
B62: Year | F62: 2018 | G62: 2019 | H62: 2020 | I62: 2021 | J62: 2022 | K62: 2023
B63: Operating Cost Inflation | E63: % p.a. | F63: 0.012 | G63: 0.016 | H63: 0.017 | I63: 0.018 | J63: 0.02 | K63: 0.02
A66: O&M Cost | F66: =units3 -> €/kW-year | G66: Fixed | H66: Variable | I66: Base CF | J66: =units2 -> €/MWH | K66: Inflate | N66: Solar yield | O66: KWh/KWp
B67: Contracted Turbine O&M ($/MWh) | E67: =units3 -> €/kW-year | F67: 18.53841379 | G67: FALSE | H67: =NOT(G67) -> TRUE | I67: =G23 -> 0.4132662975 | J67: =F67*1000/(8760*I67) -> 5.120807805 | K67: TRUE | O67: =2400 -> 2400
B68: BOP O&M | E68: €/kW-year | F68: 4.211448549 | G68: FALSE | H68: =NOT(G68) -> TRUE | I68: =I67 -> 0.4132662975 | J68: =F68*1000/(8760*I68) -> 1.163315203 | K68: TRUE | O68: =O67/8760 -> 0.2739726027
B69: BOP O&M Fee | E69: €/kW-year | F69: 1.346821869 | G69: FALSE | H69: TRUE | I69: =I68 -> 0.4132662975 | J69: 0.372028374 | K69: TRUE
B70: Operation Expenses | E70: €/kW-year | F70: 1.44934195 | G70: TRUE | H70: FALSE | I70: 0.4132662975 | J70: 0.4003471739 | K70: TRUE
B71: Maintenance Expenses | E71: €/kW-year | F71: 1.41528473 | G71: TRUE | H71: FALSE | I71: 0.4132662975 | J71: 0.3909396552 | K71: TRUE
B72: G&A | E72: €/kW-year | F72: 0.7683580345 | G72: TRUE | H72: FALSE | I72: 0.4132662975 | J72: 0.2122411262 | K72: TRUE
B73: Asset Management | E73: €/kW-year | F73: 0 | G73: TRUE | H73: FALSE | I73: 0.4132662975 | J73: 0 | K73: TRUE
B74: Community Support | E74: €/kW-year | F74: 0.0439061734 | G74: TRUE | H74: FALSE | I74: 0.4132662975 | J74: 0.01212806435 | K74: TRUE
B75: 3rd Party Professional Services | E75: €/kW-year | F75: 0.7244518611 | G75: TRUE | H75: FALSE | I75: 0.4132662975 | J75: 0.2001130618 | K75: TRUE
B76: Landowner and Easement Royalties | E76: €/kW-year | F76: 3.512650602 | G76: TRUE | H76: FALSE | I76: 0.4132662975 | J76: 0.9702884415 | K76: FALSE
B77: Royalties - based on % Revenues | E77: €/kW-year | F77: 2.373185734 | G77: TRUE | H77: FALSE | I77: 0.4132662975 | J77: 0.6555376404 | K77: FALSE
B78: Property Taxes | E78: €/kW-year | F78: 10.69409011 | G78: TRUE | H78: FALSE | I78: 0.4132662975 | J78: 2.953994918 | K78: FALSE
B79: Environmental Monitoring | E79: €/kW-year | F79: 0 | G79: TRUE | H79: FALSE | I79: 0.4132662975 | J79: 0 | K79: FALSE
B80: Insurance | E80: €/kW-year | F80: 1.56745039 | G80: TRUE | H80: FALSE | I80: 0.4132662975 | J80: 0.4329718974 | K80: FALSE
B81: Annual Insurance Cash Premium & Origination Fee | E81: €/kW-year | F81: 7.463545105 | G81: TRUE | H81: FALSE | I81: 0.4132662975 | J81: 2.061631619 | K81: FALSE
B82: Total Operating Expenses | E82: €/kW-year | F82: 54.1089489 | I82: 0.4132662975 | J82: 14.94634498
B85: Depreciation and Tax
C86: Tax Life | E86: Years | F86: 15
C87: Tax Rate | E87: % | F87: 0.2
A89: Debt Financing
B90: Debt Size
C91: Max Debt to Capital | E91: % | F91: =$H$91/100 -> 0.8 | H91: 80
D92: P50 DSCR | E92: x | F92: 1.35
D93: P99 DSCR | E93: x | F93: 1
B95: Debt Funding
C96: Equity Up-Front | E96: % | F96: 1
C97: Pro rata | E97: % | F97: =1-F96 -> 0
B100: Debt Repayment
C101: Type | L101: =Summary!D13 -> 0.1445684969
C102: Tenor | E102: Yr + COD | F102: 16 | G102: Tenor | K102: 14.5 | L102: 0.1351592243
C103: Final debt maturity | E103: Date | F103: =EDATE(G8,F102*12) -> 2037-11-01 | K103: 15 | L103: 0.1382427871
C104: Door-to-door tenor | E104: Yr + FC | F104: =F102+1.5 -> 17.5 | K104: 16 | L104: 0.1445684969
C105: Maximum debt maturity from D-D | E105: Date | F105: =EDATE($G$6,F104*12) -> 2037-11-01 | K105: 18 | L105: 0.1575263083
C106: Debt maturity period | E106: Date | F106: =MIN(F103,F105) -> 2037-11-01 | K106: 20 | L106: 0.1702431977
K107: 25 | L107: 0.1818745315
B108: Interest Rate | K108: 30 | L108: 0.190618366
C109: Base Rate | E109: % p.a. | F109: 0.027
C110: Credit Spread | E110: % p.a. | F110: 0.015
C112: Upfront Fee | E112: % p.a. | F112: 0.015
C113: Commitment Fee | E113: % p.a. | F113: 0.005
B115: DSRA
B119: Cash Sweep
A124: Project Valuation | G124: Start | H124: FC | I124: COD | J124: COD + 2 | K124: COD + 4
B125: Date | G125: =G4 -> 2019-01-01 | H125: =G6 -> 2020-05-01 | I125: =G8 -> 2021-11-01 | J125: =EDATE(I125,24) -> 2023-11-01 | K125: =EDATE(I125,48) -> 2025-11-01
B126: Buyer Discount Rate | G126: 0.15 | H126: 0.1 | I126: 0.08 | J126: 0.06 | K126: 0.05
B127: Sale Years | E127: Cod + Yr | F127: 3
B128: Sale Date | F128: =EDATE(G8,F127*12) -> 2024-11-01
B129: Target IRR | G129: 0.08
A132: Units
E133: € 000's | F133: units1
E134: €/MWH | F134: units2
E135: €/kW-year | F135: units3

Sheet Actuals
A1: Contents | B1: Actuals
B2: Last Date for History | G2: 2025-05-01
B3: Months per Period for Reporting | G3: 6
B6: Actual Date | I6: =Inputs!G8 -> 2021-11-01 | J6: =EDATE(I6,$G$3) -> 2022-05-01 | K6: =EDATE(J6,$G$3) -> 2022-11-01 | L6: 2023-05-01 | M6: 2023-11-01 | N6: 2024-05-01 | O6: 2024-11-01 | P6: 2025-05-01
C7: Generation | F7: GWH p.p. | I7: 154 | J7: 159 | K7: 161 | L7: 162 | M7: 161 | N7: 163 | O7: 164 | P7: 165
C8: Revenues | F8: =units1 -> € 000's | I8: 6392 | J8: 7150 | K8: 7240 | L8: 7291 | M8: 7244 | N8: 7334 | O8: 7390 | P8: 7450
C9: Contracted Turbine O&M ($/MWh) | F9: € 000's | I9: 727.0179153 | J9: 883.3316001 | K9: 1011.620544 | L9: 1163.854144 | M9: 972.2723951 | N9: 1186.211337 | O9: 986.3080445 | P9: 974.6394563
C10: BOP O&M | F10: € 000's | I10: 158.1310872 | J10: 148.9915643 | K10: 169.1802584 | L10: 217.3108911 | M10: 159.8669448 | N10: 175.4732348 | O10: 177.8333169 | P10: 126.2365564
C11: BOP O&M Fee | F11: € 000's | I11: 67.20440422 | J11: 60.16947298 | K11: 90.68162708 | L11: 69.37110012 | M11: 74.53883046 | N11: 85.79236053 | O11: 57.11347942 | P11: 76.23796058
C12: Operation Expenses | F12: € 000's | I12: 97.93695893 | J12: 84.71580385 | K12: 83.73865234 | L12: 81.72659798 | M12: 85.67445232 | N12: 99.46114517 | O12: 68.91399294 | P12: 71.82394924
C13: Maintenance Expenses | F13: € 000's | I13: 68.42163575 | J13: 70.65278086 | K13: 55.34388308 | L13: 64.4826062 | M13: 77.01271402 | N13: 54.70010998 | O13: 56.25912614 | P13: 94.69870211
C14: G&A | F14: € 000's | I14: 22.55762958 | J14: 33.08302817 | K14: 22.93661487 | L14: 36.13952223 | M14: 37.28021877 | N14: 25.46857753 | O14: 25.2069032 | P14: 29.18508702
C15: Asset Management | F15: € 000's | I15: 0 | J15: 0 | K15: 0 | L15: 0 | M15: 0 | N15: 0 | O15: 0 | P15: 0
C16: Community Support | F16: € 000's | I16: 1.546810435 | J16: 1.805502928 | K16: 1.367131193 | L16: 1.532134051 | M16: 1.747037024 | N16: 1.324800553 | O16: 1.774242804 | P16: 2.050321812
C17: 3rd Party Professional Services | F17: € 000's | I17: 52.46420406 | J17: 48.17772719 | K17: 44.42149761 | L17: 41.26006218 | M17: 42.13850508 | N17: 43.12170263 | O17: 37.96413217 | P17: 58.28922787
C18: Landowner and Easement Royalties | F18: € 000's | I18: 155.7809495 | J18: 183.5740172 | K18: 171.1751907 | L18: 143.0851054 | M18: 137.0447931 | N18: 190.9337775 | O18: 176.6807014 | P18: 213.7527366
C19: Royalties - based on % Revenues | F19: € 000's | I19: 69.07913965 | J19: 114.7163719 | K19: 87.5571636 | L19: 116.6218137 | M19: 122.4300044 | N19: 125.9278697 | O19: 122.8303694 | P19: 114.012795
C20: Property Taxes | F20: € 000's | I20: 560.9335236 | J20: 564.4077712 | K20: 685.806811 | L20: 539.310611 | M20: 602.0111442 | N20: 549.9084086 | O20: 516.7313429 | P20: 555.6394816
C21: Environmental Monitoring | F21: € 000's | I21: 0 | J21: 0 | K21: 0 | L21: 0 | M21: 0 | N21: 0 | O21: 0 | P21: 0
C22: Insurance | F22: € 000's | I22: 63.99161849 | J22: 82.12931589 | K22: 56.20860471 | L22: 59.86559859 | M22: 97.00927573 | N22: 47.48819526 | O22: 82.00322267 | P22: 100.5965908
C23: Annual Insurance Cash Premium & Origination Fee | F23: € 000's | I23: 428.0956625 | J23: 389.0794754 | K23: 350.921616 | L23: 414.7976242 | M23: 468.8040021 | N23: 396.8875536 | O23: 356.6470013 | P23: 347.8584932
C26: Row number | F26: 23
A29: Graph Using Index Function
I31: =YEAR(I6) -> 2021 | J31: 2022 | K31: 2022 | L31: 2023 | M31: 2023 | N31: 2024 | O31: 2024 | P31: 2025
C32: =INDEX(C:C,$F$26) -> Annual Insurance Cash Premium & Origination Fee | I32: =INDEX(I:I,$F$26) -> 428.0956625 | J32: 389.0794754 | K32: 350.921616 | L32: 414.7976242 | M32: 468.8040021 | N32: 396.8875536 | O32: 356.6470013 | P32: 347.8584932
F34: Index Graph

Sheet Scenario
A1: Contents | B1: Scenario
D2: Scenario | E2: 1
M3: Project IRR | N3: At-IRR | O3: Equity IRR | P3: DSCR | Q3: LLCR | R3: PLCR
D4: Cap Exp | E4: Constr Period | F4: Capacity | G4: Production | H4: Merchant Prices | I4: Inflation Rate Price | J4: Inflation Rate Cost | M4: =Summary!D9 -> 0.08547826707 | N4: =Summary!D10 -> 0.07485733926 | O4: =Equity_IRR -> 0.1445684969
B5: 1 | C5: Base Case | D5: =112800 -> 112800 | E5: 18 | F5: 94 | G5: 1 | H5: 1 | L5: 1 | M5: 0.08547826707 | N5: 0.07485733926 | O5: 0.1445684969
B6: 2 | C6: Low Case | D6: =D5*1.1 -> 124080 | E6: 24 | F6: =F5*80% -> 75.2 | G6: 2 | H6: 2 | L6: 2 | M6: 0.05226227939 | N6: 0.04566150606 | O6: 0.06967585385
B7: 3 | C7: High Case | D7: =D5*0.95 -> 107160 | E7: 16 | F7: =F5 -> 94 | G7: 1 | H7: 3 | L7: 3 | M7: 0.09872826934 | N7: 0.08655889928 | O7: 0.1607336462
B8: 4 | C8: =TRANSPOSE(D4:H4)&" "&C6 -> Cap Exp Low Case | D8: =D6 -> 124080 | E8: 18 | F8: 94 | G8: 1 | H8: 1 | L8: 4 | M8: 0.07729652226 | N8: 0.06770914495 | O8: 0.1252651513
B9: 5 | C9: Constr Period Low Case | D9: =112800 -> 112800 | E9: =E6 -> 24 | F9: 94 | G9: 1 | H9: 1 | L9: 5 | M9: 0.08151570857 | N9: 0.07142235935 | O9: 0.1349146545
B10: 6 | C10: Capacity Low Case | D10: 112800 | E10: 18 | F10: =F6 -> 75.2 | G10: 1 | H10: 1 | L10: 6 | M10: 0.09792932868 | N10: 0.08578258455 | O10: 0.1740594566
B11: 7 | C11: Production Low Case | D11: 112800 | E11: 18 | F11: 94 | G11: =G6 -> 2 | H11: 1 | L11: 7 | M11: 0.05097536743 | N11: 0.04462319314 | O11: 0.06482426226
B12: 8 | C12: Merchant Prices Low Case | D12: 112800 | E12: 18 | F12: 94 | G12: 1 | H12: =H6 -> 2 | L12: 8 | M12: 0.08437298238 | N12: 0.07372743189 | O12: 0.1434991658
B13: 9 | C13: =TRANSPOSE(D4:H4)&" "&C7 -> Cap Exp High Case | D13: =D7 -> 107160 | E13: 18 | F13: 94 | G13: 1 | H13: 1 | L13: 9 | M13: 0.08996563256 | N13: 0.07877365053 | O13: 0.1551861942
B14: 10 | C14: Constr Period High Case | D14: 112800 | E14: =E7 -> 16 | F14: 94 | G14: 1 | H14: 1 | L14: 10 | M14: 0.0931091398 | N14: 0.08149999082 | O14: 0.1494722784
B15: 11 | C15: Capacity High Case | D15: 112800 | E15: 18 | F15: =F7 -> 94 | G15: 1 | H15: 1 | L15: 11 | M15: 0.08547826707 | N15: 0.07485733926 | O15: 0.1445684969
B16: 12 | C16: Production High Case | D16: 112800 | E16: 18 | F16: 94 | G16: =G7 -> 1 | H16: 1 | L16: 12 | M16: 0.08547826707 | N16: 0.07485733926 | O16: 0.1445684969
B17: 13 | C17: Merchant Prices High Case | D17: 112800 | E17: 18 | F17: 94 | G17: 1 | H17: =H7 -> 3 | L17: 13 | M17: 0.08655259311 | N17: 0.07595409453 | O17: 0.1456126869
C20: =INDEX(C5:C18,$E$2) -> Base Case | D20: 112800 | E20: 18 | F20: 94 | G20: 1 | H20: 1 | I20: 0 | J20: 0 | K20: 0
D22: High vs Base | E22: Low vs Base
C23: =TRANSPOSE(D4:H4) -> Cap Exp | D23: =O13-$O$5 -> 0.01061769724 | E23: =O8-$O$5 -> -0.01930334568
C24: Constr Period | D24: =O14-$O$5 -> 0.004903781414 | E24: =O9-$O$5 -> -0.009653842449
C25: Capacity | D25: =O15-$O$5 -> 0 | E25: =O10-$O$5 -> 0.02949095964
C26: Production | D26: =O16-$O$5 -> 0 | E26: =O11-$O$5 -> -0.07974423468
C27: Merchant Prices | D27: =O17-$O$5 -> 0.00104418993 | E27: =O12-$O$5 -> -0.001069331169
C30: Merchant Price code number | D30: =H20 -> 1
C31: Merchant Prices
D32: 2018 | E32: 2019 | F32: 2020 | G32: 2021 | H32: 2022 | I32: 2023 | J32: 2024 | K32: 2025 | L32: 2026 | M32: 2027 | N32: 2028 | O32: 2029 | P32: 2030 | Q32: 2031 | R32: 2032 | S32: 2033 | T32: 2034 | U32: 2035 | V32: 2036 | W32: 2037 | X32: 2038 | Y32: 2039 | Z32: 2040 | AA32: 2041 | AB32: 2042 | AC32: 2043 | AD32: 2044 | AE32: 2045 | AF32: 2046 | AG32: 2047 | AH32: 2048 | AI32: 2049 | AJ32: 2050 | AK32: 2051 | AL32: 2052 | AM32: 2053 | AN32: 2054 | AO32: 2055 | AP32: 2056 | AQ32: 2057 | AR32: 2058
B33: 1 | C33: Base Case | D33: 35 | E33: 35.42 | F33: 35.84504 | G33: 36.27518048 | H33: 36.71048265 | I33: 37.15100844 | J33: 37.59682054 | K33: 38.04798239 | L33: 38.50455817 | M33: 38.96661287 | N33: 39.43421223 | O33: 39.90742277 | P33: 40.38631185 | Q33: 40.87094759 | R33: 41.36139896 | S33: 41.85773575 | T33: 42.36002858 | U33: 42.36002858 | V33: 42.36002858 | W33: 42.36002858 | X33: 42.36002858 | Y33: 42.36002858 | Z33: 42.36002858 | AA33: 42.36002858 | AB33: 42.36002858 | AC33: 42.36002858 | AD33: 42.36002858 | AE33: 42.36002858 | AF33: 42.36002858 | AG33: 42.36002858 | AH33: 42.36002858 | AI33: 42.36002858 | AJ33: 42.36002858 | AK33: 42.36002858 | AL33: 42.36002858 | AM33: 42.36002858 | AN33: 42.36002858 | AO33: 42.36002858 | AP33: 42.36002858 | AQ33: 42.36002858 | AR33: 42.36002858
B34: 2 | C34: Low Case | D34: 35 | E34: 35.42 | F34: 35.84504 | G34: 36.27518048 | H34: 36.71048265 | I34: 37.15100844 | J34: 37.59682054 | K34: 38.04798239 | L34: 38.50455817 | M34: 38.96661287 | N34: 39.43421223 | O34: 39.90742277 | P34: 40.38631185 | Q34: 40.87094759 | R34: 41.36139896 | S34: 41.85773575 | T34: 42.36002858 | U34: 42.36002858 | V34: 42.36002858 | W34: 42.36002858 | X34: 42.36002858 | Y34: 42.36002858 | Z34: 42.36002858 | AA34: 42.36002858 | AB34: 42.36002858 | AC34: 40 | AD34: 36 | AE34: 38 | AF34: 38 | AG34: 38 | AH34: 38 | AI34: 38 | AJ34: 38 | AK34: 38 | AL34: 38 | AM34: 38 | AN34: 38 | AO34: 38 | AP34: 38 | AQ34: 38 | AR34: 38
B35: 3 | C35: High Case | D35: 35 | E35: 35.42 | F35: 35.84504 | G35: 36.27518048 | H35: 36.71048265 | I35: 37.15100844 | J35: 37.59682054 | K35: 38.04798239 | L35: 38.50455817 | M35: 38.96661287 | N35: 39.43421223 | O35: 39.90742277 | P35: 40.38631185 | Q35: 40.87094759 | R35: 41.36139896 | S35: 41.85773575 | T35: 42.36002858 | U35: 42.36002858 | V35: 42.36002858 | W35: 42.36002858 | X35: 42.36002858 | Y35: 42.36002858 | Z35: 42.36002858 | AA35: 42.36002858 | AB35: 42.36002858 | AC35: 48 | AD35: 45 | AE35: 46 | AF35: 47 | AG35: 47 | AH35: 47 | AI35: 47 | AJ35: 47 | AK35: 47 | AL35: 47 | AM35: 47 | AN35: 47 | AO35: 47 | AP35: 47 | AQ35: 47 | AR35: 47
C37: =INDEX(C33:C35,$D$30) -> Base Case | D37: =INDEX(D33:D35,$D$30) -> 35 | E37: 35.42 | F37: 35.84504 | G37: 36.27518048 | H37: 36.71048265 | I37: 37.15100844 | J37: 37.59682054 | K37: 38.04798239 | L37: 38.50455817 | M37: 38.96661287 | N37: 39.43421223 | O37: 39.90742277 | P37: 40.38631185 | Q37: 40.87094759 | R37: 41.36139896 | S37: 41.85773575 | T37: 42.36002858 | U37: 42.36002858 | V37: 42.36002858 | W37: 42.36002858 | X37: 42.36002858 | Y37: 42.36002858 | Z37: 42.36002858 | AA37: 42.36002858 | AB37: 42.36002858 | AC37: 42.36002858 | AD37: 42.36002858 | AE37: 42.36002858 | AF37: 42.36002858 | AG37: 42.36002858 | AH37: 42.36002858 | AI37: 42.36002858 | AJ37: 42.36002858 | AK37: 42.36002858 | AL37: 42.36002858 | AM37: 42.36002858 | AN37: 42.36002858 | AO37: 42.36002858 | AP37: 42.36002858 | AQ37: 42.36002858 | AR37: 42.36002858

Sheet Project Finance Model
A1: Contents | B1: Project Finance Model | C1: Model period | H1: Equity IRR | I1: =Equity_IRR -> 0.1445684969 | L1: 1 | M1: 2 | N1: 3 | O1: 4 | P1: 5 | Q1: 6 | R1: 7 | S1: 8 | T1: 9 | U1: 10 | V1: 11 | W1: 12 | X1: 13 | Y1: 14 | Z1: 15 | AA1: 16 | AB1: 17 | AC1: 18 | AD1: 19 | AE1: 20 | AF1: 21 | AG1: 22 | AH1: 23 | AI1: 24 | AJ1: 25 | AK1: 26 | AL1: 27 | AM1: 28 | AN1: 29 | AO1: 30 | AP1: 31 | AQ1: 32 | AR1: 33 | AS1: 34 | AT1: 35 | AU1: 36 | AV1: 37 | AW1: 38 | AX1: 39 | AY1: 40 | AZ1: 41 | BA1: 42 | BB1: 43 | BC1: 44 | BD1: 45 | BE1: 46 | BF1: 47 | BG1: 48 | BH1: 49 | BI1: 50 | BJ1: 51 | BK1: 52 | BL1: 53 | BM1: 54 | BN1: 55 | BO1: 56 | BP1: 57 | BQ1: 58 | BR1: 59 | BS1: 60 | BT1: 61 | BU1: 62 | BV1: 63 | BW1: 64 | BX1: 65 | BY1: 66 | BZ1: 67 | CA1: 68 | CB1: 69 | CC1: 70 | CD1: 71 | CE1: 72 | CF1: 73 | CG1: 74 | CH1: 75 | CI1: 76 | CJ1: 77 | CK1: 78 | CL1: 79 | CM1: 80 | CN1: 81 | CO1: 82 | CP1: 83 | CQ1: 84 | CR1: 85 | CS1: 86 | CT1: 87 | CU1: 88 | CV1: 89 | CW1: 90 | CX1: 91 | CY1: 92 | CZ1: 93 | DA1: 94 | DB1: 95 | DC1: 96 | DD1: 97 | DE1: 98 | DF1: 99 | DG1: 100
C2: Pre COD | F2: Flag | H2: =Inputs!G16 -> 34 | L2: =(L1<=$H2)*1 -> 1 | M2: =(M1<=$H2)*1 -> 1 | N2: 1 | O2: 1 | P2: 1 | Q2: 1 | R2: 1 | S2: 1 | T2: 1 | U2: 1 | V2: 1 | W2: 1 | X2: 1 | Y2: 1 | Z2: 1 | AA2: 1 | AB2: 1 | AC2: 1 | AD2: 1 | AE2: 1 | AF2: 1 | AG2: 1 | AH2: 1 | AI2: 1 | AJ2: 1 | AK2: 1 | AL2: 1 | AM2: 1 | AN2: 1 | AO2: 1 | AP2: 1 | AQ2: 1 | AR2: 1 | AS2: 1 | AT2: 0 | AU2: 0 | AV2: 0 | AW2: 0 | AX2: 0 | AY2: 0 | AZ2: 0 | BA2: 0 | BB2: 0 | BC2: 0 | BD2: 0 | BE2: 0 | BF2: 0 | BG2: 0 | BH2: 0 | BI2: 0 | BJ2: 0 | BK2: 0 | BL2: 0 | BM2: 0 | BN2: 0 | BO2: 0 | BP2: 0 | BQ2: 0 | BR2: 0 | BS2: 0 | BT2: 0 | BU2: 0 | BV2: 0 | BW2: 0 | BX2: 0 | BY2: =(BY1<=$H2)*1 -> 0 | BZ2: 0 | CA2: 0 | CB2: 0 | CC2: 0 | CD2: 0 | CE2: 0 | CF2: 0 | CG2: 0 | CH2: 0 | CI2: 0 | CJ2: 0 | CK2: 0 | CL2: 0 | CM2: 0 | CN2: 0 | CO2: 0 | CP2: 0 | CQ2: 0 | CR2: 0 | CS2: 0 | CT2: 0 | CU2: 0 | CV2: 0 | CW2: 0 | CX2: 0 | CY2: 0 | CZ2: 0 | DA2: 0 | DB2: 0 | DC2: 0 | DD2: 0 | DE2: 0 | DF2: 0 | DG2: 0
C3: Months in period | F3: Months | H3: =Inputs!G14 -> 1 | I3: =Inputs!G15 -> 6 | L3: =IF(L2,$H$3,$I$3) -> 1 | M3: =IF(M2,$H$3,$I$3) -> 1 | N3: 1 | O3: 1 | P3: 1 | Q3: 1 | R3: 1 | S3: 1 | T3: 1 | U3: 1 | V3: 1 | W3: 1 | X3: 1 | Y3: 1 | Z3: 1 | AA3: 1 | AB3: 1 | AC3: 1 | AD3: 1 | AE3: 1 | AF3: 1 | AG3: 1 | AH3: 1 | AI3: 1 | AJ3: 1 | AK3: 1 | AL3: 1 | AM3: 1 | AN3: 1 | AO3: 1 | AP3: 1 | AQ3: 1 | AR3: 1 | AS3: 1 | AT3: 6 | AU3: 6 | AV3: 6 | AW3: 6 | AX3: 6 | AY3: 6 | AZ3: 6 | BA3: 6 | BB3: 6 | BC3: 6 | BD3: 6 | BE3: 6 | BF3: 6 | BG3: 6 | BH3: 6 | BI3: 6 | BJ3: 6 | BK3: 6 | BL3: 6 | BM3: 6 | BN3: 6 | BO3: 6 | BP3: 6 | BQ3: 6 | BR3: 6 | BS3: 6 | BT3: 6 | BU3: 6 | BV3: 6 | BW3: 6 | BX3: 6 | BY3: =IF(BY2,$H$3,$I$3) -> 6 | BZ3: 6 | CA3: 6 | CB3: 6 | CC3: 6 | CD3: 6 | CE3: 6 | CF3: 6 | CG3: 6 | CH3: 6 | CI3: 6 | CJ3: 6 | CK3: 6 | CL3: 6 | CM3: 6 | CN3: 6 | CO3: 6 | CP3: 6 | CQ3: 6 | CR3: 6 | CS3: 6 | CT3: 6 | CU3: 6 | CV3: 6 | CW3: 6 | CX3: 6 | CY3: 6 | CZ3: 6 | DA3: 6 | DB3: 6 | DC3: 6 | DD3: 6 | DE3: 6 | DF3: 6 | DG3: 6
C4: Start of period | F4: Date | L4: =K5+1 -> 2019-01-01 | M4: =L5+1 -> 2019-02-01 | N4: 2019-03-01 | O4: 2019-04-01 | P4: 2019-05-01 | Q4: 2019-06-01 | R4: 2019-07-01 | S4: 2019-08-01 | T4: 2019-09-01 | U4: 2019-10-01 | V4: 2019-11-01 | W4: 2019-12-01 | X4: 2020-01-01 | Y4: 2020-02-01 | Z4: 2020-03-01 | AA4: 2020-04-01 | AB4: 2020-05-01 | AC4: 2020-06-01 | AD4: 2020-07-01 | AE4: 2020-08-01 | AF4: 2020-09-01 | AG4: 2020-10-01 | AH4: 2020-11-01 | AI4: 2020-12-01 | AJ4: 2021-01-01 | AK4: 2021-02-01 | AL4: 2021-03-01 | AM4: 2021-04-01 | AN4: 2021-05-01 | AO4: 2021-06-01 | AP4: 2021-07-01 | AQ4: 2021-08-01 | AR4: 2021-09-01 | AS4: 2021-10-01 | AT4: 2021-11-01 | AU4: 2022-05-01 | AV4: 2022-11-01 | AW4: 2023-05-01 | AX4: 2023-11-01 | AY4: 2024-05-01 | AZ4: 2024-11-01 | BA4: 2025-05-01 | BB4: 2025-11-01 | BC4: 2026-05-01 | BD4: 2026-11-01 | BE4: 2027-05-01 | BF4: 2027-11-01 | BG4: 2028-05-01 | BH4: 2028-11-01 | BI4: 2029-05-01 | BJ4: 2029-11-01 | BK4: 2030-05-01 | BL4: 2030-11-01 | BM4: 2031-05-01 | BN4: 2031-11-01 | BO4: 2032-05-01 | BP4: 2032-11-01 | BQ4: 2033-05-01 | BR4: 2033-11-01 | BS4: 2034-05-01 | BT4: 2034-11-01 | BU4: 2035-05-01 | BV4: 2035-11-01 | BW4: 2036-05-01 | BX4: 2036-11-01 | BY4: =BX5+1 -> 2037-05-01 | BZ4: 2037-11-01 | CA4: 2038-05-01 | CB4: 2038-11-01 | CC4: 2039-05-01 | CD4: 2039-11-01 | CE4: 2040-05-01 | CF4: 2040-11-01 | CG4: 2041-05-01 | CH4: 2041-11-01 | CI4: 2042-05-01 | CJ4: 2042-11-01 | CK4: 2043-05-01 | CL4: 2043-11-01 | CM4: 2044-05-01 | CN4: 2044-11-01 | CO4: 2045-05-01 | CP4: 2045-11-01 | CQ4: 2046-05-01 | CR4: 2046-11-01 | CS4: 2047-05-01 | CT4: 2047-11-01 | CU4: 2048-05-01 | CV4: 2048-11-01 | CW4: 2049-05-01 | CX4: 2049-11-01 | CY4: 2050-05-01 | CZ4: 2050-11-01 | DA4: 2051-05-01 | DB4: 2051-11-01 | DC4: 2052-05-01 | DD4: 2052-11-01 | DE4: 2053-05-01 | DF4: 2053-11-01 | DG4: 2054-05-01
C5: End of period | F5: Date | H5: =Inputs!G4 -> 2019-01-01 | K5: =H5-1 -> 2018-12-31 | L5: =EDATE(L4,L3)-1 -> 2019-01-31 | M5: 2019-02-28 | N5: 2019-03-31 | O5: 2019-04-30 | P5: 2019-05-31 | Q5: 2019-06-30 | R5: 2019-07-31 | S5: 2019-08-31 | T5: 2019-09-30 | U5: 2019-10-31 | V5: 2019-11-30 | W5: 2019-12-31 | X5: 2020-01-31 | Y5: 2020-02-29 | Z5: 2020-03-31 | AA5: 2020-04-30 | AB5: 2020-05-31 | AC5: 2020-06-30 | AD5: 2020-07-31 | AE5: 2020-08-31 | AF5: 2020-09-30 | AG5: 2020-10-31 | AH5: 2020-11-30 | AI5: 2020-12-31 | AJ5: 2021-01-31 | AK5: 2021-02-28 | AL5: 2021-03-31 | AM5: 2021-04-30 | AN5: 2021-05-31 | AO5: 2021-06-30 | AP5: 2021-07-31 | AQ5: 2021-08-31 | AR5: =EDATE(AR4,AR3)-1 -> 2021-09-30 | AS5: 2021-10-31 | AT5: 2022-04-30 | AU5: 2022-10-31 | AV5: 2023-04-30 | AW5: 2023-10-31 | AX5: 2024-04-30 | AY5: 2024-10-31 | AZ5: 2025-04-30 | BA5: 2025-10-31 | BB5: 2026-04-30 | BC5: 2026-10-31 | BD5: 2027-04-30 | BE5: 2027-10-31 | BF5: 2028-04-30 | BG5: 2028-10-31 | BH5: 2029-04-30 | BI5: 2029-10-31 | BJ5: 2030-04-30 | BK5: 2030-10-31 | BL5: 2031-04-30 | BM5: 2031-10-31 | BN5: 2032-04-30 | BO5: 2032-10-31 | BP5: 2033-04-30 | BQ5: 2033-10-31 | BR5: 2034-04-30 | BS5: 2034-10-31 | BT5: 2035-04-30 | BU5: 2035-10-31 | BV5: 2036-04-30 | BW5: 2036-10-31 | BX5: =EDATE(BX4,BX3)-1 -> 2037-04-30 | BY5: 2037-10-31 | BZ5: 2038-04-30 | CA5: 2038-10-31 | CB5: 2039-04-30 | CC5: 2039-10-31 | CD5: 2040-04-30 | CE5: 2040-10-31 | CF5: 2041-04-30 | CG5: 2041-10-31 | CH5: 2042-04-30 | CI5: 2042-10-31 | CJ5: 2043-04-30 | CK5: 2043-10-31 | CL5: 2044-04-30 | CM5: 2044-10-31 | CN5: 2045-04-30 | CO5: 2045-10-31 | CP5: 2046-04-30 | CQ5: 2046-10-31 | CR5: 2047-04-30 | CS5: 2047-10-31 | CT5: 2048-04-30 | CU5: 2048-10-31 | CV5: 2049-04-30 | CW5: 2049-10-31 | CX5: 2050-04-30 | CY5: 2050-10-31 | CZ5: 2051-04-30 | DA5: 2051-10-31 | DB5: 2052-04-30 | DC5: 2052-10-31 | DD5: =EDATE(DD4,DD3)-1 -> 2053-04-30 | DE5: 2053-10-31 | DF5: 2054-04-30 | DG5: 2054-10-31
C6: Operations flag | F6: Flag | H6: =Inputs!G8 -> 2021-11-01 | I6: =Inputs!G10 -> 2051-11-01 | L6: =AND(L4>=$H$6,L4<$I$6)*1 -> 0 | M6: 0 | N6: 0 | O6: 0 | P6: 0 | Q6: 0 | R6: 0 | S6: 0 | T6: 0 | U6: 0 | V6: 0 | W6: 0 | X6: 0 | Y6: 0 | Z6: 0 | AA6: 0 | AB6: 0 | AC6: 0 | AD6: 0 | AE6: 0 | AF6: 0 | AG6: 0 | AH6: 0 | AI6: 0 | AJ6: 0 | AK6: 0 | AL6: 0 | AM6: 0 | AN6: 0 | AO6: 0 | AP6: 0 | AQ6: 0 | AR6: =AND(AR4>=$H$6,AR4<$I$6)*1 -> 0 | AS6: 0 | AT6: 1 | AU6: 1 | AV6: 1 | AW6: 1 | AX6: 1 | AY6: 1 | AZ6: 1 | BA6: 1 | BB6: 1 | BC6: 1 | BD6: 1 | BE6: 1 | BF6: 1 | BG6: 1 | BH6: 1 | BI6: 1 | BJ6: 1 | BK6: 1 | BL6: 1 | BM6: 1 | BN6: 1 | BO6: 1 | BP6: 1 | BQ6: 1 | BR6: 1 | BS6: 1 | BT6: 1 | BU6: 1 | BV6: 1 | BW6: 1 | BX6: =AND(BX4>=$H$6,BX4<$I$6)*1 -> 1 | BY6: 1 | BZ6: 1 | CA6: 1 | CB6: 1 | CC6: 1 | CD6: 1 | CE6: 1 | CF6: 1 | CG6: 1 | CH6: 1 | CI6: 1 | CJ6: 1 | CK6: 1 | CL6: 1 | CM6: 1 | CN6: 1 | CO6: 1 | CP6: 1 | CQ6: 1 | CR6: 1 | CS6: 1 | CT6: 1 | CU6: 1 | CV6: 1 | CW6: 1 | CX6: 1 | CY6: 1 | CZ6: 1 | DA6: 1 | DB6: 0 | DC6: 0 | DD6: 0 | DE6: 0 | DF6: 0 | DG6: 0
F7: Units | H7: Driver 1 | I7: Driver 2 | J7: Sum
A9: Operations
B10: Capacity and generation
C11: Capacity | F11: MW | H11: =Inputs!G19 -> 94 | L11: =$H$11*L6 -> 0 | M11: =$H$11*M6 -> 0 | N11: 0 | O11: 0 | P11: 0 | Q11: 0 | R11: 0 | S11: 0 | T11: 0 | U11: 0 | V11: 0 | W11: 0 | X11: 0 | Y11: 0 | Z11: 0 | AA11: 0 | AB11: 0 | AC11: 0 | AD11: 0 | AE11: 0 | AF11: 0 | AG11: 0 | AH11: 0 | AI11: 0 | AJ11: 0 | AK11: 0 | AL11: 0 | AM11: 0 | AN11: 0 | AO11: 0 | AP11: 0 | AQ11: 0 | AR11: 0 | AS11: 0 | AT11: 94 | AU11: 94 | AV11: 94 | AW11: 94 | AX11: 94 | AY11: 94 | AZ11: 94 | BA11: 94 | BB11: 94 | BC11: 94 | BD11: 94 | BE11: 94 | BF11: 94 | BG11: 94 | BH11: 94 | BI11: 94 | BJ11: 94 | BK11: 94 | BL11: 94 | BM11: 94 | BN11: 94 | BO11: 94 | BP11: 94 | BQ11: 94 | BR11: 94 | BS11: 94 | BT11: 94 | BU11: 94 | BV11: 94 | BW11: 94 | BX11: 94 | BY11: =$H$11*BY6 -> 94 | BZ11: 94 | CA11: 94 | CB11: 94 | CC11: 94 | CD11: 94 | CE11: 94 | CF11: 94 | CG11: 94 | CH11: 94 | CI11: 94 | CJ11: 94 | CK11: 94 | CL11: 94 | CM11: 94 | CN11: 94 | CO11: 94 | CP11: 94 | CQ11: 94 | CR11: 94 | CS11: 94 | CT11: 94 | CU11: 94 | CV11: 94 | CW11: 94 | CX11: 94 | CY11: 94 | CZ11: 94 | DA11: 94 | DB11: 0 | DC11: 0 | DD11: 0 | DE11: 0 | DF11: 0 | DG11: 0
C13: =Inputs!B21 -> P50 generation | F13: GWH p.p | H13: =Inputs!G21 -> 340.3 | J13: =SUM(L13:DG13) -> 10209 | L13: =$H13*L$6/12*L$3 -> 0 | M13: 0 | N13: 0 | O13: 0 | P13: 0 | Q13: 0 | R13: 0 | S13: 0 | T13: 0 | U13: 0 | V13: =$H13*V$6/12*V$3 -> 0 | W13: 0 | X13: 0 | Y13: 0 | Z13: 0 | AA13: 0 | AB13: 0 | AC13: 0 | AD13: 0 | AE13: 0 | AF13: =$H13*AF$6/12*AF$3 -> 0 | AG13: 0 | AH13: 0 | AI13: 0 | AJ13: 0 | AK13: 0 | AL13: 0 | AM13: 0 | AN13: 0 | AO13: 0 | AP13: =$H13*AP$6/12*AP$3 -> 0 | AQ13: 0 | AR13: 0 | AS13: 0 | AT13: 170.15 | AU13: 170.15 | AV13: 170.15 | AW13: 170.15 | AX13: 170.15 | AY13: 170.15 | AZ13: =$H13*AZ$6/12*AZ$3 -> 170.15 | BA13: 170.15 | BB13: 170.15 | BC13: 170.15 | BD13: 170.15 | BE13: 170.15 | BF13: 170.15 | BG13: 170.15 | BH13: 170.15 | BI13: 170.15 | BJ13: =$H13*BJ$6/12*BJ$3 -> 170.15 | BK13: 170.15 | BL13: 170.15 | BM13: 170.15 | BN13: 170.15 | BO13: 170.15 | BP13: 170.15 | BQ13: 170.15 | BR13: 170.15 | BS13: 170.15 | BT13: =$H13*BT$6/12*BT$3 -> 170.15 | BU13: 170.15 | BV13: 170.15 | BW13: 170.15 | BX13: 170.15 | BY13: 170.15 | BZ13: 170.15 | CA13: 170.15 | CB13: 170.15 | CC13: 170.15 | CD13: =$H13*CD$6/12*CD$3 -> 170.15 | CE13: 170.15 | CF13: 170.15 | CG13: 170.15 | CH13: 170.15 | CI13: 170.15 | CJ13: 170.15 | CK13: 170.15 | CL13: 170.15 | CM13: 170.15 | CN13: =$H13*CN$6/12*CN$3 -> 170.15 | CO13: 170.15 | CP13: 170.15 | CQ13: 170.15 | CR13: 170.15 | CS13: 170.15 | CT13: 170.15 | CU13: 170.15 | CV13: 170.15 | CW13: 170.15 | CX13: =$H13*CX$6/12*CX$3 -> 170.15 | CY13: 170.15 | CZ13: 170.15 | DA13: 170.15 | DB13: 0 | DC13: 0 | DD13: 0 | DE13: 0 | DF13: 0 | DG13: 0
C14: =Inputs!B25 -> P99 1-Year Generation | F14: GWH p.p | H14: =Inputs!G25 -> 256.086207 | J14: =SUM(L14:DG14) -> 7682.586209 | L14: 0 | M14: 0 | N14: 0 | O14: 0 | P14: 0 | Q14: 0 | R14: 0 | S14: 0 | T14: 0 | U14: 0 | V14: 0 | W14: 0 | X14: 0 | Y14: 0 | Z14: 0 | AA14: 0 | AB14: 0 | AC14: 0 | AD14: 0 | AE14: 0 | AF14: 0 | AG14: 0 | AH14: 0 | AI14: 0 | AJ14: 0 | AK14: 0 | AL14: 0 | AM14: 0 | AN14: 0 | AO14: 0 | AP14: 0 | AQ14: 0 | AR14: 0 | AS14: 0 | AT14: 128.0431035 | AU14: 128.0431035 | AV14: 128.0431035 | AW14: 128.0431035 | AX14: 128.0431035 | AY14: 128.0431035 | AZ14: 128.0431035 | BA14: 128.0431035 | BB14: 128.0431035 | BC14: 128.0431035 | BD14: 128.0431035 | BE14: 128.0431035 | BF14: 128.0431035 | BG14: 128.0431035 | BH14: 128.0431035 | BI14: 128.0431035 | BJ14: 128.0431035 | BK14: 128.0431035 | BL14: 128.0431035 | BM14: 128.0431035 | BN14: 128.0431035 | BO14: 128.0431035 | BP14: 128.0431035 | BQ14: 128.0431035 | BR14: 128.0431035 | BS14: 128.0431035 | BT14: 128.0431035 | BU14: 128.0431035 | BV14: 128.0431035 | BW14: 128.0431035 | BX14: 128.0431035 | BY14: 128.0431035 | BZ14: 128.0431035 | CA14: 128.0431035 | CB14: 128.0431035 | CC14: 128.0431035 | CD14: 128.0431035 | CE14: 128.0431035 | CF14: 128.0431035 | CG14: 128.0431035 | CH14: 128.0431035 | CI14: 128.0431035 | CJ14: 128.0431035 | CK14: 128.0431035 | CL14: 128.0431035 | CM14: 128.0431035 | CN14: 128.0431035 | CO14: 128.0431035 | CP14: 128.0431035 | CQ14: 128.0431035 | CR14: 128.0431035 | CS14: 128.0431035 | CT14: 128.0431035 | CU14: 128.0431035 | CV14: 128.0431035 | CW14: 128.0431035 | CX14: 128.0431035 | CY14: 128.0431035 | CZ14: 128.0431035 | DA14: 128.0431035 | DB14: 0 | DC14: 0 | DD14: 0 | DE14: 0 | DF14: 0 | DG14: 0
C15: =Inputs!B29 -> P99 20-Year Generation | F15: GWH p.p | H15: =Inputs!G29 -> 283.2 | J15: 8496 | L15: =$H15*L$6/12*L3 -> 0 | M15: 0 | N15: 0 | O15: 0 | P15: 0 | Q15: 0 | R15: 0 | S15: 0 | T15: 0 | U15: 0 | V15: 0 | W15: 0 | X15: 0 | Y15: 0 | Z15: 0 | AA15: 0 | AB15: 0 | AC15: 0 | AD15: 0 | AE15: 0 | AF15: 0 | AG15: 0 | AH15: 0 | AI15: 0 | AJ15: 0 | AK15: 0 | AL15: 0 | AM15: 0 | AN15: 0 | AO15: 0 | AP15: 0 | AQ15: 0 | AR15: =$H15*AR$6/12*AR3 -> 0 | AS15: 0 | AT15: 141.6 | AU15: 141.6 | AV15: 141.6 | AW15: 141.6 | AX15: 141.6 | AY15: 141.6 | AZ15: 141.6 | BA15: 141.6 | BB15: 141.6 | BC15: 141.6 | BD15: 141.6 | BE15: 141.6 | BF15: 141.6 | BG15: 141.6 | BH15: 141.6 | BI15: 141.6 | BJ15: 141.6 | BK15: 141.6 | BL15: 141.6 | BM15: 141.6 | BN15: 141.6 | BO15: 141.6 | BP15: 141.6 | BQ15: 141.6 | BR15: 141.6 | BS15: 141.6 | BT15: 141.6 | BU15: 141.6 | BV15: 141.6 | BW15: 141.6 | BX15: =$H15*BX$6/12*BX3 -> 141.6 | BY15: 141.6 | BZ15: 141.6 | CA15: 141.6 | CB15: 141.6 | CC15: 141.6 | CD15: 141.6 | CE15: 141.6 | CF15: 141.6 | CG15: 141.6 | CH15: 141.6 | CI15: 141.6 | CJ15: 141.6 | CK15: 141.6 | CL15: 141.6 | CM15: 141.6 | CN15: 141.6 | CO15: 141.6 | CP15: 141.6 | CQ15: 141.6 | CR15: 141.6 | CS15: 141.6 | CT15: 141.6 | CU15: 141.6 | CV15: 141.6 | CW15: 141.6 | CX15: 141.6 | CY15: 141.6 | CZ15: 141.6 | DA15: 141.6 | DB15: 0 | DC15: 0 | DD15: 0 | DE15: 0 | DF15: 0 | DG15: 0
D16: =Inputs!$G$34 -> P 50 | F16: GWH p.p. | H16: =Inputs!$G$33 -> 1 | J16: =SUM(L16:DG16) -> 10209 | L16: =INDEX(L13:L15,$H$16) -> 0 | M16: =INDEX(M13:M15,$H$16) -> 0 | N16: 0 | O16: 0 | P16: 0 | Q16: 0 | R16: 0 | S16: 0 | T16: 0 | U16: 0 | V16: 0 | W16: 0 | X16: 0 | Y16: 0 | Z16: 0 | AA16: 0 | AB16: 0 | AC16: 0 | AD16: 0 | AE16: 0 | AF16: 0 | AG16: 0 | AH16: 0 | AI16: 0 | AJ16: 0 | AK16: 0 | AL16: 0 | AM16: 0 | AN16: 0 | AO16: 0 | AP16: 0 | AQ16: 0 | AR16: 0 | AS16: 0 | AT16: 170.15 | AU16: 170.15 | AV16: 170.15 | AW16: 170.15 | AX16: 170.15 | AY16: 170.15 | AZ16: 170.15 | BA16: 170.15 | BB16: 170.15 | BC16: 170.15 | BD16: 170.15 | BE16: 170.15 | BF16: 170.15 | BG16: 170.15 | BH16: 170.15 | BI16: 170.15 | BJ16: 170.15 | BK16: 170.15 | BL16: 170.15 | BM16: 170.15 | BN16: 170.15 | BO16: 170.15 | BP16: 170.15 | BQ16: 170.15 | BR16: 170.15 | BS16: 170.15 | BT16: 170.15 | BU16: 170.15 | BV16: 170.15 | BW16: 170.15 | BX16: 170.15 | BY16: =INDEX(BY13:BY15,$H$16) -> 170.15 | BZ16: 170.15 | CA16: 170.15 | CB16: 170.15 | CC16: 170.15 | CD16: 170.15 | CE16: 170.15 | CF16: 170.15 | CG16: 170.15 | CH16: 170.15 | CI16: 170.15 | CJ16: 170.15 | CK16: 170.15 | CL16: 170.15 | CM16: 170.15 | CN16: 170.15 | CO16: 170.15 | CP16: 170.15 | CQ16: 170.15 | CR16: 170.15 | CS16: 170.15 | CT16: 170.15 | CU16: 170.15 | CV16: 170.15 | CW16: 170.15 | CX16: 170.15 | CY16: 170.15 | CZ16: 170.15 | DA16: 170.15 | DB16: 0 | DC16: 0 | DD16: 0 | DE16: 0 | DF16: 0 | DG16: 0
C18: Days in period | F18: Days | J18: =SUM(L18:DG18) -> 13088 | L18: =L5-L4+1 -> 31 | M18: 28 | N18: 31 | O18: 30 | P18: 31 | Q18: 30 | R18: 31 | S18: 31 | T18: 30 | U18: 31 | V18: 30 | W18: 31 | X18: 31 | Y18: 29 | Z18: 31 | AA18: 30 | AB18: 31 | AC18: 30 | AD18: 31 | AE18: 31 | AF18: 30 | AG18: 31 | AH18: 30 | AI18: 31 | AJ18: 31 | AK18: 28 | AL18: 31 | AM18: 30 | AN18: 31 | AO18: 30 | AP18: 31 | AQ18: 31 | AR18: =AR5-AR4+1 -> 30 | AS18: 31 | AT18: 181 | AU18: 184 | AV18: 181 | AW18: 184 | AX18: 182 | AY18: 184 | AZ18: 181 | BA18: 184 | BB18: 181 | BC18: 184 | BD18: 181 | BE18: 184 | BF18: 182 | BG18: 184 | BH18: 181 | BI18: 184 | BJ18: 181 | BK18: 184 | BL18: 181 | BM18: 184 | BN18: 182 | BO18: 184 | BP18: 181 | BQ18: 184 | BR18: 181 | BS18: 184 | BT18: 181 | BU18: 184 | BV18: 182 | BW18: 184 | BX18: =BX5-BX4+1 -> 181 | BY18: 184 | BZ18: 181 | CA18: 184 | CB18: 181 | CC18: 184 | CD18: 182 | CE18: 184 | CF18: 181 | CG18: 184 | CH18: 181 | CI18: 184 | CJ18: 181 | CK18: 184 | CL18: 182 | CM18: 184 | CN18: 181 | CO18: 184 | CP18: 181 | CQ18: 184 | CR18: 181 | CS18: 184 | CT18: 182 | CU18: 184 | CV18: 181 | CW18: 184 | CX18: 181 | CY18: 184 | CZ18: 181 | DA18: 184 | DB18: 182 | DC18: 184 | DD18: 181 | DE18: 184 | DF18: 181 | DG18: 184
C19: Hours in period | F19: Hour | L19: =L18*24 -> 744 | M19: =M18*24 -> 672 | N19: 744 | O19: 720 | P19: 744 | Q19: 720 | R19: 744 | S19: 744 | T19: 720 | U19: 744 | V19: 720 | W19: 744 | X19: 744 | Y19: 696 | Z19: 744 | AA19: 720 | AB19: 744 | AC19: 720 | AD19: 744 | AE19: 744 | AF19: 720 | AG19: 744 | AH19: 720 | AI19: 744 | AJ19: 744 | AK19: 672 | AL19: 744 | AM19: 720 | AN19: 744 | AO19: 720 | AP19: 744 | AQ19: 744 | AR19: 720 | AS19: 744 | AT19: 4344 | AU19: 4416 | AV19: 4344 | AW19: 4416 | AX19: 4368 | AY19: 4416 | AZ19: 4344 | BA19: 4416 | BB19: 4344 | BC19: 4416 | BD19: 4344 | BE19: 4416 | BF19: 4368 | BG19: 4416 | BH19: 4344 | BI19: 4416 | BJ19: 4344 | BK19: 4416 | BL19: 4344 | BM19: 4416 | BN19: 4368 | BO19: 4416 | BP19: 4344 | BQ19: 4416 | BR19: 4344 | BS19: 4416 | BT19: 4344 | BU19: 4416 | BV19: 4368 | BW19: 4416 | BX19: 4344 | BY19: =BY18*24 -> 4416 | BZ19: 4344 | CA19: 4416 | CB19: 4344 | CC19: 4416 | CD19: 4368 | CE19: 4416 | CF19: 4344 | CG19: 4416 | CH19: 4344 | CI19: 4416 | CJ19: 4344 | CK19: 4416 | CL19: 4368 | CM19: 4416 | CN19: 4344 | CO19: 4416 | CP19: 4344 | CQ19: 4416 | CR19: 4344 | CS19: 4416 | CT19: 4368 | CU19: 4416 | CV19: 4344 | CW19: 4416 | CX19: 4344 | CY19: 4416 | CZ19: 4344 | DA19: 4416 | DB19: 4368 | DC19: 4416 | DD19: 4344 | DE19: 4416 | DF19: 4344 | DG19: 4416
C20: P50 capacity factor | F20: % p.p. | L20: =IF(L11,L13*1000/L19/L11) -> FALSE | M20: =IF(M11,M13*1000/M19/M11) -> FALSE | N20: FALSE | O20: FALSE | P20: FALSE | Q20: FALSE | R20: FALSE | S20: FALSE | T20: FALSE | U20: FALSE | V20: FALSE | W20: FALSE | X20: FALSE | Y20: FALSE | Z20: FALSE | AA20: FALSE | AB20: FALSE | AC20: FALSE | AD20: FALSE | AE20: FALSE | AF20: FALSE | AG20: FALSE | AH20: FALSE | AI20: FALSE | AJ20: FALSE | AK20: FALSE | AL20: FALSE | AM20: FALSE | AN20: FALSE | AO20: FALSE | AP20: FALSE | AQ20: FALSE | AR20: FALSE | AS20: FALSE | AT20: 0.4166911563 | AU20: 0.4098972788 | AV20: 0.4166911563 | AW20: 0.4098972788 | AX20: 0.4144016445 | AY20: 0.4098972788 | AZ20: 0.4166911563 | BA20: 0.4098972788 | BB20: 0.4166911563 | BC20: 0.4098972788 | BD20: 0.4166911563 | BE20: 0.4098972788 | BF20: 0.4144016445 | BG20: 0.4098972788 | BH20: 0.4166911563 | BI20: 0.4098972788 | BJ20: 0.4166911563 | BK20: 0.4098972788 | BL20: 0.4166911563 | BM20: 0.4098972788 | BN20: 0.4144016445 | BO20: 0.4098972788 | BP20: 0.4166911563 | BQ20: 0.4098972788 | BR20: 0.4166911563 | BS20: 0.4098972788 | BT20: 0.4166911563 | BU20: 0.4098972788 | BV20: 0.4144016445 | BW20: 0.4098972788 | BX20: 0.4166911563 | BY20: =IF(BY11,BY13*1000/BY19/BY11) -> 0.4098972788 | BZ20: 0.4166911563 | CA20: 0.4098972788 | CB20: 0.4166911563 | CC20: 0.4098972788 | CD20: 0.4144016445 | CE20: 0.4098972788 | CF20: 0.4166911563 | CG20: 0.4098972788 | CH20: 0.4166911563 | CI20: 0.4098972788 | CJ20: 0.4166911563 | CK20: 0.4098972788 | CL20: 0.4144016445 | CM20: 0.4098972788 | CN20: 0.4166911563 | CO20: 0.4098972788 | CP20: 0.4166911563 | CQ20: 0.4098972788 | CR20: 0.4166911563 | CS20: 0.4098972788 | CT20: 0.4144016445 | CU20: 0.4098972788 | CV20: 0.4166911563 | CW20: 0.4098972788 | CX20: 0.4166911563 | CY20: 0.4098972788 | CZ20: 0.4166911563 | DA20: 0.4098972788 | DB20: FALSE | DC20: FALSE | DD20: FALSE | DE20: FALSE | DF20: FALSE | DG20: FALSE
C21: P99 capacity factor - 1 year | F21: % p.p. | L21: =IF(L$11,L14/L$19*1000/L$11) -> FALSE | M21: =IF(M11,M14/M19*1000/M11) -> FALSE | N21: FALSE | O21: FALSE | P21: FALSE | Q21: FALSE | R21: FALSE | S21: FALSE | T21: FALSE | U21: FALSE | V21: FALSE | W21: FALSE | X21: FALSE | Y21: FALSE | Z21: FALSE | AA21: FALSE | AB21: FALSE | AC21: FALSE | AD21: FALSE | AE21: FALSE | AF21: FALSE | AG21: FALSE | AH21: FALSE | AI21: FALSE | AJ21: FALSE | AK21: FALSE | AL21: FALSE | AM21: FALSE | AN21: FALSE | AO21: FALSE | AP21: FALSE | AQ21: FALSE | AR21: FALSE | AS21: FALSE | AT21: 0.3135728995 | AU21: 0.3084602979 | AV21: 0.3135728995 | AW21: 0.3084602979 | AX21: 0.3118499715 | AY21: 0.3084602979 | AZ21: 0.3135728995 | BA21: 0.3084602979 | BB21: 0.3135728995 | BC21: 0.3084602979 | BD21: 0.3135728995 | BE21: 0.3084602979 | BF21: 0.3118499715 | BG21: 0.3084602979 | BH21: 0.3135728995 | BI21: 0.3084602979 | BJ21: 0.3135728995 | BK21: 0.3084602979 | BL21: 0.3135728995 | BM21: 0.3084602979 | BN21: 0.3118499715 | BO21: 0.3084602979 | BP21: 0.3135728995 | BQ21: 0.3084602979 | BR21: 0.3135728995 | BS21: 0.3084602979 | BT21: 0.3135728995 | BU21: 0.3084602979 | BV21: 0.3118499715 | BW21: 0.3084602979 | BX21: 0.3135728995 | BY21: =IF(BY11,BY14/BY19*1000/BY11) -> 0.3084602979 | BZ21: 0.3135728995 | CA21: 0.3084602979 | CB21: 0.3135728995 | CC21: 0.3084602979 | CD21: 0.3118499715 | CE21: 0.3084602979 | CF21: 0.3135728995 | CG21: 0.3084602979 | CH21: 0.3135728995 | CI21: 0.3084602979 | CJ21: 0.3135728995 | CK21: 0.3084602979 | CL21: 0.3118499715 | CM21: 0.3084602979 | CN21: 0.3135728995 | CO21: 0.3084602979 | CP21: 0.3135728995 | CQ21: 0.3084602979 | CR21: 0.3135728995 | CS21: 0.3084602979 | CT21: 0.3118499715 | CU21: 0.3084602979 | CV21: 0.3135728995 | CW21: 0.3084602979 | CX21: 0.3135728995 | CY21: 0.3084602979 | CZ21: 0.3135728995 | DA21: 0.3084602979 | DB21: FALSE | DC21: FALSE | DD21: FALSE | DE21: FALSE | DF21: FALSE | DG21: FALSE
C22: P99 capacity factor - 20 year | F22: % p.p. | L22: =IF(L$11,L15/L$19*1000/L$11) -> FALSE | M22: =IF(M$11,M15/M$19*1000/M$11) -> FALSE | N22: FALSE | O22: FALSE | P22: FALSE | Q22: FALSE | R22: FALSE | S22: FALSE | T22: FALSE | U22: FALSE | V22: FALSE | W22: FALSE | X22: FALSE | Y22: FALSE | Z22: FALSE | AA22: FALSE | AB22: FALSE | AC22: FALSE | AD22: FALSE | AE22: FALSE | AF22: FALSE | AG22: FALSE | AH22: FALSE | AI22: FALSE | AJ22: FALSE | AK22: FALSE | AL22: FALSE | AM22: FALSE | AN22: FALSE | AO22: FALSE | AP22: FALSE | AQ22: FALSE | AR22: FALSE | AS22: FALSE | AT22: 0.3467732456 | AU22: 0.341119334 | AV22: 0.3467732456 | AW22: 0.341119334 | AX22: 0.3448678981 | AY22: 0.341119334 | AZ22: 0.3467732456 | BA22: 0.341119334 | BB22: 0.3467732456 | BC22: 0.341119334 | BD22: 0.3467732456 | BE22: 0.341119334 | BF22: 0.3448678981 | BG22: 0.341119334 | BH22: 0.3467732456 | BI22: 0.341119334 | BJ22: 0.3467732456 | BK22: 0.341119334 | BL22: 0.3467732456 | BM22: 0.341119334 | BN22: 0.3448678981 | BO22: 0.341119334 | BP22: 0.3467732456 | BQ22: 0.341119334 | BR22: 0.3467732456 | BS22: 0.341119334 | BT22: 0.3467732456 | BU22: 0.341119334 | BV22: 0.3448678981 | BW22: 0.341119334 | BX22: 0.3467732456 | BY22: =IF(BY$11,BY15/BY$19*1000/BY$11) -> 0.341119334 | BZ22: 0.3467732456 | CA22: 0.341119334 | CB22: 0.3467732456 | CC22: 0.341119334 | CD22: 0.3448678981 | CE22: 0.341119334 | CF22: 0.3467732456 | CG22: 0.341119334 | CH22: 0.3467732456 | CI22: 0.341119334 | CJ22: 0.3467732456 | CK22: 0.341119334 | CL22: 0.3448678981 | CM22: 0.341119334 | CN22: 0.3467732456 | CO22: 0.341119334 | CP22: 0.3467732456 | CQ22: 0.341119334 | CR22: 0.3467732456 | CS22: 0.341119334 | CT22: 0.3448678981 | CU22: 0.341119334 | CV22: 0.3467732456 | CW22: 0.341119334 | CX22: 0.3467732456 | CY22: 0.341119334 | CZ22: 0.3467732456 | DA22: 0.341119334 | DB22: FALSE | DC22: FALSE | DD22: FALSE | DE22: FALSE | DF22: FALSE | DG22: FALSE
A24: Capital Expenditures
B25: Development Month | F25: Month | L25: =K25+L2 -> 1 | M25: 2 | N25: 3 | O25: 4 | P25: 5 | Q25: 6 | R25: 7 | S25: 8 | T25: 9 | U25: 10 | V25: 11 | W25: 12 | X25: 13 | Y25: 14 | Z25: 15 | AA25: 16 | AB25: 17 | AC25: 18 | AD25: 19 | AE25: 20 | AF25: 21 | AG25: 22 | AH25: 23 | AI25: 24 | AJ25: 25 | AK25: 26 | AL25: 27 | AM25: 28 | AN25: 29 | AO25: 30 | AP25: 31 | AQ25: 32 | AR25: =AQ25+AR2 -> 33 | AS25: 34 | AT25: 34 | AU25: 34 | AV25: 34 | AW25: 34 | AX25: 34 | AY25: 34 | AZ25: 34 | BA25: 34 | BB25: 34 | BC25: 34 | BD25: 34 | BE25: 34 | BF25: 34 | BG25: 34 | BH25: 34 | BI25: 34 | BJ25: 34 | BK25: 34 | BL25: 34 | BM25: 34 | BN25: 34 | BO25: 34 | BP25: 34 | BQ25: 34 | BR25: 34 | BS25: 34 | BT25: 34 | BU25: 34 | BV25: 34 | BW25: 34 | BX25: =BW25+BX2 -> 34 | BY25: 34 | BZ25: 34 | CA25: 34 | CB25: 34 | CC25: 34 | CD25: 34 | CE25: 34 | CF25: 34 | CG25: 34 | CH25: 34 | CI25: 34 | CJ25: 34 | CK25: 34 | CL25: 34 | CM25: 34 | CN25: 34 | CO25: 34 | CP25: 34 | CQ25: 34 | CR25: 34 | CS25: 34 | CT25: 34 | CU25: 34 | CV25: 34 | CW25: 34 | CX25: 34 | CY25: 34 | CZ25: 34 | DA25: 34 | DB25: 34 | DC25: 34 | DD25: 34 | DE25: 34 | DF25: 34 | DG25: 34
B26: Development Cost | F26: =units1 -> € 000's | H26: =Inputs!F37 -> 4700 | L26: =$H$26 -> 4700 | M26: =$H$26 -> 4700 | N26: 4700 | O26: 4700 | P26: 4700 | Q26: 4700 | R26: 4700 | S26: 4700 | T26: 4700 | U26: 4700 | V26: 4700 | W26: 4700 | X26: 4700 | Y26: 4700 | Z26: 4700 | AA26: 4700 | AB26: 4700 | AC26: 4700 | AD26: 4700 | AE26: 4700 | AF26: 4700 | AG26: 4700 | AH26: 4700 | AI26: 4700 | AJ26: 4700 | AK26: 4700 | AL26: 4700 | AM26: 4700 | AN26: 4700 | AO26: 4700 | AP26: 4700 | AQ26: 4700 | AR26: 4700 | AS26: 4700 | AT26: 4700 | AU26: 4700 | AV26: 4700 | AW26: 4700 | AX26: 4700 | AY26: 4700 | AZ26: 4700 | BA26: 4700 | BB26: 4700 | BC26: 4700 | BD26: 4700 | BE26: 4700 | BF26: 4700 | BG26: 4700 | BH26: 4700 | BI26: 4700 | BJ26: 4700 | BK26: 4700 | BL26: 4700 | BM26: 4700 | BN26: 4700 | BO26: 4700 | BP26: 4700 | BQ26: 4700 | BR26: 4700 | BS26: 4700 | BT26: 4700 | BU26: 4700 | BV26: 4700 | BW26: 4700 | BX26: 4700 | BY26: =$H$26 -> 4700 | BZ26: 4700 | CA26: 4700 | CB26: 4700 | CC26: 4700 | CD26: 4700 | CE26: 4700 | CF26: 4700 | CG26: 4700 | CH26: 4700 | CI26: 4700 | CJ26: 4700 | CK26: 4700 | CL26: 4700 | CM26: 4700 | CN26: 4700 | CO26: 4700 | CP26: 4700 | CQ26: 4700 | CR26: 4700 | CS26: 4700 | CT26: 4700 | CU26: 4700 | CV26: 4700 | CW26: 4700 | CX26: 4700 | CY26: 4700 | CZ26: 4700 | DA26: 4700 | DB26: 4700 | DC26: 4700 | DD26: 4700 | DE26: 4700 | DF26: 4700 | DG26: 4700
B27: Development S-curve | F27: % p.p. | J27: =SUM(L27:DG27) -> 1 | L27: =LOOKUP(L25,Inputs!45:45,Inputs!46:46) -> 0.006212577418 | M27: =LOOKUP(M25,Inputs!45:45,Inputs!46:46) -> 0.02449194007 | N27: =LOOKUP(N25,Inputs!45:45,Inputs!46:46) -> 0.0529763847 | O27: =LOOKUP(O25,Inputs!45:45,Inputs!46:46) -> 0.08721963065 | P27: =LOOKUP(P25,Inputs!45:45,Inputs!46:46) -> 0.12007682 | Q27: =LOOKUP(Q25,Inputs!45:45,Inputs!46:46) -> 0.1431560309 | R27: =LOOKUP(R25,Inputs!45:45,Inputs!46:46) -> 0.1497086489 | S27: =LOOKUP(S25,Inputs!45:45,Inputs!46:46) -> 0.1376964505 | T27: =LOOKUP(T25,Inputs!45:45,Inputs!46:46) -> 0.1110863411 | U27: =LOOKUP(U25,Inputs!45:45,Inputs!46:46) -> 0.07815235007 | V27: =LOOKUP(V25,Inputs!45:45,Inputs!46:46) -> 0.04757950838 | W27: =LOOKUP(W25,Inputs!45:45,Inputs!46:46) -> 0.02484324739 | X27: =LOOKUP(X25,Inputs!45:45,Inputs!46:46) -> 0.01101679419 | Y27: =LOOKUP(Y25,Inputs!45:45,Inputs!46:46) -> 0.004106305384 | Z27: =LOOKUP(Z25,Inputs!45:45,Inputs!46:46) -> 0.001272626401 | AA27: =LOOKUP(AA25,Inputs!45:45,Inputs!46:46) -> 0.0003243178279 | AB27: =LOOKUP(AB25,Inputs!45:45,Inputs!46:46) -> 6.719283587e-05 | AC27: =LOOKUP(AC25,Inputs!45:45,Inputs!46:46) -> 1.118764937e-05 | AD27: =LOOKUP(AD25,Inputs!45:45,Inputs!46:46) -> 1.479574367e-06 | AE27: =LOOKUP(AE25,Inputs!45:45,Inputs!46:46) -> 1.535978066e-07 | AF27: =LOOKUP(AF25,Inputs!45:45,Inputs!46:46) -> 1.236833721e-08 | AG27: =LOOKUP(AG25,Inputs!45:45,Inputs!46:46) -> 0 | AH27: =LOOKUP(AH25,Inputs!45:45,Inputs!46:46) -> 0 | AI27: =LOOKUP(AI25,Inputs!45:45,Inputs!46:46) -> 0 | AJ27: =LOOKUP(AJ25,Inputs!45:45,Inputs!46:46) -> 0 | AK27: =LOOKUP(AK25,Inputs!45:45,Inputs!46:46) -> 0 | AL27: =LOOKUP(AL25,Inputs!45:45,Inputs!46:46) -> 0 | AM27: =LOOKUP(AM25,Inputs!45:45,Inputs!46:46) -> 0 | AN27: =LOOKUP(AN25,Inputs!45:45,Inputs!46:46) -> 0 | AO27: =LOOKUP(AO25,Inputs!45:45,Inputs!46:46) -> 0 | AP27: =LOOKUP(AP25,Inputs!45:45,Inputs!46:46) -> 0 | AQ27: =LOOKUP(AQ25,Inputs!45:45,Inputs!46:46) -> 0 | AR27: =LOOKUP(AR25,Inputs!45:45,Inputs!46:46) -> 0 | AS27: =LOOKUP(AS25,Inputs!45:45,Inputs!46:46) -> 0 | AT27: =LOOKUP(AT25,Inputs!45:45,Inputs!46:46) -> 0 | AU27: =LOOKUP(AU25,Inputs!45:45,Inputs!46:46) -> 0 | AV27: =LOOKUP(AV25,Inputs!45:45,Inputs!46:46) -> 0 | AW27: =LOOKUP(AW25,Inputs!45:45,Inputs!46:46) -> 0 | AX27: =LOOKUP(AX25,Inputs!45:45,Inputs!46:46) -> 0 | AY27: =LOOKUP(AY25,Inputs!45:45,Inputs!46:46) -> 0 | AZ27: =LOOKUP(AZ25,Inputs!45:45,Inputs!46:46) -> 0 | BA27: =LOOKUP(BA25,Inputs!45:45,Inputs!46:46) -> 0 | BB27: =LOOKUP(BB25,Inputs!45:45,Inputs!46:46) -> 0 | BC27: =LOOKUP(BC25,Inputs!45:45,Inputs!46:46) -> 0 | BD27: =LOOKUP(BD25,Inputs!45:45,Inputs!46:46) -> 0 | BE27: =LOOKUP(BE25,Inputs!45:45,Inputs!46:46) -> 0 | BF27: =LOOKUP(BF25,Inputs!45:45,Inputs!46:46) -> 0 | BG27: =LOOKUP(BG25,Inputs!45:45,Inputs!46:46) -> 0 | BH27: =LOOKUP(BH25,Inputs!45:45,Inputs!46:46) -> 0 | BI27: =LOOKUP(BI25,Inputs!45:45,Inputs!46:46) -> 0 | BJ27: =LOOKUP(BJ25,Inputs!45:45,Inputs!46:46) -> 0 | BK27: =LOOKUP(BK25,Inputs!45:45,Inputs!46:46) -> 0 | BL27: =LOOKUP(BL25,Inputs!45:45,Inputs!46:46) -> 0 | BM27: =LOOKUP(BM25,Inputs!45:45,Inputs!46:46) -> 0 | BN27: =LOOKUP(BN25,Inputs!45:45,Inputs!46:46) -> 0 | BO27: =LOOKUP(BO25,Inputs!45:45,Inputs!46:46) -> 0 | BP27: =LOOKUP(BP25,Inputs!45:45,Inputs!46:46) -> 0 | BQ27: =LOOKUP(BQ25,Inputs!45:45,Inputs!46:46) -> 0 | BR27: =LOOKUP(BR25,Inputs!45:45,Inputs!46:46) -> 0 | BS27: =LOOKUP(BS25,Inputs!45:45,Inputs!46:46) -> 0 | BT27: =LOOKUP(BT25,Inputs!45:45,Inputs!46:46) -> 0 | BU27: =LOOKUP(BU25,Inputs!45:45,Inputs!46:46) -> 0 | BV27: =LOOKUP(BV25,Inputs!45:45,Inputs!46:46) -> 0 | BW27: =LOOKUP(BW25,Inputs!45:45,Inputs!46:46) -> 0 | BX27: =LOOKUP(BX25,Inputs!45:45,Inputs!46:46) -> 0 | BY27: =LOOKUP(BY25,Inputs!45:45,Inputs!46:46) -> 0 | BZ27: =LOOKUP(BZ25,Inputs!45:45,Inputs!46:46) -> 0 | CA27: =LOOKUP(CA25,Inputs!45:45,Inputs!46:46) -> 0 | CB27: =LOOKUP(CB25,Inputs!45:45,Inputs!46:46) -> 0 | CC27: =LOOKUP(CC25,Inputs!45:45,Inputs!46:46) -> 0 | CD27: =LOOKUP(CD25,Inputs!45:45,Inputs!46:46) -> 0 | CE27: =LOOKUP(CE25,Inputs!45:45,Inputs!46:46) -> 0 | CF27: =LOOKUP(CF25,Inputs!45:45,Inputs!46:46) -> 0 | CG27: =LOOKUP(CG25,Inputs!45:45,Inputs!46:46) -> 0 | CH27: =LOOKUP(CH25,Inputs!45:45,Inputs!46:46) -> 0 | CI27: =LOOKUP(CI25,Inputs!45:45,Inputs!46:46) -> 0 | CJ27: =LOOKUP(CJ25,Inputs!45:45,Inputs!46:46) -> 0 | CK27: =LOOKUP(CK25,Inputs!45:45,Inputs!46:46) -> 0 | CL27: =LOOKUP(CL25,Inputs!45:45,Inputs!46:46) -> 0 | CM27: =LOOKUP(CM25,Inputs!45:45,Inputs!46:46) -> 0 | CN27: =LOOKUP(CN25,Inputs!45:45,Inputs!46:46) -> 0 | CO27: =LOOKUP(CO25,Inputs!45:45,Inputs!46:46) -> 0 | CP27: =LOOKUP(CP25,Inputs!45:45,Inputs!46:46) -> 0 | CQ27: =LOOKUP(CQ25,Inputs!45:45,Inputs!46:46) -> 0 | CR27: =LOOKUP(CR25,Inputs!45:45,Inputs!46:46) -> 0 | CS27: =LOOKUP(CS25,Inputs!45:45,Inputs!46:46) -> 0 | CT27: =LOOKUP(CT25,Inputs!45:45,Inputs!46:46) -> 0 | CU27: =LOOKUP(CU25,Inputs!45:45,Inputs!46:46) -> 0 | CV27: =LOOKUP(CV25,Inputs!45:45,Inputs!46:46) -> 0 | CW27: =LOOKUP(CW25,Inputs!45:45,Inputs!46:46) -> 0 | CX27: =LOOKUP(CX25,Inputs!45:45,Inputs!46:46) -> 0 | CY27: =LOOKUP(CY25,Inputs!45:45,Inputs!46:46) -> 0 | CZ27: =LOOKUP(CZ25,Inputs!45:45,Inputs!46:46) -> 0 | DA27: =LOOKUP(DA25,Inputs!45:45,Inputs!46:46) -> 0 | DB27: =LOOKUP(DB25,Inputs!45:45,Inputs!46:46) -> 0 | DC27: =LOOKUP(DC25,Inputs!45:45,Inputs!46:46) -> 0 | DD27: =LOOKUP(DD25,Inputs!45:45,Inputs!46:46) -> 0 | DE27: =LOOKUP(DE25,Inputs!45:45,Inputs!46:46) -> 0 | DF27: =LOOKUP(DF25,Inputs!45:45,Inputs!46:46) -> 0 | DG27: =LOOKUP(DG25,Inputs!45:45,Inputs!46:46) -> 0
B28: Development Expenditure | F28: =units1 -> € 000's | J28: =SUM(L28:DG28) -> 4700 | L28: =L26*L27 -> 29.19911387 | M28: =M26*M27 -> 115.1121183 | N28: 248.9890081 | O28: 409.9322641 | P28: 564.3610542 | Q28: 672.8333455 | R28: 703.6306497 | S28: 647.1733174 | T28: 522.1058033 | U28: 367.3160453 | V28: 223.6236894 | W28: 116.7632627 | X28: 51.77893269 | Y28: 19.2996353 | Z28: 5.981344084 | AA28: 1.524293791 | AB28: 0.3158063286 | AC28: 0.05258195204 | AD28: 0.006953999523 | AE28: 0.0007219096909 | AF28: 5.813118491e-05 | AG28: 0 | AH28: 0 | AI28: 0 | AJ28: 0 | AK28: 0 | AL28: 0 | AM28: 0 | AN28: 0 | AO28: 0 | AP28: 0 | AQ28: 0 | AR28: 0 | AS28: 0 | AT28: 0 | AU28: 0 | AV28: 0 | AW28: 0 | AX28: 0 | AY28: 0 | AZ28: 0 | BA28: 0 | BB28: 0 | BC28: 0 | BD28: 0 | BE28: 0 | BF28: 0 | BG28: 0 | BH28: 0 | BI28: 0 | BJ28: 0 | BK28: 0 | BL28: 0 | BM28: 0 | BN28: 0 | BO28: 0 | BP28: 0 | BQ28: 0 | BR28: 0 | BS28: 0 | BT28: 0 | BU28: 0 | BV28: 0 | BW28: 0 | BX28: 0 | BY28: =BY26*BY27 -> 0 | BZ28: 0 | CA28: 0 | CB28: 0 | CC28: 0 | CD28: 0 | CE28: 0 | CF28: 0 | CG28: 0 | CH28: 0 | CI28: 0 | CJ28: 0 | CK28: 0 | CL28: 0 | CM28: 0 | CN28: 0 | CO28: 0 | CP28: 0 | CQ28: 0 | CR28: 0 | CS28: 0 | CT28: 0 | CU28: 0 | CV28: 0 | CW28: 0 | CX28: 0 | CY28: 0 | CZ28: 0 | DA28: 0 | DB28: 0 | DC28: 0 | DD28: 0 | DE28: 0 | DF28: 0 | DG28: 0
B30: EPC Cost
C31: Construction Period | F31: Flag | G31: FC date/COD date | H31: =Inputs!G6 -> 2020-05-01 | I31: =Inputs!G8 -> 2021-11-01 | L31: =AND(L$4>=$H31,L$4<$I31)*1 -> 0 | M31: =AND(M$4>=$H31,M$4<$I31)*1 -> 0 | N31: 0 | O31: 0 | P31: 0 | Q31: 0 | R31: 0 | S31: 0 | T31: 0 | U31: 0 | V31: 0 | W31: 0 | X31: 0 | Y31: 0 | Z31: 0 | AA31: 0 | AB31: 1 | AC31: 1 | AD31: 1 | AE31: 1 | AF31: 1 | AG31: 1 | AH31: 1 | AI31: 1 | AJ31: 1 | AK31: 1 | AL31: 1 | AM31: 1 | AN31: 1 | AO31: 1 | AP31: 1 | AQ31: 1 | AR31: 1 | AS31: 1 | AT31: 0 | AU31: 0 | AV31: 0 | AW31: 0 | AX31: 0 | AY31: 0 | AZ31: 0 | BA31: 0 | BB31: 0 | BC31: 0 | BD31: 0 | BE31: 0 | BF31: 0 | BG31: 0 | BH31: 0 | BI31: 0 | BJ31: 0 | BK31: 0 | BL31: 0 | BM31: 0 | BN31: 0 | BO31: 0 | BP31: 0 | BQ31: 0 | BR31: 0 | BS31: 0 | BT31: 0 | BU31: 0 | BV31: 0 | BW31: 0 | BX31: 0 | BY31: =AND(BY$4>=$H31,BY$4<$I31)*1 -> 0 | BZ31: 0 | CA31: 0 | CB31: 0 | CC31: 0 | CD31: 0 | CE31: 0 | CF31: 0 | CG31: 0 | CH31: 0 | CI31: 0 | CJ31: 0 | CK31: 0 | CL31: 0 | CM31: 0 | CN31: 0 | CO31: 0 | CP31: 0 | CQ31: 0 | CR31: 0 | CS31: 0 | CT31: 0 | CU31: 0 | CV31: 0 | CW31: 0 | CX31: 0 | CY31: 0 | CZ31: 0 | DA31: 0 | DB31: 0 | DC31: 0 | DD31: 0 | DE31: 0 | DF31: 0 | DG31: 0
C32: Construction Month | F32: month | L32: =(K32+L31)*L31 -> 0 | M32: =(L32+M31)*M31 -> 0 | N32: 0 | O32: 0 | P32: 0 | Q32: 0 | R32: 0 | S32: 0 | T32: 0 | U32: 0 | V32: 0 | W32: 0 | X32: 0 | Y32: 0 | Z32: 0 | AA32: 0 | AB32: 1 | AC32: 2 | AD32: 3 | AE32: 4 | AF32: 5 | AG32: 6 | AH32: 7 | AI32: 8 | AJ32: 9 | AK32: 10 | AL32: 11 | AM32: 12 | AN32: 13 | AO32: 14 | AP32: 15 | AQ32: 16 | AR32: 17 | AS32: 18 | AT32: 0 | AU32: 0 | AV32: 0 | AW32: 0 | AX32: 0 | AY32: 0 | AZ32: 0 | BA32: 0 | BB32: 0 | BC32: 0 | BD32: 0 | BE32: 0 | BF32: 0 | BG32: 0 | BH32: 0 | BI32: 0 | BJ32: 0 | BK32: 0 | BL32: 0 | BM32: 0 | BN32: 0 | BO32: 0 | BP32: 0 | BQ32: 0 | BR32: 0 | BS32: 0 | BT32: 0 | BU32: 0 | BV32: 0 | BW32: 0 | BX32: 0 | BY32: =(BX32+BY31)*BY31 -> 0 | BZ32: 0 | CA32: 0 | CB32: 0 | CC32: 0 | CD32: 0 | CE32: 0 | CF32: 0 | CG32: 0 | CH32: 0 | CI32: 0 | CJ32: 0 | CK32: 0 | CL32: 0 | CM32: 0 | CN32: 0 | CO32: 0 | CP32: 0 | CQ32: 0 | CR32: 0 | CS32: 0 | CT32: 0 | CU32: 0 | CV32: 0 | CW32: 0 | CX32: 0 | CY32: 0 | CZ32: 0 | DA32: 0 | DB32: 0 | DC32: 0 | DD32: 0 | DE32: 0 | DF32: 0 | DG32: 0
C33: Total EPC Cost | F33: =units1 -> € 000's | H33: =Inputs!F39 -> 112800 | L33: =$H$33 -> 112800 | M33: =$H$33 -> 112800 | N33: 112800 | O33: 112800 | P33: 112800 | Q33: 112800 | R33: 112800 | S33: 112800 | T33: 112800 | U33: 112800 | V33: 112800 | W33: 112800 | X33: 112800 | Y33: 112800 | Z33: 112800 | AA33: 112800 | AB33: 112800 | AC33: 112800 | AD33: 112800 | AE33: 112800 | AF33: 112800 | AG33: 112800 | AH33: 112800 | AI33: 112800 | AJ33: 112800 | AK33: 112800 | AL33: 112800 | AM33: 112800 | AN33: 112800 | AO33: 112800 | AP33: 112800 | AQ33: 112800 | AR33: 112800 | AS33: 112800 | AT33: 112800 | AU33: 112800 | AV33: 112800 | AW33: 112800 | AX33: 112800 | AY33: 112800 | AZ33: 112800 | BA33: 112800 | BB33: 112800 | BC33: 112800 | BD33: 112800 | BE33: 112800 | BF33: 112800 | BG33: 112800 | BH33: 112800 | BI33: 112800 | BJ33: 112800 | BK33: 112800 | BL33: 112800 | BM33: 112800 | BN33: 112800 | BO33: 112800 | BP33: 112800 | BQ33: 112800 | BR33: 112800 | BS33: 112800 | BT33: 112800 | BU33: 112800 | BV33: 112800 | BW33: 112800 | BX33: 112800 | BY33: =$H$33 -> 112800 | BZ33: 112800 | CA33: 112800 | CB33: 112800 | CC33: 112800 | CD33: 112800 | CE33: 112800 | CF33: 112800 | CG33: 112800 | CH33: 112800 | CI33: 112800 | CJ33: 112800 | CK33: 112800 | CL33: 112800 | CM33: 112800 | CN33: 112800 | CO33: 112800 | CP33: 112800 | CQ33: 112800 | CR33: 112800 | CS33: 112800 | CT33: 112800 | CU33: 112800 | CV33: 112800 | CW33: 112800 | CX33: 112800 | CY33: 112800 | CZ33: 112800 | DA33: 112800 | DB33: 112800 | DC33: 112800 | DD33: 112800 | DE33: 112800 | DF33: 112800 | DG33: 112800
C34: EPC S Curve | F34: % | J34: =SUM(L34:DG34) -> 1.000017352 | L34: =LOOKUP(L32,Inputs!45:45,Inputs!47:47) -> 0 | M34: =LOOKUP(M32,Inputs!45:45,Inputs!47:47) -> 0 | N34: =LOOKUP(N32,Inputs!45:45,Inputs!47:47) -> 0 | O34: =LOOKUP(O32,Inputs!45:45,Inputs!47:47) -> 0 | P34: =LOOKUP(P32,Inputs!45:45,Inputs!47:47) -> 0 | Q34: =LOOKUP(Q32,Inputs!45:45,Inputs!47:47) -> 0 | R34: =LOOKUP(R32,Inputs!45:45,Inputs!47:47) -> 0 | S34: =LOOKUP(S32,Inputs!45:45,Inputs!47:47) -> 0 | T34: =LOOKUP(T32,Inputs!45:45,Inputs!47:47) -> 0 | U34: =LOOKUP(U32,Inputs!45:45,Inputs!47:47) -> 0 | V34: =LOOKUP(V32,Inputs!45:45,Inputs!47:47) -> 0 | W34: =LOOKUP(W32,Inputs!45:45,Inputs!47:47) -> 0 | X34: =LOOKUP(X32,Inputs!45:45,Inputs!47:47) -> 0 | Y34: =LOOKUP(Y32,Inputs!45:45,Inputs!47:47) -> 0 | Z34: =LOOKUP(Z32,Inputs!45:45,Inputs!47:47) -> 0 | AA34: =LOOKUP(AA32,Inputs!45:45,Inputs!47:47) -> 0 | AB34: =LOOKUP(AB32,Inputs!45:45,Inputs!47:47) -> 0.08938165261 | AC34: =LOOKUP(AC32,Inputs!45:45,Inputs!47:47) -> 0.09335156041 | AD34: =LOOKUP(AD32,Inputs!45:45,Inputs!47:47) -> 0.09108994489 | AE34: =LOOKUP(AE32,Inputs!45:45,Inputs!47:47) -> 0.08617270932 | AF34: =LOOKUP(AF32,Inputs!45:45,Inputs!47:47) -> 0.08000584718 | AG34: =LOOKUP(AG32,Inputs!45:45,Inputs!47:47) -> 0.07331752637 | AH34: =LOOKUP(AH32,Inputs!45:45,Inputs!47:47) -> 0.06652996917 | AI34: =LOOKUP(AI32,Inputs!45:45,Inputs!47:47) -> 0.05989904981 | AJ34: =LOOKUP(AJ32,Inputs!45:45,Inputs!47:47) -> 0.05358007105 | AK34: =LOOKUP(AK32,Inputs!45:45,Inputs!47:47) -> 0.04766364961 | AL34: =LOOKUP(AL32,Inputs!45:45,Inputs!47:47) -> 0.04219733993 | AM34: =LOOKUP(AM32,Inputs!45:45,Inputs!47:47) -> 0.03719958293 | AN34: =LOOKUP(AN32,Inputs!45:45,Inputs!47:47) -> 0.03266912931 | AO34: =LOOKUP(AO32,Inputs!45:45,Inputs!47:47) -> 0.02859160185 | AP34: =LOOKUP(AP32,Inputs!45:45,Inputs!47:47) -> 0.02494415096 | AQ34: =LOOKUP(AQ32,Inputs!45:45,Inputs!47:47) -> 0.02169878835 | AR34: =LOOKUP(AR32,Inputs!45:45,Inputs!47:47) -> 0.01882477816 | AS34: =LOOKUP(AS32,Inputs!45:45,Inputs!47:47) -> 0.0529 | AT34: =LOOKUP(AT32,Inputs!45:45,Inputs!47:47) -> 0 | AU34: =LOOKUP(AU32,Inputs!45:45,Inputs!47:47) -> 0 | AV34: =LOOKUP(AV32,Inputs!45:45,Inputs!47:47) -> 0 | AW34: =LOOKUP(AW32,Inputs!45:45,Inputs!47:47) -> 0 | AX34: =LOOKUP(AX32,Inputs!45:45,Inputs!47:47) -> 0 | AY34: =LOOKUP(AY32,Inputs!45:45,Inputs!47:47) -> 0 | AZ34: =LOOKUP(AZ32,Inputs!45:45,Inputs!47:47) -> 0 | BA34: =LOOKUP(BA32,Inputs!45:45,Inputs!47:47) -> 0 | BB34: =LOOKUP(BB32,Inputs!45:45,Inputs!47:47) -> 0 | BC34: =LOOKUP(BC32,Inputs!45:45,Inputs!47:47) -> 0 | BD34: =LOOKUP(BD32,Inputs!45:45,Inputs!47:47) -> 0 | BE34: =LOOKUP(BE32,Inputs!45:45,Inputs!47:47) -> 0 | BF34: =LOOKUP(BF32,Inputs!45:45,Inputs!47:47) -> 0 | BG34: =LOOKUP(BG32,Inputs!45:45,Inputs!47:47) -> 0 | BH34: =LOOKUP(BH32,Inputs!45:45,Inputs!47:47) -> 0 | BI34: =LOOKUP(BI32,Inputs!45:45,Inputs!47:47) -> 0 | BJ34: =LOOKUP(BJ32,Inputs!45:45,Inputs!47:47) -> 0 | BK34: =LOOKUP(BK32,Inputs!45:45,Inputs!47:47) -> 0 | BL34: =LOOKUP(BL32,Inputs!45:45,Inputs!47:47) -> 0 | BM34: =LOOKUP(BM32,Inputs!45:45,Inputs!47:47) -> 0 | BN34: =LOOKUP(BN32,Inputs!45:45,Inputs!47:47) -> 0 | BO34: =LOOKUP(BO32,Inputs!45:45,Inputs!47:47) -> 0 | BP34: =LOOKUP(BP32,Inputs!45:45,Inputs!47:47) -> 0 | BQ34: =LOOKUP(BQ32,Inputs!45:45,Inputs!47:47) -> 0 | BR34: =LOOKUP(BR32,Inputs!45:45,Inputs!47:47) -> 0 | BS34: =LOOKUP(BS32,Inputs!45:45,Inputs!47:47) -> 0 | BT34: =LOOKUP(BT32,Inputs!45:45,Inputs!47:47) -> 0 | BU34: =LOOKUP(BU32,Inputs!45:45,Inputs!47:47) -> 0 | BV34: =LOOKUP(BV32,Inputs!45:45,Inputs!47:47) -> 0 | BW34: =LOOKUP(BW32,Inputs!45:45,Inputs!47:47) -> 0 | BX34: =LOOKUP(BX32,Inputs!45:45,Inputs!47:47) -> 0 | BY34: =LOOKUP(BY32,Inputs!45:45,Inputs!47:47) -> 0 | BZ34: =LOOKUP(BZ32,Inputs!45:45,Inputs!47:47) -> 0 | CA34: =LOOKUP(CA32,Inputs!45:45,Inputs!47:47) -> 0 | CB34: =LOOKUP(CB32,Inputs!45:45,Inputs!47:47) -> 0 | CC34: =LOOKUP(CC32,Inputs!45:45,Inputs!47:47) -> 0 | CD34: =LOOKUP(CD32,Inputs!45:45,Inputs!47:47) -> 0 | CE34: =LOOKUP(CE32,Inputs!45:45,Inputs!47:47) -> 0 | CF34: =LOOKUP(CF32,Inputs!45:45,Inputs!47:47) -> 0 | CG34: =LOOKUP(CG32,Inputs!45:45,Inputs!47:47) -> 0 | CH34: =LOOKUP(CH32,Inputs!45:45,Inputs!47:47) -> 0 | CI34: =LOOKUP(CI32,Inputs!45:45,Inputs!47:47) -> 0 | CJ34: =LOOKUP(CJ32,Inputs!45:45,Inputs!47:47) -> 0 | CK34: =LOOKUP(CK32,Inputs!45:45,Inputs!47:47) -> 0 | CL34: =LOOKUP(CL32,Inputs!45:45,Inputs!47:47) -> 0 | CM34: =LOOKUP(CM32,Inputs!45:45,Inputs!47:47) -> 0 | CN34: =LOOKUP(CN32,Inputs!45:45,Inputs!47:47) -> 0 | CO34: =LOOKUP(CO32,Inputs!45:45,Inputs!47:47) -> 0 | CP34: =LOOKUP(CP32,Inputs!45:45,Inputs!47:47) -> 0 | CQ34: =LOOKUP(CQ32,Inputs!45:45,Inputs!47:47) -> 0 | CR34: =LOOKUP(CR32,Inputs!45:45,Inputs!47:47) -> 0 | CS34: =LOOKUP(CS32,Inputs!45:45,Inputs!47:47) -> 0 | CT34: =LOOKUP(CT32,Inputs!45:45,Inputs!47:47) -> 0 | CU34: =LOOKUP(CU32,Inputs!45:45,Inputs!47:47) -> 0 | CV34: =LOOKUP(CV32,Inputs!45:45,Inputs!47:47) -> 0 | CW34: =LOOKUP(CW32,Inputs!45:45,Inputs!47:47) -> 0 | CX34: =LOOKUP(CX32,Inputs!45:45,Inputs!47:47) -> 0 | CY34: =LOOKUP(CY32,Inputs!45:45,Inputs!47:47) -> 0 | CZ34: =LOOKUP(CZ32,Inputs!45:45,Inputs!47:47) -> 0 | DA34: =LOOKUP(DA32,Inputs!45:45,Inputs!47:47) -> 0 | DB34: =LOOKUP(DB32,Inputs!45:45,Inputs!47:47) -> 0 | DC34: =LOOKUP(DC32,Inputs!45:45,Inputs!47:47) -> 0 | DD34: =LOOKUP(DD32,Inputs!45:45,Inputs!47:47) -> 0 | DE34: =LOOKUP(DE32,Inputs!45:45,Inputs!47:47) -> 0 | DF34: =LOOKUP(DF32,Inputs!45:45,Inputs!47:47) -> 0 | DG34: =LOOKUP(DG32,Inputs!45:45,Inputs!47:47) -> 0
C35: EPC Expenditures | F35: =units1 -> € 000's | J35: =SUM(L35:DG35) -> 112801.9573 | L35: =L33*L34 -> 0 | M35: =M33*M34 -> 0 | N35: 0 | O35: 0 | P35: 0 | Q35: 0 | R35: 0 | S35: 0 | T35: 0 | U35: 0 | V35: 0 | W35: 0 | X35: 0 | Y35: 0 | Z35: 0 | AA35: 0 | AB35: 10082.25041 | AC35: 10530.05601 | AD35: 10274.94578 | AE35: 9720.281612 | AF35: 9024.659562 | AG35: 8270.216975 | AH35: 7504.580522 | AI35: 6756.612818 | AJ35: 6043.832015 | AK35: 5376.459676 | AL35: 4759.859944 | AM35: 4196.112955 | AN35: 3685.077786 | AO35: 3225.132689 | AP35: 2813.700229 | AQ35: 2447.623326 | AR35: 2123.434977 | AS35: 5967.12 | AT35: 0 | AU35: 0 | AV35: 0 | AW35: 0 | AX35: 0 | AY35: 0 | AZ35: 0 | BA35: 0 | BB35: 0 | BC35: 0 | BD35: 0 | BE35: 0 | BF35: 0 | BG35: 0 | BH35: 0 | BI35: 0 | BJ35: 0 | BK35: 0 | BL35: 0 | BM35: 0 | BN35: 0 | BO35: 0 | BP35: 0 | BQ35: 0 | BR35: 0 | BS35: 0 | BT35: 0 | BU35: 0 | BV35: 0 | BW35: 0 | BX35: 0 | BY35: =BY33*BY34 -> 0 | BZ35: 0 | CA35: 0 | CB35: 0 | CC35: 0 | CD35: 0 | CE35: 0 | CF35: 0 | CG35: 0 | CH35: 0 | CI35: 0 | CJ35: 0 | CK35: 0 | CL35: 0 | CM35: 0 | CN35: 0 | CO35: 0 | CP35: 0 | CQ35: 0 | CR35: 0 | CS35: 0 | CT35: 0 | CU35: 0 | CV35: 0 | CW35: 0 | CX35: 0 | CY35: 0 | CZ35: 0 | DA35: 0 | DB35: 0 | DC35: 0 | DD35: 0 | DE35: 0 | DF35: 0 | DG35: 0
B37: Other Cost
C38: Constrcution Period | F38: period | L38: =L31*1 -> 0 | M38: 0 | N38: 0 | O38: 0 | P38: 0 | Q38: 0 | R38: 0 | S38: 0 | T38: 0 | U38: 0 | V38: 0 | W38: 0 | X38: 0 | Y38: 0 | Z38: 0 | AA38: 0 | AB38: 1 | AC38: 1 | AD38: 1 | AE38: 1 | AF38: 1 | AG38: 1 | AH38: 1 | AI38: 1 | AJ38: 1 | AK38: 1 | AL38: 1 | AM38: 1 | AN38: 1 | AO38: 1 | AP38: 1 | AQ38: 1 | AR38: =AR31*1 -> 1 | AS38: 1 | AT38: 0 | AU38: 0 | AV38: 0 | AW38: 0 | AX38: 0 | AY38: 0 | AZ38: 0 | BA38: 0 | BB38: 0 | BC38: 0 | BD38: 0 | BE38: 0 | BF38: 0 | BG38: 0 | BH38: 0 | BI38: 0 | BJ38: 0 | BK38: 0 | BL38: 0 | BM38: 0 | BN38: 0 | BO38: 0 | BP38: 0 | BQ38: 0 | BR38: 0 | BS38: 0 | BT38: 0 | BU38: 0 | BV38: 0 | BW38: 0 | BX38: =BX31*1 -> 0 | BY38: 0 | BZ38: 0 | CA38: 0 | CB38: 0 | CC38: 0 | CD38: 0 | CE38: 0 | CF38: 0 | CG38: 0 | CH38: 0 | CI38: 0 | CJ38: 0 | CK38: 0 | CL38: 0 | CM38: 0 | CN38: 0 | CO38: 0 | CP38: 0 | CQ38: 0 | CR38: 0 | CS38: 0 | CT38: 0 | CU38: 0 | CV38: 0 | CW38: 0 | CX38: 0 | CY38: 0 | CZ38: 0 | DA38: 0 | DB38: 0 | DC38: 0 | DD38: 0 | DE38: 0 | DF38: 0 | DG38: 0
C39: Construction Month | F39: Month | L39: =L32 -> 0 | M39: 0 | N39: 0 | O39: 0 | P39: 0 | Q39: 0 | R39: 0 | S39: 0 | T39: 0 | U39: 0 | V39: 0 | W39: 0 | X39: 0 | Y39: 0 | Z39: 0 | AA39: 0 | AB39: 1 | AC39: 2 | AD39: 3 | AE39: 4 | AF39: 5 | AG39: 6 | AH39: 7 | AI39: 8 | AJ39: 9 | AK39: 10 | AL39: 11 | AM39: 12 | AN39: 13 | AO39: 14 | AP39: 15 | AQ39: 16 | AR39: =AR32 -> 17 | AS39: 18 | AT39: 0 | AU39: 0 | AV39: 0 | AW39: 0 | AX39: 0 | AY39: 0 | AZ39: 0 | BA39: 0 | BB39: 0 | BC39: 0 | BD39: 0 | BE39: 0 | BF39: 0 | BG39: 0 | BH39: 0 | BI39: 0 | BJ39: 0 | BK39: 0 | BL39: 0 | BM39: 0 | BN39: 0 | BO39: 0 | BP39: 0 | BQ39: 0 | BR39: 0 | BS39: 0 | BT39: 0 | BU39: 0 | BV39: 0 | BW39: 0 | BX39: =BX32 -> 0 | BY39: 0 | BZ39: 0 | CA39: 0 | CB39: 0 | CC39: 0 | CD39: 0 | CE39: 0 | CF39: 0 | CG39: 0 | CH39: 0 | CI39: 0 | CJ39: 0 | CK39: 0 | CL39: 0 | CM39: 0 | CN39: 0 | CO39: 0 | CP39: 0 | CQ39: 0 | CR39: 0 | CS39: 0 | CT39: 0 | CU39: 0 | CV39: 0 | CW39: 0 | CX39: 0 | CY39: 0 | CZ39: 0 | DA39: 0 | DB39: 0 | DC39: 0 | DD39: 0 | DE39: 0 | DF39: 0 | DG39: 0
C40: Other Cost | F40: =units1 -> € 000's | H40: =Inputs!F40+Inputs!F41 -> 17860 | L40: =$H$40 -> 17860 | M40: =$H$40 -> 17860 | N40: 17860 | O40: 17860 | P40: 17860 | Q40: 17860 | R40: 17860 | S40: 17860 | T40: 17860 | U40: 17860 | V40: 17860 | W40: 17860 | X40: 17860 | Y40: 17860 | Z40: 17860 | AA40: 17860 | AB40: 17860 | AC40: 17860 | AD40: 17860 | AE40: 17860 | AF40: 17860 | AG40: 17860 | AH40: 17860 | AI40: 17860 | AJ40: 17860 | AK40: 17860 | AL40: 17860 | AM40: 17860 | AN40: 17860 | AO40: 17860 | AP40: 17860 | AQ40: 17860 | AR40: 17860 | AS40: 17860 | AT40: 17860 | AU40: 17860 | AV40: 17860 | AW40: 17860 | AX40: 17860 | AY40: 17860 | AZ40: 17860 | BA40: 17860 | BB40: 17860 | BC40: 17860 | BD40: 17860 | BE40: 17860 | BF40: 17860 | BG40: 17860 | BH40: 17860 | BI40: 17860 | BJ40: 17860 | BK40: 17860 | BL40: 17860 | BM40: 17860 | BN40: 17860 | BO40: 17860 | BP40: 17860 | BQ40: 17860 | BR40: 17860 | BS40: 17860 | BT40: 17860 | BU40: 17860 | BV40: 17860 | BW40: 17860 | BX40: 17860 | BY40: =$H$40 -> 17860 | BZ40: 17860 | CA40: 17860 | CB40: 17860 | CC40: 17860 | CD40: 17860 | CE40: 17860 | CF40: 17860 | CG40: 17860 | CH40: 17860 | CI40: 17860 | CJ40: 17860 | CK40: 17860 | CL40: 17860 | CM40: 17860 | CN40: 17860 | CO40: 17860 | CP40: 17860 | CQ40: 17860 | CR40: 17860 | CS40: 17860 | CT40: 17860 | CU40: 17860 | CV40: 17860 | CW40: 17860 | CX40: 17860 | CY40: 17860 | CZ40: 17860 | DA40: 17860 | DB40: 17860 | DC40: 17860 | DD40: 17860 | DE40: 17860 | DF40: 17860 | DG40: 17860
C41: Other S Curve | F41: % p.p. | L41: =LOOKUP(L39,Inputs!45:45,Inputs!48:48) -> 0 | M41: =LOOKUP(M39,Inputs!45:45,Inputs!48:48) -> 0 | N41: =LOOKUP(N39,Inputs!45:45,Inputs!48:48) -> 0 | O41: =LOOKUP(O39,Inputs!45:45,Inputs!48:48) -> 0 | P41: =LOOKUP(P39,Inputs!45:45,Inputs!48:48) -> 0 | Q41: =LOOKUP(Q39,Inputs!45:45,Inputs!48:48) -> 0 | R41: =LOOKUP(R39,Inputs!45:45,Inputs!48:48) -> 0 | S41: =LOOKUP(S39,Inputs!45:45,Inputs!48:48) -> 0 | T41: =LOOKUP(T39,Inputs!45:45,Inputs!48:48) -> 0 | U41: =LOOKUP(U39,Inputs!45:45,Inputs!48:48) -> 0 | V41: =LOOKUP(V39,Inputs!45:45,Inputs!48:48) -> 0 | W41: =LOOKUP(W39,Inputs!45:45,Inputs!48:48) -> 0 | X41: =LOOKUP(X39,Inputs!45:45,Inputs!48:48) -> 0 | Y41: =LOOKUP(Y39,Inputs!45:45,Inputs!48:48) -> 0 | Z41: =LOOKUP(Z39,Inputs!45:45,Inputs!48:48) -> 0 | AA41: =LOOKUP(AA39,Inputs!45:45,Inputs!48:48) -> 0 | AB41: =LOOKUP(AB39,Inputs!45:45,Inputs!48:48) -> 0.0006608630864 | AC41: =LOOKUP(AC39,Inputs!45:45,Inputs!48:48) -> 0.00527381648 | AD41: =LOOKUP(AD39,Inputs!45:45,Inputs!48:48) -> 0.01760897571 | AE41: =LOOKUP(AE39,Inputs!45:45,Inputs!48:48) -> 0.04055006062 | AF41: =LOOKUP(AF39,Inputs!45:45,Inputs!48:48) -> 0.07451443754 | AG41: =LOOKUP(AG39,Inputs!45:45,Inputs!48:48) -> 0.1152471388 | AH41: =LOOKUP(AH39,Inputs!45:45,Inputs!48:48) -> 0.1524651876 | AI41: =LOOKUP(AI39,Inputs!45:45,Inputs!48:48) -> 0.1719909597 | AJ41: =LOOKUP(AJ39,Inputs!45:45,Inputs!48:48) -> 0.1629534537 | AK41: =LOOKUP(AK39,Inputs!45:45,Inputs!48:48) -> 0.1266303336 | AL41: =LOOKUP(AL39,Inputs!45:45,Inputs!48:48) -> 0.07828102906 | AM41: =LOOKUP(AM39,Inputs!45:45,Inputs!48:48) -> 0.03712079525 | AN41: =LOOKUP(AN39,Inputs!45:45,Inputs!48:48) -> 0.01295227273 | AO41: =LOOKUP(AO39,Inputs!45:45,Inputs!48:48) -> 0.003174390732 | AP41: =LOOKUP(AP39,Inputs!45:45,Inputs!48:48) -> 0.0005192501754 | AQ41: =LOOKUP(AQ39,Inputs!45:45,Inputs!48:48) -> 5.362676581e-05 | AR41: =LOOKUP(AR39,Inputs!45:45,Inputs!48:48) -> 3.293691931e-06 | AS41: =LOOKUP(AS39,Inputs!45:45,Inputs!48:48) -> 1.128353784e-07 | AT41: =LOOKUP(AT39,Inputs!45:45,Inputs!48:48) -> 0 | AU41: =LOOKUP(AU39,Inputs!45:45,Inputs!48:48) -> 0 | AV41: =LOOKUP(AV39,Inputs!45:45,Inputs!48:48) -> 0 | AW41: =LOOKUP(AW39,Inputs!45:45,Inputs!48:48) -> 0 | AX41: =LOOKUP(AX39,Inputs!45:45,Inputs!48:48) -> 0 | AY41: =LOOKUP(AY39,Inputs!45:45,Inputs!48:48) -> 0 | AZ41: =LOOKUP(AZ39,Inputs!45:45,Inputs!48:48) -> 0 | BA41: =LOOKUP(BA39,Inputs!45:45,Inputs!48:48) -> 0 | BB41: =LOOKUP(BB39,Inputs!45:45,Inputs!48:48) -> 0 | BC41: =LOOKUP(BC39,Inputs!45:45,Inputs!48:48) -> 0 | BD41: =LOOKUP(BD39,Inputs!45:45,Inputs!48:48) -> 0 | BE41: =LOOKUP(BE39,Inputs!45:45,Inputs!48:48) -> 0 | BF41: =LOOKUP(BF39,Inputs!45:45,Inputs!48:48) -> 0 | BG41: =LOOKUP(BG39,Inputs!45:45,Inputs!48:48) -> 0 | BH41: =LOOKUP(BH39,Inputs!45:45,Inputs!48:48) -> 0 | BI41: =LOOKUP(BI39,Inputs!45:45,Inputs!48:48) -> 0 | BJ41: =LOOKUP(BJ39,Inputs!45:45,Inputs!48:48) -> 0 | BK41: =LOOKUP(BK39,Inputs!45:45,Inputs!48:48) -> 0 | BL41: =LOOKUP(BL39,Inputs!45:45,Inputs!48:48) -> 0 | BM41: =LOOKUP(BM39,Inputs!45:45,Inputs!48:48) -> 0 | BN41: =LOOKUP(BN39,Inputs!45:45,Inputs!48:48) -> 0 | BO41: =LOOKUP(BO39,Inputs!45:45,Inputs!48:48) -> 0 | BP41: =LOOKUP(BP39,Inputs!45:45,Inputs!48:48) -> 0 | BQ41: =LOOKUP(BQ39,Inputs!45:45,Inputs!48:48) -> 0 | BR41: =LOOKUP(BR39,Inputs!45:45,Inputs!48:48) -> 0 | BS41: =LOOKUP(BS39,Inputs!45:45,Inputs!48:48) -> 0 | BT41: =LOOKUP(BT39,Inputs!45:45,Inputs!48:48) -> 0 | BU41: =LOOKUP(BU39,Inputs!45:45,Inputs!48:48) -> 0 | BV41: =LOOKUP(BV39,Inputs!45:45,Inputs!48:48) -> 0 | BW41: =LOOKUP(BW39,Inputs!45:45,Inputs!48:48) -> 0 | BX41: =LOOKUP(BX39,Inputs!45:45,Inputs!48:48) -> 0 | BY41: =LOOKUP(BY39,Inputs!45:45,Inputs!48:48) -> 0 | BZ41: =LOOKUP(BZ39,Inputs!45:45,Inputs!48:48) -> 0 | CA41: =LOOKUP(CA39,Inputs!45:45,Inputs!48:48) -> 0 | CB41: =LOOKUP(CB39,Inputs!45:45,Inputs!48:48) -> 0 | CC41: =LOOKUP(CC39,Inputs!45:45,Inputs!48:48) -> 0 | CD41: =LOOKUP(CD39,Inputs!45:45,Inputs!48:48) -> 0 | CE41: =LOOKUP(CE39,Inputs!45:45,Inputs!48:48) -> 0 | CF41: =LOOKUP(CF39,Inputs!45:45,Inputs!48:48) -> 0 | CG41: =LOOKUP(CG39,Inputs!45:45,Inputs!48:48) -> 0 | CH41: =LOOKUP(CH39,Inputs!45:45,Inputs!48:48) -> 0 | CI41: =LOOKUP(CI39,Inputs!45:45,Inputs!48:48) -> 0 | CJ41: =LOOKUP(CJ39,Inputs!45:45,Inputs!48:48) -> 0 | CK41: =LOOKUP(CK39,Inputs!45:45,Inputs!48:48) -> 0 | CL41: =LOOKUP(CL39,Inputs!45:45,Inputs!48:48) -> 0 | CM41: =LOOKUP(CM39,Inputs!45:45,Inputs!48:48) -> 0 | CN41: =LOOKUP(CN39,Inputs!45:45,Inputs!48:48) -> 0 | CO41: =LOOKUP(CO39,Inputs!45:45,Inputs!48:48) -> 0 | CP41: =LOOKUP(CP39,Inputs!45:45,Inputs!48:48) -> 0 | CQ41: =LOOKUP(CQ39,Inputs!45:45,Inputs!48:48) -> 0 | CR41: =LOOKUP(CR39,Inputs!45:45,Inputs!48:48) -> 0 | CS41: =LOOKUP(CS39,Inputs!45:45,Inputs!48:48) -> 0 | CT41: =LOOKUP(CT39,Inputs!45:45,Inputs!48:48) -> 0 | CU41: =LOOKUP(CU39,Inputs!45:45,Inputs!48:48) -> 0 | CV41: =LOOKUP(CV39,Inputs!45:45,Inputs!48:48) -> 0 | CW41: =LOOKUP(CW39,Inputs!45:45,Inputs!48:48) -> 0 | CX41: =LOOKUP(CX39,Inputs!45:45,Inputs!48:48) -> 0 | CY41: =LOOKUP(CY39,Inputs!45:45,Inputs!48:48) -> 0 | CZ41: =LOOKUP(CZ39,Inputs!45:45,Inputs!48:48) -> 0 | DA41: =LOOKUP(DA39,Inputs!45:45,Inputs!48:48) -> 0 | DB41: =LOOKUP(DB39,Inputs!45:45,Inputs!48:48) -> 0 | DC41: =LOOKUP(DC39,Inputs!45:45,Inputs!48:48) -> 0 | DD41: =LOOKUP(DD39,Inputs!45:45,Inputs!48:48) -> 0 | DE41: =LOOKUP(DE39,Inputs!45:45,Inputs!48:48) -> 0 | DF41: =LOOKUP(DF39,Inputs!45:45,Inputs!48:48) -> 0 | DG41: =LOOKUP(DG39,Inputs!45:45,Inputs!48:48) -> 0
C42: Other Expenditures | F42: =units1 -> € 000's | L42: =L40*L41 -> 0 | M42: =M40*M41 -> 0 | N42: 0 | O42: 0 | P42: 0 | Q42: 0 | R42: 0 | S42: 0 | T42: 0 | U42: 0 | V42: 0 | W42: 0 | X42: 0 | Y42: 0 | Z42: 0 | AA42: 0 | AB42: 11.80301472 | AC42: 94.19036234 | AD42: 314.4963062 | AE42: 724.2240827 | AF42: 1330.827855 | AG42: 2058.313899 | AH42: 2723.02825 | AI42: 3071.75854 | AJ42: 2910.348682 | AK42: 2261.617758 | AL42: 1398.099179 | AM42: 662.9774032 | AN42: 231.3275909 | AO42: 56.69461847 | AP42: 9.273808133 | AQ42: 0.9577740374 | AR42: 0.05882533789 | AS42: 0.002015239858 | AT42: 0 | AU42: 0 | AV42: 0 | AW42: 0 | AX42: 0 | AY42: 0 | AZ42: 0 | BA42: 0 | BB42: 0 | BC42: 0 | BD42: 0 | BE42: 0 | BF42: 0 | BG42: 0 | BH42: 0 | BI42: 0 | BJ42: 0 | BK42: 0 | BL42: 0 | BM42: 0 | BN42: 0 | BO42: 0 | BP42: 0 | BQ42: 0 | BR42: 0 | BS42: 0 | BT42: 0 | BU42: 0 | BV42: 0 | BW42: 0 | BX42: 0 | BY42: =BY40*BY41 -> 0 | BZ42: 0 | CA42: 0 | CB42: 0 | CC42: 0 | CD42: 0 | CE42: 0 | CF42: 0 | CG42: 0 | CH42: 0 | CI42: 0 | CJ42: 0 | CK42: 0 | CL42: 0 | CM42: 0 | CN42: 0 | CO42: 0 | CP42: 0 | CQ42: 0 | CR42: 0 | CS42: 0 | CT42: 0 | CU42: 0 | CV42: 0 | CW42: 0 | CX42: 0 | CY42: 0 | CZ42: 0 | DA42: 0 | DB42: 0 | DC42: 0 | DD42: 0 | DE42: 0 | DF42: 0 | DG42: 0
D44: Total Capital Expenditures | F44: =units1 -> € 000's | L44: =L42+L35+L28 -> 29.19911387 | M44: 115.1121183 | N44: 248.9890081 | O44: 409.9322641 | P44: 564.3610542 | Q44: 672.8333455 | R44: 703.6306497 | S44: 647.1733174 | T44: 522.1058033 | U44: 367.3160453 | V44: 223.6236894 | W44: 116.7632627 | X44: 51.77893269 | Y44: 19.2996353 | Z44: 5.981344084 | AA44: 1.524293791 | AB44: 10094.36924 | AC44: 10624.29896 | AD44: 10589.44904 | AE44: 10444.50642 | AF44: 10355.48748 | AG44: 10328.53087 | AH44: 10227.60877 | AI44: 9828.371358 | AJ44: 8954.180697 | AK44: 7638.077433 | AL44: 6157.959123 | AM44: 4859.090358 | AN44: 3916.405377 | AO44: 3281.827308 | AP44: 2822.974037 | AQ44: 2448.5811 | AR44: =AR42+AR35+AR28 -> 2123.493802 | AS44: 5967.122015 | AT44: 0 | AU44: 0 | AV44: 0 | AW44: 0 | AX44: 0 | AY44: 0 | AZ44: 0 | BA44: 0 | BB44: 0 | BC44: 0 | BD44: 0 | BE44: 0 | BF44: 0 | BG44: 0 | BH44: 0 | BI44: 0 | BJ44: 0 | BK44: 0 | BL44: 0 | BM44: 0 | BN44: 0 | BO44: 0 | BP44: 0 | BQ44: 0 | BR44: 0 | BS44: 0 | BT44: 0 | BU44: 0 | BV44: 0 | BW44: 0 | BX44: =BX42+BX35+BX28 -> 0 | BY44: 0 | BZ44: 0 | CA44: 0 | CB44: 0 | CC44: 0 | CD44: 0 | CE44: 0 | CF44: 0 | CG44: 0 | CH44: 0 | CI44: 0 | CJ44: 0 | CK44: 0 | CL44: 0 | CM44: 0 | CN44: 0 | CO44: 0 | CP44: 0 | CQ44: 0 | CR44: 0 | CS44: 0 | CT44: 0 | CU44: 0 | CV44: 0 | CW44: 0 | CX44: 0 | CY44: 0 | CZ44: 0 | DA44: 0 | DB44: 0 | DC44: 0 | DD44: 0 | DE44: 0 | DF44: 0 | DG44: 0
A46: Revenues
B47: PPA Period | F47: Flag | H47: =Inputs!G8 -> 2021-11-01 | I47: =Inputs!G12 -> 2041-11-01 | L47: =AND(L$4>=$H47,L$4<$I47)*1 -> 0 | M47: =AND(M$4>=$H47,M$4<$I47)*1 -> 0 | N47: 0 | O47: 0 | P47: 0 | Q47: 0 | R47: 0 | S47: 0 | T47: 0 | U47: 0 | V47: 0 | W47: 0 | X47: 0 | Y47: 0 | Z47: 0 | AA47: 0 | AB47: 0 | AC47: 0 | AD47: 0 | AE47: 0 | AF47: 0 | AG47: 0 | AH47: 0 | AI47: 0 | AJ47: 0 | AK47: 0 | AL47: 0 | AM47: 0 | AN47: 0 | AO47: 0 | AP47: 0 | AQ47: 0 | AR47: 0 | AS47: 0 | AT47: 1 | AU47: 1 | AV47: 1 | AW47: 1 | AX47: 1 | AY47: 1 | AZ47: 1 | BA47: 1 | BB47: 1 | BC47: 1 | BD47: 1 | BE47: 1 | BF47: 1 | BG47: 1 | BH47: 1 | BI47: 1 | BJ47: 1 | BK47: 1 | BL47: 1 | BM47: 1 | BN47: 1 | BO47: 1 | BP47: 1 | BQ47: 1 | BR47: 1 | BS47: 1 | BT47: 1 | BU47: 1 | BV47: 1 | BW47: 1 | BX47: 1 | BY47: =AND(BY$4>=$H47,BY$4<$I47)*1 -> 1 | BZ47: 1 | CA47: 1 | CB47: 1 | CC47: 1 | CD47: 1 | CE47: 1 | CF47: 1 | CG47: 1 | CH47: 0 | CI47: 0 | CJ47: 0 | CK47: 0 | CL47: 0 | CM47: 0 | CN47: 0 | CO47: 0 | CP47: 0 | CQ47: 0 | CR47: 0 | CS47: 0 | CT47: 0 | CU47: 0 | CV47: 0 | CW47: 0 | CX47: 0 | CY47: 0 | CZ47: 0 | DA47: 0 | DB47: 0 | DC47: 0 | DD47: 0 | DE47: 0 | DF47: 0 | DG47: 0
B48: Fixed PPA Price | F48: =units2 -> €/MWH | H48: =Inputs!F51 -> 49.5647455 | L48: =L47*$H$48 -> 0 | M48: =M47*$H$48 -> 0 | N48: 0 | O48: 0 | P48: 0 | Q48: 0 | R48: 0 | S48: 0 | T48: 0 | U48: 0 | V48: 0 | W48: 0 | X48: 0 | Y48: 0 | Z48: 0 | AA48: 0 | AB48: 0 | AC48: 0 | AD48: 0 | AE48: 0 | AF48: 0 | AG48: 0 | AH48: 0 | AI48: 0 | AJ48: 0 | AK48: 0 | AL48: 0 | AM48: 0 | AN48: 0 | AO48: 0 | AP48: 0 | AQ48: 0 | AR48: 0 | AS48: 0 | AT48: 49.5647455 | AU48: 49.5647455 | AV48: 49.5647455 | AW48: 49.5647455 | AX48: 49.5647455 | AY48: 49.5647455 | AZ48: 49.5647455 | BA48: 49.5647455 | BB48: 49.5647455 | BC48: 49.5647455 | BD48: 49.5647455 | BE48: 49.5647455 | BF48: 49.5647455 | BG48: 49.5647455 | BH48: 49.5647455 | BI48: 49.5647455 | BJ48: 49.5647455 | BK48: 49.5647455 | BL48: 49.5647455 | BM48: 49.5647455 | BN48: 49.5647455 | BO48: 49.5647455 | BP48: 49.5647455 | BQ48: 49.5647455 | BR48: 49.5647455 | BS48: 49.5647455 | BT48: 49.5647455 | BU48: 49.5647455 | BV48: 49.5647455 | BW48: 49.5647455 | BX48: 49.5647455 | BY48: =BY47*$H$48 -> 49.5647455 | BZ48: 49.5647455 | CA48: 49.5647455 | CB48: 49.5647455 | CC48: 49.5647455 | CD48: 49.5647455 | CE48: 49.5647455 | CF48: 49.5647455 | CG48: 49.5647455 | CH48: 0 | CI48: 0 | CJ48: 0 | CK48: 0 | CL48: 0 | CM48: 0 | CN48: 0 | CO48: 0 | CP48: 0 | CQ48: 0 | CR48: 0 | CS48: 0 | CT48: 0 | CU48: 0 | CV48: 0 | CW48: 0 | CX48: 0 | CY48: 0 | CZ48: 0 | DA48: 0 | DB48: 0 | DC48: 0 | DD48: 0 | DE48: 0 | DF48: 0 | DG48: 0
B49: Model Year | F49: Year | L49: =YEAR(L4) -> 2019 | M49: 2019 | N49: 2019 | O49: 2019 | P49: 2019 | Q49: 2019 | R49: 2019 | S49: 2019 | T49: 2019 | U49: 2019 | V49: 2019 | W49: 2019 | X49: 2020 | Y49: 2020 | Z49: 2020 | AA49: 2020 | AB49: 2020 | AC49: 2020 | AD49: 2020 | AE49: 2020 | AF49: 2020 | AG49: 2020 | AH49: 2020 | AI49: 2020 | AJ49: 2021 | AK49: 2021 | AL49: 2021 | AM49: 2021 | AN49: 2021 | AO49: 2021 | AP49: 2021 | AQ49: 2021 | AR49: =YEAR(AR4) -> 2021 | AS49: 2021 | AT49: 2021 | AU49: 2022 | AV49: 2022 | AW49: 2023 | AX49: 2023 | AY49: 2024 | AZ49: 2024 | BA49: 2025 | BB49: 2025 | BC49: 2026 | BD49: 2026 | BE49: 2027 | BF49: 2027 | BG49: 2028 | BH49: 2028 | BI49: 2029 | BJ49: 2029 | BK49: 2030 | BL49: 2030 | BM49: 2031 | BN49: 2031 | BO49: 2032 | BP49: 2032 | BQ49: 2033 | BR49: 2033 | BS49: 2034 | BT49: 2034 | BU49: 2035 | BV49: 2035 | BW49: 2036 | BX49: =YEAR(BX4) -> 2036 | BY49: 2037 | BZ49: 2037 | CA49: 2038 | CB49: 2038 | CC49: 2039 | CD49: 2039 | CE49: 2040 | CF49: 2040 | CG49: 2041 | CH49: 2041 | CI49: 2042 | CJ49: 2042 | CK49: 2043 | CL49: 2043 | CM49: 2044 | CN49: 2044 | CO49: 2045 | CP49: 2045 | CQ49: 2046 | CR49: 2046 | CS49: 2047 | CT49: 2047 | CU49: 2048 | CV49: 2048 | CW49: 2049 | CX49: 2049 | CY49: 2050 | CZ49: 2050 | DA49: 2051 | DB49: 2051 | DC49: 2052 | DD49: 2052 | DE49: 2053 | DF49: 2053 | DG49: 2054
B50: Annual inflation rate | F50: % p.a. | L50: =LOOKUP(L49,Inputs!53:53,Inputs!54:54) -> 0.0135 | M50: =LOOKUP(M49,Inputs!53:53,Inputs!54:54) -> 0.0135 | N50: =LOOKUP(N49,Inputs!53:53,Inputs!54:54) -> 0.0135 | O50: =LOOKUP(O49,Inputs!53:53,Inputs!54:54) -> 0.0135 | P50: =LOOKUP(P49,Inputs!53:53,Inputs!54:54) -> 0.0135 | Q50: =LOOKUP(Q49,Inputs!53:53,Inputs!54:54) -> 0.0135 | R50: =LOOKUP(R49,Inputs!53:53,Inputs!54:54) -> 0.0135 | S50: =LOOKUP(S49,Inputs!53:53,Inputs!54:54) -> 0.0135 | T50: =LOOKUP(T49,Inputs!53:53,Inputs!54:54) -> 0.0135 | U50: =LOOKUP(U49,Inputs!53:53,Inputs!54:54) -> 0.0135 | V50: =LOOKUP(V49,Inputs!53:53,Inputs!54:54) -> 0.0135 | W50: =LOOKUP(W49,Inputs!53:53,Inputs!54:54) -> 0.0135 | X50: =LOOKUP(X49,Inputs!53:53,Inputs!54:54) -> 0.0145 | Y50: =LOOKUP(Y49,Inputs!53:53,Inputs!54:54) -> 0.0145 | Z50: =LOOKUP(Z49,Inputs!53:53,Inputs!54:54) -> 0.0145 | AA50: =LOOKUP(AA49,Inputs!53:53,Inputs!54:54) -> 0.0145 | AB50: =LOOKUP(AB49,Inputs!53:53,Inputs!54:54) -> 0.0145 | AC50: =LOOKUP(AC49,Inputs!53:53,Inputs!54:54) -> 0.0145 | AD50: =LOOKUP(AD49,Inputs!53:53,Inputs!54:54) -> 0.0145 | AE50: =LOOKUP(AE49,Inputs!53:53,Inputs!54:54) -> 0.0145 | AF50: =LOOKUP(AF49,Inputs!53:53,Inputs!54:54) -> 0.0145 | AG50: =LOOKUP(AG49,Inputs!53:53,Inputs!54:54) -> 0.0145 | AH50: =LOOKUP(AH49,Inputs!53:53,Inputs!54:54) -> 0.0145 | AI50: =LOOKUP(AI49,Inputs!53:53,Inputs!54:54) -> 0.0145 | AJ50: =LOOKUP(AJ49,Inputs!53:53,Inputs!54:54) -> 0.018 | AK50: =LOOKUP(AK49,Inputs!53:53,Inputs!54:54) -> 0.018 | AL50: =LOOKUP(AL49,Inputs!53:53,Inputs!54:54) -> 0.018 | AM50: =LOOKUP(AM49,Inputs!53:53,Inputs!54:54) -> 0.018 | AN50: =LOOKUP(AN49,Inputs!53:53,Inputs!54:54) -> 0.018 | AO50: =LOOKUP(AO49,Inputs!53:53,Inputs!54:54) -> 0.018 | AP50: =LOOKUP(AP49,Inputs!53:53,Inputs!54:54) -> 0.018 | AQ50: =LOOKUP(AQ49,Inputs!53:53,Inputs!54:54) -> 0.018 | AR50: =LOOKUP(AR49,Inputs!53:53,Inputs!54:54) -> 0.018 | AS50: =LOOKUP(AS49,Inputs!53:53,Inputs!54:54) -> 0.018 | AT50: =LOOKUP(AT49,Inputs!53:53,Inputs!54:54) -> 0.018 | AU50: =LOOKUP(AU49,Inputs!53:53,Inputs!54:54) -> 0.019 | AV50: =LOOKUP(AV49,Inputs!53:53,Inputs!54:54) -> 0.019 | AW50: =LOOKUP(AW49,Inputs!53:53,Inputs!54:54) -> 0.02 | AX50: =LOOKUP(AX49,Inputs!53:53,Inputs!54:54) -> 0.02 | AY50: =LOOKUP(AY49,Inputs!53:53,Inputs!54:54) -> 0.02 | AZ50: =LOOKUP(AZ49,Inputs!53:53,Inputs!54:54) -> 0.02 | BA50: =LOOKUP(BA49,Inputs!53:53,Inputs!54:54) -> 0.02 | BB50: =LOOKUP(BB49,Inputs!53:53,Inputs!54:54) -> 0.02 | BC50: =LOOKUP(BC49,Inputs!53:53,Inputs!54:54) -> 0.02 | BD50: =LOOKUP(BD49,Inputs!53:53,Inputs!54:54) -> 0.02 | BE50: =LOOKUP(BE49,Inputs!53:53,Inputs!54:54) -> 0.02 | BF50: =LOOKUP(BF49,Inputs!53:53,Inputs!54:54) -> 0.02 | BG50: =LOOKUP(BG49,Inputs!53:53,Inputs!54:54) -> 0.02 | BH50: =LOOKUP(BH49,Inputs!53:53,Inputs!54:54) -> 0.02 | BI50: =LOOKUP(BI49,Inputs!53:53,Inputs!54:54) -> 0.02 | BJ50: =LOOKUP(BJ49,Inputs!53:53,Inputs!54:54) -> 0.02 | BK50: =LOOKUP(BK49,Inputs!53:53,Inputs!54:54) -> 0.02 | BL50: =LOOKUP(BL49,Inputs!53:53,Inputs!54:54) -> 0.02 | BM50: =LOOKUP(BM49,Inputs!53:53,Inputs!54:54) -> 0.02 | BN50: =LOOKUP(BN49,Inputs!53:53,Inputs!54:54) -> 0.02 | BO50: =LOOKUP(BO49,Inputs!53:53,Inputs!54:54) -> 0.02 | BP50: =LOOKUP(BP49,Inputs!53:53,Inputs!54:54) -> 0.02 | BQ50: =LOOKUP(BQ49,Inputs!53:53,Inputs!54:54) -> 0.02 | BR50: =LOOKUP(BR49,Inputs!53:53,Inputs!54:54) -> 0.02 | BS50: =LOOKUP(BS49,Inputs!53:53,Inputs!54:54) -> 0.02 | BT50: =LOOKUP(BT49,Inputs!53:53,Inputs!54:54) -> 0.02 | BU50: =LOOKUP(BU49,Inputs!53:53,Inputs!54:54) -> 0.02 | BV50: =LOOKUP(BV49,Inputs!53:53,Inputs!54:54) -> 0.02 | BW50: =LOOKUP(BW49,Inputs!53:53,Inputs!54:54) -> 0.02 | BX50: =LOOKUP(BX49,Inputs!53:53,Inputs!54:54) -> 0.02 | BY50: =LOOKUP(BY49,Inputs!53:53,Inputs!54:54) -> 0.02 | BZ50: =LOOKUP(BZ49,Inputs!53:53,Inputs!54:54) -> 0.02 | CA50: =LOOKUP(CA49,Inputs!53:53,Inputs!54:54) -> 0.02 | CB50: =LOOKUP(CB49,Inputs!53:53,Inputs!54:54) -> 0.02 | CC50: =LOOKUP(CC49,Inputs!53:53,Inputs!54:54) -> 0.02 | CD50: =LOOKUP(CD49,Inputs!53:53,Inputs!54:54) -> 0.02 | CE50: =LOOKUP(CE49,Inputs!53:53,Inputs!54:54) -> 0.02 | CF50: =LOOKUP(CF49,Inputs!53:53,Inputs!54:54) -> 0.02 | CG50: =LOOKUP(CG49,Inputs!53:53,Inputs!54:54) -> 0.02 | CH50: =LOOKUP(CH49,Inputs!53:53,Inputs!54:54) -> 0.02 | CI50: =LOOKUP(CI49,Inputs!53:53,Inputs!54:54) -> 0.02 | CJ50: =LOOKUP(CJ49,Inputs!53:53,Inputs!54:54) -> 0.02 | CK50: =LOOKUP(CK49,Inputs!53:53,Inputs!54:54) -> 0.02 | CL50: =LOOKUP(CL49,Inputs!53:53,Inputs!54:54) -> 0.02 | CM50: =LOOKUP(CM49,Inputs!53:53,Inputs!54:54) -> 0.02 | CN50: =LOOKUP(CN49,Inputs!53:53,Inputs!54:54) -> 0.02 | CO50: =LOOKUP(CO49,Inputs!53:53,Inputs!54:54) -> 0.02 | CP50: =LOOKUP(CP49,Inputs!53:53,Inputs!54:54) -> 0.02 | CQ50: =LOOKUP(CQ49,Inputs!53:53,Inputs!54:54) -> 0.02 | CR50: =LOOKUP(CR49,Inputs!53:53,Inputs!54:54) -> 0.02 | CS50: =LOOKUP(CS49,Inputs!53:53,Inputs!54:54) -> 0.02 | CT50: =LOOKUP(CT49,Inputs!53:53,Inputs!54:54) -> 0.02 | CU50: =LOOKUP(CU49,Inputs!53:53,Inputs!54:54) -> 0.02 | CV50: =LOOKUP(CV49,Inputs!53:53,Inputs!54:54) -> 0.02 | CW50: =LOOKUP(CW49,Inputs!53:53,Inputs!54:54) -> 0.02 | CX50: =LOOKUP(CX49,Inputs!53:53,Inputs!54:54) -> 0.02 | CY50: =LOOKUP(CY49,Inputs!53:53,Inputs!54:54) -> 0.02 | CZ50: =LOOKUP(CZ49,Inputs!53:53,Inputs!54:54) -> 0.02 | DA50: =LOOKUP(DA49,Inputs!53:53,Inputs!54:54) -> 0.02 | DB50: =LOOKUP(DB49,Inputs!53:53,Inputs!54:54) -> 0.02 | DC50: =LOOKUP(DC49,Inputs!53:53,Inputs!54:54) -> 0.02 | DD50: =LOOKUP(DD49,Inputs!53:53,Inputs!54:54) -> 0.02 | DE50: =LOOKUP(DE49,Inputs!53:53,Inputs!54:54) -> 0.02 | DF50: =LOOKUP(DF49,Inputs!53:53,Inputs!54:54) -> 0.02 | DG50: =LOOKUP(DG49,Inputs!53:53,Inputs!54:54) -> 0.02
B51: Period inflation rate | F51: % p.p. | L51: =(1+L50)^(L3/12)-1 -> 0.001118098516 | M51: 0.001118098516 | N51: 0.001118098516 | O51: 0.001118098516 | P51: 0.001118098516 | Q51: 0.001118098516 | R51: 0.001118098516 | S51: 0.001118098516 | T51: 0.001118098516 | U51: 0.001118098516 | V51: 0.001118098516 | W51: 0.001118098516 | X51: 0.001200376566 | Y51: 0.001200376566 | Z51: 0.001200376566 | AA51: 0.001200376566 | AB51: 0.001200376566 | AC51: 0.001200376566 | AD51: 0.001200376566 | AE51: 0.001200376566 | AF51: 0.001200376566 | AG51: 0.001200376566 | AH51: 0.001200376566 | AI51: 0.001200376566 | AJ51: 0.001487765471 | AK51: 0.001487765471 | AL51: 0.001487765471 | AM51: 0.001487765471 | AN51: 0.001487765471 | AO51: 0.001487765471 | AP51: 0.001487765471 | AQ51: 0.001487765471 | AR51: =(1+AR50)^(AR3/12)-1 -> 0.001487765471 | AS51: 0.001487765471 | AT51: 0.00895986045 | AU51: 0.009455298664 | AV51: 0.009455298664 | AW51: 0.009950493836 | AX51: 0.009950493836 | AY51: 0.009950493836 | AZ51: 0.009950493836 | BA51: 0.009950493836 | BB51: 0.009950493836 | BC51: 0.009950493836 | BD51: 0.009950493836 | BE51: 0.009950493836 | BF51: 0.009950493836 | BG51: 0.009950493836 | BH51: 0.009950493836 | BI51: 0.009950493836 | BJ51: 0.009950493836 | BK51: 0.009950493836 | BL51: 0.009950493836 | BM51: 0.009950493836 | BN51: 0.009950493836 | BO51: 0.009950493836 | BP51: 0.009950493836 | BQ51: 0.009950493836 | BR51: 0.009950493836 | BS51: 0.009950493836 | BT51: 0.009950493836 | BU51: 0.009950493836 | BV51: 0.009950493836 | BW51: 0.009950493836 | BX51: =(1+BX50)^(BX3/12)-1 -> 0.009950493836 | BY51: 0.009950493836 | BZ51: 0.009950493836 | CA51: 0.009950493836 | CB51: 0.009950493836 | CC51: 0.009950493836 | CD51: 0.009950493836 | CE51: 0.009950493836 | CF51: 0.009950493836 | CG51: 0.009950493836 | CH51: 0.009950493836 | CI51: 0.009950493836 | CJ51: 0.009950493836 | CK51: 0.009950493836 | CL51: 0.009950493836 | CM51: 0.009950493836 | CN51: 0.009950493836 | CO51: 0.009950493836 | CP51: 0.009950493836 | CQ51: 0.009950493836 | CR51: 0.009950493836 | CS51: 0.009950493836 | CT51: 0.009950493836 | CU51: 0.009950493836 | CV51: 0.009950493836 | CW51: 0.009950493836 | CX51: 0.009950493836 | CY51: 0.009950493836 | CZ51: 0.009950493836 | DA51: 0.009950493836 | DB51: 0.009950493836 | DC51: 0.009950493836 | DD51: =(1+DD50)^(DD3/12)-1 -> 0.009950493836 | DE51: 0.009950493836 | DF51: 0.009950493836 | DG51: 0.009950493836
B52: Inflation index | F52: Index | K52: 1 | L52: =K52*(1+L51*L47) -> 1 | M52: =L52*(1+M51*M47) -> 1 | N52: 1 | O52: 1 | P52: 1 | Q52: 1 | R52: 1 | S52: 1 | T52: 1 | U52: 1 | V52: 1 | W52: 1 | X52: 1 | Y52: 1 | Z52: 1 | AA52: 1 | AB52: 1 | AC52: 1 | AD52: 1 | AE52: 1 | AF52: 1 | AG52: 1 | AH52: 1 | AI52: 1 | AJ52: 1 | AK52: 1 | AL52: 1 | AM52: 1 | AN52: 1 | AO52: 1 | AP52: 1 | AQ52: 1 | AR52: 1 | AS52: 1 | AT52: 1.00895986 | AU52: 1.018499877 | AV52: 1.028130098 | AW52: 1.0383605 | AX52: 1.0486927 | AY52: 1.05912771 | AZ52: 1.069666554 | BA52: 1.080310264 | BB52: 1.091059885 | BC52: 1.101916469 | BD52: 1.112881083 | BE52: 1.123954799 | BF52: 1.135138704 | BG52: 1.146433895 | BH52: 1.157841478 | BI52: 1.169362573 | BJ52: 1.180998308 | BK52: 1.192749824 | BL52: 1.204618274 | BM52: 1.216604821 | BN52: 1.228710639 | BO52: 1.240936917 | BP52: 1.253284852 | BQ52: 1.265755655 | BR52: 1.278350549 | BS52: 1.291070769 | BT52: 1.30391756 | BU52: 1.316892184 | BV52: 1.329995911 | BW52: 1.343230028 | BX52: 1.35659583 | BY52: =BX52*(1+BY51*BY47) -> 1.370094628 | BZ52: 1.383727746 | CA52: 1.397496521 | CB52: 1.411402301 | CC52: 1.425446451 | CD52: 1.439630347 | CE52: 1.45395538 | CF52: 1.468422954 | CG52: 1.483034488 | CH52: 1.483034488 | CI52: 1.483034488 | CJ52: 1.483034488 | CK52: 1.483034488 | CL52: 1.483034488 | CM52: 1.483034488 | CN52: 1.483034488 | CO52: 1.483034488 | CP52: 1.483034488 | CQ52: 1.483034488 | CR52: 1.483034488 | CS52: 1.483034488 | CT52: 1.483034488 | CU52: 1.483034488 | CV52: 1.483034488 | CW52: 1.483034488 | CX52: 1.483034488 | CY52: 1.483034488 | CZ52: 1.483034488 | DA52: 1.483034488 | DB52: 1.483034488 | DC52: 1.483034488 | DD52: 1.483034488 | DE52: 1.483034488 | DF52: 1.483034488 | DG52: 1.483034488
C53: Inflated PPA Price | F53: =units2 -> €/MWH | H53: =Inputs!$F$55 -> TRUE | L53: =L48*IF($H$53,L52,1) -> 0 | M53: =M48*IF($H$53,M52,1) -> 0 | N53: 0 | O53: 0 | P53: 0 | Q53: 0 | R53: 0 | S53: 0 | T53: 0 | U53: 0 | V53: 0 | W53: 0 | X53: 0 | Y53: 0 | Z53: 0 | AA53: 0 | AB53: 0 | AC53: 0 | AD53: 0 | AE53: 0 | AF53: 0 | AG53: 0 | AH53: 0 | AI53: 0 | AJ53: 0 | AK53: 0 | AL53: 0 | AM53: 0 | AN53: 0 | AO53: 0 | AP53: 0 | AQ53: 0 | AR53: 0 | AS53: 0 | AT53: 50.00883871 | AU53: 50.48168721 | AV53: 50.95900664 | AW53: 51.46607392 | AX53: 51.97818678 | AY53: 52.4953954 | AZ53: 53.01775051 | BA53: 53.54530331 | BB53: 54.07810552 | BC53: 54.61620938 | BD53: 55.15966763 | BE53: 55.70853356 | BF53: 56.26286098 | BG53: 56.82270424 | BH53: 57.3881182 | BI53: 57.95915832 | BJ53: 58.53588057 | BK53: 59.11834149 | BL53: 59.70659818 | BM53: 60.30070832 | BN53: 60.90073014 | BO53: 61.50672248 | BP53: 62.11874475 | BQ53: 62.73685693 | BR53: 63.36111964 | BS53: 63.99159407 | BT53: 64.62834203 | BU53: 65.27142595 | BV53: 65.92090887 | BW53: 66.57685447 | BX53: 67.23932705 | BY53: =BY48*IF($H$53,BY52,1) -> 67.90839156 | BZ53: 68.58411359 | CA53: 69.26655939 | CB53: 69.95579586 | CC53: 70.65189058 | CD53: 71.35491178 | CE53: 72.06492839 | CF53: 72.78201002 | CG53: 73.50622696 | CH53: 0 | CI53: 0 | CJ53: 0 | CK53: 0 | CL53: 0 | CM53: 0 | CN53: 0 | CO53: 0 | CP53: 0 | CQ53: 0 | CR53: 0 | CS53: 0 | CT53: 0 | CU53: 0 | CV53: 0 | CW53: 0 | CX53: 0 | CY53: 0 | CZ53: 0 | DA53: 0 | DB53: 0 | DC53: 0 | DD53: 0 | DE53: 0 | DF53: 0 | DG53: 0
C54: Generation | F54: MWh | L54: =L16 -> 0 | M54: 0 | N54: 0 | O54: 0 | P54: 0 | Q54: 0 | R54: 0 | S54: 0 | T54: 0 | U54: 0 | V54: 0 | W54: 0 | X54: 0 | Y54: 0 | Z54: 0 | AA54: 0 | AB54: 0 | AC54: 0 | AD54: 0 | AE54: 0 | AF54: 0 | AG54: 0 | AH54: 0 | AI54: 0 | AJ54: 0 | AK54: 0 | AL54: 0 | AM54: 0 | AN54: 0 | AO54: 0 | AP54: 0 | AQ54: 0 | AR54: =AR16 -> 0 | AS54: 0 | AT54: 170.15 | AU54: 170.15 | AV54: 170.15 | AW54: 170.15 | AX54: 170.15 | AY54: 170.15 | AZ54: 170.15 | BA54: 170.15 | BB54: 170.15 | BC54: 170.15 | BD54: 170.15 | BE54: 170.15 | BF54: 170.15 | BG54: 170.15 | BH54: 170.15 | BI54: 170.15 | BJ54: 170.15 | BK54: 170.15 | BL54: 170.15 | BM54: 170.15 | BN54: 170.15 | BO54: 170.15 | BP54: 170.15 | BQ54: 170.15 | BR54: 170.15 | BS54: 170.15 | BT54: 170.15 | BU54: 170.15 | BV54: 170.15 | BW54: 170.15 | BX54: =BX16 -> 170.15 | BY54: 170.15 | BZ54: 170.15 | CA54: 170.15 | CB54: 170.15 | CC54: 170.15 | CD54: 170.15 | CE54: 170.15 | CF54: 170.15 | CG54: 170.15 | CH54: 170.15 | CI54: 170.15 | CJ54: 170.15 | CK54: 170.15 | CL54: 170.15 | CM54: 170.15 | CN54: 170.15 | CO54: 170.15 | CP54: 170.15 | CQ54: 170.15 | CR54: 170.15 | CS54: 170.15 | CT54: 170.15 | CU54: 170.15 | CV54: 170.15 | CW54: 170.15 | CX54: 170.15 | CY54: 170.15 | CZ54: 170.15 | DA54: 170.15 | DB54: 0 | DC54: 0 | DD54: 0 | DE54: 0 | DF54: 0 | DG54: 0
D55: PPA Revenues | F55: =units1 -> € 000's | L55: =L53*L54 -> 0 | M55: =M53*M54 -> 0 | N55: 0 | O55: 0 | P55: 0 | Q55: 0 | R55: 0 | S55: 0 | T55: 0 | U55: 0 | V55: 0 | W55: 0 | X55: 0 | Y55: 0 | Z55: 0 | AA55: 0 | AB55: 0 | AC55: 0 | AD55: 0 | AE55: 0 | AF55: 0 | AG55: 0 | AH55: 0 | AI55: 0 | AJ55: 0 | AK55: 0 | AL55: 0 | AM55: 0 | AN55: 0 | AO55: 0 | AP55: 0 | AQ55: 0 | AR55: 0 | AS55: 0 | AT55: 8509.003906 | AU55: 8589.459079 | AV55: 8670.67498 | AW55: 8756.952478 | AX55: 8844.08848 | AY55: 8932.091528 | AZ55: 9020.970249 | BA55: 9110.733358 | BB55: 9201.389654 | BC55: 9292.948025 | BD55: 9385.417447 | BE55: 9478.806986 | BF55: 9573.125796 | BG55: 9668.383126 | BH55: 9764.588312 | BI55: 9861.750788 | BJ55: 9959.880079 | BK55: 10058.9858 | BL55: 10159.07768 | BM55: 10260.16552 | BN55: 10362.25923 | BO55: 10465.36883 | BP55: 10569.50442 | BQ55: 10674.67621 | BR55: 10780.89451 | BS55: 10888.16973 | BT55: 10996.5124 | BU55: 11105.93313 | BV55: 11216.44264 | BW55: 11328.05179 | BX55: 11440.7715 | BY55: =BY53*BY54 -> 11554.61282 | BZ55: 11669.58693 | CA55: 11785.70508 | CB55: 11902.97867 | CC55: 12021.41918 | CD55: 12141.03824 | CE55: 12261.84757 | CF55: 12383.859 | CG55: 12507.08452 | CH55: 0 | CI55: 0 | CJ55: 0 | CK55: 0 | CL55: 0 | CM55: 0 | CN55: 0 | CO55: 0 | CP55: 0 | CQ55: 0 | CR55: 0 | CS55: 0 | CT55: 0 | CU55: 0 | CV55: 0 | CW55: 0 | CX55: 0 | CY55: 0 | CZ55: 0 | DA55: 0 | DB55: 0 | DC55: 0 | DD55: 0 | DE55: 0 | DF55: 0 | DG55: 0
B57: Merchant period | F57: flag | H57: =Inputs!G12 -> 2041-11-01 | I57: =Inputs!G10 -> 2051-11-01 | L57: =AND(L$4>=$H57,L$4<$I57)*1 -> 0 | M57: =AND(M$4>=$H57,M$4<$I57)*1 -> 0 | N57: 0 | O57: 0 | P57: 0 | Q57: 0 | R57: 0 | S57: 0 | T57: 0 | U57: 0 | V57: 0 | W57: 0 | X57: 0 | Y57: 0 | Z57: 0 | AA57: 0 | AB57: 0 | AC57: 0 | AD57: 0 | AE57: 0 | AF57: 0 | AG57: 0 | AH57: 0 | AI57: 0 | AJ57: 0 | AK57: 0 | AL57: 0 | AM57: 0 | AN57: 0 | AO57: 0 | AP57: 0 | AQ57: 0 | AR57: 0 | AS57: 0 | AT57: 0 | AU57: 0 | AV57: 0 | AW57: 0 | AX57: 0 | AY57: 0 | AZ57: 0 | BA57: 0 | BB57: 0 | BC57: 0 | BD57: 0 | BE57: 0 | BF57: 0 | BG57: 0 | BH57: 0 | BI57: 0 | BJ57: 0 | BK57: 0 | BL57: 0 | BM57: 0 | BN57: 0 | BO57: 0 | BP57: 0 | BQ57: 0 | BR57: 0 | BS57: 0 | BT57: 0 | BU57: 0 | BV57: 0 | BW57: 0 | BX57: 0 | BY57: =AND(BY$4>=$H57,BY$4<$I57)*1 -> 0 | BZ57: 0 | CA57: 0 | CB57: 0 | CC57: 0 | CD57: 0 | CE57: 0 | CF57: 0 | CG57: 0 | CH57: 1 | CI57: 1 | CJ57: 1 | CK57: 1 | CL57: 1 | CM57: 1 | CN57: 1 | CO57: 1 | CP57: 1 | CQ57: 1 | CR57: 1 | CS57: 1 | CT57: 1 | CU57: 1 | CV57: 1 | CW57: 1 | CX57: 1 | CY57: 1 | CZ57: 1 | DA57: 1 | DB57: 0 | DC57: 0 | DD57: 0 | DE57: 0 | DF57: 0 | DG57: 0
B58: Merchant Price | F58: =units2 -> €/MWH | L58: =LOOKUP(L49,Inputs!57:57,Inputs!58:58) -> 35.42 | M58: =LOOKUP(M49,Inputs!57:57,Inputs!58:58) -> 35.42 | N58: =LOOKUP(N49,Inputs!57:57,Inputs!58:58) -> 35.42 | O58: =LOOKUP(O49,Inputs!57:57,Inputs!58:58) -> 35.42 | P58: =LOOKUP(P49,Inputs!57:57,Inputs!58:58) -> 35.42 | Q58: =LOOKUP(Q49,Inputs!57:57,Inputs!58:58) -> 35.42 | R58: =LOOKUP(R49,Inputs!57:57,Inputs!58:58) -> 35.42 | S58: =LOOKUP(S49,Inputs!57:57,Inputs!58:58) -> 35.42 | T58: =LOOKUP(T49,Inputs!57:57,Inputs!58:58) -> 35.42 | U58: =LOOKUP(U49,Inputs!57:57,Inputs!58:58) -> 35.42 | V58: =LOOKUP(V49,Inputs!57:57,Inputs!58:58) -> 35.42 | W58: =LOOKUP(W49,Inputs!57:57,Inputs!58:58) -> 35.42 | X58: =LOOKUP(X49,Inputs!57:57,Inputs!58:58) -> 35.84504 | Y58: =LOOKUP(Y49,Inputs!57:57,Inputs!58:58) -> 35.84504 | Z58: =LOOKUP(Z49,Inputs!57:57,Inputs!58:58) -> 35.84504 | AA58: =LOOKUP(AA49,Inputs!57:57,Inputs!58:58) -> 35.84504 | AB58: =LOOKUP(AB49,Inputs!57:57,Inputs!58:58) -> 35.84504 | AC58: =LOOKUP(AC49,Inputs!57:57,Inputs!58:58) -> 35.84504 | AD58: =LOOKUP(AD49,Inputs!57:57,Inputs!58:58) -> 35.84504 | AE58: =LOOKUP(AE49,Inputs!57:57,Inputs!58:58) -> 35.84504 | AF58: =LOOKUP(AF49,Inputs!57:57,Inputs!58:58) -> 35.84504 | AG58: =LOOKUP(AG49,Inputs!57:57,Inputs!58:58) -> 35.84504 | AH58: =LOOKUP(AH49,Inputs!57:57,Inputs!58:58) -> 35.84504 | AI58: =LOOKUP(AI49,Inputs!57:57,Inputs!58:58) -> 35.84504 | AJ58: =LOOKUP(AJ49,Inputs!57:57,Inputs!58:58) -> 36.27518048 | AK58: =LOOKUP(AK49,Inputs!57:57,Inputs!58:58) -> 36.27518048 | AL58: =LOOKUP(AL49,Inputs!57:57,Inputs!58:58) -> 36.27518048 | AM58: =LOOKUP(AM49,Inputs!57:57,Inputs!58:58) -> 36.27518048 | AN58: =LOOKUP(AN49,Inputs!57:57,Inputs!58:58) -> 36.27518048 | AO58: =LOOKUP(AO49,Inputs!57:57,Inputs!58:58) -> 36.27518048 | AP58: =LOOKUP(AP49,Inputs!57:57,Inputs!58:58) -> 36.27518048 | AQ58: =LOOKUP(AQ49,Inputs!57:57,Inputs!58:58) -> 36.27518048 | AR58: =LOOKUP(AR49,Inputs!57:57,Inputs!58:58) -> 36.27518048 | AS58: =LOOKUP(AS49,Inputs!57:57,Inputs!58:58) -> 36.27518048 | AT58: =LOOKUP(AT49,Inputs!57:57,Inputs!58:58) -> 36.27518048 | AU58: =LOOKUP(AU49,Inputs!57:57,Inputs!58:58) -> 36.71048265 | AV58: =LOOKUP(AV49,Inputs!57:57,Inputs!58:58) -> 36.71048265 | AW58: =LOOKUP(AW49,Inputs!57:57,Inputs!58:58) -> 37.15100844 | AX58: =LOOKUP(AX49,Inputs!57:57,Inputs!58:58) -> 37.15100844 | AY58: =LOOKUP(AY49,Inputs!57:57,Inputs!58:58) -> 37.59682054 | AZ58: =LOOKUP(AZ49,Inputs!57:57,Inputs!58:58) -> 37.59682054 | BA58: =LOOKUP(BA49,Inputs!57:57,Inputs!58:58) -> 38.04798239 | BB58: =LOOKUP(BB49,Inputs!57:57,Inputs!58:58) -> 38.04798239 | BC58: =LOOKUP(BC49,Inputs!57:57,Inputs!58:58) -> 38.50455817 | BD58: =LOOKUP(BD49,Inputs!57:57,Inputs!58:58) -> 38.50455817 | BE58: =LOOKUP(BE49,Inputs!57:57,Inputs!58:58) -> 38.96661287 | BF58: =LOOKUP(BF49,Inputs!57:57,Inputs!58:58) -> 38.96661287 | BG58: =LOOKUP(BG49,Inputs!57:57,Inputs!58:58) -> 39.43421223 | BH58: =LOOKUP(BH49,Inputs!57:57,Inputs!58:58) -> 39.43421223 | BI58: =LOOKUP(BI49,Inputs!57:57,Inputs!58:58) -> 39.90742277 | BJ58: =LOOKUP(BJ49,Inputs!57:57,Inputs!58:58) -> 39.90742277 | BK58: =LOOKUP(BK49,Inputs!57:57,Inputs!58:58) -> 40.38631185 | BL58: =LOOKUP(BL49,Inputs!57:57,Inputs!58:58) -> 40.38631185 | BM58: =LOOKUP(BM49,Inputs!57:57,Inputs!58:58) -> 40.87094759 | BN58: =LOOKUP(BN49,Inputs!57:57,Inputs!58:58) -> 40.87094759 | BO58: =LOOKUP(BO49,Inputs!57:57,Inputs!58:58) -> 41.36139896 | BP58: =LOOKUP(BP49,Inputs!57:57,Inputs!58:58) -> 41.36139896 | BQ58: =LOOKUP(BQ49,Inputs!57:57,Inputs!58:58) -> 41.85773575 | BR58: =LOOKUP(BR49,Inputs!57:57,Inputs!58:58) -> 41.85773575 | BS58: =LOOKUP(BS49,Inputs!57:57,Inputs!58:58) -> 42.36002858 | BT58: =LOOKUP(BT49,Inputs!57:57,Inputs!58:58) -> 42.36002858 | BU58: =LOOKUP(BU49,Inputs!57:57,Inputs!58:58) -> 42.36002858 | BV58: =LOOKUP(BV49,Inputs!57:57,Inputs!58:58) -> 42.36002858 | BW58: =LOOKUP(BW49,Inputs!57:57,Inputs!58:58) -> 42.36002858 | BX58: =LOOKUP(BX49,Inputs!57:57,Inputs!58:58) -> 42.36002858 | BY58: =LOOKUP(BY49,Inputs!57:57,Inputs!58:58) -> 42.36002858 | BZ58: =LOOKUP(BZ49,Inputs!57:57,Inputs!58:58) -> 42.36002858 | CA58: =LOOKUP(CA49,Inputs!57:57,Inputs!58:58) -> 42.36002858 | CB58: =LOOKUP(CB49,Inputs!57:57,Inputs!58:58) -> 42.36002858 | CC58: =LOOKUP(CC49,Inputs!57:57,Inputs!58:58) -> 42.36002858 | CD58: =LOOKUP(CD49,Inputs!57:57,Inputs!58:58) -> 42.36002858 | CE58: =LOOKUP(CE49,Inputs!57:57,Inputs!58:58) -> 42.36002858 | CF58: =LOOKUP(CF49,Inputs!57:57,Inputs!58:58) -> 42.36002858 | CG58: =LOOKUP(CG49,Inputs!57:57,Inputs!58:58) -> 42.36002858 | CH58: =LOOKUP(CH49,Inputs!57:57,Inputs!58:58) -> 42.36002858 | CI58: =LOOKUP(CI49,Inputs!57:57,Inputs!58:58) -> 42.36002858 | CJ58: =LOOKUP(CJ49,Inputs!57:57,Inputs!58:58) -> 42.36002858 | CK58: =LOOKUP(CK49,Inputs!57:57,Inputs!58:58) -> 42.36002858 | CL58: =LOOKUP(CL49,Inputs!57:57,Inputs!58:58) -> 42.36002858 | CM58: =LOOKUP(CM49,Inputs!57:57,Inputs!58:58) -> 42.36002858 | CN58: =LOOKUP(CN49,Inputs!57:57,Inputs!58:58) -> 42.36002858 | CO58: =LOOKUP(CO49,Inputs!57:57,Inputs!58:58) -> 42.36002858 | CP58: =LOOKUP(CP49,Inputs!57:57,Inputs!58:58) -> 42.36002858 | CQ58: =LOOKUP(CQ49,Inputs!57:57,Inputs!58:58) -> 42.36002858 | CR58: =LOOKUP(CR49,Inputs!57:57,Inputs!58:58) -> 42.36002858 | CS58: =LOOKUP(CS49,Inputs!57:57,Inputs!58:58) -> 42.36002858 | CT58: =LOOKUP(CT49,Inputs!57:57,Inputs!58:58) -> 42.36002858 | CU58: =LOOKUP(CU49,Inputs!57:57,Inputs!58:58) -> 42.36002858 | CV58: =LOOKUP(CV49,Inputs!57:57,Inputs!58:58) -> 42.36002858 | CW58: =LOOKUP(CW49,Inputs!57:57,Inputs!58:58) -> 42.36002858 | CX58: =LOOKUP(CX49,Inputs!57:57,Inputs!58:58) -> 42.36002858 | CY58: =LOOKUP(CY49,Inputs!57:57,Inputs!58:58) -> 42.36002858 | CZ58: =LOOKUP(CZ49,Inputs!57:57,Inputs!58:58) -> 42.36002858 | DA58: =LOOKUP(DA49,Inputs!57:57,Inputs!58:58) -> 42.36002858 | DB58: =LOOKUP(DB49,Inputs!57:57,Inputs!58:58) -> 42.36002858 | DC58: =LOOKUP(DC49,Inputs!57:57,Inputs!58:58) -> 42.36002858 | DD58: =LOOKUP(DD49,Inputs!57:57,Inputs!58:58) -> 42.36002858 | DE58: =LOOKUP(DE49,Inputs!57:57,Inputs!58:58) -> 42.36002858 | DF58: =LOOKUP(DF49,Inputs!57:57,Inputs!58:58) -> 42.36002858 | DG58: =LOOKUP(DG49,Inputs!57:57,Inputs!58:58) -> 42.36002858
C59: Merchant Revenues | F59: =units1 -> € 000's | J59: =SUM(L59:DG59) -> 144151.1772 | L59: =L58*L54*L57 -> 0 | M59: =M58*M54*M57 -> 0 | N59: 0 | O59: 0 | P59: 0 | Q59: 0 | R59: 0 | S59: 0 | T59: 0 | U59: 0 | V59: 0 | W59: 0 | X59: 0 | Y59: 0 | Z59: 0 | AA59: 0 | AB59: 0 | AC59: 0 | AD59: 0 | AE59: 0 | AF59: 0 | AG59: 0 | AH59: 0 | AI59: 0 | AJ59: 0 | AK59: 0 | AL59: 0 | AM59: 0 | AN59: 0 | AO59: 0 | AP59: 0 | AQ59: 0 | AR59: 0 | AS59: 0 | AT59: 0 | AU59: 0 | AV59: 0 | AW59: 0 | AX59: 0 | AY59: 0 | AZ59: 0 | BA59: 0 | BB59: 0 | BC59: 0 | BD59: 0 | BE59: 0 | BF59: 0 | BG59: 0 | BH59: 0 | BI59: 0 | BJ59: 0 | BK59: 0 | BL59: 0 | BM59: 0 | BN59: 0 | BO59: 0 | BP59: 0 | BQ59: 0 | BR59: 0 | BS59: 0 | BT59: 0 | BU59: 0 | BV59: 0 | BW59: 0 | BX59: 0 | BY59: =BY58*BY54*BY57 -> 0 | BZ59: 0 | CA59: 0 | CB59: 0 | CC59: 0 | CD59: 0 | CE59: 0 | CF59: 0 | CG59: 0 | CH59: 7207.558862 | CI59: 7207.558862 | CJ59: 7207.558862 | CK59: 7207.558862 | CL59: 7207.558862 | CM59: 7207.558862 | CN59: 7207.558862 | CO59: 7207.558862 | CP59: 7207.558862 | CQ59: 7207.558862 | CR59: 7207.558862 | CS59: 7207.558862 | CT59: 7207.558862 | CU59: 7207.558862 | CV59: 7207.558862 | CW59: 7207.558862 | CX59: 7207.558862 | CY59: 7207.558862 | CZ59: 7207.558862 | DA59: 7207.558862 | DB59: 0 | DC59: 0 | DD59: 0 | DE59: 0 | DF59: 0 | DG59: 0
C61: Total Revenues | F61: =units1 -> € 000's | J61: =SUM(L61:DG61) -> 559306.3869 | L61: =(L59+L55) -> 0 | M61: =(M59+M55) -> 0 | N61: 0 | O61: 0 | P61: 0 | Q61: 0 | R61: 0 | S61: 0 | T61: 0 | U61: 0 | V61: 0 | W61: 0 | X61: 0 | Y61: 0 | Z61: 0 | AA61: 0 | AB61: 0 | AC61: 0 | AD61: 0 | AE61: 0 | AF61: 0 | AG61: 0 | AH61: 0 | AI61: 0 | AJ61: 0 | AK61: 0 | AL61: 0 | AM61: 0 | AN61: 0 | AO61: 0 | AP61: 0 | AQ61: 0 | AR61: 0 | AS61: 0 | AT61: 8509.003906 | AU61: 8589.459079 | AV61: 8670.67498 | AW61: 8756.952478 | AX61: 8844.08848 | AY61: 8932.091528 | AZ61: 9020.970249 | BA61: 9110.733358 | BB61: 9201.389654 | BC61: 9292.948025 | BD61: 9385.417447 | BE61: 9478.806986 | BF61: 9573.125796 | BG61: 9668.383126 | BH61: 9764.588312 | BI61: 9861.750788 | BJ61: 9959.880079 | BK61: 10058.9858 | BL61: 10159.07768 | BM61: 10260.16552 | BN61: 10362.25923 | BO61: 10465.36883 | BP61: 10569.50442 | BQ61: 10674.67621 | BR61: 10780.89451 | BS61: 10888.16973 | BT61: 10996.5124 | BU61: 11105.93313 | BV61: 11216.44264 | BW61: 11328.05179 | BX61: 11440.7715 | BY61: =(BY59+BY55) -> 11554.61282 | BZ61: 11669.58693 | CA61: 11785.70508 | CB61: 11902.97867 | CC61: 12021.41918 | CD61: 12141.03824 | CE61: 12261.84757 | CF61: 12383.859 | CG61: 12507.08452 | CH61: 7207.558862 | CI61: 7207.558862 | CJ61: 7207.558862 | CK61: 7207.558862 | CL61: 7207.558862 | CM61: 7207.558862 | CN61: 7207.558862 | CO61: 7207.558862 | CP61: 7207.558862 | CQ61: 7207.558862 | CR61: 7207.558862 | CS61: 7207.558862 | CT61: 7207.558862 | CU61: 7207.558862 | CV61: 7207.558862 | CW61: 7207.558862 | CX61: 7207.558862 | CY61: 7207.558862 | CZ61: 7207.558862 | DA61: 7207.558862 | DB61: 0 | DC61: 0 | DD61: 0 | DE61: 0 | DF61: 0 | DG61: 0
A63: Operating Costs
C64: Operating Cost Inflation | F64: % p.a. | L64: =LOOKUP(L49,Inputs!62:62,Inputs!63:63) -> 0.016 | M64: =LOOKUP(M49,Inputs!62:62,Inputs!63:63) -> 0.016 | N64: =LOOKUP(N49,Inputs!62:62,Inputs!63:63) -> 0.016 | O64: =LOOKUP(O49,Inputs!62:62,Inputs!63:63) -> 0.016 | P64: =LOOKUP(P49,Inputs!62:62,Inputs!63:63) -> 0.016 | Q64: =LOOKUP(Q49,Inputs!62:62,Inputs!63:63) -> 0.016 | R64: =LOOKUP(R49,Inputs!62:62,Inputs!63:63) -> 0.016 | S64: =LOOKUP(S49,Inputs!62:62,Inputs!63:63) -> 0.016 | T64: =LOOKUP(T49,Inputs!62:62,Inputs!63:63) -> 0.016 | U64: =LOOKUP(U49,Inputs!62:62,Inputs!63:63) -> 0.016 | V64: =LOOKUP(V49,Inputs!62:62,Inputs!63:63) -> 0.016 | W64: =LOOKUP(W49,Inputs!62:62,Inputs!63:63) -> 0.016 | X64: =LOOKUP(X49,Inputs!62:62,Inputs!63:63) -> 0.017 | Y64: =LOOKUP(Y49,Inputs!62:62,Inputs!63:63) -> 0.017 | Z64: =LOOKUP(Z49,Inputs!62:62,Inputs!63:63) -> 0.017 | AA64: =LOOKUP(AA49,Inputs!62:62,Inputs!63:63) -> 0.017 | AB64: =LOOKUP(AB49,Inputs!62:62,Inputs!63:63) -> 0.017 | AC64: =LOOKUP(AC49,Inputs!62:62,Inputs!63:63) -> 0.017 | AD64: =LOOKUP(AD49,Inputs!62:62,Inputs!63:63) -> 0.017 | AE64: =LOOKUP(AE49,Inputs!62:62,Inputs!63:63) -> 0.017 | AF64: =LOOKUP(AF49,Inputs!62:62,Inputs!63:63) -> 0.017 | AG64: =LOOKUP(AG49,Inputs!62:62,Inputs!63:63) -> 0.017 | AH64: =LOOKUP(AH49,Inputs!62:62,Inputs!63:63) -> 0.017 | AI64: =LOOKUP(AI49,Inputs!62:62,Inputs!63:63) -> 0.017 | AJ64: =LOOKUP(AJ49,Inputs!62:62,Inputs!63:63) -> 0.018 | AK64: =LOOKUP(AK49,Inputs!62:62,Inputs!63:63) -> 0.018 | AL64: =LOOKUP(AL49,Inputs!62:62,Inputs!63:63) -> 0.018 | AM64: =LOOKUP(AM49,Inputs!62:62,Inputs!63:63) -> 0.018 | AN64: =LOOKUP(AN49,Inputs!62:62,Inputs!63:63) -> 0.018 | AO64: =LOOKUP(AO49,Inputs!62:62,Inputs!63:63) -> 0.018 | AP64: =LOOKUP(AP49,Inputs!62:62,Inputs!63:63) -> 0.018 | AQ64: =LOOKUP(AQ49,Inputs!62:62,Inputs!63:63) -> 0.018 | AR64: =LOOKUP(AR49,Inputs!62:62,Inputs!63:63) -> 0.018 | AS64: =LOOKUP(AS49,Inputs!62:62,Inputs!63:63) -> 0.018 | AT64: =LOOKUP(AT49,Inputs!62:62,Inputs!63:63) -> 0.018 | AU64: =LOOKUP(AU49,Inputs!62:62,Inputs!63:63) -> 0.02 | AV64: =LOOKUP(AV49,Inputs!62:62,Inputs!63:63) -> 0.02 | AW64: =LOOKUP(AW49,Inputs!62:62,Inputs!63:63) -> 0.02 | AX64: =LOOKUP(AX49,Inputs!62:62,Inputs!63:63) -> 0.02 | AY64: =LOOKUP(AY49,Inputs!62:62,Inputs!63:63) -> 0.02 | AZ64: =LOOKUP(AZ49,Inputs!62:62,Inputs!63:63) -> 0.02 | BA64: =LOOKUP(BA49,Inputs!62:62,Inputs!63:63) -> 0.02 | BB64: =LOOKUP(BB49,Inputs!62:62,Inputs!63:63) -> 0.02 | BC64: =LOOKUP(BC49,Inputs!62:62,Inputs!63:63) -> 0.02 | BD64: =LOOKUP(BD49,Inputs!62:62,Inputs!63:63) -> 0.02 | BE64: =LOOKUP(BE49,Inputs!62:62,Inputs!63:63) -> 0.02 | BF64: =LOOKUP(BF49,Inputs!62:62,Inputs!63:63) -> 0.02 | BG64: =LOOKUP(BG49,Inputs!62:62,Inputs!63:63) -> 0.02 | BH64: =LOOKUP(BH49,Inputs!62:62,Inputs!63:63) -> 0.02 | BI64: =LOOKUP(BI49,Inputs!62:62,Inputs!63:63) -> 0.02 | BJ64: =LOOKUP(BJ49,Inputs!62:62,Inputs!63:63) -> 0.02 | BK64: =LOOKUP(BK49,Inputs!62:62,Inputs!63:63) -> 0.02 | BL64: =LOOKUP(BL49,Inputs!62:62,Inputs!63:63) -> 0.02 | BM64: =LOOKUP(BM49,Inputs!62:62,Inputs!63:63) -> 0.02 | BN64: =LOOKUP(BN49,Inputs!62:62,Inputs!63:63) -> 0.02 | BO64: =LOOKUP(BO49,Inputs!62:62,Inputs!63:63) -> 0.02 | BP64: =LOOKUP(BP49,Inputs!62:62,Inputs!63:63) -> 0.02 | BQ64: =LOOKUP(BQ49,Inputs!62:62,Inputs!63:63) -> 0.02 | BR64: =LOOKUP(BR49,Inputs!62:62,Inputs!63:63) -> 0.02 | BS64: =LOOKUP(BS49,Inputs!62:62,Inputs!63:63) -> 0.02 | BT64: =LOOKUP(BT49,Inputs!62:62,Inputs!63:63) -> 0.02 | BU64: =LOOKUP(BU49,Inputs!62:62,Inputs!63:63) -> 0.02 | BV64: =LOOKUP(BV49,Inputs!62:62,Inputs!63:63) -> 0.02 | BW64: =LOOKUP(BW49,Inputs!62:62,Inputs!63:63) -> 0.02 | BX64: =LOOKUP(BX49,Inputs!62:62,Inputs!63:63) -> 0.02 | BY64: =LOOKUP(BY49,Inputs!62:62,Inputs!63:63) -> 0.02 | BZ64: =LOOKUP(BZ49,Inputs!62:62,Inputs!63:63) -> 0.02 | CA64: =LOOKUP(CA49,Inputs!62:62,Inputs!63:63) -> 0.02 | CB64: =LOOKUP(CB49,Inputs!62:62,Inputs!63:63) -> 0.02 | CC64: =LOOKUP(CC49,Inputs!62:62,Inputs!63:63) -> 0.02 | CD64: =LOOKUP(CD49,Inputs!62:62,Inputs!63:63) -> 0.02 | CE64: =LOOKUP(CE49,Inputs!62:62,Inputs!63:63) -> 0.02 | CF64: =LOOKUP(CF49,Inputs!62:62,Inputs!63:63) -> 0.02 | CG64: =LOOKUP(CG49,Inputs!62:62,Inputs!63:63) -> 0.02 | CH64: =LOOKUP(CH49,Inputs!62:62,Inputs!63:63) -> 0.02 | CI64: =LOOKUP(CI49,Inputs!62:62,Inputs!63:63) -> 0.02 | CJ64: =LOOKUP(CJ49,Inputs!62:62,Inputs!63:63) -> 0.02 | CK64: =LOOKUP(CK49,Inputs!62:62,Inputs!63:63) -> 0.02 | CL64: =LOOKUP(CL49,Inputs!62:62,Inputs!63:63) -> 0.02 | CM64: =LOOKUP(CM49,Inputs!62:62,Inputs!63:63) -> 0.02 | CN64: =LOOKUP(CN49,Inputs!62:62,Inputs!63:63) -> 0.02 | CO64: =LOOKUP(CO49,Inputs!62:62,Inputs!63:63) -> 0.02 | CP64: =LOOKUP(CP49,Inputs!62:62,Inputs!63:63) -> 0.02 | CQ64: =LOOKUP(CQ49,Inputs!62:62,Inputs!63:63) -> 0.02 | CR64: =LOOKUP(CR49,Inputs!62:62,Inputs!63:63) -> 0.02 | CS64: =LOOKUP(CS49,Inputs!62:62,Inputs!63:63) -> 0.02 | CT64: =LOOKUP(CT49,Inputs!62:62,Inputs!63:63) -> 0.02 | CU64: =LOOKUP(CU49,Inputs!62:62,Inputs!63:63) -> 0.02 | CV64: =LOOKUP(CV49,Inputs!62:62,Inputs!63:63) -> 0.02 | CW64: =LOOKUP(CW49,Inputs!62:62,Inputs!63:63) -> 0.02 | CX64: =LOOKUP(CX49,Inputs!62:62,Inputs!63:63) -> 0.02 | CY64: =LOOKUP(CY49,Inputs!62:62,Inputs!63:63) -> 0.02 | CZ64: =LOOKUP(CZ49,Inputs!62:62,Inputs!63:63) -> 0.02 | DA64: =LOOKUP(DA49,Inputs!62:62,Inputs!63:63) -> 0.02 | DB64: =LOOKUP(DB49,Inputs!62:62,Inputs!63:63) -> 0.02 | DC64: =LOOKUP(DC49,Inputs!62:62,Inputs!63:63) -> 0.02 | DD64: =LOOKUP(DD49,Inputs!62:62,Inputs!63:63) -> 0.02 | DE64: =LOOKUP(DE49,Inputs!62:62,Inputs!63:63) -> 0.02 | DF64: =LOOKUP(DF49,Inputs!62:62,Inputs!63:63) -> 0.02 | DG64: =LOOKUP(DG49,Inputs!62:62,Inputs!63:63) -> 0.02
C65: Period Inflation | F65: % p.p. | L65: =(1+L64)^(L3/12)-1 -> 0.001323654355 | M65: 0.001323654355 | N65: 0.001323654355 | O65: 0.001323654355 | P65: 0.001323654355 | Q65: 0.001323654355 | R65: 0.001323654355 | S65: 0.001323654355 | T65: 0.001323654355 | U65: 0.001323654355 | V65: 0.001323654355 | W65: 0.001323654355 | X65: 0.001405746893 | Y65: 0.001405746893 | Z65: 0.001405746893 | AA65: 0.001405746893 | AB65: 0.001405746893 | AC65: 0.001405746893 | AD65: 0.001405746893 | AE65: 0.001405746893 | AF65: 0.001405746893 | AG65: 0.001405746893 | AH65: 0.001405746893 | AI65: 0.001405746893 | AJ65: 0.001487765471 | AK65: 0.001487765471 | AL65: 0.001487765471 | AM65: 0.001487765471 | AN65: 0.001487765471 | AO65: 0.001487765471 | AP65: 0.001487765471 | AQ65: 0.001487765471 | AR65: =(1+AR64)^(AR3/12)-1 -> 0.001487765471 | AS65: 0.001487765471 | AT65: 0.00895986045 | AU65: 0.009950493836 | AV65: 0.009950493836 | AW65: 0.009950493836 | AX65: 0.009950493836 | AY65: 0.009950493836 | AZ65: 0.009950493836 | BA65: 0.009950493836 | BB65: 0.009950493836 | BC65: 0.009950493836 | BD65: 0.009950493836 | BE65: 0.009950493836 | BF65: 0.009950493836 | BG65: 0.009950493836 | BH65: 0.009950493836 | BI65: 0.009950493836 | BJ65: 0.009950493836 | BK65: 0.009950493836 | BL65: 0.009950493836 | BM65: 0.009950493836 | BN65: 0.009950493836 | BO65: 0.009950493836 | BP65: 0.009950493836 | BQ65: 0.009950493836 | BR65: 0.009950493836 | BS65: 0.009950493836 | BT65: 0.009950493836 | BU65: 0.009950493836 | BV65: 0.009950493836 | BW65: 0.009950493836 | BX65: =(1+BX64)^(BX3/12)-1 -> 0.009950493836 | BY65: 0.009950493836 | BZ65: 0.009950493836 | CA65: 0.009950493836 | CB65: 0.009950493836 | CC65: 0.009950493836 | CD65: 0.009950493836 | CE65: 0.009950493836 | CF65: 0.009950493836 | CG65: 0.009950493836 | CH65: 0.009950493836 | CI65: 0.009950493836 | CJ65: 0.009950493836 | CK65: 0.009950493836 | CL65: 0.009950493836 | CM65: 0.009950493836 | CN65: 0.009950493836 | CO65: 0.009950493836 | CP65: 0.009950493836 | CQ65: 0.009950493836 | CR65: 0.009950493836 | CS65: 0.009950493836 | CT65: 0.009950493836 | CU65: 0.009950493836 | CV65: 0.009950493836 | CW65: 0.009950493836 | CX65: 0.009950493836 | CY65: 0.009950493836 | CZ65: 0.009950493836 | DA65: 0.009950493836 | DB65: 0.009950493836 | DC65: 0.009950493836 | DD65: =(1+DD64)^(DD3/12)-1 -> 0.009950493836 | DE65: 0.009950493836 | DF65: 0.009950493836 | DG65: 0.009950493836
C66: Inflation Index | F66: Index | K66: 1 | L66: =K66*(1+L65*L6) -> 1 | M66: 1 | N66: 1 | O66: 1 | P66: 1 | Q66: 1 | R66: 1 | S66: 1 | T66: 1 | U66: 1 | V66: 1 | W66: 1 | X66: 1 | Y66: 1 | Z66: 1 | AA66: 1 | AB66: 1 | AC66: 1 | AD66: 1 | AE66: 1 | AF66: 1 | AG66: 1 | AH66: 1 | AI66: 1 | AJ66: 1 | AK66: 1 | AL66: 1 | AM66: 1 | AN66: 1 | AO66: 1 | AP66: 1 | AQ66: 1 | AR66: =AQ66*(1+AR65*AR6) -> 1 | AS66: 1 | AT66: 1.00895986 | AU66: 1.018999509 | AV66: 1.029139058 | AW66: 1.0393795 | AX66: 1.049721839 | AY66: 1.060167089 | AZ66: 1.070716276 | BA66: 1.081370431 | BB66: 1.092130601 | BC66: 1.10299784 | BD66: 1.113973213 | BE66: 1.125057797 | BF66: 1.136252677 | BG66: 1.147558953 | BH66: 1.158977731 | BI66: 1.170510132 | BJ66: 1.182157286 | BK66: 1.193920334 | BL66: 1.205800431 | BM66: 1.217798741 | BN66: 1.22991644 | BO66: 1.242154716 | BP66: 1.254514769 | BQ66: 1.26699781 | BR66: 1.279605064 | BS66: 1.292337766 | BT66: 1.305197165 | BU66: 1.318184522 | BV66: 1.331301109 | BW66: 1.344548212 | BX66: =BW66*(1+BX65*BX6) -> 1.357927131 | BY66: 1.371439176 | BZ66: 1.385085673 | CA66: 1.39886796 | CB66: 1.412787387 | CC66: 1.426845319 | CD66: 1.441043135 | CE66: 1.455382225 | CF66: 1.469863997 | CG66: 1.48448987 | CH66: 1.499261277 | CI66: 1.514179667 | CJ66: 1.529246503 | CK66: 1.544463261 | CL66: 1.559831433 | CM66: 1.575352526 | CN66: 1.591028062 | CO66: 1.606859576 | CP66: 1.622848623 | CQ66: 1.638996768 | CR66: 1.655305595 | CS66: 1.671776703 | CT66: 1.688411707 | CU66: 1.705212237 | CV66: 1.722179941 | CW66: 1.739316482 | CX66: 1.75662354 | CY66: 1.774102812 | CZ66: 1.791756011 | DA66: 1.809584868 | DB66: 1.809584868 | DC66: 1.809584868 | DD66: =DC66*(1+DD65*DD6) -> 1.809584868 | DE66: 1.809584868 | DF66: 1.809584868 | DG66: 1.809584868
C68: Project life in periods | F68: period | L68: =K68+L6 -> 0 | M68: 0 | N68: 0 | O68: 0 | P68: 0 | Q68: 0 | R68: 0 | S68: 0 | T68: 0 | U68: 0 | V68: 0 | W68: 0 | X68: 0 | Y68: 0 | Z68: 0 | AA68: 0 | AB68: 0 | AC68: 0 | AD68: 0 | AE68: 0 | AF68: 0 | AG68: 0 | AH68: 0 | AI68: 0 | AJ68: 0 | AK68: 0 | AL68: 0 | AM68: 0 | AN68: 0 | AO68: 0 | AP68: 0 | AQ68: 0 | AR68: =AQ68+AR6 -> 0 | AS68: 0 | AT68: 1 | AU68: 2 | AV68: 3 | AW68: 4 | AX68: 5 | AY68: 6 | AZ68: 7 | BA68: 8 | BB68: 9 | BC68: 10 | BD68: 11 | BE68: 12 | BF68: 13 | BG68: 14 | BH68: 15 | BI68: 16 | BJ68: 17 | BK68: 18 | BL68: 19 | BM68: 20 | BN68: 21 | BO68: 22 | BP68: 23 | BQ68: 24 | BR68: 25 | BS68: 26 | BT68: 27 | BU68: 28 | BV68: 29 | BW68: 30 | BX68: =BW68+BX6 -> 31 | BY68: 32 | BZ68: 33 | CA68: 34 | CB68: 35 | CC68: 36 | CD68: 37 | CE68: 38 | CF68: 39 | CG68: 40 | CH68: 41 | CI68: 42 | CJ68: 43 | CK68: 44 | CL68: 45 | CM68: 46 | CN68: 47 | CO68: 48 | CP68: 49 | CQ68: 50 | CR68: 51 | CS68: 52 | CT68: 53 | CU68: 54 | CV68: 55 | CW68: 56 | CX68: 57 | CY68: 58 | CZ68: 59 | DA68: 60 | DB68: 60 | DC68: 60 | DD68: 60 | DE68: 60 | DF68: 60 | DG68: 60
C69: Project life in years | F69: year | L69: =ROUNDUP(L68/2,0) -> 0 | M69: =ROUNDUP(M68/2,0) -> 0 | N69: 0 | O69: 0 | P69: 0 | Q69: 0 | R69: 0 | S69: 0 | T69: 0 | U69: 0 | V69: 0 | W69: 0 | X69: 0 | Y69: 0 | Z69: 0 | AA69: 0 | AB69: 0 | AC69: 0 | AD69: 0 | AE69: 0 | AF69: 0 | AG69: 0 | AH69: 0 | AI69: 0 | AJ69: 0 | AK69: 0 | AL69: 0 | AM69: 0 | AN69: 0 | AO69: 0 | AP69: 0 | AQ69: 0 | AR69: 0 | AS69: 0 | AT69: 1 | AU69: 1 | AV69: 2 | AW69: 2 | AX69: 3 | AY69: 3 | AZ69: 4 | BA69: 4 | BB69: 5 | BC69: 5 | BD69: 6 | BE69: 6 | BF69: 7 | BG69: 7 | BH69: 8 | BI69: 8 | BJ69: 9 | BK69: 9 | BL69: 10 | BM69: 10 | BN69: 11 | BO69: 11 | BP69: 12 | BQ69: 12 | BR69: 13 | BS69: 13 | BT69: 14 | BU69: 14 | BV69: 15 | BW69: 15 | BX69: 16 | BY69: =ROUNDUP(BY68/2,0) -> 16 | BZ69: 17 | CA69: 17 | CB69: 18 | CC69: 18 | CD69: 19 | CE69: 19 | CF69: 20 | CG69: 20 | CH69: 21 | CI69: 21 | CJ69: 22 | CK69: 22 | CL69: 23 | CM69: 23 | CN69: 24 | CO69: 24 | CP69: 25 | CQ69: 25 | CR69: 26 | CS69: 26 | CT69: 27 | CU69: 27 | CV69: 28 | CW69: 28 | CX69: 29 | CY69: 29 | CZ69: 30 | DA69: 30 | DB69: 30 | DC69: 30 | DD69: 30 | DE69: 30 | DF69: 30 | DG69: 30
C71: Capacity for Fixed Cost | F71: MW | L71: =L11 -> 0 | M71: =M11 -> 0 | N71: 0 | O71: 0 | P71: 0 | Q71: 0 | R71: 0 | S71: 0 | T71: 0 | U71: 0 | V71: 0 | W71: 0 | X71: 0 | Y71: 0 | Z71: 0 | AA71: 0 | AB71: 0 | AC71: 0 | AD71: 0 | AE71: 0 | AF71: 0 | AG71: 0 | AH71: 0 | AI71: 0 | AJ71: 0 | AK71: 0 | AL71: 0 | AM71: 0 | AN71: 0 | AO71: 0 | AP71: 0 | AQ71: 0 | AR71: 0 | AS71: 0 | AT71: 94 | AU71: 94 | AV71: 94 | AW71: 94 | AX71: 94 | AY71: 94 | AZ71: 94 | BA71: 94 | BB71: 94 | BC71: 94 | BD71: 94 | BE71: 94 | BF71: 94 | BG71: 94 | BH71: 94 | BI71: 94 | BJ71: 94 | BK71: 94 | BL71: 94 | BM71: 94 | BN71: 94 | BO71: 94 | BP71: 94 | BQ71: 94 | BR71: 94 | BS71: 94 | BT71: 94 | BU71: 94 | BV71: 94 | BW71: 94 | BX71: 94 | BY71: =BY11 -> 94 | BZ71: 94 | CA71: 94 | CB71: 94 | CC71: 94 | CD71: 94 | CE71: 94 | CF71: 94 | CG71: 94 | CH71: 94 | CI71: 94 | CJ71: 94 | CK71: 94 | CL71: 94 | CM71: 94 | CN71: 94 | CO71: 94 | CP71: 94 | CQ71: 94 | CR71: 94 | CS71: 94 | CT71: 94 | CU71: 94 | CV71: 94 | CW71: 94 | CX71: 94 | CY71: 94 | CZ71: 94 | DA71: 94 | DB71: 0 | DC71: 0 | DD71: 0 | DE71: 0 | DF71: 0 | DG71: 0
C72: Energy for Variable Cost | F72: GWH p.p. | L72: =L16 -> 0 | M72: =M16 -> 0 | N72: 0 | O72: 0 | P72: 0 | Q72: 0 | R72: 0 | S72: 0 | T72: 0 | U72: 0 | V72: 0 | W72: 0 | X72: 0 | Y72: 0 | Z72: 0 | AA72: 0 | AB72: 0 | AC72: 0 | AD72: 0 | AE72: 0 | AF72: 0 | AG72: 0 | AH72: 0 | AI72: 0 | AJ72: 0 | AK72: 0 | AL72: 0 | AM72: 0 | AN72: 0 | AO72: 0 | AP72: 0 | AQ72: 0 | AR72: 0 | AS72: 0 | AT72: 170.15 | AU72: 170.15 | AV72: 170.15 | AW72: 170.15 | AX72: 170.15 | AY72: 170.15 | AZ72: 170.15 | BA72: 170.15 | BB72: 170.15 | BC72: 170.15 | BD72: 170.15 | BE72: 170.15 | BF72: 170.15 | BG72: 170.15 | BH72: 170.15 | BI72: 170.15 | BJ72: 170.15 | BK72: 170.15 | BL72: 170.15 | BM72: 170.15 | BN72: 170.15 | BO72: 170.15 | BP72: 170.15 | BQ72: 170.15 | BR72: 170.15 | BS72: 170.15 | BT72: 170.15 | BU72: 170.15 | BV72: 170.15 | BW72: 170.15 | BX72: 170.15 | BY72: =BY16 -> 170.15 | BZ72: 170.15 | CA72: 170.15 | CB72: 170.15 | CC72: 170.15 | CD72: 170.15 | CE72: 170.15 | CF72: 170.15 | CG72: 170.15 | CH72: 170.15 | CI72: 170.15 | CJ72: 170.15 | CK72: 170.15 | CL72: 170.15 | CM72: 170.15 | CN72: 170.15 | CO72: 170.15 | CP72: 170.15 | CQ72: 170.15 | CR72: 170.15 | CS72: 170.15 | CT72: 170.15 | CU72: 170.15 | CV72: 170.15 | CW72: 170.15 | CX72: 170.15 | CY72: 170.15 | CZ72: 170.15 | DA72: 170.15 | DB72: 0 | DC72: 0 | DD72: 0 | DE72: 0 | DF72: 0 | DG72: 0
C74: Without Inflation | H74: Fixed | I74: Value
D75: Contracted Turbine O&M ($/MWh) | F75: =units1 -> € 000's | H75: =Inputs!G67 -> FALSE | I75: =IF(H75,Inputs!F67,Inputs!J67) -> 5.120807805 | L75: =IF($H75,$I75*L$71/12*L$3,$I75*L$72) -> 0 | M75: 0 | N75: 0 | O75: 0 | P75: 0 | Q75: 0 | R75: 0 | S75: 0 | T75: 0 | U75: 0 | V75: =IF($H75,$I75*V$71/12*V$3,$I75*V$72) -> 0 | W75: 0 | X75: 0 | Y75: 0 | Z75: 0 | AA75: 0 | AB75: 0 | AC75: 0 | AD75: 0 | AE75: 0 | AF75: =IF($H75,$I75*AF$71/12*AF$3,$I75*AF$72) -> 0 | AG75: 0 | AH75: 0 | AI75: 0 | AJ75: 0 | AK75: 0 | AL75: 0 | AM75: 0 | AN75: 0 | AO75: 0 | AP75: =IF($H75,$I75*AP$71/12*AP$3,$I75*AP$72) -> 0 | AQ75: 0 | AR75: 0 | AS75: 0 | AT75: 871.305448 | AU75: 871.305448 | AV75: 871.305448 | AW75: 871.305448 | AX75: 871.305448 | AY75: 871.305448 | AZ75: =IF($H75,$I75*AZ$71/12*AZ$3,$I75*AZ$72) -> 871.305448 | BA75: 871.305448 | BB75: 871.305448 | BC75: 871.305448 | BD75: 871.305448 | BE75: 871.305448 | BF75: 871.305448 | BG75: 871.305448 | BH75: 871.305448 | BI75: 871.305448 | BJ75: =IF($H75,$I75*BJ$71/12*BJ$3,$I75*BJ$72) -> 871.305448 | BK75: 871.305448 | BL75: 871.305448 | BM75: 871.305448 | BN75: 871.305448 | BO75: 871.305448 | BP75: 871.305448 | BQ75: 871.305448 | BR75: 871.305448 | BS75: 871.305448 | BT75: =IF($H75,$I75*BT$71/12*BT$3,$I75*BT$72) -> 871.305448 | BU75: 871.305448 | BV75: 871.305448 | BW75: 871.305448 | BX75: 871.305448 | BY75: 871.305448 | BZ75: 871.305448 | CA75: 871.305448 | CB75: 871.305448 | CC75: 871.305448 | CD75: =IF($H75,$I75*CD$71/12*CD$3,$I75*CD$72) -> 871.305448 | CE75: 871.305448 | CF75: 871.305448 | CG75: 871.305448 | CH75: 871.305448 | CI75: 871.305448 | CJ75: 871.305448 | CK75: 871.305448 | CL75: 871.305448 | CM75: 871.305448 | CN75: =IF($H75,$I75*CN$71/12*CN$3,$I75*CN$72) -> 871.305448 | CO75: 871.305448 | CP75: 871.305448 | CQ75: 871.305448 | CR75: 871.305448 | CS75: 871.305448 | CT75: 871.305448 | CU75: 871.305448 | CV75: 871.305448 | CW75: 871.305448 | CX75: =IF($H75,$I75*CX$71/12*CX$3,$I75*CX$72) -> 871.305448 | CY75: 871.305448 | CZ75: 871.305448 | DA75: 871.305448 | DB75: 0 | DC75: 0 | DD75: 0 | DE75: 0 | DF75: 0 | DG75: 0
D76: BOP O&M | F76: € 000's | H76: =Inputs!G68 -> FALSE | I76: =IF(H76,Inputs!F68,Inputs!J68) -> 1.163315203 | L76: 0 | M76: 0 | N76: 0 | O76: 0 | P76: 0 | Q76: 0 | R76: 0 | S76: 0 | T76: 0 | U76: 0 | V76: 0 | W76: 0 | X76: 0 | Y76: 0 | Z76: 0 | AA76: 0 | AB76: 0 | AC76: 0 | AD76: 0 | AE76: 0 | AF76: 0 | AG76: 0 | AH76: 0 | AI76: 0 | AJ76: 0 | AK76: 0 | AL76: 0 | AM76: 0 | AN76: 0 | AO76: 0 | AP76: 0 | AQ76: 0 | AR76: 0 | AS76: 0 | AT76: 197.9380818 | AU76: 197.9380818 | AV76: 197.9380818 | AW76: 197.9380818 | AX76: 197.9380818 | AY76: 197.9380818 | AZ76: 197.9380818 | BA76: 197.9380818 | BB76: 197.9380818 | BC76: 197.9380818 | BD76: 197.9380818 | BE76: 197.9380818 | BF76: 197.9380818 | BG76: 197.9380818 | BH76: 197.9380818 | BI76: 197.9380818 | BJ76: 197.9380818 | BK76: 197.9380818 | BL76: 197.9380818 | BM76: 197.9380818 | BN76: 197.9380818 | BO76: 197.9380818 | BP76: 197.9380818 | BQ76: 197.9380818 | BR76: 197.9380818 | BS76: 197.9380818 | BT76: 197.9380818 | BU76: 197.9380818 | BV76: 197.9380818 | BW76: 197.9380818 | BX76: 197.9380818 | BY76: 197.9380818 | BZ76: 197.9380818 | CA76: 197.9380818 | CB76: 197.9380818 | CC76: 197.9380818 | CD76: 197.9380818 | CE76: 197.9380818 | CF76: 197.9380818 | CG76: 197.9380818 | CH76: 197.9380818 | CI76: 197.9380818 | CJ76: 197.9380818 | CK76: 197.9380818 | CL76: 197.9380818 | CM76: 197.9380818 | CN76: 197.9380818 | CO76: 197.9380818 | CP76: 197.9380818 | CQ76: 197.9380818 | CR76: 197.9380818 | CS76: 197.9380818 | CT76: 197.9380818 | CU76: 197.9380818 | CV76: 197.9380818 | CW76: 197.9380818 | CX76: 197.9380818 | CY76: 197.9380818 | CZ76: 197.9380818 | DA76: 197.9380818 | DB76: 0 | DC76: 0 | DD76: 0 | DE76: 0 | DF76: 0 | DG76: 0
D77: BOP O&M Fee | F77: € 000's | H77: =Inputs!G69 -> FALSE | I77: =IF(H77,Inputs!F69,Inputs!J69) -> 0.372028374 | L77: 0 | M77: 0 | N77: 0 | O77: 0 | P77: 0 | Q77: 0 | R77: 0 | S77: 0 | T77: 0 | U77: 0 | V77: 0 | W77: 0 | X77: 0 | Y77: 0 | Z77: 0 | AA77: 0 | AB77: 0 | AC77: 0 | AD77: 0 | AE77: 0 | AF77: 0 | AG77: 0 | AH77: 0 | AI77: 0 | AJ77: 0 | AK77: 0 | AL77: 0 | AM77: 0 | AN77: 0 | AO77: 0 | AP77: 0 | AQ77: 0 | AR77: 0 | AS77: 0 | AT77: 63.30062784 | AU77: 63.30062784 | AV77: 63.30062784 | AW77: 63.30062784 | AX77: 63.30062784 | AY77: 63.30062784 | AZ77: 63.30062784 | BA77: 63.30062784 | BB77: 63.30062784 | BC77: 63.30062784 | BD77: 63.30062784 | BE77: 63.30062784 | BF77: 63.30062784 | BG77: 63.30062784 | BH77: 63.30062784 | BI77: 63.30062784 | BJ77: 63.30062784 | BK77: 63.30062784 | BL77: 63.30062784 | BM77: 63.30062784 | BN77: 63.30062784 | BO77: 63.30062784 | BP77: 63.30062784 | BQ77: 63.30062784 | BR77: 63.30062784 | BS77: 63.30062784 | BT77: 63.30062784 | BU77: 63.30062784 | BV77: 63.30062784 | BW77: 63.30062784 | BX77: 63.30062784 | BY77: 63.30062784 | BZ77: 63.30062784 | CA77: 63.30062784 | CB77: 63.30062784 | CC77: 63.30062784 | CD77: 63.30062784 | CE77: 63.30062784 | CF77: 63.30062784 | CG77: 63.30062784 | CH77: 63.30062784 | CI77: 63.30062784 | CJ77: 63.30062784 | CK77: 63.30062784 | CL77: 63.30062784 | CM77: 63.30062784 | CN77: 63.30062784 | CO77: 63.30062784 | CP77: 63.30062784 | CQ77: 63.30062784 | CR77: 63.30062784 | CS77: 63.30062784 | CT77: 63.30062784 | CU77: 63.30062784 | CV77: 63.30062784 | CW77: 63.30062784 | CX77: 63.30062784 | CY77: 63.30062784 | CZ77: 63.30062784 | DA77: 63.30062784 | DB77: 0 | DC77: 0 | DD77: 0 | DE77: 0 | DF77: 0 | DG77: 0
D78: Operation Expenses | F78: € 000's | H78: =Inputs!G70 -> TRUE | I78: =IF(H78,Inputs!F70,Inputs!J70) -> 1.44934195 | L78: 0 | M78: 0 | N78: 0 | O78: 0 | P78: 0 | Q78: 0 | R78: 0 | S78: 0 | T78: 0 | U78: 0 | V78: 0 | W78: 0 | X78: 0 | Y78: 0 | Z78: 0 | AA78: 0 | AB78: 0 | AC78: 0 | AD78: 0 | AE78: 0 | AF78: 0 | AG78: 0 | AH78: 0 | AI78: 0 | AJ78: 0 | AK78: 0 | AL78: 0 | AM78: 0 | AN78: 0 | AO78: 0 | AP78: 0 | AQ78: 0 | AR78: 0 | AS78: 0 | AT78: 68.11907163 | AU78: 68.11907163 | AV78: 68.11907163 | AW78: 68.11907163 | AX78: 68.11907163 | AY78: 68.11907163 | AZ78: 68.11907163 | BA78: 68.11907163 | BB78: 68.11907163 | BC78: 68.11907163 | BD78: 68.11907163 | BE78: 68.11907163 | BF78: 68.11907163 | BG78: 68.11907163 | BH78: 68.11907163 | BI78: 68.11907163 | BJ78: 68.11907163 | BK78: 68.11907163 | BL78: 68.11907163 | BM78: 68.11907163 | BN78: 68.11907163 | BO78: 68.11907163 | BP78: 68.11907163 | BQ78: 68.11907163 | BR78: 68.11907163 | BS78: 68.11907163 | BT78: 68.11907163 | BU78: 68.11907163 | BV78: 68.11907163 | BW78: 68.11907163 | BX78: 68.11907163 | BY78: 68.11907163 | BZ78: 68.11907163 | CA78: 68.11907163 | CB78: 68.11907163 | CC78: 68.11907163 | CD78: 68.11907163 | CE78: 68.11907163 | CF78: 68.11907163 | CG78: 68.11907163 | CH78: 68.11907163 | CI78: 68.11907163 | CJ78: 68.11907163 | CK78: 68.11907163 | CL78: 68.11907163 | CM78: 68.11907163 | CN78: 68.11907163 | CO78: 68.11907163 | CP78: 68.11907163 | CQ78: 68.11907163 | CR78: 68.11907163 | CS78: 68.11907163 | CT78: 68.11907163 | CU78: 68.11907163 | CV78: 68.11907163 | CW78: 68.11907163 | CX78: 68.11907163 | CY78: 68.11907163 | CZ78: 68.11907163 | DA78: 68.11907163 | DB78: 0 | DC78: 0 | DD78: 0 | DE78: 0 | DF78: 0 | DG78: 0
D79: Maintenance Expenses | F79: € 000's | H79: =Inputs!G71 -> TRUE | I79: =IF(H79,Inputs!F71,Inputs!J71) -> 1.41528473 | L79: 0 | M79: 0 | N79: 0 | O79: 0 | P79: 0 | Q79: 0 | R79: 0 | S79: 0 | T79: 0 | U79: 0 | V79: 0 | W79: 0 | X79: 0 | Y79: 0 | Z79: 0 | AA79: 0 | AB79: 0 | AC79: 0 | AD79: 0 | AE79: 0 | AF79: 0 | AG79: 0 | AH79: 0 | AI79: 0 | AJ79: 0 | AK79: 0 | AL79: 0 | AM79: 0 | AN79: 0 | AO79: 0 | AP79: 0 | AQ79: 0 | AR79: 0 | AS79: 0 | AT79: 66.51838233 | AU79: 66.51838233 | AV79: 66.51838233 | AW79: 66.51838233 | AX79: 66.51838233 | AY79: 66.51838233 | AZ79: 66.51838233 | BA79: 66.51838233 | BB79: 66.51838233 | BC79: 66.51838233 | BD79: 66.51838233 | BE79: 66.51838233 | BF79: 66.51838233 | BG79: 66.51838233 | BH79: 66.51838233 | BI79: 66.51838233 | BJ79: 66.51838233 | BK79: 66.51838233 | BL79: 66.51838233 | BM79: 66.51838233 | BN79: 66.51838233 | BO79: 66.51838233 | BP79: 66.51838233 | BQ79: 66.51838233 | BR79: 66.51838233 | BS79: 66.51838233 | BT79: 66.51838233 | BU79: 66.51838233 | BV79: 66.51838233 | BW79: 66.51838233 | BX79: 66.51838233 | BY79: 66.51838233 | BZ79: 66.51838233 | CA79: 66.51838233 | CB79: 66.51838233 | CC79: 66.51838233 | CD79: 66.51838233 | CE79: 66.51838233 | CF79: 66.51838233 | CG79: 66.51838233 | CH79: 66.51838233 | CI79: 66.51838233 | CJ79: 66.51838233 | CK79: 66.51838233 | CL79: 66.51838233 | CM79: 66.51838233 | CN79: 66.51838233 | CO79: 66.51838233 | CP79: 66.51838233 | CQ79: 66.51838233 | CR79: 66.51838233 | CS79: 66.51838233 | CT79: 66.51838233 | CU79: 66.51838233 | CV79: 66.51838233 | CW79: 66.51838233 | CX79: 66.51838233 | CY79: 66.51838233 | CZ79: 66.51838233 | DA79: 66.51838233 | DB79: 0 | DC79: 0 | DD79: 0 | DE79: 0 | DF79: 0 | DG79: 0
D80: G&A | F80: € 000's | H80: =Inputs!G72 -> TRUE | I80: =IF(H80,Inputs!F72,Inputs!J72) -> 0.7683580345 | L80: 0 | M80: 0 | N80: 0 | O80: 0 | P80: 0 | Q80: 0 | R80: 0 | S80: 0 | T80: 0 | U80: 0 | V80: 0 | W80: 0 | X80: 0 | Y80: 0 | Z80: 0 | AA80: 0 | AB80: 0 | AC80: 0 | AD80: 0 | AE80: 0 | AF80: 0 | AG80: 0 | AH80: 0 | AI80: 0 | AJ80: 0 | AK80: 0 | AL80: 0 | AM80: 0 | AN80: 0 | AO80: 0 | AP80: 0 | AQ80: 0 | AR80: 0 | AS80: 0 | AT80: 36.11282762 | AU80: 36.11282762 | AV80: 36.11282762 | AW80: 36.11282762 | AX80: 36.11282762 | AY80: 36.11282762 | AZ80: 36.11282762 | BA80: 36.11282762 | BB80: 36.11282762 | BC80: 36.11282762 | BD80: 36.11282762 | BE80: 36.11282762 | BF80: 36.11282762 | BG80: 36.11282762 | BH80: 36.11282762 | BI80: 36.11282762 | BJ80: 36.11282762 | BK80: 36.11282762 | BL80: 36.11282762 | BM80: 36.11282762 | BN80: 36.11282762 | BO80: 36.11282762 | BP80: 36.11282762 | BQ80: 36.11282762 | BR80: 36.11282762 | BS80: 36.11282762 | BT80: 36.11282762 | BU80: 36.11282762 | BV80: 36.11282762 | BW80: 36.11282762 | BX80: 36.11282762 | BY80: 36.11282762 | BZ80: 36.11282762 | CA80: 36.11282762 | CB80: 36.11282762 | CC80: 36.11282762 | CD80: 36.11282762 | CE80: 36.11282762 | CF80: 36.11282762 | CG80: 36.11282762 | CH80: 36.11282762 | CI80: 36.11282762 | CJ80: 36.11282762 | CK80: 36.11282762 | CL80: 36.11282762 | CM80: 36.11282762 | CN80: 36.11282762 | CO80: 36.11282762 | CP80: 36.11282762 | CQ80: 36.11282762 | CR80: 36.11282762 | CS80: 36.11282762 | CT80: 36.11282762 | CU80: 36.11282762 | CV80: 36.11282762 | CW80: 36.11282762 | CX80: 36.11282762 | CY80: 36.11282762 | CZ80: 36.11282762 | DA80: 36.11282762 | DB80: 0 | DC80: 0 | DD80: 0 | DE80: 0 | DF80: 0 | DG80: 0
D81: Asset Management | F81: € 000's | H81: =Inputs!G73 -> TRUE | I81: =IF(H81,Inputs!F73,Inputs!J73) -> 0 | L81: 0 | M81: 0 | N81: 0 | O81: 0 | P81: 0 | Q81: 0 | R81: 0 | S81: 0 | T81: 0 | U81: 0 | V81: 0 | W81: 0 | X81: 0 | Y81: 0 | Z81: 0 | AA81: 0 | AB81: 0 | AC81: 0 | AD81: 0 | AE81: 0 | AF81: 0 | AG81: 0 | AH81: 0 | AI81: 0 | AJ81: 0 | AK81: 0 | AL81: 0 | AM81: 0 | AN81: 0 | AO81: 0 | AP81: 0 | AQ81: 0 | AR81: 0 | AS81: 0 | AT81: 0 | AU81: 0 | AV81: 0 | AW81: 0 | AX81: 0 | AY81: 0 | AZ81: 0 | BA81: 0 | BB81: 0 | BC81: 0 | BD81: 0 | BE81: 0 | BF81: 0 | BG81: 0 | BH81: 0 | BI81: 0 | BJ81: 0 | BK81: 0 | BL81: 0 | BM81: 0 | BN81: 0 | BO81: 0 | BP81: 0 | BQ81: 0 | BR81: 0 | BS81: 0 | BT81: 0 | BU81: 0 | BV81: 0 | BW81: 0 | BX81: 0 | BY81: 0 | BZ81: 0 | CA81: 0 | CB81: 0 | CC81: 0 | CD81: 0 | CE81: 0 | CF81: 0 | CG81: 0 | CH81: 0 | CI81: 0 | CJ81: 0 | CK81: 0 | CL81: 0 | CM81: 0 | CN81: 0 | CO81: 0 | CP81: 0 | CQ81: 0 | CR81: 0 | CS81: 0 | CT81: 0 | CU81: 0 | CV81: 0 | CW81: 0 | CX81: 0 | CY81: 0 | CZ81: 0 | DA81: 0 | DB81: 0 | DC81: 0 | DD81: 0 | DE81: 0 | DF81: 0 | DG81: 0
D82: Community Support | F82: € 000's | H82: =Inputs!G74 -> TRUE | I82: =IF(H82,Inputs!F74,Inputs!J74) -> 0.0439061734 | L82: 0 | M82: 0 | N82: 0 | O82: 0 | P82: 0 | Q82: 0 | R82: 0 | S82: 0 | T82: 0 | U82: 0 | V82: 0 | W82: 0 | X82: 0 | Y82: 0 | Z82: 0 | AA82: 0 | AB82: 0 | AC82: 0 | AD82: 0 | AE82: 0 | AF82: 0 | AG82: 0 | AH82: 0 | AI82: 0 | AJ82: 0 | AK82: 0 | AL82: 0 | AM82: 0 | AN82: 0 | AO82: 0 | AP82: 0 | AQ82: 0 | AR82: 0 | AS82: 0 | AT82: 2.06359015 | AU82: 2.06359015 | AV82: 2.06359015 | AW82: 2.06359015 | AX82: 2.06359015 | AY82: 2.06359015 | AZ82: 2.06359015 | BA82: 2.06359015 | BB82: 2.06359015 | BC82: 2.06359015 | BD82: 2.06359015 | BE82: 2.06359015 | BF82: 2.06359015 | BG82: 2.06359015 | BH82: 2.06359015 | BI82: 2.06359015 | BJ82: 2.06359015 | BK82: 2.06359015 | BL82: 2.06359015 | BM82: 2.06359015 | BN82: 2.06359015 | BO82: 2.06359015 | BP82: 2.06359015 | BQ82: 2.06359015 | BR82: 2.06359015 | BS82: 2.06359015 | BT82: 2.06359015 | BU82: 2.06359015 | BV82: 2.06359015 | BW82: 2.06359015 | BX82: 2.06359015 | BY82: 2.06359015 | BZ82: 2.06359015 | CA82: 2.06359015 | CB82: 2.06359015 | CC82: 2.06359015 | CD82: 2.06359015 | CE82: 2.06359015 | CF82: 2.06359015 | CG82: 2.06359015 | CH82: 2.06359015 | CI82: 2.06359015 | CJ82: 2.06359015 | CK82: 2.06359015 | CL82: 2.06359015 | CM82: 2.06359015 | CN82: 2.06359015 | CO82: 2.06359015 | CP82: 2.06359015 | CQ82: 2.06359015 | CR82: 2.06359015 | CS82: 2.06359015 | CT82: 2.06359015 | CU82: 2.06359015 | CV82: 2.06359015 | CW82: 2.06359015 | CX82: 2.06359015 | CY82: 2.06359015 | CZ82: 2.06359015 | DA82: 2.06359015 | DB82: 0 | DC82: 0 | DD82: 0 | DE82: 0 | DF82: 0 | DG82: 0
D83: 3rd Party Professional Services | F83: € 000's | H83: =Inputs!G75 -> TRUE | I83: =IF(H83,Inputs!F75,Inputs!J75) -> 0.7244518611 | L83: 0 | M83: 0 | N83: 0 | O83: 0 | P83: 0 | Q83: 0 | R83: 0 | S83: 0 | T83: 0 | U83: 0 | V83: 0 | W83: 0 | X83: 0 | Y83: 0 | Z83: 0 | AA83: 0 | AB83: 0 | AC83: 0 | AD83: 0 | AE83: 0 | AF83: 0 | AG83: 0 | AH83: 0 | AI83: 0 | AJ83: 0 | AK83: 0 | AL83: 0 | AM83: 0 | AN83: 0 | AO83: 0 | AP83: 0 | AQ83: 0 | AR83: 0 | AS83: 0 | AT83: 34.04923747 | AU83: 34.04923747 | AV83: 34.04923747 | AW83: 34.04923747 | AX83: 34.04923747 | AY83: 34.04923747 | AZ83: 34.04923747 | BA83: 34.04923747 | BB83: 34.04923747 | BC83: 34.04923747 | BD83: 34.04923747 | BE83: 34.04923747 | BF83: 34.04923747 | BG83: 34.04923747 | BH83: 34.04923747 | BI83: 34.04923747 | BJ83: 34.04923747 | BK83: 34.04923747 | BL83: 34.04923747 | BM83: 34.04923747 | BN83: 34.04923747 | BO83: 34.04923747 | BP83: 34.04923747 | BQ83: 34.04923747 | BR83: 34.04923747 | BS83: 34.04923747 | BT83: 34.04923747 | BU83: 34.04923747 | BV83: 34.04923747 | BW83: 34.04923747 | BX83: 34.04923747 | BY83: 34.04923747 | BZ83: 34.04923747 | CA83: 34.04923747 | CB83: 34.04923747 | CC83: 34.04923747 | CD83: 34.04923747 | CE83: 34.04923747 | CF83: 34.04923747 | CG83: 34.04923747 | CH83: 34.04923747 | CI83: 34.04923747 | CJ83: 34.04923747 | CK83: 34.04923747 | CL83: 34.04923747 | CM83: 34.04923747 | CN83: 34.04923747 | CO83: 34.04923747 | CP83: 34.04923747 | CQ83: 34.04923747 | CR83: 34.04923747 | CS83: 34.04923747 | CT83: 34.04923747 | CU83: 34.04923747 | CV83: 34.04923747 | CW83: 34.04923747 | CX83: 34.04923747 | CY83: 34.04923747 | CZ83: 34.04923747 | DA83: 34.04923747 | DB83: 0 | DC83: 0 | DD83: 0 | DE83: 0 | DF83: 0 | DG83: 0
D84: Landowner and Easement Royalties | F84: € 000's | H84: =Inputs!G76 -> TRUE | I84: =IF(H84,Inputs!F76,Inputs!J76) -> 3.512650602 | L84: 0 | M84: 0 | N84: 0 | O84: 0 | P84: 0 | Q84: 0 | R84: 0 | S84: 0 | T84: 0 | U84: 0 | V84: 0 | W84: 0 | X84: 0 | Y84: 0 | Z84: 0 | AA84: 0 | AB84: 0 | AC84: 0 | AD84: 0 | AE84: 0 | AF84: 0 | AG84: 0 | AH84: 0 | AI84: 0 | AJ84: 0 | AK84: 0 | AL84: 0 | AM84: 0 | AN84: 0 | AO84: 0 | AP84: 0 | AQ84: 0 | AR84: 0 | AS84: 0 | AT84: 165.0945783 | AU84: 165.0945783 | AV84: 165.0945783 | AW84: 165.0945783 | AX84: 165.0945783 | AY84: 165.0945783 | AZ84: 165.0945783 | BA84: 165.0945783 | BB84: 165.0945783 | BC84: 165.0945783 | BD84: 165.0945783 | BE84: 165.0945783 | BF84: 165.0945783 | BG84: 165.0945783 | BH84: 165.0945783 | BI84: 165.0945783 | BJ84: 165.0945783 | BK84: 165.0945783 | BL84: 165.0945783 | BM84: 165.0945783 | BN84: 165.0945783 | BO84: 165.0945783 | BP84: 165.0945783 | BQ84: 165.0945783 | BR84: 165.0945783 | BS84: 165.0945783 | BT84: 165.0945783 | BU84: 165.0945783 | BV84: 165.0945783 | BW84: 165.0945783 | BX84: 165.0945783 | BY84: 165.0945783 | BZ84: 165.0945783 | CA84: 165.0945783 | CB84: 165.0945783 | CC84: 165.0945783 | CD84: 165.0945783 | CE84: 165.0945783 | CF84: 165.0945783 | CG84: 165.0945783 | CH84: 165.0945783 | CI84: 165.0945783 | CJ84: 165.0945783 | CK84: 165.0945783 | CL84: 165.0945783 | CM84: 165.0945783 | CN84: 165.0945783 | CO84: 165.0945783 | CP84: 165.0945783 | CQ84: 165.0945783 | CR84: 165.0945783 | CS84: 165.0945783 | CT84: 165.0945783 | CU84: 165.0945783 | CV84: 165.0945783 | CW84: 165.0945783 | CX84: 165.0945783 | CY84: 165.0945783 | CZ84: 165.0945783 | DA84: 165.0945783 | DB84: 0 | DC84: 0 | DD84: 0 | DE84: 0 | DF84: 0 | DG84: 0
D85: Royalties - based on % Revenues | F85: € 000's | H85: =Inputs!G77 -> TRUE | I85: =IF(H85,Inputs!F77,Inputs!J77) -> 2.373185734 | L85: 0 | M85: 0 | N85: 0 | O85: 0 | P85: 0 | Q85: 0 | R85: 0 | S85: 0 | T85: 0 | U85: 0 | V85: 0 | W85: 0 | X85: 0 | Y85: 0 | Z85: 0 | AA85: 0 | AB85: 0 | AC85: 0 | AD85: 0 | AE85: 0 | AF85: 0 | AG85: 0 | AH85: 0 | AI85: 0 | AJ85: 0 | AK85: 0 | AL85: 0 | AM85: 0 | AN85: 0 | AO85: 0 | AP85: 0 | AQ85: 0 | AR85: 0 | AS85: 0 | AT85: 111.5397295 | AU85: 111.5397295 | AV85: 111.5397295 | AW85: 111.5397295 | AX85: 111.5397295 | AY85: 111.5397295 | AZ85: 111.5397295 | BA85: 111.5397295 | BB85: 111.5397295 | BC85: 111.5397295 | BD85: 111.5397295 | BE85: 111.5397295 | BF85: 111.5397295 | BG85: 111.5397295 | BH85: 111.5397295 | BI85: 111.5397295 | BJ85: 111.5397295 | BK85: 111.5397295 | BL85: 111.5397295 | BM85: 111.5397295 | BN85: 111.5397295 | BO85: 111.5397295 | BP85: 111.5397295 | BQ85: 111.5397295 | BR85: 111.5397295 | BS85: 111.5397295 | BT85: 111.5397295 | BU85: 111.5397295 | BV85: 111.5397295 | BW85: 111.5397295 | BX85: 111.5397295 | BY85: 111.5397295 | BZ85: 111.5397295 | CA85: 111.5397295 | CB85: 111.5397295 | CC85: 111.5397295 | CD85: 111.5397295 | CE85: 111.5397295 | CF85: 111.5397295 | CG85: 111.5397295 | CH85: 111.5397295 | CI85: 111.5397295 | CJ85: 111.5397295 | CK85: 111.5397295 | CL85: 111.5397295 | CM85: 111.5397295 | CN85: 111.5397295 | CO85: 111.5397295 | CP85: 111.5397295 | CQ85: 111.5397295 | CR85: 111.5397295 | CS85: 111.5397295 | CT85: 111.5397295 | CU85: 111.5397295 | CV85: 111.5397295 | CW85: 111.5397295 | CX85: 111.5397295 | CY85: 111.5397295 | CZ85: 111.5397295 | DA85: 111.5397295 | DB85: 0 | DC85: 0 | DD85: 0 | DE85: 0 | DF85: 0 | DG85: 0
D86: Property Taxes | F86: € 000's | H86: =Inputs!G78 -> TRUE | I86: =IF(H86,Inputs!F78,Inputs!J78) -> 10.69409011 | L86: 0 | M86: 0 | N86: 0 | O86: 0 | P86: 0 | Q86: 0 | R86: 0 | S86: 0 | T86: 0 | U86: 0 | V86: 0 | W86: 0 | X86: 0 | Y86: 0 | Z86: 0 | AA86: 0 | AB86: 0 | AC86: 0 | AD86: 0 | AE86: 0 | AF86: 0 | AG86: 0 | AH86: 0 | AI86: 0 | AJ86: 0 | AK86: 0 | AL86: 0 | AM86: 0 | AN86: 0 | AO86: 0 | AP86: 0 | AQ86: 0 | AR86: 0 | AS86: 0 | AT86: 502.6222352 | AU86: 502.6222352 | AV86: 502.6222352 | AW86: 502.6222352 | AX86: 502.6222352 | AY86: 502.6222352 | AZ86: 502.6222352 | BA86: 502.6222352 | BB86: 502.6222352 | BC86: 502.6222352 | BD86: 502.6222352 | BE86: 502.6222352 | BF86: 502.6222352 | BG86: 502.6222352 | BH86: 502.6222352 | BI86: 502.6222352 | BJ86: 502.6222352 | BK86: 502.6222352 | BL86: 502.6222352 | BM86: 502.6222352 | BN86: 502.6222352 | BO86: 502.6222352 | BP86: 502.6222352 | BQ86: 502.6222352 | BR86: 502.6222352 | BS86: 502.6222352 | BT86: 502.6222352 | BU86: 502.6222352 | BV86: 502.6222352 | BW86: 502.6222352 | BX86: 502.6222352 | BY86: 502.6222352 | BZ86: 502.6222352 | CA86: 502.6222352 | CB86: 502.6222352 | CC86: 502.6222352 | CD86: 502.6222352 | CE86: 502.6222352 | CF86: 502.6222352 | CG86: 502.6222352 | CH86: 502.6222352 | CI86: 502.6222352 | CJ86: 502.6222352 | CK86: 502.6222352 | CL86: 502.6222352 | CM86: 502.6222352 | CN86: 502.6222352 | CO86: 502.6222352 | CP86: 502.6222352 | CQ86: 502.6222352 | CR86: 502.6222352 | CS86: 502.6222352 | CT86: 502.6222352 | CU86: 502.6222352 | CV86: 502.6222352 | CW86: 502.6222352 | CX86: 502.6222352 | CY86: 502.6222352 | CZ86: 502.6222352 | DA86: 502.6222352 | DB86: 0 | DC86: 0 | DD86: 0 | DE86: 0 | DF86: 0 | DG86: 0
D87: Environmental Monitoring | F87: € 000's | H87: =Inputs!G79 -> TRUE | I87: =IF(H87,Inputs!F79,Inputs!J79) -> 0 | L87: 0 | M87: 0 | N87: 0 | O87: 0 | P87: 0 | Q87: 0 | R87: 0 | S87: 0 | T87: 0 | U87: 0 | V87: 0 | W87: 0 | X87: 0 | Y87: 0 | Z87: 0 | AA87: 0 | AB87: 0 | AC87: 0 | AD87: 0 | AE87: 0 | AF87: 0 | AG87: 0 | AH87: 0 | AI87: 0 | AJ87: 0 | AK87: 0 | AL87: 0 | AM87: 0 | AN87: 0 | AO87: 0 | AP87: 0 | AQ87: 0 | AR87: 0 | AS87: 0 | AT87: 0 | AU87: 0 | AV87: 0 | AW87: 0 | AX87: 0 | AY87: 0 | AZ87: 0 | BA87: 0 | BB87: 0 | BC87: 0 | BD87: 0 | BE87: 0 | BF87: 0 | BG87: 0 | BH87: 0 | BI87: 0 | BJ87: 0 | BK87: 0 | BL87: 0 | BM87: 0 | BN87: 0 | BO87: 0 | BP87: 0 | BQ87: 0 | BR87: 0 | BS87: 0 | BT87: 0 | BU87: 0 | BV87: 0 | BW87: 0 | BX87: 0 | BY87: 0 | BZ87: 0 | CA87: 0 | CB87: 0 | CC87: 0 | CD87: 0 | CE87: 0 | CF87: 0 | CG87: 0 | CH87: 0 | CI87: 0 | CJ87: 0 | CK87: 0 | CL87: 0 | CM87: 0 | CN87: 0 | CO87: 0 | CP87: 0 | CQ87: 0 | CR87: 0 | CS87: 0 | CT87: 0 | CU87: 0 | CV87: 0 | CW87: 0 | CX87: 0 | CY87: 0 | CZ87: 0 | DA87: 0 | DB87: 0 | DC87: 0 | DD87: 0 | DE87: 0 | DF87: 0 | DG87: 0
D88: Insurance | F88: € 000's | H88: =Inputs!G80 -> TRUE | I88: =IF(H88,Inputs!F80,Inputs!J80) -> 1.56745039 | L88: 0 | M88: 0 | N88: 0 | O88: 0 | P88: 0 | Q88: 0 | R88: 0 | S88: 0 | T88: 0 | U88: 0 | V88: 0 | W88: 0 | X88: 0 | Y88: 0 | Z88: 0 | AA88: 0 | AB88: 0 | AC88: 0 | AD88: 0 | AE88: 0 | AF88: 0 | AG88: 0 | AH88: 0 | AI88: 0 | AJ88: 0 | AK88: 0 | AL88: 0 | AM88: 0 | AN88: 0 | AO88: 0 | AP88: 0 | AQ88: 0 | AR88: 0 | AS88: 0 | AT88: 73.67016835 | AU88: 73.67016835 | AV88: 73.67016835 | AW88: 73.67016835 | AX88: 73.67016835 | AY88: 73.67016835 | AZ88: 73.67016835 | BA88: 73.67016835 | BB88: 73.67016835 | BC88: 73.67016835 | BD88: 73.67016835 | BE88: 73.67016835 | BF88: 73.67016835 | BG88: 73.67016835 | BH88: 73.67016835 | BI88: 73.67016835 | BJ88: 73.67016835 | BK88: 73.67016835 | BL88: 73.67016835 | BM88: 73.67016835 | BN88: 73.67016835 | BO88: 73.67016835 | BP88: 73.67016835 | BQ88: 73.67016835 | BR88: 73.67016835 | BS88: 73.67016835 | BT88: 73.67016835 | BU88: 73.67016835 | BV88: 73.67016835 | BW88: 73.67016835 | BX88: 73.67016835 | BY88: 73.67016835 | BZ88: 73.67016835 | CA88: 73.67016835 | CB88: 73.67016835 | CC88: 73.67016835 | CD88: 73.67016835 | CE88: 73.67016835 | CF88: 73.67016835 | CG88: 73.67016835 | CH88: 73.67016835 | CI88: 73.67016835 | CJ88: 73.67016835 | CK88: 73.67016835 | CL88: 73.67016835 | CM88: 73.67016835 | CN88: 73.67016835 | CO88: 73.67016835 | CP88: 73.67016835 | CQ88: 73.67016835 | CR88: 73.67016835 | CS88: 73.67016835 | CT88: 73.67016835 | CU88: 73.67016835 | CV88: 73.67016835 | CW88: 73.67016835 | CX88: 73.67016835 | CY88: 73.67016835 | CZ88: 73.67016835 | DA88: 73.67016835 | DB88: 0 | DC88: 0 | DD88: 0 | DE88: 0 | DF88: 0 | DG88: 0
D89: Annual Insurance Cash Premium & Origination Fee | F89: € 000's | H89: =Inputs!G81 -> TRUE | I89: =IF(H89,Inputs!F81,Inputs!J81) -> 7.463545105 | L89: 0 | M89: 0 | N89: 0 | O89: 0 | P89: 0 | Q89: 0 | R89: 0 | S89: 0 | T89: 0 | U89: 0 | V89: 0 | W89: 0 | X89: 0 | Y89: 0 | Z89: 0 | AA89: 0 | AB89: 0 | AC89: 0 | AD89: 0 | AE89: 0 | AF89: 0 | AG89: 0 | AH89: 0 | AI89: 0 | AJ89: 0 | AK89: 0 | AL89: 0 | AM89: 0 | AN89: 0 | AO89: 0 | AP89: 0 | AQ89: 0 | AR89: 0 | AS89: 0 | AT89: 350.7866199 | AU89: 350.7866199 | AV89: 350.7866199 | AW89: 350.7866199 | AX89: 350.7866199 | AY89: 350.7866199 | AZ89: 350.7866199 | BA89: 350.7866199 | BB89: 350.7866199 | BC89: 350.7866199 | BD89: 350.7866199 | BE89: 350.7866199 | BF89: 350.7866199 | BG89: 350.7866199 | BH89: 350.7866199 | BI89: 350.7866199 | BJ89: 350.7866199 | BK89: 350.7866199 | BL89: 350.7866199 | BM89: 350.7866199 | BN89: 350.7866199 | BO89: 350.7866199 | BP89: 350.7866199 | BQ89: 350.7866199 | BR89: 350.7866199 | BS89: 350.7866199 | BT89: 350.7866199 | BU89: 350.7866199 | BV89: 350.7866199 | BW89: 350.7866199 | BX89: 350.7866199 | BY89: 350.7866199 | BZ89: 350.7866199 | CA89: 350.7866199 | CB89: 350.7866199 | CC89: 350.7866199 | CD89: 350.7866199 | CE89: 350.7866199 | CF89: 350.7866199 | CG89: 350.7866199 | CH89: 350.7866199 | CI89: 350.7866199 | CJ89: 350.7866199 | CK89: 350.7866199 | CL89: 350.7866199 | CM89: 350.7866199 | CN89: 350.7866199 | CO89: 350.7866199 | CP89: 350.7866199 | CQ89: 350.7866199 | CR89: 350.7866199 | CS89: 350.7866199 | CT89: 350.7866199 | CU89: 350.7866199 | CV89: 350.7866199 | CW89: 350.7866199 | CX89: 350.7866199 | CY89: 350.7866199 | CZ89: 350.7866199 | DA89: 350.7866199 | DB89: 0 | DC89: 0 | DD89: 0 | DE89: 0 | DF89: 0 | DG89: 0
C91: With Inflation | H91: Inflate
D92: Contracted Turbine O&M ($/MWh) | F92: =units1 -> € 000's | H92: =Inputs!K67 -> TRUE | L92: =IF($H92,L75*L$66,L75) -> 0 | M92: =IF($H92,M75*M$66,M75) -> 0 | N92: 0 | O92: 0 | P92: 0 | Q92: 0 | R92: 0 | S92: 0 | T92: 0 | U92: 0 | V92: 0 | W92: 0 | X92: 0 | Y92: 0 | Z92: 0 | AA92: 0 | AB92: 0 | AC92: 0 | AD92: 0 | AE92: 0 | AF92: 0 | AG92: 0 | AH92: 0 | AI92: 0 | AJ92: 0 | AK92: 0 | AL92: 0 | AM92: 0 | AN92: 0 | AO92: 0 | AP92: 0 | AQ92: 0 | AR92: 0 | AS92: 0 | AT92: 879.1122232 | AU92: 887.8598239 | AV92: 896.6944676 | AW92: 905.6170204 | AX92: 914.628357 | AY92: 923.7293608 | AZ92: 932.9209241 | BA92: 942.203948 | BB92: 951.5793426 | BC92: 961.048027 | BD92: 970.6109295 | BE92: 980.2689875 | BF92: 990.0231481 | BG92: 999.8743673 | BH92: 1009.823611 | BI92: 1019.871855 | BJ92: 1030.020083 | BK92: 1040.269292 | BL92: 1050.620485 | BM92: 1061.074678 | BN92: 1071.632895 | BO92: 1082.296171 | BP92: 1093.065553 | BQ92: 1103.942095 | BR92: 1114.926864 | BS92: 1126.020936 | BT92: 1137.225401 | BU92: 1148.541355 | BV92: 1159.969909 | BW92: 1171.512182 | BX92: 1183.169307 | BY92: =IF($H92,BY75*BY$66,BY75) -> 1194.942426 | BZ92: 1206.832693 | CA92: 1218.841274 | CB92: 1230.969347 | CC92: 1243.2181 | CD92: 1255.588734 | CE92: 1268.082462 | CF92: 1280.700509 | CG92: 1293.444111 | CH92: 1306.314519 | CI92: 1319.312993 | CJ92: 1332.440809 | CK92: 1345.699253 | CL92: 1359.089625 | CM92: 1372.613238 | CN92: 1386.271418 | CO92: 1400.065503 | CP92: 1413.996846 | CQ92: 1428.066813 | CR92: 1442.276783 | CS92: 1456.628149 | CT92: 1471.122319 | CU92: 1485.760712 | CV92: 1500.544765 | CW92: 1515.475927 | CX92: 1530.555661 | CY92: 1545.785445 | CZ92: 1561.166774 | DA92: 1576.701154 | DB92: 0 | DC92: 0 | DD92: 0 | DE92: 0 | DF92: 0 | DG92: 0
D93: BOP O&M | F93: € 000's | H93: =Inputs!K68 -> TRUE | L93: =IF($H93,L76*L$66,L76) -> 0 | M93: 0 | N93: 0 | O93: 0 | P93: 0 | Q93: 0 | R93: 0 | S93: 0 | T93: 0 | U93: 0 | V93: 0 | W93: 0 | X93: 0 | Y93: 0 | Z93: 0 | AA93: 0 | AB93: 0 | AC93: 0 | AD93: 0 | AE93: 0 | AF93: 0 | AG93: 0 | AH93: 0 | AI93: 0 | AJ93: 0 | AK93: 0 | AL93: 0 | AM93: 0 | AN93: 0 | AO93: 0 | AP93: 0 | AQ93: 0 | AR93: 0 | AS93: 0 | AT93: 199.7115794 | AU93: 201.6988082 | AV93: 203.705811 | AW93: 205.7327844 | AX93: 207.7799272 | AY93: 209.8474401 | AZ93: 211.9355257 | BA93: 214.0443889 | BB93: 216.1742363 | BC93: 218.3252767 | BD93: 220.497721 | BE93: 222.6917822 | BF93: 224.9076754 | BG93: 227.1456178 | BH93: 229.4058289 | BI93: 231.6885302 | BJ93: 233.9939455 | BK93: 236.3223008 | BL93: 238.6738244 | BM93: 241.0487468 | BN93: 243.4473009 | BO93: 245.8697218 | BP93: 248.3162469 | BQ93: 250.7871162 | BR93: 253.2825718 | BS93: 255.8028585 | BT93: 258.3482233 | BU93: 260.9189157 | BV93: 263.5151878 | BW93: 266.137294 | BX93: =IF($H93,BX76*BX$66,BX76) -> 268.7854915 | BY93: 271.4600399 | BZ93: 274.1612013 | CA93: 276.8892407 | CB93: 279.6444254 | CC93: 282.4270255 | CD93: 285.2373139 | CE93: 288.075566 | CF93: 290.9420601 | CG93: 293.8370773 | CH93: 296.7609014 | CI93: 299.7138189 | CJ93: 302.6961194 | CK93: 305.7080952 | CL93: 308.7500418 | CM93: 311.8222572 | CN93: 314.9250426 | CO93: 318.0587023 | CP93: 321.2235435 | CQ93: 324.4198763 | CR93: 327.6480143 | CS93: 330.9082739 | CT93: 334.2009746 | CU93: 337.5264393 | CV93: 340.8849941 | CW93: 344.2769681 | CX93: 347.702694 | CY93: 351.1625075 | CZ93: 354.6567479 | DA93: 358.1857576 | DB93: 0 | DC93: 0 | DD93: 0 | DE93: 0 | DF93: 0 | DG93: 0
D94: BOP O&M Fee | F94: € 000's | H94: =Inputs!K69 -> TRUE | L94: =IF($H94,L77*L$66,L77) -> 0 | M94: 0 | N94: 0 | O94: 0 | P94: 0 | Q94: 0 | R94: 0 | S94: 0 | T94: 0 | U94: 0 | V94: 0 | W94: 0 | X94: 0 | Y94: 0 | Z94: 0 | AA94: 0 | AB94: 0 | AC94: 0 | AD94: 0 | AE94: 0 | AF94: 0 | AG94: 0 | AH94: 0 | AI94: 0 | AJ94: 0 | AK94: 0 | AL94: 0 | AM94: 0 | AN94: 0 | AO94: 0 | AP94: 0 | AQ94: 0 | AR94: 0 | AS94: 0 | AT94: 63.86779263 | AU94: 64.50330871 | AV94: 65.14514849 | AW94: 65.79337489 | AX94: 66.44805146 | AY94: 67.10924238 | AZ94: 67.77701249 | BA94: 68.45142723 | BB94: 69.13255274 | BC94: 69.82045578 | BD94: 70.51520379 | BE94: 71.21686489 | BF94: 71.92550787 | BG94: 72.64120219 | BH94: 73.36401802 | BI94: 74.09402623 | BJ94: 74.83129838 | BK94: 75.57590676 | BL94: 76.32792435 | BM94: 77.08742489 | BN94: 77.85448284 | BO94: 78.62917339 | BP94: 79.4115725 | BQ94: 80.20175686 | BR94: 80.99980395 | BS94: 81.805792 | BT94: 82.61980003 | BU94: 83.44190784 | BV94: 84.27219603 | BW94: 85.11074599 | BX94: =IF($H94,BX77*BX$66,BX77) -> 85.95763995 | BY94: 86.81296091 | BZ94: 87.67679275 | CA94: 88.54922013 | CB94: 89.4303286 | CC94: 90.32020453 | CD94: 91.21893517 | CE94: 92.12660862 | CF94: 93.04331388 | CG94: 93.9691408 | CH94: 94.90418015 | CI94: 95.84852361 | CJ94: 96.80226376 | CK94: 97.76549408 | CL94: 98.73830903 | CM94: 99.72080397 | CN94: 100.7130752 | CO94: 101.71522 | CP94: 102.7273367 | CQ94: 103.7495244 | CR94: 104.7818835 | CS94: 105.8245149 | CT94: 106.8775211 | CU94: 107.9410052 | CV94: 109.0150715 | CW94: 110.0998253 | CX94: 111.195373 | CY94: 112.3018218 | CZ94: 113.4192804 | DA94: 114.5478583 | DB94: 0 | DC94: 0 | DD94: 0 | DE94: 0 | DF94: 0 | DG94: 0
D95: Operation Expenses | F95: € 000's | H95: =Inputs!K70 -> TRUE | L95: =IF($H95,L78*L$66,L78) -> 0 | M95: 0 | N95: 0 | O95: 0 | P95: 0 | Q95: 0 | R95: 0 | S95: 0 | T95: 0 | U95: 0 | V95: 0 | W95: 0 | X95: 0 | Y95: 0 | Z95: 0 | AA95: 0 | AB95: 0 | AC95: 0 | AD95: 0 | AE95: 0 | AF95: 0 | AG95: 0 | AH95: 0 | AI95: 0 | AJ95: 0 | AK95: 0 | AL95: 0 | AM95: 0 | AN95: 0 | AO95: 0 | AP95: 0 | AQ95: 0 | AR95: 0 | AS95: 0 | AT95: 68.72940901 | AU95: 69.41330057 | AV95: 70.10399719 | AW95: 70.80156658 | AX95: 71.50607713 | AY95: 72.21759791 | AZ95: 72.93619868 | BA95: 73.66194987 | BB95: 74.39492265 | BC95: 75.13518887 | BD95: 75.8828211 | BE95: 76.63789265 | BF95: 77.40047753 | BG95: 78.1706505 | BH95: 78.94848708 | BI95: 79.73406351 | BJ95: 80.52745682 | BK95: 81.32874478 | BL95: 82.13800595 | BM95: 82.95531968 | BN95: 83.78076607 | BO95: 84.61442607 | BP95: 85.45638139 | BQ95: 86.30671459 | BR95: 87.16550902 | BS95: 88.03284888 | BT95: 88.9088192 | BU95: 89.79350586 | BV95: 90.68699559 | BW95: 91.58937598 | BX95: =IF($H95,BX78*BX$66,BX78) -> 92.5007355 | BY95: 93.4211635 | BZ95: 94.35075021 | CA95: 95.28958677 | CB95: 96.23776521 | CC95: 97.1953785 | CD95: 98.16252052 | CE95: 99.13928607 | CF95: 100.1257709 | CG95: 101.1220718 | CH95: 102.1282863 | CI95: 103.1445132 | CJ95: 104.1708521 | CK95: 105.2074035 | CL95: 106.2542691 | CM95: 107.3115516 | CN95: 108.3793545 | CO95: 109.4577826 | CP95: 110.5469416 | CQ95: 111.6469382 | CR95: 112.7578804 | CS95: 113.879877 | CT95: 115.013038 | CU95: 116.1574746 | CV95: 117.3132988 | CW95: 118.480624 | CX95: 119.6595648 | CY95: 120.8502365 | CZ95: 122.0527561 | DA95: 123.2672413 | DB95: 0 | DC95: 0 | DD95: 0 | DE95: 0 | DF95: 0 | DG95: 0
D96: Maintenance Expenses | F96: € 000's | H96: =Inputs!K71 -> TRUE | L96: =IF($H96,L79*L$66,L79) -> 0 | M96: 0 | N96: 0 | O96: 0 | P96: 0 | Q96: 0 | R96: 0 | S96: 0 | T96: 0 | U96: 0 | V96: 0 | W96: 0 | X96: 0 | Y96: 0 | Z96: 0 | AA96: 0 | AB96: 0 | AC96: 0 | AD96: 0 | AE96: 0 | AF96: 0 | AG96: 0 | AH96: 0 | AI96: 0 | AJ96: 0 | AK96: 0 | AL96: 0 | AM96: 0 | AN96: 0 | AO96: 0 | AP96: 0 | AQ96: 0 | AR96: 0 | AS96: 0 | AT96: 67.11437775 | AU96: 67.78219895 | AV96: 68.45666531 | AW96: 69.13784293 | AX96: 69.82579861 | AY96: 70.52059979 | AZ96: 71.22231458 | BA96: 71.93101179 | BB96: 72.64676088 | BC96: 73.36963202 | BD96: 74.09969609 | BE96: 74.83702466 | BF96: 75.58169002 | BG96: 76.33376516 | BH96: 77.09332382 | BI96: 77.86044046 | BJ96: 78.63519029 | BK96: 79.41764927 | BL96: 80.2078941 | BM96: 81.00600225 | BN96: 81.81205198 | BO96: 82.6261223 | BP96: 83.44829302 | BQ96: 84.27864475 | BR96: 85.11725888 | BS96: 85.96421764 | BT96: 86.81960406 | BU96: 87.68350199 | BV96: 88.55599614 | BW96: 89.43717203 | BX96: =IF($H96,BX79*BX$66,BX79) -> 90.32711606 | BY96: 91.22591547 | BZ96: 92.13365838 | CA96: 93.05043378 | CB96: 93.97633155 | CC96: 94.91144246 | CD96: 95.85585818 | CE96: 96.80967131 | CF96: 97.77297535 | CG96: 98.74586473 | CH96: 99.72843485 | CI96: 100.720782 | CJ96: 101.7230035 | CK96: 102.7351977 | CL96: 103.7574636 | CM96: 104.7899016 | CN96: 105.8326129 | CO96: 106.8856997 | CP96: 107.9492652 | CQ96: 109.0234136 | CR96: 110.1082505 | CS96: 111.2038819 | CT96: 112.3104155 | CU96: 113.4279596 | CV96: 114.5566238 | CW96: 115.6965188 | CX96: 116.8477562 | CY96: 118.0104491 | CZ96: 119.1847114 | DA96: 120.3706581 | DB96: 0 | DC96: 0 | DD96: 0 | DE96: 0 | DF96: 0 | DG96: 0
D97: G&A | F97: € 000's | H97: =Inputs!K72 -> TRUE | L97: =IF($H97,L80*L$66,L80) -> 0 | M97: 0 | N97: 0 | O97: 0 | P97: 0 | Q97: 0 | R97: 0 | S97: 0 | T97: 0 | U97: 0 | V97: 0 | W97: 0 | X97: 0 | Y97: 0 | Z97: 0 | AA97: 0 | AB97: 0 | AC97: 0 | AD97: 0 | AE97: 0 | AF97: 0 | AG97: 0 | AH97: 0 | AI97: 0 | AJ97: 0 | AK97: 0 | AL97: 0 | AM97: 0 | AN97: 0 | AO97: 0 | AP97: 0 | AQ97: 0 | AR97: 0 | AS97: 0 | AT97: 36.43639352 | AU97: 36.79895363 | AV97: 37.16512139 | AW97: 37.5349327 | AX97: 37.90842381 | AY97: 38.28563135 | AZ97: 38.66659229 | BA97: 39.05134398 | BB97: 39.43992414 | BC97: 39.83237086 | BD97: 40.22872262 | BE97: 40.62901828 | BF97: 41.03329707 | BG97: 41.44159864 | BH97: 41.85396301 | BI97: 42.27043061 | BJ97: 42.69104227 | BK97: 43.11583923 | BL97: 43.54486312 | BM97: 43.97815601 | BN97: 44.41576038 | BO97: 44.85771913 | BP97: 45.30407559 | BQ97: 45.75487351 | BR97: 46.2101571 | BS97: 46.66997098 | BT97: 47.13436024 | BU97: 47.6033704 | BV97: 48.07704745 | BW97: 48.55543781 | BX97: =IF($H97,BX80*BX$66,BX80) -> 49.0385884 | BY97: 49.52654657 | BZ97: 50.01936016 | CA97: 50.5170775 | CB97: 51.01974737 | CC97: 51.52741905 | CD97: 52.04014231 | CE97: 52.55796743 | CF97: 53.08094516 | CG97: 53.60912678 | CH97: 54.14256406 | CI97: 54.68130931 | CJ97: 55.22541535 | CK97: 55.7749355 | CL97: 56.32992365 | CM97: 56.89043421 | CN97: 57.45652213 | CO97: 58.02824289 | CP97: 58.60565257 | CQ97: 59.18880775 | CR97: 59.77776562 | CS97: 60.37258391 | CT97: 60.97332093 | CU97: 61.58003559 | CV97: 62.19278735 | CW97: 62.8116363 | CX97: 63.4366431 | CY97: 64.06786902 | CZ97: 64.70537596 | DA97: 65.3492264 | DB97: 0 | DC97: 0 | DD97: 0 | DE97: 0 | DF97: 0 | DG97: 0
D98: Asset Management | F98: € 000's | H98: =Inputs!K73 -> TRUE | L98: =IF($H98,L81*L$66,L81) -> 0 | M98: 0 | N98: 0 | O98: 0 | P98: 0 | Q98: 0 | R98: 0 | S98: 0 | T98: 0 | U98: 0 | V98: 0 | W98: 0 | X98: 0 | Y98: 0 | Z98: 0 | AA98: 0 | AB98: 0 | AC98: 0 | AD98: 0 | AE98: 0 | AF98: 0 | AG98: 0 | AH98: 0 | AI98: 0 | AJ98: 0 | AK98: 0 | AL98: 0 | AM98: 0 | AN98: 0 | AO98: 0 | AP98: 0 | AQ98: 0 | AR98: 0 | AS98: 0 | AT98: 0 | AU98: 0 | AV98: 0 | AW98: 0 | AX98: 0 | AY98: 0 | AZ98: 0 | BA98: 0 | BB98: 0 | BC98: 0 | BD98: 0 | BE98: 0 | BF98: 0 | BG98: 0 | BH98: 0 | BI98: 0 | BJ98: 0 | BK98: 0 | BL98: 0 | BM98: 0 | BN98: 0 | BO98: 0 | BP98: 0 | BQ98: 0 | BR98: 0 | BS98: 0 | BT98: 0 | BU98: 0 | BV98: 0 | BW98: 0 | BX98: =IF($H98,BX81*BX$66,BX81) -> 0 | BY98: 0 | BZ98: 0 | CA98: 0 | CB98: 0 | CC98: 0 | CD98: 0 | CE98: 0 | CF98: 0 | CG98: 0 | CH98: 0 | CI98: 0 | CJ98: 0 | CK98: 0 | CL98: 0 | CM98: 0 | CN98: 0 | CO98: 0 | CP98: 0 | CQ98: 0 | CR98: 0 | CS98: 0 | CT98: 0 | CU98: 0 | CV98: 0 | CW98: 0 | CX98: 0 | CY98: 0 | CZ98: 0 | DA98: 0 | DB98: 0 | DC98: 0 | DD98: 0 | DE98: 0 | DF98: 0 | DG98: 0
D99: Community Support | F99: € 000's | H99: =Inputs!K74 -> TRUE | L99: =IF($H99,L82*L$66,L82) -> 0 | M99: 0 | N99: 0 | O99: 0 | P99: 0 | Q99: 0 | R99: 0 | S99: 0 | T99: 0 | U99: 0 | V99: 0 | W99: 0 | X99: 0 | Y99: 0 | Z99: 0 | AA99: 0 | AB99: 0 | AC99: 0 | AD99: 0 | AE99: 0 | AF99: 0 | AG99: 0 | AH99: 0 | AI99: 0 | AJ99: 0 | AK99: 0 | AL99: 0 | AM99: 0 | AN99: 0 | AO99: 0 | AP99: 0 | AQ99: 0 | AR99: 0 | AS99: 0 | AT99: 2.08207963 | AU99: 2.10279735 | AV99: 2.123721222 | AW99: 2.144853297 | AX99: 2.166195647 | AY99: 2.187750363 | AZ99: 2.209519559 | BA99: 2.23150537 | BB99: 2.253709951 | BC99: 2.276135478 | BD99: 2.29878415 | BE99: 2.321658187 | BF99: 2.344759833 | BG99: 2.368091351 | BH99: 2.391655029 | BI99: 2.415453178 | BJ99: 2.43948813 | BK99: 2.463762242 | BL99: 2.488277892 | BM99: 2.513037486 | BN99: 2.53804345 | BO99: 2.563298236 | BP99: 2.588804319 | BQ99: 2.614564201 | BR99: 2.640580406 | BS99: 2.666855485 | BT99: 2.693392014 | BU99: 2.720192594 | BV99: 2.747259854 | BW99: 2.774596446 | BX99: =IF($H99,BX82*BX$66,BX82) -> 2.802205051 | BY99: 2.830088375 | BZ99: 2.858249152 | CA99: 2.886690143 | CB99: 2.915414135 | CC99: 2.944423946 | CD99: 2.973722418 | CE99: 3.003312425 | CF99: 3.033196866 | CG99: 3.063378673 | CH99: 3.093860804 | CI99: 3.124646247 | CJ99: 3.15573802 | CK99: 3.187139171 | CL99: 3.21885278 | CM99: 3.250881955 | CN99: 3.283229836 | CO99: 3.315899594 | CP99: 3.348894432 | CQ99: 3.382217586 | CR99: 3.415872321 | CS99: 3.449861938 | CT99: 3.484189768 | CU99: 3.518859176 | CV99: 3.553873563 | CW99: 3.58923636 | CX99: 3.624951034 | CY99: 3.661021087 | CZ99: 3.697450055 | DA99: 3.734241509 | DB99: 0 | DC99: 0 | DD99: 0 | DE99: 0 | DF99: 0 | DG99: 0
D100: 3rd Party Professional Services | F100: € 000's | H100: =Inputs!K75 -> TRUE | L100: =IF($H100,L83*L$66,L83) -> 0 | M100: 0 | N100: 0 | O100: 0 | P100: 0 | Q100: 0 | R100: 0 | S100: 0 | T100: 0 | U100: 0 | V100: 0 | W100: 0 | X100: 0 | Y100: 0 | Z100: 0 | AA100: 0 | AB100: 0 | AC100: 0 | AD100: 0 | AE100: 0 | AF100: 0 | AG100: 0 | AH100: 0 | AI100: 0 | AJ100: 0 | AK100: 0 | AL100: 0 | AM100: 0 | AN100: 0 | AO100: 0 | AP100: 0 | AQ100: 0 | AR100: 0 | AS100: 0 | AT100: 34.35431389 | AU100: 34.69615628 | AV100: 35.04140016 | AW100: 35.3900794 | AX100: 35.74222817 | AY100: 36.09788099 | AZ100: 36.45707273 | BA100: 36.81983861 | BB100: 37.18621419 | BC100: 37.55623538 | BD100: 37.92993847 | BE100: 38.30736009 | BF100: 38.68853724 | BG100: 39.07350729 | BH100: 39.46230798 | BI100: 39.85497744 | BJ100: 40.25155414 | BK100: 40.65207698 | BL100: 41.05658523 | BM100: 41.46511852 | BN100: 41.87771693 | BO100: 42.29442089 | BP100: 42.71527127 | BQ100: 43.14030931 | BR100: 43.56957669 | BS100: 44.0031155 | BT100: 44.44096823 | BU100: 44.88317781 | BV100: 45.32978759 | BW100: 45.78084137 | BX100: =IF($H100,BX83*BX$66,BX83) -> 46.23638335 | BY100: 46.69645819 | BZ100: 47.16111101 | CA100: 47.63038736 | CB100: 48.10433323 | CC100: 48.5829951 | CD100: 49.0664199 | CE100: 49.55465501 | CF100: 50.04774829 | CG100: 50.54574811 | CH100: 51.04870326 | CI100: 51.55666307 | CJ100: 52.06967733 | CK100: 52.58779633 | CL100: 53.11107087 | CM100: 53.63955226 | CN100: 54.17329229 | CO100: 54.7123433 | CP100: 55.25675814 | CQ100: 55.80659017 | CR100: 56.3618933 | CS100: 56.92272197 | CT100: 57.48913116 | CU100: 58.06117641 | CV100: 58.63891379 | CW100: 59.22239994 | CX100: 59.81169206 | CY100: 60.40684794 | CZ100: 61.0079259 | DA100: 61.6149849 | DB100: 0 | DC100: 0 | DD100: 0 | DE100: 0 | DF100: 0 | DG100: 0
D101: Landowner and Easement Royalties | F101: € 000's | H101: =Inputs!K76 -> FALSE | L101: =IF($H101,L84*L$66,L84) -> 0 | M101: 0 | N101: 0 | O101: 0 | P101: 0 | Q101: 0 | R101: 0 | S101: 0 | T101: 0 | U101: 0 | V101: 0 | W101: 0 | X101: 0 | Y101: 0 | Z101: 0 | AA101: 0 | AB101: 0 | AC101: 0 | AD101: 0 | AE101: 0 | AF101: 0 | AG101: 0 | AH101: 0 | AI101: 0 | AJ101: 0 | AK101: 0 | AL101: 0 | AM101: 0 | AN101: 0 | AO101: 0 | AP101: 0 | AQ101: 0 | AR101: 0 | AS101: 0 | AT101: 165.0945783 | AU101: 165.0945783 | AV101: 165.0945783 | AW101: 165.0945783 | AX101: 165.0945783 | AY101: 165.0945783 | AZ101: 165.0945783 | BA101: 165.0945783 | BB101: 165.0945783 | BC101: 165.0945783 | BD101: 165.0945783 | BE101: 165.0945783 | BF101: 165.0945783 | BG101: 165.0945783 | BH101: 165.0945783 | BI101: 165.0945783 | BJ101: 165.0945783 | BK101: 165.0945783 | BL101: 165.0945783 | BM101: 165.0945783 | BN101: 165.0945783 | BO101: 165.0945783 | BP101: 165.0945783 | BQ101: 165.0945783 | BR101: 165.0945783 | BS101: 165.0945783 | BT101: 165.0945783 | BU101: 165.0945783 | BV101: 165.0945783 | BW101: 165.0945783 | BX101: =IF($H101,BX84*BX$66,BX84) -> 165.0945783 | BY101: 165.0945783 | BZ101: 165.0945783 | CA101: 165.0945783 | CB101: 165.0945783 | CC101: 165.0945783 | CD101: 165.0945783 | CE101: 165.0945783 | CF101: 165.0945783 | CG101: 165.0945783 | CH101: 165.0945783 | CI101: 165.0945783 | CJ101: 165.0945783 | CK101: 165.0945783 | CL101: 165.0945783 | CM101: 165.0945783 | CN101: 165.0945783 | CO101: 165.0945783 | CP101: 165.0945783 | CQ101: 165.0945783 | CR101: 165.0945783 | CS101: 165.0945783 | CT101: 165.0945783 | CU101: 165.0945783 | CV101: 165.0945783 | CW101: 165.0945783 | CX101: 165.0945783 | CY101: 165.0945783 | CZ101: 165.0945783 | DA101: 165.0945783 | DB101: 0 | DC101: 0 | DD101: 0 | DE101: 0 | DF101: 0 | DG101: 0
D102: Royalties - based on % Revenues | F102: € 000's | H102: =Inputs!K77 -> FALSE | L102: =IF($H102,L85*L$66,L85) -> 0 | M102: 0 | N102: 0 | O102: 0 | P102: 0 | Q102: 0 | R102: 0 | S102: 0 | T102: 0 | U102: 0 | V102: 0 | W102: 0 | X102: 0 | Y102: 0 | Z102: 0 | AA102: 0 | AB102: 0 | AC102: 0 | AD102: 0 | AE102: 0 | AF102: 0 | AG102: 0 | AH102: 0 | AI102: 0 | AJ102: 0 | AK102: 0 | AL102: 0 | AM102: 0 | AN102: 0 | AO102: 0 | AP102: 0 | AQ102: 0 | AR102: 0 | AS102: 0 | AT102: 111.5397295 | AU102: 111.5397295 | AV102: 111.5397295 | AW102: 111.5397295 | AX102: 111.5397295 | AY102: 111.5397295 | AZ102: 111.5397295 | BA102: 111.5397295 | BB102: 111.5397295 | BC102: 111.5397295 | BD102: 111.5397295 | BE102: 111.5397295 | BF102: 111.5397295 | BG102: 111.5397295 | BH102: 111.5397295 | BI102: 111.5397295 | BJ102: 111.5397295 | BK102: 111.5397295 | BL102: 111.5397295 | BM102: 111.5397295 | BN102: 111.5397295 | BO102: 111.5397295 | BP102: 111.5397295 | BQ102: 111.5397295 | BR102: 111.5397295 | BS102: 111.5397295 | BT102: 111.5397295 | BU102: 111.5397295 | BV102: 111.5397295 | BW102: 111.5397295 | BX102: =IF($H102,BX85*BX$66,BX85) -> 111.5397295 | BY102: 111.5397295 | BZ102: 111.5397295 | CA102: 111.5397295 | CB102: 111.5397295 | CC102: 111.5397295 | CD102: 111.5397295 | CE102: 111.5397295 | CF102: 111.5397295 | CG102: 111.5397295 | CH102: 111.5397295 | CI102: 111.5397295 | CJ102: 111.5397295 | CK102: 111.5397295 | CL102: 111.5397295 | CM102: 111.5397295 | CN102: 111.5397295 | CO102: 111.5397295 | CP102: 111.5397295 | CQ102: 111.5397295 | CR102: 111.5397295 | CS102: 111.5397295 | CT102: 111.5397295 | CU102: 111.5397295 | CV102: 111.5397295 | CW102: 111.5397295 | CX102: 111.5397295 | CY102: 111.5397295 | CZ102: 111.5397295 | DA102: 111.5397295 | DB102: 0 | DC102: 0 | DD102: 0 | DE102: 0 | DF102: 0 | DG102: 0
D103: Property Taxes | F103: € 000's | H103: =Inputs!K78 -> FALSE | L103: =IF($H103,L86*L$66,L86) -> 0 | M103: 0 | N103: 0 | O103: 0 | P103: 0 | Q103: 0 | R103: 0 | S103: 0 | T103: 0 | U103: 0 | V103: 0 | W103: 0 | X103: 0 | Y103: 0 | Z103: 0 | AA103: 0 | AB103: 0 | AC103: 0 | AD103: 0 | AE103: 0 | AF103: 0 | AG103: 0 | AH103: 0 | AI103: 0 | AJ103: 0 | AK103: 0 | AL103: 0 | AM103: 0 | AN103: 0 | AO103: 0 | AP103: 0 | AQ103: 0 | AR103: 0 | AS103: 0 | AT103: 502.6222352 | AU103: 502.6222352 | AV103: 502.6222352 | AW103: 502.6222352 | AX103: 502.6222352 | AY103: 502.6222352 | AZ103: 502.6222352 | BA103: 502.6222352 | BB103: 502.6222352 | BC103: 502.6222352 | BD103: 502.6222352 | BE103: 502.6222352 | BF103: 502.6222352 | BG103: 502.6222352 | BH103: 502.6222352 | BI103: 502.6222352 | BJ103: 502.6222352 | BK103: 502.6222352 | BL103: 502.6222352 | BM103: 502.6222352 | BN103: 502.6222352 | BO103: 502.6222352 | BP103: 502.6222352 | BQ103: 502.6222352 | BR103: 502.6222352 | BS103: 502.6222352 | BT103: 502.6222352 | BU103: 502.6222352 | BV103: 502.6222352 | BW103: 502.6222352 | BX103: =IF($H103,BX86*BX$66,BX86) -> 502.6222352 | BY103: 502.6222352 | BZ103: 502.6222352 | CA103: 502.6222352 | CB103: 502.6222352 | CC103: 502.6222352 | CD103: 502.6222352 | CE103: 502.6222352 | CF103: 502.6222352 | CG103: 502.6222352 | CH103: 502.6222352 | CI103: 502.6222352 | CJ103: 502.6222352 | CK103: 502.6222352 | CL103: 502.6222352 | CM103: 502.6222352 | CN103: 502.6222352 | CO103: 502.6222352 | CP103: 502.6222352 | CQ103: 502.6222352 | CR103: 502.6222352 | CS103: 502.6222352 | CT103: 502.6222352 | CU103: 502.6222352 | CV103: 502.6222352 | CW103: 502.6222352 | CX103: 502.6222352 | CY103: 502.6222352 | CZ103: 502.6222352 | DA103: 502.6222352 | DB103: 0 | DC103: 0 | DD103: 0 | DE103: 0 | DF103: 0 | DG103: 0
D104: Environmental Monitoring | F104: € 000's | H104: =Inputs!K79 -> FALSE | L104: =IF($H104,L87*L$66,L87) -> 0 | M104: 0 | N104: 0 | O104: 0 | P104: 0 | Q104: 0 | R104: 0 | S104: 0 | T104: 0 | U104: 0 | V104: 0 | W104: 0 | X104: 0 | Y104: 0 | Z104: 0 | AA104: 0 | AB104: 0 | AC104: 0 | AD104: 0 | AE104: 0 | AF104: 0 | AG104: 0 | AH104: 0 | AI104: 0 | AJ104: 0 | AK104: 0 | AL104: 0 | AM104: 0 | AN104: 0 | AO104: 0 | AP104: 0 | AQ104: 0 | AR104: 0 | AS104: 0 | AT104: 0 | AU104: 0 | AV104: 0 | AW104: 0 | AX104: 0 | AY104: 0 | AZ104: 0 | BA104: 0 | BB104: 0 | BC104: 0 | BD104: 0 | BE104: 0 | BF104: 0 | BG104: 0 | BH104: 0 | BI104: 0 | BJ104: 0 | BK104: 0 | BL104: 0 | BM104: 0 | BN104: 0 | BO104: 0 | BP104: 0 | BQ104: 0 | BR104: 0 | BS104: 0 | BT104: 0 | BU104: 0 | BV104: 0 | BW104: 0 | BX104: =IF($H104,BX87*BX$66,BX87) -> 0 | BY104: 0 | BZ104: 0 | CA104: 0 | CB104: 0 | CC104: 0 | CD104: 0 | CE104: 0 | CF104: 0 | CG104: 0 | CH104: 0 | CI104: 0 | CJ104: 0 | CK104: 0 | CL104: 0 | CM104: 0 | CN104: 0 | CO104: 0 | CP104: 0 | CQ104: 0 | CR104: 0 | CS104: 0 | CT104: 0 | CU104: 0 | CV104: 0 | CW104: 0 | CX104: 0 | CY104: 0 | CZ104: 0 | DA104: 0 | DB104: 0 | DC104: 0 | DD104: 0 | DE104: 0 | DF104: 0 | DG104: 0
D105: Insurance | F105: € 000's | H105: =Inputs!K80 -> FALSE | L105: =IF($H105,L88*L$66,L88) -> 0 | M105: 0 | N105: 0 | O105: 0 | P105: 0 | Q105: 0 | R105: 0 | S105: 0 | T105: 0 | U105: 0 | V105: 0 | W105: 0 | X105: 0 | Y105: 0 | Z105: 0 | AA105: 0 | AB105: 0 | AC105: 0 | AD105: 0 | AE105: 0 | AF105: 0 | AG105: 0 | AH105: 0 | AI105: 0 | AJ105: 0 | AK105: 0 | AL105: 0 | AM105: 0 | AN105: 0 | AO105: 0 | AP105: 0 | AQ105: 0 | AR105: 0 | AS105: 0 | AT105: 73.67016835 | AU105: 73.67016835 | AV105: 73.67016835 | AW105: 73.67016835 | AX105: 73.67016835 | AY105: 73.67016835 | AZ105: 73.67016835 | BA105: 73.67016835 | BB105: 73.67016835 | BC105: 73.67016835 | BD105: 73.67016835 | BE105: 73.67016835 | BF105: 73.67016835 | BG105: 73.67016835 | BH105: 73.67016835 | BI105: 73.67016835 | BJ105: 73.67016835 | BK105: 73.67016835 | BL105: 73.67016835 | BM105: 73.67016835 | BN105: 73.67016835 | BO105: 73.67016835 | BP105: 73.67016835 | BQ105: 73.67016835 | BR105: 73.67016835 | BS105: 73.67016835 | BT105: 73.67016835 | BU105: 73.67016835 | BV105: 73.67016835 | BW105: 73.67016835 | BX105: =IF($H105,BX88*BX$66,BX88) -> 73.67016835 | BY105: 73.67016835 | BZ105: 73.67016835 | CA105: 73.67016835 | CB105: 73.67016835 | CC105: 73.67016835 | CD105: 73.67016835 | CE105: 73.67016835 | CF105: 73.67016835 | CG105: 73.67016835 | CH105: 73.67016835 | CI105: 73.67016835 | CJ105: 73.67016835 | CK105: 73.67016835 | CL105: 73.67016835 | CM105: 73.67016835 | CN105: 73.67016835 | CO105: 73.67016835 | CP105: 73.67016835 | CQ105: 73.67016835 | CR105: 73.67016835 | CS105: 73.67016835 | CT105: 73.67016835 | CU105: 73.67016835 | CV105: 73.67016835 | CW105: 73.67016835 | CX105: 73.67016835 | CY105: 73.67016835 | CZ105: 73.67016835 | DA105: 73.67016835 | DB105: 0 | DC105: 0 | DD105: 0 | DE105: 0 | DF105: 0 | DG105: 0
D106: Annual Insurance Cash Premium & Origination Fee | F106: € 000's | H106: =Inputs!K81 -> FALSE | L106: =IF($H106,L89*L$66,L89) -> 0 | M106: 0 | N106: 0 | O106: 0 | P106: 0 | Q106: 0 | R106: 0 | S106: 0 | T106: 0 | U106: 0 | V106: 0 | W106: 0 | X106: 0 | Y106: 0 | Z106: 0 | AA106: 0 | AB106: 0 | AC106: 0 | AD106: 0 | AE106: 0 | AF106: 0 | AG106: 0 | AH106: 0 | AI106: 0 | AJ106: 0 | AK106: 0 | AL106: 0 | AM106: 0 | AN106: 0 | AO106: 0 | AP106: 0 | AQ106: 0 | AR106: 0 | AS106: 0 | AT106: 350.7866199 | AU106: 350.7866199 | AV106: 350.7866199 | AW106: 350.7866199 | AX106: 350.7866199 | AY106: 350.7866199 | AZ106: 350.7866199 | BA106: 350.7866199 | BB106: 350.7866199 | BC106: 350.7866199 | BD106: 350.7866199 | BE106: 350.7866199 | BF106: 350.7866199 | BG106: 350.7866199 | BH106: 350.7866199 | BI106: 350.7866199 | BJ106: 350.7866199 | BK106: 350.7866199 | BL106: 350.7866199 | BM106: 350.7866199 | BN106: 350.7866199 | BO106: 350.7866199 | BP106: 350.7866199 | BQ106: 350.7866199 | BR106: 350.7866199 | BS106: 350.7866199 | BT106: 350.7866199 | BU106: 350.7866199 | BV106: 350.7866199 | BW106: 350.7866199 | BX106: =IF($H106,BX89*BX$66,BX89) -> 350.7866199 | BY106: 350.7866199 | BZ106: 350.7866199 | CA106: 350.7866199 | CB106: 350.7866199 | CC106: 350.7866199 | CD106: 350.7866199 | CE106: 350.7866199 | CF106: 350.7866199 | CG106: 350.7866199 | CH106: 350.7866199 | CI106: 350.7866199 | CJ106: 350.7866199 | CK106: 350.7866199 | CL106: 350.7866199 | CM106: 350.7866199 | CN106: 350.7866199 | CO106: 350.7866199 | CP106: 350.7866199 | CQ106: 350.7866199 | CR106: 350.7866199 | CS106: 350.7866199 | CT106: 350.7866199 | CU106: 350.7866199 | CV106: 350.7866199 | CW106: 350.7866199 | CX106: 350.7866199 | CY106: 350.7866199 | CZ106: 350.7866199 | DA106: 350.7866199 | DB106: 0 | DC106: 0 | DD106: 0 | DE106: 0 | DF106: 0 | DG106: 0
D108: Total O&M cost | L108: =SUM(L92:L106) -> 0 | M108: =SUM(M92:M106) -> 0 | N108: 0 | O108: 0 | P108: 0 | Q108: 0 | R108: 0 | S108: 0 | T108: 0 | U108: 0 | V108: 0 | W108: 0 | X108: 0 | Y108: 0 | Z108: 0 | AA108: 0 | AB108: 0 | AC108: 0 | AD108: 0 | AE108: 0 | AF108: 0 | AG108: 0 | AH108: 0 | AI108: 0 | AJ108: 0 | AK108: 0 | AL108: 0 | AM108: 0 | AN108: 0 | AO108: 0 | AP108: 0 | AQ108: 0 | AR108: 0 | AS108: 0 | AT108: 2555.1215 | AU108: 2568.568679 | AV108: 2582.149664 | AW108: 2595.865786 | AX108: 2609.71839 | AY108: 2623.708835 | AZ108: 2637.838492 | BA108: 2652.108745 | BB108: 2666.520995 | BC108: 2681.076653 | BD108: 2695.777148 | BE108: 2710.62392 | BF108: 2725.618424 | BG108: 2740.762132 | BH108: 2756.056526 | BI108: 2771.503108 | BJ108: 2787.10339 | BK108: 2802.858903 | BL108: 2818.771191 | BM108: 2834.841815 | BN108: 2851.072348 | BO108: 2867.464384 | BP108: 2884.019529 | BQ108: 2900.739405 | BR108: 2917.625653 | BS108: 2934.679927 | BT108: 2951.903899 | BU108: 2969.299259 | BV108: 2986.867711 | BW108: 3004.610977 | BX108: 3022.530798 | BY108: =SUM(BY92:BY106) -> 3040.62893 | BZ108: 3058.907147 | CA108: 3077.367242 | CB108: 3096.011024 | CC108: 3114.84032 | CD108: 3133.856978 | CE108: 3153.06286 | CF108: 3172.459851 | CG108: 3192.049851 | CH108: 3211.834781 | CI108: 3231.816581 | CJ108: 3251.99721 | CK108: 3272.378646 | CL108: 3292.962888 | CM108: 3313.751952 | CN108: 3334.747879 | CO108: 3355.952725 | CP108: 3377.36857 | CQ108: 3398.997513 | CR108: 3420.841674 | CS108: 3442.903196 | CT108: 3465.184241 | CU108: 3487.686994 | CV108: 3510.413659 | CW108: 3533.366467 | CX108: 3556.547666 | CY108: 3579.95953 | CZ108: 3603.604353 | DA108: 3627.484453 | DB108: 0 | DC108: 0 | DD108: 0 | DE108: 0 | DF108: 0 | DG108: 0
D110: Total O&M per kW-year | L110: =IF(L71,L108/L71) -> FALSE | M110: =IF(M71,M108/M71) -> FALSE | N110: FALSE | O110: FALSE | P110: FALSE | Q110: FALSE | R110: FALSE | S110: FALSE | T110: FALSE | U110: FALSE | V110: FALSE | W110: FALSE | X110: FALSE | Y110: FALSE | Z110: FALSE | AA110: FALSE | AB110: FALSE | AC110: FALSE | AD110: FALSE | AE110: FALSE | AF110: FALSE | AG110: FALSE | AH110: FALSE | AI110: FALSE | AJ110: FALSE | AK110: FALSE | AL110: FALSE | AM110: FALSE | AN110: FALSE | AO110: FALSE | AP110: FALSE | AQ110: FALSE | AR110: FALSE | AS110: FALSE | AT110: 27.18214362 | AU110: 27.32519871 | AV110: 27.46967727 | AW110: 27.61559347 | AX110: 27.7629616 | AY110: 27.91179612 | AZ110: 28.06211161 | BA110: 28.21392282 | BB110: 28.36724462 | BC110: 28.52209206 | BD110: 28.6784803 | BE110: 28.83642468 | BF110: 28.99594068 | BG110: 29.15704395 | BH110: 29.31975028 | BI110: 29.48407561 | BJ110: 29.65003606 | BK110: 29.81764791 | BL110: 29.98692757 | BM110: 30.15789164 | BN110: 30.3305569 | BO110: 30.50494026 | BP110: 30.68105882 | BQ110: 30.85892984 | BR110: 31.03857077 | BS110: 31.21999922 | BT110: 31.40323297 | BU110: 31.58828999 | BV110: 31.77518841 | BW110: 31.96394657 | BX110: 32.15458296 | BY110: =IF(BY71,BY108/BY71) -> 32.34711628 | BZ110: 32.5415654 | CA110: 32.73794938 | CB110: 32.93628749 | CC110: 33.13659915 | CD110: 33.33890402 | CE110: 33.54322192 | CF110: 33.74957288 | CG110: 33.95797713 | CH110: 34.16845512 | CI110: 34.38102746 | CJ110: 34.595715 | CK110: 34.81253879 | CL110: 35.03152008 | CM110: 35.25268034 | CN110: 35.47604126 | CO110: 35.70162473 | CP110: 35.92945287 | CQ110: 36.15954801 | CR110: 36.39193271 | CS110: 36.62662975 | CT110: 36.86366214 | CU110: 37.10305312 | CV110: 37.34482616 | CW110: 37.58900497 | CX110: 37.83561347 | CY110: 38.08467585 | CZ110: 38.33621652 | DA110: 38.59026014 | DB110: FALSE | DC110: FALSE | DD110: FALSE | DE110: FALSE | DF110: FALSE | DG110: FALSE
A113: Cash Flow
B114: EBITDA | J114: =SUM(L114:DG114) -> 376889.9935 | L114: =L61-L108 -> 0 | M114: 0 | N114: 0 | O114: 0 | P114: 0 | Q114: 0 | R114: 0 | S114: 0 | T114: 0 | U114: 0 | V114: 0 | W114: 0 | X114: 0 | Y114: 0 | Z114: 0 | AA114: 0 | AB114: 0 | AC114: 0 | AD114: 0 | AE114: 0 | AF114: 0 | AG114: 0 | AH114: 0 | AI114: 0 | AJ114: 0 | AK114: 0 | AL114: 0 | AM114: 0 | AN114: 0 | AO114: 0 | AP114: 0 | AQ114: 0 | AR114: =AR61-AR108 -> 0 | AS114: 0 | AT114: 5953.882406 | AU114: 6020.8904 | AV114: 6088.525316 | AW114: 6161.086692 | AX114: 6234.370089 | AY114: 6308.382693 | AZ114: 6383.131758 | BA114: 6458.624613 | BB114: 6534.86866 | BC114: 6611.871372 | BD114: 6689.640299 | BE114: 6768.183066 | BF114: 6847.507372 | BG114: 6927.620994 | BH114: 7008.531786 | BI114: 7090.247681 | BJ114: 7172.776688 | BK114: 7256.126901 | BL114: 7340.306489 | BM114: 7425.323705 | BN114: 7511.186885 | BO114: 7597.904446 | BP114: 7685.48489 | BQ114: 7773.936802 | BR114: 7863.268854 | BS114: 7953.489804 | BT114: 8044.608498 | BU114: 8136.633867 | BV114: 8229.574934 | BW114: 8323.440811 | BX114: =BX61-BX108 -> 8418.2407 | BY114: 8513.983894 | BZ114: 8610.67978 | CA114: 8708.337838 | CB114: 8806.967642 | CC114: 8906.578862 | CD114: 9007.181262 | CE114: 9108.784706 | CF114: 9211.399154 | CG114: 9315.034666 | CH114: 3995.724081 | CI114: 3975.742281 | CJ114: 3955.561652 | CK114: 3935.180216 | CL114: 3914.595975 | CM114: 3893.80691 | CN114: 3872.810984 | CO114: 3851.606137 | CP114: 3830.190293 | CQ114: 3808.56135 | CR114: 3786.717188 | CS114: 3764.655666 | CT114: 3742.374621 | CU114: 3719.871869 | CV114: 3697.145203 | CW114: 3674.192395 | CX114: 3651.011196 | CY114: 3627.599333 | CZ114: 3603.95451 | DA114: 3580.074409 | DB114: 0 | DC114: 0 | DD114: 0 | DE114: 0 | DF114: 0 | DG114: 0
B115: Capital Expenditures | L115: =L44 -> 29.19911387 | M115: 115.1121183 | N115: 248.9890081 | O115: 409.9322641 | P115: 564.3610542 | Q115: 672.8333455 | R115: 703.6306497 | S115: 647.1733174 | T115: 522.1058033 | U115: 367.3160453 | V115: 223.6236894 | W115: 116.7632627 | X115: 51.77893269 | Y115: 19.2996353 | Z115: 5.981344084 | AA115: 1.524293791 | AB115: 10094.36924 | AC115: 10624.29896 | AD115: 10589.44904 | AE115: 10444.50642 | AF115: 10355.48748 | AG115: 10328.53087 | AH115: 10227.60877 | AI115: 9828.371358 | AJ115: 8954.180697 | AK115: 7638.077433 | AL115: 6157.959123 | AM115: 4859.090358 | AN115: 3916.405377 | AO115: 3281.827308 | AP115: 2822.974037 | AQ115: 2448.5811 | AR115: =AR44 -> 2123.493802 | AS115: 5967.122015 | AT115: 0 | AU115: 0 | AV115: 0 | AW115: 0 | AX115: 0 | AY115: 0 | AZ115: 0 | BA115: 0 | BB115: 0 | BC115: 0 | BD115: 0 | BE115: 0 | BF115: 0 | BG115: 0 | BH115: 0 | BI115: 0 | BJ115: 0 | BK115: 0 | BL115: 0 | BM115: 0 | BN115: 0 | BO115: 0 | BP115: 0 | BQ115: 0 | BR115: 0 | BS115: 0 | BT115: 0 | BU115: 0 | BV115: 0 | BW115: 0 | BX115: =BX44 -> 0 | BY115: 0 | BZ115: 0 | CA115: 0 | CB115: 0 | CC115: 0 | CD115: 0 | CE115: 0 | CF115: 0 | CG115: 0 | CH115: 0 | CI115: 0 | CJ115: 0 | CK115: 0 | CL115: 0 | CM115: 0 | CN115: 0 | CO115: 0 | CP115: 0 | CQ115: 0 | CR115: 0 | CS115: 0 | CT115: 0 | CU115: 0 | CV115: 0 | CW115: 0 | CX115: 0 | CY115: 0 | CZ115: 0 | DA115: 0 | DB115: 0 | DC115: 0 | DD115: 0 | DE115: 0 | DF115: 0 | DG115: 0
B116: Pre-tax cash flow | J116: =SUM(L116:DG116) -> 241528.0363 | L116: =L114-L115 -> -29.19911387 | M116: =M114-M115 -> -115.1121183 | N116: -248.9890081 | O116: -409.9322641 | P116: -564.3610542 | Q116: -672.8333455 | R116: -703.6306497 | S116: -647.1733174 | T116: -522.1058033 | U116: -367.3160453 | V116: -223.6236894 | W116: -116.7632627 | X116: -51.77893269 | Y116: -19.2996353 | Z116: -5.981344084 | AA116: -1.524293791 | AB116: -10094.36924 | AC116: -10624.29896 | AD116: -10589.44904 | AE116: -10444.50642 | AF116: -10355.48748 | AG116: -10328.53087 | AH116: -10227.60877 | AI116: -9828.371358 | AJ116: -8954.180697 | AK116: -7638.077433 | AL116: -6157.959123 | AM116: -4859.090358 | AN116: -3916.405377 | AO116: -3281.827308 | AP116: -2822.974037 | AQ116: -2448.5811 | AR116: -2123.493802 | AS116: -5967.122015 | AT116: 5953.882406 | AU116: 6020.8904 | AV116: 6088.525316 | AW116: 6161.086692 | AX116: 6234.370089 | AY116: 6308.382693 | AZ116: 6383.131758 | BA116: 6458.624613 | BB116: 6534.86866 | BC116: 6611.871372 | BD116: 6689.640299 | BE116: 6768.183066 | BF116: 6847.507372 | BG116: 6927.620994 | BH116: 7008.531786 | BI116: 7090.247681 | BJ116: 7172.776688 | BK116: 7256.126901 | BL116: 7340.306489 | BM116: 7425.323705 | BN116: 7511.186885 | BO116: 7597.904446 | BP116: 7685.48489 | BQ116: 7773.936802 | BR116: 7863.268854 | BS116: 7953.489804 | BT116: 8044.608498 | BU116: 8136.633867 | BV116: 8229.574934 | BW116: 8323.440811 | BX116: 8418.2407 | BY116: =BY114-BY115 -> 8513.983894 | BZ116: 8610.67978 | CA116: 8708.337838 | CB116: 8806.967642 | CC116: 8906.578862 | CD116: 9007.181262 | CE116: 9108.784706 | CF116: 9211.399154 | CG116: 9315.034666 | CH116: 3995.724081 | CI116: 3975.742281 | CJ116: 3955.561652 | CK116: 3935.180216 | CL116: 3914.595975 | CM116: 3893.80691 | CN116: 3872.810984 | CO116: 3851.606137 | CP116: 3830.190293 | CQ116: 3808.56135 | CR116: 3786.717188 | CS116: 3764.655666 | CT116: 3742.374621 | CU116: 3719.871869 | CV116: 3697.145203 | CW116: 3674.192395 | CX116: 3651.011196 | CY116: 3627.599333 | CZ116: 3603.95451 | DA116: 3580.074409 | DB116: 0 | DC116: 0 | DD116: 0 | DE116: 0 | DF116: 0 | DG116: 0
B117: Pre-tax IRR | J117: =XIRR(L116:DG116,L5:DG5) -> 0.08547826707
B119: PV of Capital Expenditure Outflow
B120: Add: Capital Expenditure | L120: =L115 -> 29.19911387 | M120: 115.1121183 | N120: 248.9890081 | O120: 409.9322641 | P120: 564.3610542 | Q120: 672.8333455 | R120: 703.6306497 | S120: 647.1733174 | T120: 522.1058033 | U120: 367.3160453 | V120: 223.6236894 | W120: 116.7632627 | X120: 51.77893269 | Y120: 19.2996353 | Z120: 5.981344084 | AA120: 1.524293791 | AB120: 10094.36924 | AC120: 10624.29896 | AD120: 10589.44904 | AE120: 10444.50642 | AF120: 10355.48748 | AG120: 10328.53087 | AH120: 10227.60877 | AI120: 9828.371358 | AJ120: 8954.180697 | AK120: 7638.077433 | AL120: 6157.959123 | AM120: 4859.090358 | AN120: 3916.405377 | AO120: 3281.827308 | AP120: 2822.974037 | AQ120: 2448.5811 | AR120: =AR115 -> 2123.493802 | AS120: 5967.122015 | AT120: 0 | AU120: 0 | AV120: 0 | AW120: 0 | AX120: 0 | AY120: 0 | AZ120: 0 | BA120: 0 | BB120: 0 | BC120: 0 | BD120: 0 | BE120: 0 | BF120: 0 | BG120: 0 | BH120: 0 | BI120: 0 | BJ120: 0 | BK120: 0 | BL120: 0 | BM120: 0 | BN120: 0 | BO120: 0 | BP120: 0 | BQ120: 0 | BR120: 0 | BS120: 0 | BT120: 0 | BU120: 0 | BV120: 0 | BW120: 0 | BX120: =BX115 -> 0 | BY120: 0 | BZ120: 0 | CA120: 0 | CB120: 0 | CC120: 0 | CD120: 0 | CE120: 0 | CF120: 0 | CG120: 0 | CH120: 0 | CI120: 0 | CJ120: 0 | CK120: 0 | CL120: 0 | CM120: 0 | CN120: 0 | CO120: 0 | CP120: 0 | CQ120: 0 | CR120: 0 | CS120: 0 | CT120: 0 | CU120: 0 | CV120: 0 | CW120: 0 | CX120: 0 | CY120: 0 | CZ120: 0 | DA120: 0 | DB120: 0 | DC120: 0 | DD120: 0 | DE120: 0 | DF120: 0 | DG120: 0
B121: Cost of Funding | H121: =XIRR(L116:DG116,L5:DG5) -> 0.08547826707 | I121: =(1+H121)^(1/12)-1 -> 0.006858469734 | J121: =XNPV(H121,L120:DG120,L5:DG5) -> 116651.1841
B123: Target IRR | H123: =Inputs!G129 -> 0.08
B124: NPV | H124: =XNPV(H123,L116:DG116,L5:DG5) -> 6416.213397
B125: PPA price | H125: =H48 -> 49.5647455
B127: Balance of Positive Cash Flow
B128: Opening Balance | L128: =K131 -> 0 | M128: =L131 -> 0 | N128: 0 | O128: 0 | P128: 0 | Q128: 0 | R128: 0 | S128: 0 | T128: 0 | U128: 0 | V128: 0 | W128: 0 | X128: 0 | Y128: 0 | Z128: 0 | AA128: 0 | AB128: 0 | AC128: 0 | AD128: 0 | AE128: 0 | AF128: 0 | AG128: 0 | AH128: 0 | AI128: 0 | AJ128: 0 | AK128: 0 | AL128: 0 | AM128: 0 | AN128: 0 | AO128: 0 | AP128: 0 | AQ128: 0 | AR128: 0 | AS128: 0 | AT128: 0 | AU128: 5953.882406 | AV128: 12224.01949 | AW128: 18824.2775 | AX128: 25773.40272 | AY128: 33086.72176 | AZ128: 40780.21001 | BA128: 48870.51893 | BB128: 57375.00436 | BC128: 66311.75612 | BD128: 75699.62879 | BE128: 85558.27379 | BF128: 95908.17287 | BG128: 106770.6729 | BH128: 118168.022 | BI128: 130123.4079 | BJ128: 142660.9966 | BK128: 155805.9739 | BL128: 169584.5881 | BM128: 184024.1943 | BN128: 199153.3014 | BO128: 215001.6196 | BP128: 231600.1117 | BQ128: 248981.045 | BR128: 267178.0462 | BS128: 286226.1583 | BT128: 306161.9003 | BU128: 327023.3287 | BV128: 348850.1019 | BW128: 371683.5478 | BX128: 395566.7335 | BY128: =BX131 -> 420544.5381 | BZ128: 446663.7289 | CA128: 473973.0401 | CB128: 502523.2559 | CC128: 532367.2958 | CD128: 563560.3045 | CE128: 596159.7449 | CF128: 630225.4953 | CG128: 665819.9506 | CH128: 703008.128 | CI128: 736433.7991 | CJ128: 771238.7834 | CK128: 807480.6241 | CL128: 845219.2712 | CM128: 884517.1827 | CN128: 925439.429 | CO128: 968053.8025 | CP128: 1012430.932 | CQ128: 1058644.4 | CR128: 1106770.868 | CS128: 1156890.204 | CT128: 1209085.619 | CU128: 1263443.804 | CV128: 1320055.076 | CW128: 1379013.532 | CX128: 1440417.207 | CY128: 1504368.235 | CZ128: 1570973.026 | DA128: 1640342.441 | DB128: 1712591.979 | DC128: 1712591.979 | DD128: 1712591.979 | DE128: 1712591.979 | DF128: 1712591.979 | DG128: 1712591.979
B129: Add: Re-Investment | L129: =L133 -> 0 | M129: =M133 -> 0 | N129: 0 | O129: 0 | P129: 0 | Q129: 0 | R129: 0 | S129: 0 | T129: 0 | U129: 0 | V129: 0 | W129: 0 | X129: 0 | Y129: 0 | Z129: 0 | AA129: 0 | AB129: 0 | AC129: 0 | AD129: 0 | AE129: 0 | AF129: 0 | AG129: 0 | AH129: 0 | AI129: 0 | AJ129: 0 | AK129: 0 | AL129: 0 | AM129: 0 | AN129: 0 | AO129: 0 | AP129: 0 | AQ129: 0 | AR129: 0 | AS129: 0 | AT129: 0 | AU129: 249.2466828 | AV129: 511.7326982 | AW129: 788.0385276 | AX129: 1078.948944 | AY129: 1385.105563 | AZ129: 1707.177162 | BA129: 2045.860819 | BB129: 2401.883098 | BC129: 2776.001291 | BD129: 3169.004707 | BE129: 3581.71601 | BF129: 4014.992624 | BG129: 4469.728191 | BH129: 4946.854087 | BI129: 5447.341008 | BJ129: 5972.200617 | BK129: 6522.487264 | BL129: 7099.299778 | BM129: 7703.783326 | BN129: 8337.131364 | BO129: 9000.587658 | BP129: 9695.448391 | BQ129: 10423.06437 | BR129: 11184.8433 | BS129: 11982.25219 | BT129: 12816.81983 | BU129: 13690.13936 | BV129: 14603.87102 | BW129: 15559.74489 | BX129: 16559.5639 | BY129: =BY133 -> 17605.20682 | BZ129: 18698.63144 | CA129: 19841.87794 | CB129: 21037.07229 | CC129: 22286.42984 | CD129: 23592.25912 | CE129: 24956.96568 | CF129: 26383.0562 | CG129: 27873.14272 | CH129: 29429.94704 | CI129: 30829.24201 | CJ129: 32286.27899 | CK129: 33803.46693 | CL129: 35383.3155 | CM129: 37028.43937 | CN129: 38741.56258 | CO129: 40525.52312 | CP129: 42383.27769 | CQ129: 44317.9067 | CR129: 46332.6194 | CS129: 48430.75933 | CT129: 50615.80988 | CU129: 52891.4002 | CV129: 55261.31126 | CW129: 57729.48223 | CX129: 60300.01708 | CY129: 62977.1915 | CZ129: 65765.46007 | DA129: 68669.46376 | DB129: 0 | DC129: 0 | DD129: 0 | DE129: 0 | DF129: 0 | DG129: 0
B130: Add: EBITDA | L130: =L114 -> 0 | M130: 0 | N130: 0 | O130: 0 | P130: 0 | Q130: 0 | R130: 0 | S130: 0 | T130: 0 | U130: 0 | V130: 0 | W130: 0 | X130: 0 | Y130: 0 | Z130: 0 | AA130: 0 | AB130: 0 | AC130: 0 | AD130: 0 | AE130: 0 | AF130: 0 | AG130: 0 | AH130: 0 | AI130: 0 | AJ130: 0 | AK130: 0 | AL130: 0 | AM130: 0 | AN130: 0 | AO130: 0 | AP130: 0 | AQ130: 0 | AR130: =AR114 -> 0 | AS130: 0 | AT130: 5953.882406 | AU130: 6020.8904 | AV130: 6088.525316 | AW130: 6161.086692 | AX130: 6234.370089 | AY130: 6308.382693 | AZ130: 6383.131758 | BA130: 6458.624613 | BB130: 6534.86866 | BC130: 6611.871372 | BD130: 6689.640299 | BE130: 6768.183066 | BF130: 6847.507372 | BG130: 6927.620994 | BH130: 7008.531786 | BI130: 7090.247681 | BJ130: 7172.776688 | BK130: 7256.126901 | BL130: 7340.306489 | BM130: 7425.323705 | BN130: 7511.186885 | BO130: 7597.904446 | BP130: 7685.48489 | BQ130: 7773.936802 | BR130: 7863.268854 | BS130: 7953.489804 | BT130: 8044.608498 | BU130: 8136.633867 | BV130: 8229.574934 | BW130: 8323.440811 | BX130: =BX114 -> 8418.2407 | BY130: 8513.983894 | BZ130: 8610.67978 | CA130: 8708.337838 | CB130: 8806.967642 | CC130: 8906.578862 | CD130: 9007.181262 | CE130: 9108.784706 | CF130: 9211.399154 | CG130: 9315.034666 | CH130: 3995.724081 | CI130: 3975.742281 | CJ130: 3955.561652 | CK130: 3935.180216 | CL130: 3914.595975 | CM130: 3893.80691 | CN130: 3872.810984 | CO130: 3851.606137 | CP130: 3830.190293 | CQ130: 3808.56135 | CR130: 3786.717188 | CS130: 3764.655666 | CT130: 3742.374621 | CU130: 3719.871869 | CV130: 3697.145203 | CW130: 3674.192395 | CX130: 3651.011196 | CY130: 3627.599333 | CZ130: 3603.95451 | DA130: 3580.074409 | DB130: 0 | DC130: 0 | DD130: 0 | DE130: 0 | DF130: 0 | DG130: 0
B131: Closing Balance | L131: =L128+L129+L130 -> 0 | M131: =M128+M129+M130 -> 0 | N131: 0 | O131: 0 | P131: 0 | Q131: 0 | R131: 0 | S131: 0 | T131: 0 | U131: 0 | V131: 0 | W131: 0 | X131: 0 | Y131: 0 | Z131: 0 | AA131: 0 | AB131: 0 | AC131: 0 | AD131: 0 | AE131: 0 | AF131: 0 | AG131: 0 | AH131: 0 | AI131: 0 | AJ131: 0 | AK131: 0 | AL131: 0 | AM131: 0 | AN131: 0 | AO131: 0 | AP131: 0 | AQ131: 0 | AR131: 0 | AS131: 0 | AT131: 5953.882406 | AU131: 12224.01949 | AV131: 18824.2775 | AW131: 25773.40272 | AX131: 33086.72176 | AY131: 40780.21001 | AZ131: 48870.51893 | BA131: 57375.00436 | BB131: 66311.75612 | BC131: 75699.62879 | BD131: 85558.27379 | BE131: 95908.17287 | BF131: 106770.6729 | BG131: 118168.022 | BH131: 130123.4079 | BI131: 142660.9966 | BJ131: 155805.9739 | BK131: 169584.5881 | BL131: 184024.1943 | BM131: 199153.3014 | BN131: 215001.6196 | BO131: 231600.1117 | BP131: 248981.045 | BQ131: 267178.0462 | BR131: 286226.1583 | BS131: 306161.9003 | BT131: 327023.3287 | BU131: 348850.1019 | BV131: 371683.5478 | BW131: 395566.7335 | BX131: 420544.5381 | BY131: =BY128+BY129+BY130 -> 446663.7289 | BZ131: 473973.0401 | CA131: 502523.2559 | CB131: 532367.2958 | CC131: 563560.3045 | CD131: 596159.7449 | CE131: 630225.4953 | CF131: 665819.9506 | CG131: 703008.128 | CH131: 736433.7991 | CI131: 771238.7834 | CJ131: 807480.6241 | CK131: 845219.2712 | CL131: 884517.1827 | CM131: 925439.429 | CN131: 968053.8025 | CO131: 1012430.932 | CP131: 1058644.4 | CQ131: 1106770.868 | CR131: 1156890.204 | CS131: 1209085.619 | CT131: 1263443.804 | CU131: 1320055.076 | CV131: 1379013.532 | CW131: 1440417.207 | CX131: 1504368.235 | CY131: 1570973.026 | CZ131: 1640342.441 | DA131: 1712591.979 | DB131: 1712591.979 | DC131: 1712591.979 | DD131: 1712591.979 | DE131: 1712591.979 | DF131: 1712591.979 | DG131: 1712591.979
B133: Re-investment | I133: =H121 -> 0.08547826707 | J133: =(1+I133)^(0.5)-1 -> 0.04186288305 | L133: =L128*$J$133*L6 -> 0 | M133: 0 | N133: 0 | O133: 0 | P133: 0 | Q133: 0 | R133: 0 | S133: 0 | T133: 0 | U133: 0 | V133: 0 | W133: 0 | X133: 0 | Y133: 0 | Z133: 0 | AA133: 0 | AB133: 0 | AC133: 0 | AD133: 0 | AE133: 0 | AF133: 0 | AG133: 0 | AH133: 0 | AI133: 0 | AJ133: 0 | AK133: 0 | AL133: 0 | AM133: 0 | AN133: 0 | AO133: 0 | AP133: 0 | AQ133: 0 | AR133: =AR128*$J$133*AR6 -> 0 | AS133: 0 | AT133: 0 | AU133: 249.2466828 | AV133: 511.7326982 | AW133: 788.0385276 | AX133: 1078.948944 | AY133: 1385.105563 | AZ133: 1707.177162 | BA133: 2045.860819 | BB133: 2401.883098 | BC133: 2776.001291 | BD133: 3169.004707 | BE133: 3581.71601 | BF133: 4014.992624 | BG133: 4469.728191 | BH133: 4946.854087 | BI133: 5447.341008 | BJ133: 5972.200617 | BK133: 6522.487264 | BL133: 7099.299778 | BM133: 7703.783326 | BN133: 8337.131364 | BO133: 9000.587658 | BP133: 9695.448391 | BQ133: 10423.06437 | BR133: 11184.8433 | BS133: 11982.25219 | BT133: 12816.81983 | BU133: 13690.13936 | BV133: 14603.87102 | BW133: 15559.74489 | BX133: =BX128*$J$133*BX6 -> 16559.5639 | BY133: 17605.20682 | BZ133: 18698.63144 | CA133: 19841.87794 | CB133: 21037.07229 | CC133: 22286.42984 | CD133: 23592.25912 | CE133: 24956.96568 | CF133: 26383.0562 | CG133: 27873.14272 | CH133: 29429.94704 | CI133: 30829.24201 | CJ133: 32286.27899 | CK133: 33803.46693 | CL133: 35383.3155 | CM133: 37028.43937 | CN133: 38741.56258 | CO133: 40525.52312 | CP133: 42383.27769 | CQ133: 44317.9067 | CR133: 46332.6194 | CS133: 48430.75933 | CT133: 50615.80988 | CU133: 52891.4002 | CV133: 55261.31126 | CW133: 57729.48223 | CX133: 60300.01708 | CY133: 62977.1915 | CZ133: 65765.46007 | DA133: 68669.46376 | DB133: 0 | DC133: 0 | DD133: 0 | DE133: 0 | DF133: 0 | DG133: 0
B134: Decomissioning | H134: =EDATE(Inputs!G10,-6) -> 2051-05-01 | L134: =L4=$H$134 -> FALSE | M134: FALSE | N134: FALSE | O134: FALSE | P134: FALSE | Q134: FALSE | R134: FALSE | S134: FALSE | T134: FALSE | U134: FALSE | V134: FALSE | W134: FALSE | X134: FALSE | Y134: FALSE | Z134: FALSE | AA134: FALSE | AB134: FALSE | AC134: FALSE | AD134: FALSE | AE134: FALSE | AF134: FALSE | AG134: FALSE | AH134: FALSE | AI134: FALSE | AJ134: FALSE | AK134: FALSE | AL134: FALSE | AM134: FALSE | AN134: FALSE | AO134: FALSE | AP134: FALSE | AQ134: FALSE | AR134: =AR4=$H$134 -> FALSE | AS134: FALSE | AT134: FALSE | AU134: FALSE | AV134: FALSE | AW134: FALSE | AX134: FALSE | AY134: FALSE | AZ134: FALSE | BA134: FALSE | BB134: FALSE | BC134: FALSE | BD134: FALSE | BE134: FALSE | BF134: FALSE | BG134: FALSE | BH134: FALSE | BI134: FALSE | BJ134: FALSE | BK134: FALSE | BL134: FALSE | BM134: FALSE | BN134: FALSE | BO134: FALSE | BP134: FALSE | BQ134: FALSE | BR134: FALSE | BS134: FALSE | BT134: FALSE | BU134: FALSE | BV134: FALSE | BW134: FALSE | BX134: =BX4=$H$134 -> FALSE | BY134: FALSE | BZ134: FALSE | CA134: FALSE | CB134: FALSE | CC134: FALSE | CD134: FALSE | CE134: FALSE | CF134: FALSE | CG134: FALSE | CH134: FALSE | CI134: FALSE | CJ134: FALSE | CK134: FALSE | CL134: FALSE | CM134: FALSE | CN134: FALSE | CO134: FALSE | CP134: FALSE | CQ134: FALSE | CR134: FALSE | CS134: FALSE | CT134: FALSE | CU134: FALSE | CV134: FALSE | CW134: FALSE | CX134: FALSE | CY134: FALSE | CZ134: FALSE | DA134: TRUE | DB134: FALSE | DC134: FALSE | DD134: FALSE | DE134: FALSE | DF134: FALSE | DG134: FALSE
B136: Cash Flow | L136: =-J121 -> -116651.1841 | M136: =+M134*$DG$131 -> 0 | N136: =+N134*$DG$131 -> 0 | O136: 0 | P136: 0 | Q136: 0 | R136: 0 | S136: 0 | T136: 0 | U136: 0 | V136: 0 | W136: 0 | X136: 0 | Y136: 0 | Z136: 0 | AA136: 0 | AB136: 0 | AC136: 0 | AD136: 0 | AE136: 0 | AF136: 0 | AG136: 0 | AH136: 0 | AI136: 0 | AJ136: 0 | AK136: 0 | AL136: 0 | AM136: 0 | AN136: 0 | AO136: 0 | AP136: 0 | AQ136: 0 | AR136: 0 | AS136: 0 | AT136: 0 | AU136: 0 | AV136: 0 | AW136: 0 | AX136: 0 | AY136: 0 | AZ136: 0 | BA136: 0 | BB136: 0 | BC136: 0 | BD136: 0 | BE136: 0 | BF136: 0 | BG136: 0 | BH136: 0 | BI136: 0 | BJ136: 0 | BK136: 0 | BL136: 0 | BM136: 0 | BN136: 0 | BO136: 0 | BP136: 0 | BQ136: 0 | BR136: 0 | BS136: 0 | BT136: 0 | BU136: 0 | BV136: 0 | BW136: 0 | BX136: 0 | BY136: 0 | BZ136: =+BZ134*$DG$131 -> 0 | CA136: 0 | CB136: 0 | CC136: 0 | CD136: 0 | CE136: 0 | CF136: 0 | CG136: 0 | CH136: 0 | CI136: 0 | CJ136: 0 | CK136: 0 | CL136: 0 | CM136: 0 | CN136: 0 | CO136: 0 | CP136: 0 | CQ136: 0 | CR136: 0 | CS136: 0 | CT136: 0 | CU136: 0 | CV136: 0 | CW136: 0 | CX136: 0 | CY136: 0 | CZ136: 0 | DA136: 1712591.979 | DB136: 0 | DC136: 0 | DD136: 0 | DE136: 0 | DF136: 0 | DG136: 0
B137: IRR | H137: =XIRR(L136:DG136,L5:DG5) -> 0.08543747365
B139: IRR with Changing Value from Changing Risk
C140: IRR for Buyer | L140: =LOOKUP(L4,Inputs!125:125,Inputs!126:126) -> 0.15 | M140: =LOOKUP(M4,Inputs!125:125,Inputs!126:126) -> 0.15 | N140: =LOOKUP(N4,Inputs!125:125,Inputs!126:126) -> 0.15 | O140: =LOOKUP(O4,Inputs!125:125,Inputs!126:126) -> 0.15 | P140: =LOOKUP(P4,Inputs!125:125,Inputs!126:126) -> 0.15 | Q140: =LOOKUP(Q4,Inputs!125:125,Inputs!126:126) -> 0.15 | R140: =LOOKUP(R4,Inputs!125:125,Inputs!126:126) -> 0.15 | S140: =LOOKUP(S4,Inputs!125:125,Inputs!126:126) -> 0.15 | T140: =LOOKUP(T4,Inputs!125:125,Inputs!126:126) -> 0.15 | U140: =LOOKUP(U4,Inputs!125:125,Inputs!126:126) -> 0.15 | V140: =LOOKUP(V4,Inputs!125:125,Inputs!126:126) -> 0.15 | W140: =LOOKUP(W4,Inputs!125:125,Inputs!126:126) -> 0.15 | X140: =LOOKUP(X4,Inputs!125:125,Inputs!126:126) -> 0.15 | Y140: =LOOKUP(Y4,Inputs!125:125,Inputs!126:126) -> 0.15 | Z140: =LOOKUP(Z4,Inputs!125:125,Inputs!126:126) -> 0.15 | AA140: =LOOKUP(AA4,Inputs!125:125,Inputs!126:126) -> 0.15 | AB140: =LOOKUP(AB4,Inputs!125:125,Inputs!126:126) -> 0.1 | AC140: =LOOKUP(AC4,Inputs!125:125,Inputs!126:126) -> 0.1 | AD140: =LOOKUP(AD4,Inputs!125:125,Inputs!126:126) -> 0.1 | AE140: =LOOKUP(AE4,Inputs!125:125,Inputs!126:126) -> 0.1 | AF140: =LOOKUP(AF4,Inputs!125:125,Inputs!126:126) -> 0.1 | AG140: =LOOKUP(AG4,Inputs!125:125,Inputs!126:126) -> 0.1 | AH140: =LOOKUP(AH4,Inputs!125:125,Inputs!126:126) -> 0.1 | AI140: =LOOKUP(AI4,Inputs!125:125,Inputs!126:126) -> 0.1 | AJ140: =LOOKUP(AJ4,Inputs!125:125,Inputs!126:126) -> 0.1 | AK140: =LOOKUP(AK4,Inputs!125:125,Inputs!126:126) -> 0.1 | AL140: =LOOKUP(AL4,Inputs!125:125,Inputs!126:126) -> 0.1 | AM140: =LOOKUP(AM4,Inputs!125:125,Inputs!126:126) -> 0.1 | AN140: =LOOKUP(AN4,Inputs!125:125,Inputs!126:126) -> 0.1 | AO140: =LOOKUP(AO4,Inputs!125:125,Inputs!126:126) -> 0.1 | AP140: =LOOKUP(AP4,Inputs!125:125,Inputs!126:126) -> 0.1 | AQ140: =LOOKUP(AQ4,Inputs!125:125,Inputs!126:126) -> 0.1 | AR140: =LOOKUP(AR4,Inputs!125:125,Inputs!126:126) -> 0.1 | AS140: =LOOKUP(AS4,Inputs!125:125,Inputs!126:126) -> 0.1 | AT140: =LOOKUP(AT4,Inputs!125:125,Inputs!126:126) -> 0.08 | AU140: =LOOKUP(AU4,Inputs!125:125,Inputs!126:126) -> 0.08 | AV140: =LOOKUP(AV4,Inputs!125:125,Inputs!126:126) -> 0.08 | AW140: =LOOKUP(AW4,Inputs!125:125,Inputs!126:126) -> 0.08 | AX140: =LOOKUP(AX4,Inputs!125:125,Inputs!126:126) -> 0.06 | AY140: =LOOKUP(AY4,Inputs!125:125,Inputs!126:126) -> 0.06 | AZ140: =LOOKUP(AZ4,Inputs!125:125,Inputs!126:126) -> 0.06 | BA140: =LOOKUP(BA4,Inputs!125:125,Inputs!126:126) -> 0.06 | BB140: =LOOKUP(BB4,Inputs!125:125,Inputs!126:126) -> 0.05 | BC140: =LOOKUP(BC4,Inputs!125:125,Inputs!126:126) -> 0.05 | BD140: =LOOKUP(BD4,Inputs!125:125,Inputs!126:126) -> 0.05 | BE140: =LOOKUP(BE4,Inputs!125:125,Inputs!126:126) -> 0.05 | BF140: =LOOKUP(BF4,Inputs!125:125,Inputs!126:126) -> 0.05 | BG140: =LOOKUP(BG4,Inputs!125:125,Inputs!126:126) -> 0.05 | BH140: =LOOKUP(BH4,Inputs!125:125,Inputs!126:126) -> 0.05 | BI140: =LOOKUP(BI4,Inputs!125:125,Inputs!126:126) -> 0.05 | BJ140: =LOOKUP(BJ4,Inputs!125:125,Inputs!126:126) -> 0.05 | BK140: =LOOKUP(BK4,Inputs!125:125,Inputs!126:126) -> 0.05 | BL140: =LOOKUP(BL4,Inputs!125:125,Inputs!126:126) -> 0.05 | BM140: =LOOKUP(BM4,Inputs!125:125,Inputs!126:126) -> 0.05 | BN140: =LOOKUP(BN4,Inputs!125:125,Inputs!126:126) -> 0.05 | BO140: =LOOKUP(BO4,Inputs!125:125,Inputs!126:126) -> 0.05 | BP140: =LOOKUP(BP4,Inputs!125:125,Inputs!126:126) -> 0.05 | BQ140: =LOOKUP(BQ4,Inputs!125:125,Inputs!126:126) -> 0.05 | BR140: =LOOKUP(BR4,Inputs!125:125,Inputs!126:126) -> 0.05 | BS140: =LOOKUP(BS4,Inputs!125:125,Inputs!126:126) -> 0.05 | BT140: =LOOKUP(BT4,Inputs!125:125,Inputs!126:126) -> 0.05 | BU140: =LOOKUP(BU4,Inputs!125:125,Inputs!126:126) -> 0.05 | BV140: =LOOKUP(BV4,Inputs!125:125,Inputs!126:126) -> 0.05 | BW140: =LOOKUP(BW4,Inputs!125:125,Inputs!126:126) -> 0.05 | BX140: =LOOKUP(BX4,Inputs!125:125,Inputs!126:126) -> 0.05 | BY140: =LOOKUP(BY4,Inputs!125:125,Inputs!126:126) -> 0.05 | BZ140: =LOOKUP(BZ4,Inputs!125:125,Inputs!126:126) -> 0.05 | CA140: =LOOKUP(CA4,Inputs!125:125,Inputs!126:126) -> 0.05 | CB140: =LOOKUP(CB4,Inputs!125:125,Inputs!126:126) -> 0.05 | CC140: =LOOKUP(CC4,Inputs!125:125,Inputs!126:126) -> 0.05 | CD140: =LOOKUP(CD4,Inputs!125:125,Inputs!126:126) -> 0.05 | CE140: =LOOKUP(CE4,Inputs!125:125,Inputs!126:126) -> 0.05 | CF140: =LOOKUP(CF4,Inputs!125:125,Inputs!126:126) -> 0.05 | CG140: =LOOKUP(CG4,Inputs!125:125,Inputs!126:126) -> 0.05 | CH140: =LOOKUP(CH4,Inputs!125:125,Inputs!126:126) -> 0.05 | CI140: =LOOKUP(CI4,Inputs!125:125,Inputs!126:126) -> 0.05 | CJ140: =LOOKUP(CJ4,Inputs!125:125,Inputs!126:126) -> 0.05 | CK140: =LOOKUP(CK4,Inputs!125:125,Inputs!126:126) -> 0.05 | CL140: =LOOKUP(CL4,Inputs!125:125,Inputs!126:126) -> 0.05 | CM140: =LOOKUP(CM4,Inputs!125:125,Inputs!126:126) -> 0.05 | CN140: =LOOKUP(CN4,Inputs!125:125,Inputs!126:126) -> 0.05 | CO140: =LOOKUP(CO4,Inputs!125:125,Inputs!126:126) -> 0.05 | CP140: =LOOKUP(CP4,Inputs!125:125,Inputs!126:126) -> 0.05 | CQ140: =LOOKUP(CQ4,Inputs!125:125,Inputs!126:126) -> 0.05 | CR140: =LOOKUP(CR4,Inputs!125:125,Inputs!126:126) -> 0.05 | CS140: =LOOKUP(CS4,Inputs!125:125,Inputs!126:126) -> 0.05 | CT140: =LOOKUP(CT4,Inputs!125:125,Inputs!126:126) -> 0.05 | CU140: =LOOKUP(CU4,Inputs!125:125,Inputs!126:126) -> 0.05 | CV140: =LOOKUP(CV4,Inputs!125:125,Inputs!126:126) -> 0.05 | CW140: =LOOKUP(CW4,Inputs!125:125,Inputs!126:126) -> 0.05 | CX140: =LOOKUP(CX4,Inputs!125:125,Inputs!126:126) -> 0.05 | CY140: =LOOKUP(CY4,Inputs!125:125,Inputs!126:126) -> 0.05 | CZ140: =LOOKUP(CZ4,Inputs!125:125,Inputs!126:126) -> 0.05 | DA140: =LOOKUP(DA4,Inputs!125:125,Inputs!126:126) -> 0.05 | DB140: =LOOKUP(DB4,Inputs!125:125,Inputs!126:126) -> 0.05 | DC140: =LOOKUP(DC4,Inputs!125:125,Inputs!126:126) -> 0.05 | DD140: =LOOKUP(DD4,Inputs!125:125,Inputs!126:126) -> 0.05 | DE140: =LOOKUP(DE4,Inputs!125:125,Inputs!126:126) -> 0.05 | DF140: =LOOKUP(DF4,Inputs!125:125,Inputs!126:126) -> 0.05 | DG140: =LOOKUP(DG4,Inputs!125:125,Inputs!126:126) -> 0.05
C141: Value of Future Cash Flows | L141: =XNPV('Project Finance Model'!L140,'Project Finance Model'!M116:$DG116,'Project Finance Model'!M5:$DG5) -> -43674.72288 | M141: =XNPV('Project Finance Model'!M140,'Project Finance Model'!N116:$DG116,'Project Finance Model'!N5:$DG5) -> -44079.7527 | N141: =XNPV('Project Finance Model'!N140,'Project Finance Model'!O116:$DG116,'Project Finance Model'!O5:$DG5) -> -44337.16309 | O141: =XNPV('Project Finance Model'!O140,'Project Finance Model'!P116:$DG116,'Project Finance Model'!P5:$DG5) -> -44451.76249 | P141: =XNPV('Project Finance Model'!P140,'Project Finance Model'!Q116:$DG116,'Project Finance Model'!Q5:$DG5) -> -44394.45519 | Q141: =XNPV('Project Finance Model'!Q140,'Project Finance Model'!R116:$DG116,'Project Finance Model'!R5:$DG5) -> -44243.69835 | R141: =XNPV('Project Finance Model'!R140,'Project Finance Model'!S116:$DG116,'Project Finance Model'!S5:$DG5) -> -44059.97628 | S141: =XNPV('Project Finance Model'!S140,'Project Finance Model'!T116:$DG116,'Project Finance Model'!T5:$DG5) -> -43914.37344 | T141: =XNPV('Project Finance Model'!T140,'Project Finance Model'!U116:$DG116,'Project Finance Model'!U5:$DG5) -> -43910.41135 | U141: =XNPV('Project Finance Model'!U140,'Project Finance Model'!V116:$DG116,'Project Finance Model'!V5:$DG5) -> -44046.17112 | V141: =XNPV('Project Finance Model'!V140,'Project Finance Model'!W116:$DG116,'Project Finance Model'!W5:$DG5) -> -44345.82908 | W141: =XNPV('Project Finance Model'!W140,'Project Finance Model'!X116:$DG116,'Project Finance Model'!X5:$DG5) -> -44757.20167 | X141: =XNPV('Project Finance Model'!X140,'Project Finance Model'!Y116:$DG116,'Project Finance Model'!Y5:$DG5) -> -45204.61493 | Y141: =XNPV('Project Finance Model'!Y140,'Project Finance Model'!Z116:$DG116,'Project Finance Model'!Z5:$DG5) -> -45724.86965 | Z141: =XNPV('Project Finance Model'!Z140,'Project Finance Model'!AA116:$DG116,'Project Finance Model'!AA5:$DG5) -> -46247.10217 | AA141: =XNPV('Project Finance Model'!AA140,'Project Finance Model'!AB116:$DG116,'Project Finance Model'!AB5:$DG5) -> -46797.79275 | AB141: =XNPV('Project Finance Model'!AB140,'Project Finance Model'!AC116:$DG116,'Project Finance Model'!AC5:$DG5) -> -1024.850932 | AC141: =XNPV('Project Finance Model'!AC140,'Project Finance Model'!AD116:$DG116,'Project Finance Model'!AD5:$DG5) -> 9677.469354 | AD141: =XNPV('Project Finance Model'!AD140,'Project Finance Model'!AE116:$DG116,'Project Finance Model'!AE5:$DG5) -> 20431.64161 | AE141: =XNPV('Project Finance Model'!AE140,'Project Finance Model'!AF116:$DG116,'Project Finance Model'!AF5:$DG5) -> 31118.97279 | AF141: =XNPV('Project Finance Model'!AF140,'Project Finance Model'!AG116:$DG116,'Project Finance Model'!AG5:$DG5) -> 41811.55177 | AG141: =XNPV('Project Finance Model'!AG140,'Project Finance Model'!AH116:$DG116,'Project Finance Model'!AH5:$DG5) -> 52550.13714 | AH141: =XNPV('Project Finance Model'!AH140,'Project Finance Model'!AI116:$DG116,'Project Finance Model'!AI5:$DG5) -> 63287.98391 | AI141: =XNPV('Project Finance Model'!AI140,'Project Finance Model'!AJ116:$DG116,'Project Finance Model'!AJ5:$DG5) -> 73710.62226 | AJ141: =XNPV('Project Finance Model'!AJ140,'Project Finance Model'!AK116:$DG116,'Project Finance Model'!AK5:$DG5) -> 83271.41876 | AK141: =XNPV('Project Finance Model'!AK140,'Project Finance Model'!AL116:$DG116,'Project Finance Model'!AL5:$DG5) -> 91648.3803 | AL141: =XNPV('Project Finance Model'!AL140,'Project Finance Model'!AM116:$DG116,'Project Finance Model'!AM5:$DG5) -> 98575.53516 | AM141: =XNPV('Project Finance Model'!AM140,'Project Finance Model'!AN116:$DG116,'Project Finance Model'!AN5:$DG5) -> 104275.31 | AN141: =XNPV('Project Finance Model'!AN140,'Project Finance Model'!AO116:$DG116,'Project Finance Model'!AO5:$DG5) -> 109042.5866 | AO141: =XNPV('Project Finance Model'!AO140,'Project Finance Model'!AP116:$DG116,'Project Finance Model'!AP5:$DG5) -> 113237.3518 | AP141: =XNPV('Project Finance Model'!AP140,'Project Finance Model'!AQ116:$DG116,'Project Finance Model'!AQ5:$DG5) -> 117003.6281 | AQ141: =XNPV('Project Finance Model'!AQ140,'Project Finance Model'!AR116:$DG116,'Project Finance Model'!AR5:$DG5) -> 120391.6384 | AR141: =XNPV('Project Finance Model'!AR140,'Project Finance Model'!AS116:$DG116,'Project Finance Model'!AS5:$DG5) -> 123510.8971 | AS141: =XNPV('Project Finance Model'!AS140,'Project Finance Model'!AT116:$DG116,'Project Finance Model'!AT5:$DG5) -> 135744.5125 | AT141: =XNPV('Project Finance Model'!AT140,'Project Finance Model'!AU116:$DG116,'Project Finance Model'!AU5:$DG5) -> 159489.1927 | AU141: =XNPV('Project Finance Model'!AU140,'Project Finance Model'!AV116:$DG116,'Project Finance Model'!AV5:$DG5) -> 159438.5033 | AV141: =XNPV('Project Finance Model'!AV140,'Project Finance Model'!AW116:$DG116,'Project Finance Model'!AW5:$DG5) -> 159416.3839 | AW141: =XNPV('Project Finance Model'!AW140,'Project Finance Model'!AX116:$DG116,'Project Finance Model'!AX5:$DG5) -> 159250.7867 | AX141: =XNPV('Project Finance Model'!AX140,'Project Finance Model'!AY116:$DG116,'Project Finance Model'!AY5:$DG5) -> 187519.9159 | AY141: =XNPV('Project Finance Model'!AY140,'Project Finance Model'!AZ116:$DG116,'Project Finance Model'!AZ5:$DG5) -> 186524.0217 | AZ141: =XNPV('Project Finance Model'!AZ140,'Project Finance Model'!BA116:$DG116,'Project Finance Model'!BA5:$DG5) -> 185510.8149 | BA141: =XNPV('Project Finance Model'!BA140,'Project Finance Model'!BB116:$DG116,'Project Finance Model'!BB5:$DG5) -> 184301.3744 | BB141: =XNPV('Project Finance Model'!BB140,'Project Finance Model'!BC116:$DG116,'Project Finance Model'!BC5:$DG5) -> 198704.5655 | BC141: =XNPV('Project Finance Model'!BC140,'Project Finance Model'!BD116:$DG116,'Project Finance Model'!BD5:$DG5) -> 196796.9747 | BD141: =XNPV('Project Finance Model'!BD140,'Project Finance Model'!BE116:$DG116,'Project Finance Model'!BE5:$DG5) -> 194841.1128 | BE141: =XNPV('Project Finance Model'!BE140,'Project Finance Model'!BF116:$DG116,'Project Finance Model'!BF5:$DG5) -> 192704.5251 | BF141: =XNPV('Project Finance Model'!BF140,'Project Finance Model'!BG116:$DG116,'Project Finance Model'!BG5:$DG5) -> 190484.9609 | BG141: =XNPV('Project Finance Model'!BG140,'Project Finance Model'!BH116:$DG116,'Project Finance Model'!BH5:$DG5) -> 188052.5927 | BH141: =XNPV('Project Finance Model'!BH140,'Project Finance Model'!BI116:$DG116,'Project Finance Model'!BI5:$DG5) -> 185552.1588 | BI141: =XNPV('Project Finance Model'!BI140,'Project Finance Model'!BJ116:$DG116,'Project Finance Model'!BJ5:$DG5) -> 182832.3787 | BJ141: =XNPV('Project Finance Model'!BJ140,'Project Finance Model'!BK116:$DG116,'Project Finance Model'!BK5:$DG5) -> 180033.6238 | BK141: =XNPV('Project Finance Model'!BK140,'Project Finance Model'!BL116:$DG116,'Project Finance Model'!BL5:$DG5) -> 177008.7553 | BL141: =XNPV('Project Finance Model'!BL140,'Project Finance Model'!BM116:$DG116,'Project Finance Model'!BM5:$DG5) -> 173893.2876 | BM141: =XNPV('Project Finance Model'!BM140,'Project Finance Model'!BN116:$DG116,'Project Finance Model'!BN5:$DG5) -> 170567.5026 | BN141: =XNPV('Project Finance Model'!BN140,'Project Finance Model'!BO116:$DG116,'Project Finance Model'!BO5:$DG5) -> 167116.5086 | BO141: =XNPV('Project Finance Model'!BO140,'Project Finance Model'!BP116:$DG116,'Project Finance Model'!BP5:$DG5) -> 163425.1571 | BP141: =XNPV('Project Finance Model'!BP140,'Project Finance Model'!BQ116:$DG116,'Project Finance Model'!BQ5:$DG5) -> 159617.6767 | BQ141: =XNPV('Project Finance Model'!BQ140,'Project Finance Model'!BR116:$DG116,'Project Finance Model'!BR5:$DG5) -> 155562.3381 | BR141: =XNPV('Project Finance Model'!BR140,'Project Finance Model'!BS116:$DG116,'Project Finance Model'!BS5:$DG5) -> 151376.8582 | BS141: =XNPV('Project Finance Model'!BS140,'Project Finance Model'!BT116:$DG116,'Project Finance Model'!BT5:$DG5) -> 146935.7548 | BT141: =XNPV('Project Finance Model'!BT140,'Project Finance Model'!BU116:$DG116,'Project Finance Model'!BU5:$DG5) -> 142349.6131 | BU141: =XNPV('Project Finance Model'!BU140,'Project Finance Model'!BV116:$DG116,'Project Finance Model'!BV5:$DG5) -> 137518.1876 | BV141: =XNPV('Project Finance Model'!BV140,'Project Finance Model'!BW116:$DG116,'Project Finance Model'!BW5:$DG5) -> 132507.971 | BW141: =XNPV('Project Finance Model'!BW140,'Project Finance Model'!BX116:$DG116,'Project Finance Model'!BX5:$DG5) -> 127225.7644 | BX141: =XNPV('Project Finance Model'!BX140,'Project Finance Model'!BY116:$DG116,'Project Finance Model'!BY5:$DG5) -> 121765.8972 | BY141: =XNPV('Project Finance Model'!BY140,'Project Finance Model'!BZ116:$DG116,'Project Finance Model'!BZ5:$DG5) -> 116025.4117 | BZ141: =XNPV('Project Finance Model'!BZ140,'Project Finance Model'!CA116:$DG116,'Project Finance Model'!CA5:$DG5) -> 110089.4184 | CA141: =XNPV('Project Finance Model'!CA140,'Project Finance Model'!CB116:$DG116,'Project Finance Model'!CB5:$DG5) -> 103863.8666 | CB141: =XNPV('Project Finance Model'!CB140,'Project Finance Model'!CC116:$DG116,'Project Finance Model'!CC5:$DG5) -> 97423.8686 | CC141: =XNPV('Project Finance Model'!CC140,'Project Finance Model'!CD116:$DG116,'Project Finance Model'!CD5:$DG5) -> 90697.16897 | CD141: =XNPV('Project Finance Model'!CD140,'Project Finance Model'!CE116:$DG116,'Project Finance Model'!CE5:$DG5) -> 83724.11384 | CE141: =XNPV('Project Finance Model'!CE140,'Project Finance Model'!CF116:$DG116,'Project Finance Model'!CF5:$DG5) -> 76442.63154 | CF141: =XNPV('Project Finance Model'!CF140,'Project Finance Model'!CG116:$DG116,'Project Finance Model'!CG5:$DG5) -> 68905.32748 | CG141: =XNPV('Project Finance Model'!CG140,'Project Finance Model'!CH116:$DG116,'Project Finance Model'!CH5:$DG5) -> 61049.63752 | CH141: =XNPV('Project Finance Model'!CH140,'Project Finance Model'!CI116:$DG116,'Project Finance Model'!CI5:$DG5) -> 58474.58762 | CI141: =XNPV('Project Finance Model'!CI140,'Project Finance Model'!CJ116:$DG116,'Project Finance Model'!CJ5:$DG5) -> 55833.50234 | CJ141: =XNPV('Project Finance Model'!CJ140,'Project Finance Model'!CK116:$DG116,'Project Finance Model'!CK5:$DG5) -> 53169.73026 | CK141: =XNPV('Project Finance Model'!CK140,'Project Finance Model'!CL116:$DG116,'Project Finance Model'!CL5:$DG5) -> 50447.02925 | CL141: =XNPV('Project Finance Model'!CL140,'Project Finance Model'!CM116:$DG116,'Project Finance Model'!CM5:$DG5) -> 47691.11675 | CM141: =XNPV('Project Finance Model'!CM140,'Project Finance Model'!CN116:$DG116,'Project Finance Model'!CN5:$DG5) -> 44869.89011 | CN141: =XNPV('Project Finance Model'!CN140,'Project Finance Model'!CO116:$DG116,'Project Finance Model'!CO5:$DG5) -> 42017.9292 | CO141: =XNPV('Project Finance Model'!CO140,'Project Finance Model'!CP116:$DG116,'Project Finance Model'!CP5:$DG5) -> 39101.0025 | CP141: =XNPV('Project Finance Model'!CP140,'Project Finance Model'!CQ116:$DG116,'Project Finance Model'!CQ5:$DG5) -> 36149.07505 | CQ141: =XNPV('Project Finance Model'!CQ140,'Project Finance Model'!CR116:$DG116,'Project Finance Model'!CR5:$DG5) -> 33132.52118 | CR141: =XNPV('Project Finance Model'!CR140,'Project Finance Model'!CS116:$DG116,'Project Finance Model'!CS5:$DG5) -> 30076.53084 | CS141: =XNPV('Project Finance Model'!CS140,'Project Finance Model'!CT116:$DG116,'Project Finance Model'!CT5:$DG5) -> 26959.847 | CT141: =XNPV('Project Finance Model'!CT140,'Project Finance Model'!CU116:$DG116,'Project Finance Model'!CU5:$DG5) -> 23795.60036 | CU141: =XNPV('Project Finance Model'!CU140,'Project Finance Model'!CV116:$DG116,'Project Finance Model'!CV5:$DG5) -> 20567.37581 | CV141: =XNPV('Project Finance Model'!CV140,'Project Finance Model'!CW116:$DG116,'Project Finance Model'!CW5:$DG5) -> 17290.30874 | CW141: =XNPV('Project Finance Model'!CW140,'Project Finance Model'!CX116:$DG116,'Project Finance Model'!CX5:$DG5) -> 13949.5701 | CX141: =XNPV('Project Finance Model'!CX140,'Project Finance Model'!CY116:$DG116,'Project Finance Model'!CY5:$DG5) -> 10554.99875 | CY141: =XNPV('Project Finance Model'!CY140,'Project Finance Model'!CZ116:$DG116,'Project Finance Model'!CZ5:$DG5) -> 7097.048924 | CZ141: =XNPV('Project Finance Model'!CZ140,'Project Finance Model'!DA116:$DG116,'Project Finance Model'!DA5:$DG5) -> 3580.074409 | DA141: =XNPV('Project Finance Model'!DA140,'Project Finance Model'!DB116:$DG116,'Project Finance Model'!DB5:$DG5) -> 0 | DB141: =XNPV('Project Finance Model'!DB140,'Project Finance Model'!DC116:$DG116,'Project Finance Model'!DC5:$DG5) -> 0 | DC141: =XNPV('Project Finance Model'!DC140,'Project Finance Model'!DD116:$DG116,'Project Finance Model'!DD5:$DG5) -> 0 | DD141: =XNPV('Project Finance Model'!DD140,'Project Finance Model'!DE116:$DG116,'Project Finance Model'!DE5:$DG5) -> 0 | DE141: =XNPV('Project Finance Model'!DE140,'Project Finance Model'!DF116:$DG116,'Project Finance Model'!DF5:$DG5) -> 0 | DF141: =XNPV('Project Finance Model'!DF140,'Project Finance Model'!DG116:$DG116,'Project Finance Model'!DG5:$DG5) -> 0 | DG141: =XNPV('Project Finance Model'!DG140,'Project Finance Model'!$DG116:DH116,'Project Finance Model'!$DG5:DH5) -> 
C143: Holding Period | H143: =Inputs!F128 -> 2024-11-01 | L143: =L4<=$H$143 -> TRUE | M143: =M4<=$H$143 -> TRUE | N143: TRUE | O143: TRUE | P143: TRUE | Q143: TRUE | R143: TRUE | S143: TRUE | T143: TRUE | U143: TRUE | V143: TRUE | W143: TRUE | X143: TRUE | Y143: TRUE | Z143: TRUE | AA143: TRUE | AB143: TRUE | AC143: TRUE | AD143: TRUE | AE143: TRUE | AF143: TRUE | AG143: TRUE | AH143: TRUE | AI143: TRUE | AJ143: TRUE | AK143: TRUE | AL143: TRUE | AM143: TRUE | AN143: TRUE | AO143: TRUE | AP143: TRUE | AQ143: TRUE | AR143: TRUE | AS143: TRUE | AT143: TRUE | AU143: TRUE | AV143: TRUE | AW143: TRUE | AX143: TRUE | AY143: TRUE | AZ143: TRUE | BA143: FALSE | BB143: FALSE | BC143: FALSE | BD143: FALSE | BE143: FALSE | BF143: FALSE | BG143: FALSE | BH143: FALSE | BI143: FALSE | BJ143: FALSE | BK143: FALSE | BL143: FALSE | BM143: FALSE | BN143: FALSE | BO143: FALSE | BP143: FALSE | BQ143: FALSE | BR143: FALSE | BS143: FALSE | BT143: FALSE | BU143: FALSE | BV143: FALSE | BW143: FALSE | BX143: FALSE | BY143: =BY4<=$H$143 -> FALSE | BZ143: FALSE | CA143: FALSE | CB143: FALSE | CC143: FALSE | CD143: FALSE | CE143: FALSE | CF143: FALSE | CG143: FALSE | CH143: FALSE | CI143: FALSE | CJ143: FALSE | CK143: FALSE | CL143: FALSE | CM143: FALSE | CN143: FALSE | CO143: FALSE | CP143: FALSE | CQ143: FALSE | CR143: FALSE | CS143: FALSE | CT143: FALSE | CU143: FALSE | CV143: FALSE | CW143: FALSE | CX143: FALSE | CY143: FALSE | CZ143: FALSE | DA143: FALSE | DB143: FALSE | DC143: FALSE | DD143: FALSE | DE143: FALSE | DF143: FALSE | DG143: FALSE
C144: Exit Period | H144: =Inputs!F128 -> 2024-11-01 | L144: =L4=$H$144 -> FALSE | M144: =M4=$H$144 -> FALSE | N144: FALSE | O144: FALSE | P144: FALSE | Q144: FALSE | R144: FALSE | S144: FALSE | T144: FALSE | U144: FALSE | V144: FALSE | W144: FALSE | X144: FALSE | Y144: FALSE | Z144: FALSE | AA144: FALSE | AB144: FALSE | AC144: FALSE | AD144: FALSE | AE144: FALSE | AF144: FALSE | AG144: FALSE | AH144: FALSE | AI144: FALSE | AJ144: FALSE | AK144: FALSE | AL144: FALSE | AM144: FALSE | AN144: FALSE | AO144: FALSE | AP144: FALSE | AQ144: FALSE | AR144: FALSE | AS144: FALSE | AT144: FALSE | AU144: FALSE | AV144: FALSE | AW144: FALSE | AX144: FALSE | AY144: FALSE | AZ144: TRUE | BA144: FALSE | BB144: FALSE | BC144: FALSE | BD144: FALSE | BE144: FALSE | BF144: FALSE | BG144: FALSE | BH144: FALSE | BI144: FALSE | BJ144: FALSE | BK144: FALSE | BL144: FALSE | BM144: FALSE | BN144: FALSE | BO144: FALSE | BP144: FALSE | BQ144: FALSE | BR144: FALSE | BS144: FALSE | BT144: FALSE | BU144: FALSE | BV144: FALSE | BW144: FALSE | BX144: FALSE | BY144: =BY4=$H$144 -> FALSE | BZ144: FALSE | CA144: FALSE | CB144: FALSE | CC144: FALSE | CD144: FALSE | CE144: FALSE | CF144: FALSE | CG144: FALSE | CH144: FALSE | CI144: FALSE | CJ144: FALSE | CK144: FALSE | CL144: FALSE | CM144: FALSE | CN144: FALSE | CO144: FALSE | CP144: FALSE | CQ144: FALSE | CR144: FALSE | CS144: FALSE | CT144: FALSE | CU144: FALSE | CV144: FALSE | CW144: FALSE | CX144: FALSE | CY144: FALSE | CZ144: FALSE | DA144: FALSE | DB144: FALSE | DC144: FALSE | DD144: FALSE | DE144: FALSE | DF144: FALSE | DG144: FALSE
C146: Holding Period Cash Flow | H146: =XIRR(L146:DF146,L5:DF5) -> 0.1355046451 | L146: =L143*L116+L144*L141 -> -29.19911387 | M146: =M143*M116+M144*M141 -> -115.1121183 | N146: -248.9890081 | O146: -409.9322641 | P146: -564.3610542 | Q146: -672.8333455 | R146: -703.6306497 | S146: -647.1733174 | T146: -522.1058033 | U146: -367.3160453 | V146: -223.6236894 | W146: -116.7632627 | X146: -51.77893269 | Y146: -19.2996353 | Z146: -5.981344084 | AA146: -1.524293791 | AB146: -10094.36924 | AC146: -10624.29896 | AD146: -10589.44904 | AE146: -10444.50642 | AF146: -10355.48748 | AG146: -10328.53087 | AH146: -10227.60877 | AI146: -9828.371358 | AJ146: -8954.180697 | AK146: -7638.077433 | AL146: -6157.959123 | AM146: -4859.090358 | AN146: -3916.405377 | AO146: -3281.827308 | AP146: -2822.974037 | AQ146: -2448.5811 | AR146: -2123.493802 | AS146: -5967.122015 | AT146: 5953.882406 | AU146: 6020.8904 | AV146: 6088.525316 | AW146: 6161.086692 | AX146: 6234.370089 | AY146: 6308.382693 | AZ146: 191893.9467 | BA146: 0 | BB146: 0 | BC146: 0 | BD146: 0 | BE146: 0 | BF146: 0 | BG146: 0 | BH146: 0 | BI146: 0 | BJ146: 0 | BK146: 0 | BL146: 0 | BM146: 0 | BN146: 0 | BO146: 0 | BP146: 0 | BQ146: 0 | BR146: 0 | BS146: 0 | BT146: 0 | BU146: 0 | BV146: 0 | BW146: 0 | BX146: 0 | BY146: =BY143*BY116+BY144*BY141 -> 0 | BZ146: 0 | CA146: 0 | CB146: 0 | CC146: 0 | CD146: 0 | CE146: 0 | CF146: 0 | CG146: 0 | CH146: 0 | CI146: 0 | CJ146: 0 | CK146: 0 | CL146: 0 | CM146: 0 | CN146: 0 | CO146: 0 | CP146: 0 | CQ146: 0 | CR146: 0 | CS146: 0 | CT146: 0 | CU146: 0 | CV146: 0 | CW146: 0 | CX146: 0 | CY146: 0 | CZ146: 0 | DA146: 0 | DB146: 0 | DC146: 0 | DD146: 0 | DE146: 0 | DF146: 0
A148: After Tax Free Cash Flow and Project IRR
B149: Plant Balance
C150: Opening Balance | F150: =units1 -> € 000's | L150: =K152 -> 0 | M150: =L152 -> 29.19911387 | N150: 144.3112322 | O150: 393.3002403 | P150: 803.2325043 | Q150: 1367.593558 | R150: 2040.426904 | S150: 2744.057554 | T150: 3391.230871 | U150: 3913.336674 | V150: 4280.65272 | W150: 4504.276409 | X150: 4621.039672 | Y150: 4672.818605 | Z150: 4692.11824 | AA150: 4698.099584 | AB150: 4699.623878 | AC150: 14793.99311 | AD150: 25418.29207 | AE150: 36007.74112 | AF150: 46452.24753 | AG150: 56807.73501 | AH150: 67136.26588 | AI150: 77363.87465 | AJ150: 87192.24601 | AK150: 96146.42671 | AL150: 103784.5041 | AM150: 109942.4633 | AN150: 114801.5536 | AO150: 118717.959 | AP150: 121999.7863 | AQ150: 124822.7603 | AR150: 127271.3414 | AS150: 129394.8352 | AT150: 135361.9573 | AU150: 135361.9573 | AV150: 135361.9573 | AW150: 135361.9573 | AX150: 135361.9573 | AY150: 135361.9573 | AZ150: 135361.9573 | BA150: 135361.9573 | BB150: 135361.9573 | BC150: 135361.9573 | BD150: 135361.9573 | BE150: 135361.9573 | BF150: 135361.9573 | BG150: 135361.9573 | BH150: 135361.9573 | BI150: 135361.9573 | BJ150: 135361.9573 | BK150: 135361.9573 | BL150: 135361.9573 | BM150: 135361.9573 | BN150: 135361.9573 | BO150: 135361.9573 | BP150: 135361.9573 | BQ150: 135361.9573 | BR150: 135361.9573 | BS150: 135361.9573 | BT150: 135361.9573 | BU150: 135361.9573 | BV150: 135361.9573 | BW150: 135361.9573 | BX150: 135361.9573 | BY150: =BX152 -> 135361.9573 | BZ150: 135361.9573 | CA150: 135361.9573 | CB150: 135361.9573 | CC150: 135361.9573 | CD150: 135361.9573 | CE150: 135361.9573 | CF150: 135361.9573 | CG150: 135361.9573 | CH150: 135361.9573 | CI150: 135361.9573 | CJ150: 135361.9573 | CK150: 135361.9573 | CL150: 135361.9573 | CM150: 135361.9573 | CN150: 135361.9573 | CO150: 135361.9573 | CP150: 135361.9573 | CQ150: 135361.9573 | CR150: 135361.9573 | CS150: 135361.9573 | CT150: 135361.9573 | CU150: 135361.9573 | CV150: 135361.9573 | CW150: 135361.9573 | CX150: 135361.9573 | CY150: 135361.9573 | CZ150: 135361.9573 | DA150: 135361.9573 | DB150: 135361.9573 | DC150: 135361.9573 | DD150: 135361.9573 | DE150: 135361.9573 | DF150: 135361.9573 | DG150: 135361.9573
C151: Add: capex | F151: =units1 -> € 000's | J151: =SUM(L151:DG151) -> 135361.9573 | L151: =L115 -> 29.19911387 | M151: =M115 -> 115.1121183 | N151: 248.9890081 | O151: 409.9322641 | P151: 564.3610542 | Q151: 672.8333455 | R151: 703.6306497 | S151: 647.1733174 | T151: 522.1058033 | U151: 367.3160453 | V151: 223.6236894 | W151: 116.7632627 | X151: 51.77893269 | Y151: 19.2996353 | Z151: 5.981344084 | AA151: 1.524293791 | AB151: 10094.36924 | AC151: 10624.29896 | AD151: 10589.44904 | AE151: 10444.50642 | AF151: 10355.48748 | AG151: 10328.53087 | AH151: 10227.60877 | AI151: 9828.371358 | AJ151: 8954.180697 | AK151: 7638.077433 | AL151: 6157.959123 | AM151: 4859.090358 | AN151: 3916.405377 | AO151: 3281.827308 | AP151: 2822.974037 | AQ151: 2448.5811 | AR151: 2123.493802 | AS151: 5967.122015 | AT151: 0 | AU151: 0 | AV151: 0 | AW151: 0 | AX151: 0 | AY151: 0 | AZ151: 0 | BA151: 0 | BB151: 0 | BC151: 0 | BD151: 0 | BE151: 0 | BF151: 0 | BG151: 0 | BH151: 0 | BI151: 0 | BJ151: 0 | BK151: 0 | BL151: 0 | BM151: 0 | BN151: 0 | BO151: 0 | BP151: 0 | BQ151: 0 | BR151: 0 | BS151: 0 | BT151: 0 | BU151: 0 | BV151: 0 | BW151: 0 | BX151: 0 | BY151: =BY115 -> 0 | BZ151: 0 | CA151: 0 | CB151: 0 | CC151: 0 | CD151: 0 | CE151: 0 | CF151: 0 | CG151: 0 | CH151: 0 | CI151: 0 | CJ151: 0 | CK151: 0 | CL151: 0 | CM151: 0 | CN151: 0 | CO151: 0 | CP151: 0 | CQ151: 0 | CR151: 0 | CS151: 0 | CT151: 0 | CU151: 0 | CV151: 0 | CW151: 0 | CX151: 0 | CY151: 0 | CZ151: 0 | DA151: 0 | DB151: 0 | DC151: 0 | DD151: 0 | DE151: 0 | DF151: 0 | DG151: 0
C152: Closing Balance | F152: =units1 -> € 000's | L152: =L151+L150 -> 29.19911387 | M152: =M151+M150 -> 144.3112322 | N152: 393.3002403 | O152: 803.2325043 | P152: 1367.593558 | Q152: 2040.426904 | R152: 2744.057554 | S152: 3391.230871 | T152: 3913.336674 | U152: 4280.65272 | V152: 4504.276409 | W152: 4621.039672 | X152: 4672.818605 | Y152: 4692.11824 | Z152: 4698.099584 | AA152: 4699.623878 | AB152: 14793.99311 | AC152: 25418.29207 | AD152: 36007.74112 | AE152: 46452.24753 | AF152: 56807.73501 | AG152: 67136.26588 | AH152: 77363.87465 | AI152: 87192.24601 | AJ152: 96146.42671 | AK152: 103784.5041 | AL152: 109942.4633 | AM152: 114801.5536 | AN152: 118717.959 | AO152: 121999.7863 | AP152: 124822.7603 | AQ152: 127271.3414 | AR152: 129394.8352 | AS152: 135361.9573 | AT152: 135361.9573 | AU152: 135361.9573 | AV152: 135361.9573 | AW152: 135361.9573 | AX152: 135361.9573 | AY152: 135361.9573 | AZ152: 135361.9573 | BA152: 135361.9573 | BB152: 135361.9573 | BC152: 135361.9573 | BD152: 135361.9573 | BE152: 135361.9573 | BF152: 135361.9573 | BG152: 135361.9573 | BH152: 135361.9573 | BI152: 135361.9573 | BJ152: 135361.9573 | BK152: 135361.9573 | BL152: 135361.9573 | BM152: 135361.9573 | BN152: 135361.9573 | BO152: 135361.9573 | BP152: 135361.9573 | BQ152: 135361.9573 | BR152: 135361.9573 | BS152: 135361.9573 | BT152: 135361.9573 | BU152: 135361.9573 | BV152: 135361.9573 | BW152: 135361.9573 | BX152: 135361.9573 | BY152: =BY151+BY150 -> 135361.9573 | BZ152: 135361.9573 | CA152: 135361.9573 | CB152: 135361.9573 | CC152: 135361.9573 | CD152: 135361.9573 | CE152: 135361.9573 | CF152: 135361.9573 | CG152: 135361.9573 | CH152: 135361.9573 | CI152: 135361.9573 | CJ152: 135361.9573 | CK152: 135361.9573 | CL152: 135361.9573 | CM152: 135361.9573 | CN152: 135361.9573 | CO152: 135361.9573 | CP152: 135361.9573 | CQ152: 135361.9573 | CR152: 135361.9573 | CS152: 135361.9573 | CT152: 135361.9573 | CU152: 135361.9573 | CV152: 135361.9573 | CW152: 135361.9573 | CX152: 135361.9573 | CY152: 135361.9573 | CZ152: 135361.9573 | DA152: 135361.9573 | DB152: 135361.9573 | DC152: 135361.9573 | DD152: 135361.9573 | DE152: 135361.9573 | DF152: 135361.9573 | DG152: 135361.9573
C154: Depreciation Rate | H154: =Inputs!F86 -> 15 | I154: =1/(H154*2) -> 0.03333333333 | L154: =$I$154*L6 -> 0 | M154: =$I$154*M6 -> 0 | N154: 0 | O154: 0 | P154: 0 | Q154: 0 | R154: 0 | S154: 0 | T154: 0 | U154: 0 | V154: 0 | W154: 0 | X154: 0 | Y154: 0 | Z154: 0 | AA154: 0 | AB154: 0 | AC154: 0 | AD154: 0 | AE154: 0 | AF154: 0 | AG154: 0 | AH154: 0 | AI154: 0 | AJ154: 0 | AK154: 0 | AL154: 0 | AM154: 0 | AN154: 0 | AO154: 0 | AP154: 0 | AQ154: 0 | AR154: 0 | AS154: 0 | AT154: 0.03333333333 | AU154: 0.03333333333 | AV154: 0.03333333333 | AW154: 0.03333333333 | AX154: 0.03333333333 | AY154: 0.03333333333 | AZ154: 0.03333333333 | BA154: 0.03333333333 | BB154: 0.03333333333 | BC154: 0.03333333333 | BD154: 0.03333333333 | BE154: 0.03333333333 | BF154: 0.03333333333 | BG154: 0.03333333333 | BH154: 0.03333333333 | BI154: 0.03333333333 | BJ154: 0.03333333333 | BK154: 0.03333333333 | BL154: 0.03333333333 | BM154: 0.03333333333 | BN154: 0.03333333333 | BO154: 0.03333333333 | BP154: 0.03333333333 | BQ154: 0.03333333333 | BR154: 0.03333333333 | BS154: 0.03333333333 | BT154: 0.03333333333 | BU154: 0.03333333333 | BV154: 0.03333333333 | BW154: 0.03333333333 | BX154: 0.03333333333 | BY154: =$I$154*BY6 -> 0.03333333333 | BZ154: 0.03333333333 | CA154: 0.03333333333 | CB154: 0.03333333333 | CC154: 0.03333333333 | CD154: 0.03333333333 | CE154: 0.03333333333 | CF154: 0.03333333333 | CG154: 0.03333333333 | CH154: 0.03333333333 | CI154: 0.03333333333 | CJ154: 0.03333333333 | CK154: 0.03333333333 | CL154: 0.03333333333 | CM154: 0.03333333333 | CN154: 0.03333333333 | CO154: 0.03333333333 | CP154: 0.03333333333 | CQ154: 0.03333333333 | CR154: 0.03333333333 | CS154: 0.03333333333 | CT154: 0.03333333333 | CU154: 0.03333333333 | CV154: 0.03333333333 | CW154: 0.03333333333 | CX154: 0.03333333333 | CY154: 0.03333333333 | CZ154: 0.03333333333 | DA154: 0.03333333333 | DB154: 0 | DC154: 0 | DD154: 0 | DE154: 0 | DF154: 0 | DG154: 0
C155: Depreciation Expense | J155: =SUM(L155:DG155) -> 135361.9573 | L155: =MIN(L154*L150,K157) -> 0 | M155: =MIN(M154*M150,L157) -> 0 | N155: 0 | O155: 0 | P155: 0 | Q155: 0 | R155: 0 | S155: 0 | T155: 0 | U155: 0 | V155: 0 | W155: 0 | X155: 0 | Y155: 0 | Z155: 0 | AA155: 0 | AB155: 0 | AC155: 0 | AD155: 0 | AE155: 0 | AF155: 0 | AG155: 0 | AH155: 0 | AI155: 0 | AJ155: 0 | AK155: 0 | AL155: 0 | AM155: 0 | AN155: 0 | AO155: 0 | AP155: 0 | AQ155: 0 | AR155: 0 | AS155: 0 | AT155: 4512.065242 | AU155: 4512.065242 | AV155: 4512.065242 | AW155: 4512.065242 | AX155: 4512.065242 | AY155: 4512.065242 | AZ155: 4512.065242 | BA155: 4512.065242 | BB155: 4512.065242 | BC155: 4512.065242 | BD155: 4512.065242 | BE155: 4512.065242 | BF155: 4512.065242 | BG155: 4512.065242 | BH155: 4512.065242 | BI155: 4512.065242 | BJ155: 4512.065242 | BK155: 4512.065242 | BL155: 4512.065242 | BM155: 4512.065242 | BN155: 4512.065242 | BO155: 4512.065242 | BP155: 4512.065242 | BQ155: 4512.065242 | BR155: 4512.065242 | BS155: 4512.065242 | BT155: 4512.065242 | BU155: 4512.065242 | BV155: 4512.065242 | BW155: 4512.065242 | BX155: 0 | BY155: =MIN(BY154*BY150,BX157) -> 0 | BZ155: 0 | CA155: 0 | CB155: 0 | CC155: 0 | CD155: 0 | CE155: 0 | CF155: 0 | CG155: 0 | CH155: 0 | CI155: 0 | CJ155: 0 | CK155: 0 | CL155: 0 | CM155: 0 | CN155: 0 | CO155: 0 | CP155: 0 | CQ155: 0 | CR155: 0 | CS155: 0 | CT155: 0 | CU155: 0 | CV155: 0 | CW155: 0 | CX155: 0 | CY155: 0 | CZ155: 0 | DA155: 0 | DB155: 0 | DC155: 0 | DD155: 0 | DE155: 0 | DF155: 0 | DG155: 0
C156: Accumulated depreciation | L156: =K156+L155 -> 0 | M156: =L156+M155 -> 0 | N156: 0 | O156: 0 | P156: 0 | Q156: 0 | R156: 0 | S156: 0 | T156: 0 | U156: 0 | V156: 0 | W156: 0 | X156: 0 | Y156: 0 | Z156: 0 | AA156: 0 | AB156: 0 | AC156: 0 | AD156: 0 | AE156: 0 | AF156: 0 | AG156: 0 | AH156: 0 | AI156: 0 | AJ156: 0 | AK156: 0 | AL156: 0 | AM156: 0 | AN156: 0 | AO156: 0 | AP156: 0 | AQ156: 0 | AR156: 0 | AS156: 0 | AT156: 4512.065242 | AU156: 9024.130484 | AV156: 13536.19573 | AW156: 18048.26097 | AX156: 22560.32621 | AY156: 27072.39145 | AZ156: 31584.45669 | BA156: 36096.52194 | BB156: 40608.58718 | BC156: 45120.65242 | BD156: 49632.71766 | BE156: 54144.7829 | BF156: 58656.84815 | BG156: 63168.91339 | BH156: 67680.97863 | BI156: 72193.04387 | BJ156: 76705.10911 | BK156: 81217.17436 | BL156: 85729.2396 | BM156: 90241.30484 | BN156: 94753.37008 | BO156: 99265.43532 | BP156: 103777.5006 | BQ156: 108289.5658 | BR156: 112801.6311 | BS156: 117313.6963 | BT156: 121825.7615 | BU156: 126337.8268 | BV156: 130849.892 | BW156: 135361.9573 | BX156: 135361.9573 | BY156: =BX156+BY155 -> 135361.9573 | BZ156: 135361.9573 | CA156: 135361.9573 | CB156: 135361.9573 | CC156: 135361.9573 | CD156: 135361.9573 | CE156: 135361.9573 | CF156: 135361.9573 | CG156: 135361.9573 | CH156: 135361.9573 | CI156: 135361.9573 | CJ156: 135361.9573 | CK156: 135361.9573 | CL156: 135361.9573 | CM156: 135361.9573 | CN156: 135361.9573 | CO156: 135361.9573 | CP156: 135361.9573 | CQ156: 135361.9573 | CR156: 135361.9573 | CS156: 135361.9573 | CT156: 135361.9573 | CU156: 135361.9573 | CV156: 135361.9573 | CW156: 135361.9573 | CX156: 135361.9573 | CY156: 135361.9573 | CZ156: 135361.9573 | DA156: 135361.9573 | DB156: 135361.9573 | DC156: 135361.9573 | DD156: 135361.9573 | DE156: 135361.9573 | DF156: 135361.9573 | DG156: 135361.9573
C157: Net plant | J157: =MIN(L157:DG157) -> 0 | L157: =L152-L156 -> 29.19911387 | M157: =M152-M156 -> 144.3112322 | N157: 393.3002403 | O157: 803.2325043 | P157: 1367.593558 | Q157: 2040.426904 | R157: 2744.057554 | S157: 3391.230871 | T157: 3913.336674 | U157: 4280.65272 | V157: 4504.276409 | W157: 4621.039672 | X157: 4672.818605 | Y157: 4692.11824 | Z157: 4698.099584 | AA157: 4699.623878 | AB157: 14793.99311 | AC157: 25418.29207 | AD157: 36007.74112 | AE157: 46452.24753 | AF157: 56807.73501 | AG157: 67136.26588 | AH157: 77363.87465 | AI157: 87192.24601 | AJ157: 96146.42671 | AK157: 103784.5041 | AL157: 109942.4633 | AM157: 114801.5536 | AN157: 118717.959 | AO157: 121999.7863 | AP157: 124822.7603 | AQ157: 127271.3414 | AR157: 129394.8352 | AS157: 135361.9573 | AT157: 130849.892 | AU157: 126337.8268 | AV157: 121825.7615 | AW157: 117313.6963 | AX157: 112801.6311 | AY157: 108289.5658 | AZ157: 103777.5006 | BA157: 99265.43532 | BB157: 94753.37008 | BC157: 90241.30484 | BD157: 85729.2396 | BE157: 81217.17436 | BF157: 76705.10911 | BG157: 72193.04387 | BH157: 67680.97863 | BI157: 63168.91339 | BJ157: 58656.84815 | BK157: 54144.7829 | BL157: 49632.71766 | BM157: 45120.65242 | BN157: 40608.58718 | BO157: 36096.52194 | BP157: 31584.45669 | BQ157: 27072.39145 | BR157: 22560.32621 | BS157: 18048.26097 | BT157: 13536.19573 | BU157: 9024.130484 | BV157: 4512.065242 | BW157: 0 | BX157: 0 | BY157: =BY152-BY156 -> 0 | BZ157: 0 | CA157: 0 | CB157: 0 | CC157: 0 | CD157: 0 | CE157: 0 | CF157: 0 | CG157: 0 | CH157: 0 | CI157: 0 | CJ157: 0 | CK157: 0 | CL157: 0 | CM157: 0 | CN157: 0 | CO157: 0 | CP157: 0 | CQ157: 0 | CR157: 0 | CS157: 0 | CT157: 0 | CU157: 0 | CV157: 0 | CW157: 0 | CX157: 0 | CY157: 0 | CZ157: 0 | DA157: 0 | DB157: 0 | DC157: 0 | DD157: 0 | DE157: 0 | DF157: 0 | DG157: 0
C160: EBIT | L160: =L114-L155 -> 0 | M160: =M114-M155 -> 0 | N160: 0 | O160: 0 | P160: 0 | Q160: 0 | R160: 0 | S160: 0 | T160: 0 | U160: 0 | V160: 0 | W160: 0 | X160: 0 | Y160: 0 | Z160: 0 | AA160: 0 | AB160: 0 | AC160: 0 | AD160: 0 | AE160: 0 | AF160: 0 | AG160: 0 | AH160: 0 | AI160: 0 | AJ160: 0 | AK160: 0 | AL160: 0 | AM160: 0 | AN160: 0 | AO160: 0 | AP160: 0 | AQ160: 0 | AR160: 0 | AS160: 0 | AT160: 1441.817164 | AU160: 1508.825158 | AV160: 1576.460074 | AW160: 1649.02145 | AX160: 1722.304847 | AY160: 1796.317451 | AZ160: 1871.066516 | BA160: 1946.559371 | BB160: 2022.803418 | BC160: 2099.80613 | BD160: 2177.575057 | BE160: 2256.117824 | BF160: 2335.44213 | BG160: 2415.555752 | BH160: 2496.466544 | BI160: 2578.182439 | BJ160: 2660.711446 | BK160: 2744.061659 | BL160: 2828.241247 | BM160: 2913.258463 | BN160: 2999.121643 | BO160: 3085.839204 | BP160: 3173.419648 | BQ160: 3261.87156 | BR160: 3351.203612 | BS160: 3441.424562 | BT160: 3532.543256 | BU160: 3624.568625 | BV160: 3717.509692 | BW160: 3811.375569 | BX160: 8418.2407 | BY160: =BY114-BY155 -> 8513.983894 | BZ160: 8610.67978 | CA160: 8708.337838 | CB160: 8806.967642 | CC160: 8906.578862 | CD160: 9007.181262 | CE160: 9108.784706 | CF160: 9211.399154 | CG160: 9315.034666 | CH160: 3995.724081 | CI160: 3975.742281 | CJ160: 3955.561652 | CK160: 3935.180216 | CL160: 3914.595975 | CM160: 3893.80691 | CN160: 3872.810984 | CO160: 3851.606137 | CP160: 3830.190293 | CQ160: 3808.56135 | CR160: 3786.717188 | CS160: 3764.655666 | CT160: 3742.374621 | CU160: 3719.871869 | CV160: 3697.145203 | CW160: 3674.192395 | CX160: 3651.011196 | CY160: 3627.599333 | CZ160: 3603.95451 | DA160: 3580.074409 | DB160: 0 | DC160: 0 | DD160: 0 | DE160: 0 | DF160: 0 | DG160: 0
C161: EBIT x Tax | F161: =units1 -> € 000's | H161: =Inputs!F87 -> 0.2 | L161: =L160*$H$161 -> 0 | M161: =M160*$H$161 -> 0 | N161: 0 | O161: 0 | P161: 0 | Q161: 0 | R161: 0 | S161: 0 | T161: 0 | U161: 0 | V161: 0 | W161: 0 | X161: 0 | Y161: 0 | Z161: 0 | AA161: 0 | AB161: 0 | AC161: 0 | AD161: 0 | AE161: 0 | AF161: 0 | AG161: 0 | AH161: 0 | AI161: 0 | AJ161: 0 | AK161: 0 | AL161: 0 | AM161: 0 | AN161: 0 | AO161: 0 | AP161: 0 | AQ161: 0 | AR161: 0 | AS161: 0 | AT161: 288.3634327 | AU161: 301.7650316 | AV161: 315.2920149 | AW161: 329.80429 | AX161: 344.4609695 | AY161: 359.2634901 | AZ161: 374.2133032 | BA161: 389.3118742 | BB161: 404.5606835 | BC161: 419.961226 | BD161: 435.5150115 | BE161: 451.2235648 | BF161: 467.088426 | BG161: 483.1111504 | BH161: 499.2933088 | BI161: 515.6364877 | BJ161: 532.1422893 | BK161: 548.8123318 | BL161: 565.6482494 | BM161: 582.6516927 | BN161: 599.8243287 | BO161: 617.1678408 | BP161: 634.6839295 | BQ161: 652.3743119 | BR161: 670.2407224 | BS161: 688.2849125 | BT161: 706.5086511 | BU161: 724.913725 | BV161: 743.5019385 | BW161: 762.2751138 | BX161: 1683.64814 | BY161: =BY160*$H$161 -> 1702.796779 | BZ161: 1722.135956 | CA161: 1741.667568 | CB161: 1761.393528 | CC161: 1781.315772 | CD161: 1801.436252 | CE161: 1821.756941 | CF161: 1842.279831 | CG161: 1863.006933 | CH161: 799.1448163 | CI161: 795.1484562 | CJ161: 791.1123305 | CK161: 787.0360432 | CL161: 782.9191949 | CM161: 778.761382 | CN161: 774.5621967 | CO161: 770.3212275 | CP161: 766.0380585 | CQ161: 761.7122699 | CR161: 757.3434376 | CS161: 752.9311332 | CT161: 748.4749242 | CU161: 743.9743737 | CV161: 739.4290406 | CW161: 734.8384791 | CX161: 730.2022392 | CY161: 725.5198665 | CZ161: 720.7909019 | DA161: 716.0148817 | DB161: 0 | DC161: 0 | DD161: 0 | DE161: 0 | DF161: 0 | DG161: 0
C162: After tax cash flow | F162: =units1 -> € 000's | L162: =L116-L161 -> -29.19911387 | M162: =M116-M161 -> -115.1121183 | N162: -248.9890081 | O162: -409.9322641 | P162: -564.3610542 | Q162: -672.8333455 | R162: -703.6306497 | S162: -647.1733174 | T162: -522.1058033 | U162: -367.3160453 | V162: -223.6236894 | W162: -116.7632627 | X162: -51.77893269 | Y162: -19.2996353 | Z162: -5.981344084 | AA162: -1.524293791 | AB162: -10094.36924 | AC162: -10624.29896 | AD162: -10589.44904 | AE162: -10444.50642 | AF162: -10355.48748 | AG162: -10328.53087 | AH162: -10227.60877 | AI162: -9828.371358 | AJ162: -8954.180697 | AK162: -7638.077433 | AL162: -6157.959123 | AM162: -4859.090358 | AN162: -3916.405377 | AO162: -3281.827308 | AP162: -2822.974037 | AQ162: -2448.5811 | AR162: -2123.493802 | AS162: -5967.122015 | AT162: 5665.518973 | AU162: 5719.125369 | AV162: 5773.233302 | AW162: 5831.282402 | AX162: 5889.90912 | AY162: 5949.119203 | AZ162: 6008.918455 | BA162: 6069.312739 | BB162: 6130.307976 | BC162: 6191.910146 | BD162: 6254.125288 | BE162: 6316.959501 | BF162: 6380.418946 | BG162: 6444.509844 | BH162: 6509.238477 | BI162: 6574.611193 | BJ162: 6640.634399 | BK162: 6707.314569 | BL162: 6774.65824 | BM162: 6842.672013 | BN162: 6911.362557 | BO162: 6980.736605 | BP162: 7050.80096 | BQ162: 7121.56249 | BR162: 7193.028132 | BS162: 7265.204892 | BT162: 7338.099847 | BU162: 7411.720142 | BV162: 7486.072996 | BW162: 7561.165697 | BX162: 6734.59256 | BY162: =BY116-BY161 -> 6811.187115 | BZ162: 6888.543824 | CA162: 6966.670271 | CB162: 7045.574114 | CC162: 7125.263089 | CD162: 7205.74501 | CE162: 7287.027765 | CF162: 7369.119323 | CG162: 7452.027733 | CH162: 3196.579265 | CI162: 3180.593825 | CJ162: 3164.449322 | CK162: 3148.144173 | CL162: 3131.67678 | CM162: 3115.045528 | CN162: 3098.248787 | CO162: 3081.28491 | CP162: 3064.152234 | CQ162: 3046.84908 | CR162: 3029.37375 | CS162: 3011.724533 | CT162: 2993.899697 | CU162: 2975.897495 | CV162: 2957.716162 | CW162: 2939.353916 | CX162: 2920.808957 | CY162: 2902.079466 | CZ162: 2883.163608 | DA162: 2864.059527 | DB162: 0 | DC162: 0 | DD162: 0 | DE162: 0 | DF162: 0 | DG162: 0
C163: After Tax Project IRR | H163: =XIRR(L162:DG162,L5:DG5) -> 0.07485733926
A165: Project Finance - Sources and Uses and Debt Size
B167: Total Capital Expenditures
C168: Uses and sources
D169: Uses of funds
E170: Development expenditures | F170: =units1 -> € 000's | I170: =SUM(J28) -> 4700
E171: EPC costs | F171: € 000's | I171: =H33 -> 112800
E172: Other costs | F172: € 000's | I172: =H40 -> 17860 | J172: Computed | K172: Fixed | L172: Difference
E173: Fees | F173: € 000's | I173: =Fixed -> 1726.251012 | J173: =J287 -> 1645.035012 | K173: 1726.251012 | L173: =K173-J173 -> 81.216
E174: IDC | F174: € 000's
E175: DSRA | F175: € 000's
E176: TOTAL | F176: € 000's | I176: =SUM(I170:I175) -> 137086.251
D178: Sources of funds | L178: Size D/Cap | M178: Size P50 | N178: Size P99
E179: Debt | F179: =units1 -> € 000's | I179: =MIN(L179:N179) -> 109669.0008 | K179: =Inputs!F91 -> 0.8 | L179: =K179*I176 -> 109669.0008
E180: Equity | F180: =units1 -> € 000's | I180: =I176-I179 -> 27417.2502
E181: TOTAL | F181: =units1 -> € 000's | I181: =SUM(I179:I180) -> 137086.251
E183: Check | I183: =I176=I181 -> TRUE
E185: Equity Up-Front | F185: =units1 -> € 000's | H185: =Inputs!F96 -> 1 | I185: =I180*H185 -> 27417.2502
E186: Remaining Equity Pro-Rata | F186: =units1 -> € 000's | I186: =I180-I185 -> 0
E187: Total Debt | F187: =units1 -> € 000's | I187: =I179 -> 109669.0008
E188: Total Pro-Rata | F188: =units1 -> € 000's | I188: =I187+I186 -> 109669.0008
E189: Equity Pro-Rata Percent | F189: % | I189: =I186/I188 -> 0
E190: Debt Pro-Rata Percent | F190: % | I190: =I187/I188 -> 1
A192: Project Finance - Funding
C194: Availability period | F194: Flag | L194: =L31 -> 0 | M194: =M31 -> 0 | N194: 0 | O194: 0 | P194: 0 | Q194: 0 | R194: 0 | S194: 0 | T194: 0 | U194: 0 | V194: 0 | W194: 0 | X194: 0 | Y194: 0 | Z194: 0 | AA194: 0 | AB194: 1 | AC194: 1 | AD194: 1 | AE194: 1 | AF194: 1 | AG194: 1 | AH194: 1 | AI194: 1 | AJ194: 1 | AK194: 1 | AL194: 1 | AM194: 1 | AN194: 1 | AO194: 1 | AP194: 1 | AQ194: 1 | AR194: 1 | AS194: 1 | AT194: 0 | AU194: 0 | AV194: 0 | AW194: 0 | AX194: 0 | AY194: 0 | AZ194: 0 | BA194: 0 | BB194: 0 | BC194: 0 | BD194: 0 | BE194: 0 | BF194: 0 | BG194: 0 | BH194: 0 | BI194: 0 | BJ194: 0 | BK194: 0 | BL194: 0 | BM194: 0 | BN194: 0 | BO194: 0 | BP194: 0 | BQ194: 0 | BR194: 0 | BS194: 0 | BT194: 0 | BU194: 0 | BV194: 0 | BW194: 0 | BX194: 0 | BY194: =BY31 -> 0 | BZ194: 0 | CA194: 0 | CB194: 0 | CC194: 0 | CD194: 0 | CE194: 0 | CF194: 0 | CG194: 0 | CH194: 0 | CI194: 0 | CJ194: 0 | CK194: 0 | CL194: 0 | CM194: 0 | CN194: 0 | CO194: 0 | CP194: 0 | CQ194: 0 | CR194: 0 | CS194: 0 | CT194: 0 | CU194: 0 | CV194: 0 | CW194: 0 | CX194: 0 | CY194: 0 | CZ194: 0 | DA194: 0 | DB194: 0 | DC194: 0 | DD194: 0 | DE194: 0 | DF194: 0 | DG194: 0
C195: Development Expenditures | F195: =units1 -> € 000's | J195: =SUM(L195:DG195) -> 4700 | L195: =L28 -> 29.19911387 | M195: =M28 -> 115.1121183 | N195: 248.9890081 | O195: 409.9322641 | P195: 564.3610542 | Q195: 672.8333455 | R195: 703.6306497 | S195: 647.1733174 | T195: 522.1058033 | U195: 367.3160453 | V195: 223.6236894 | W195: 116.7632627 | X195: 51.77893269 | Y195: 19.2996353 | Z195: 5.981344084 | AA195: 1.524293791 | AB195: 0.3158063286 | AC195: 0.05258195204 | AD195: 0.006953999523 | AE195: 0.0007219096909 | AF195: 5.813118491e-05 | AG195: 0 | AH195: 0 | AI195: 0 | AJ195: 0 | AK195: 0 | AL195: 0 | AM195: 0 | AN195: 0 | AO195: 0 | AP195: 0 | AQ195: 0 | AR195: 0 | AS195: 0 | AT195: 0 | AU195: 0 | AV195: 0 | AW195: 0 | AX195: 0 | AY195: 0 | AZ195: 0 | BA195: 0 | BB195: 0 | BC195: 0 | BD195: 0 | BE195: 0 | BF195: 0 | BG195: 0 | BH195: 0 | BI195: 0 | BJ195: 0 | BK195: 0 | BL195: 0 | BM195: 0 | BN195: 0 | BO195: 0 | BP195: 0 | BQ195: 0 | BR195: 0 | BS195: 0 | BT195: 0 | BU195: 0 | BV195: 0 | BW195: 0 | BX195: 0 | BY195: =BY28 -> 0 | BZ195: 0 | CA195: 0 | CB195: 0 | CC195: 0 | CD195: 0 | CE195: 0 | CF195: 0 | CG195: 0 | CH195: 0 | CI195: 0 | CJ195: 0 | CK195: 0 | CL195: 0 | CM195: 0 | CN195: 0 | CO195: 0 | CP195: 0 | CQ195: 0 | CR195: 0 | CS195: 0 | CT195: 0 | CU195: 0 | CV195: 0 | CW195: 0 | CX195: 0 | CY195: 0 | CZ195: 0 | DA195: 0 | DB195: 0 | DC195: 0 | DD195: 0 | DE195: 0 | DF195: 0 | DG195: 0
C197: Financial Close | F197: Flag | H197: =Inputs!G6 -> 2020-05-01 | L197: =(L4=$H$197)*1 -> 0 | M197: =(M4=$H$197)*1 -> 0 | N197: 0 | O197: 0 | P197: 0 | Q197: 0 | R197: 0 | S197: 0 | T197: 0 | U197: 0 | V197: 0 | W197: 0 | X197: 0 | Y197: 0 | Z197: 0 | AA197: 0 | AB197: 1 | AC197: 0 | AD197: 0 | AE197: 0 | AF197: 0 | AG197: 0 | AH197: 0 | AI197: 0 | AJ197: 0 | AK197: 0 | AL197: 0 | AM197: 0 | AN197: 0 | AO197: 0 | AP197: 0 | AQ197: 0 | AR197: 0 | AS197: 0 | AT197: 0 | AU197: 0 | AV197: 0 | AW197: 0 | AX197: 0 | AY197: 0 | AZ197: 0 | BA197: 0 | BB197: 0 | BC197: 0 | BD197: 0 | BE197: 0 | BF197: 0 | BG197: 0 | BH197: 0 | BI197: 0 | BJ197: 0 | BK197: 0 | BL197: 0 | BM197: 0 | BN197: 0 | BO197: 0 | BP197: 0 | BQ197: 0 | BR197: 0 | BS197: 0 | BT197: 0 | BU197: 0 | BV197: 0 | BW197: 0 | BX197: 0 | BY197: =(BY4=$H$197)*1 -> 0 | BZ197: 0 | CA197: 0 | CB197: 0 | CC197: 0 | CD197: 0 | CE197: 0 | CF197: 0 | CG197: 0 | CH197: 0 | CI197: 0 | CJ197: 0 | CK197: 0 | CL197: 0 | CM197: 0 | CN197: 0 | CO197: 0 | CP197: 0 | CQ197: 0 | CR197: 0 | CS197: 0 | CT197: 0 | CU197: 0 | CV197: 0 | CW197: 0 | CX197: 0 | CY197: 0 | CZ197: 0 | DA197: 0 | DB197: 0 | DC197: 0 | DD197: 0 | DE197: 0 | DF197: 0 | DG197: 0
C199: Development Expenditures in Funding Base | F199: =units1 -> € 000's | H199: =J195 -> 4700 | J199: =SUM(L199:DG199) -> 4700 | L199: =L197*$H$199 -> 0 | M199: =M197*$H$199 -> 0 | N199: 0 | O199: 0 | P199: 0 | Q199: 0 | R199: 0 | S199: 0 | T199: 0 | U199: 0 | V199: 0 | W199: 0 | X199: 0 | Y199: 0 | Z199: 0 | AA199: 0 | AB199: =AB197*$H$199 -> 4700 | AC199: 0 | AD199: 0 | AE199: 0 | AF199: 0 | AG199: 0 | AH199: 0 | AI199: 0 | AJ199: 0 | AK199: 0 | AL199: 0 | AM199: 0 | AN199: 0 | AO199: 0 | AP199: 0 | AQ199: 0 | AR199: 0 | AS199: 0 | AT199: 0 | AU199: 0 | AV199: 0 | AW199: 0 | AX199: 0 | AY199: 0 | AZ199: 0 | BA199: 0 | BB199: 0 | BC199: 0 | BD199: 0 | BE199: 0 | BF199: 0 | BG199: 0 | BH199: 0 | BI199: 0 | BJ199: 0 | BK199: 0 | BL199: 0 | BM199: 0 | BN199: 0 | BO199: 0 | BP199: 0 | BQ199: 0 | BR199: 0 | BS199: 0 | BT199: 0 | BU199: 0 | BV199: 0 | BW199: 0 | BX199: 0 | BY199: =BY197*$H$199 -> 0 | BZ199: 0 | CA199: 0 | CB199: 0 | CC199: 0 | CD199: 0 | CE199: 0 | CF199: 0 | CG199: 0 | CH199: 0 | CI199: 0 | CJ199: 0 | CK199: 0 | CL199: 0 | CM199: 0 | CN199: 0 | CO199: 0 | CP199: 0 | CQ199: 0 | CR199: 0 | CS199: 0 | CT199: 0 | CU199: 0 | CV199: 0 | CW199: 0 | CX199: 0 | CY199: 0 | CZ199: 0 | DA199: 0 | DB199: 0 | DC199: 0 | DD199: 0 | DE199: 0 | DF199: 0 | DG199: 0
C200: Capital Expenditures | F200: € 000's | J200: =SUM(L200:DG200) -> 130661.9573 | L200: =L35+L42 -> 0 | M200: =M35+M42 -> 0 | N200: 0 | O200: 0 | P200: 0 | Q200: 0 | R200: 0 | S200: 0 | T200: 0 | U200: 0 | V200: 0 | W200: 0 | X200: 0 | Y200: 0 | Z200: 0 | AA200: 0 | AB200: 10094.05343 | AC200: 10624.24638 | AD200: 10589.44209 | AE200: 10444.50569 | AF200: 10355.48742 | AG200: 10328.53087 | AH200: 10227.60877 | AI200: 9828.371358 | AJ200: 8954.180697 | AK200: 7638.077433 | AL200: 6157.959123 | AM200: 4859.090358 | AN200: 3916.405377 | AO200: 3281.827308 | AP200: 2822.974037 | AQ200: 2448.5811 | AR200: 2123.493802 | AS200: 5967.122015 | AT200: 0 | AU200: 0 | AV200: 0 | AW200: 0 | AX200: 0 | AY200: 0 | AZ200: 0 | BA200: 0 | BB200: 0 | BC200: 0 | BD200: 0 | BE200: 0 | BF200: 0 | BG200: 0 | BH200: 0 | BI200: 0 | BJ200: 0 | BK200: 0 | BL200: 0 | BM200: 0 | BN200: 0 | BO200: 0 | BP200: 0 | BQ200: 0 | BR200: 0 | BS200: 0 | BT200: 0 | BU200: 0 | BV200: 0 | BW200: 0 | BX200: 0 | BY200: =BY35+BY42 -> 0 | BZ200: 0 | CA200: 0 | CB200: 0 | CC200: 0 | CD200: 0 | CE200: 0 | CF200: 0 | CG200: 0 | CH200: 0 | CI200: 0 | CJ200: 0 | CK200: 0 | CL200: 0 | CM200: 0 | CN200: 0 | CO200: 0 | CP200: 0 | CQ200: 0 | CR200: 0 | CS200: 0 | CT200: 0 | CU200: 0 | CV200: 0 | CW200: 0 | CX200: 0 | CY200: 0 | CZ200: 0 | DA200: 0 | DB200: 0 | DC200: 0 | DD200: 0 | DE200: 0 | DF200: 0 | DG200: 0
C201: Add: IDC | F201: € 000's | J201: 0
C202: Add: Fees | F202: € 000's | J202: 0
C203: Add: DSRA Account | F203: € 000's | J203: 0
D204: Total Debt Funding Base | F204: € 000's | J204: =SUM(L204:DG204) -> 135361.9573 | L204: =SUM(L199:L203) -> 0 | M204: =SUM(M199:M203) -> 0 | N204: 0 | O204: 0 | P204: 0 | Q204: 0 | R204: 0 | S204: 0 | T204: 0 | U204: 0 | V204: 0 | W204: 0 | X204: 0 | Y204: 0 | Z204: 0 | AA204: 0 | AB204: 14794.05343 | AC204: 10624.24638 | AD204: 10589.44209 | AE204: 10444.50569 | AF204: 10355.48742 | AG204: 10328.53087 | AH204: 10227.60877 | AI204: 9828.371358 | AJ204: 8954.180697 | AK204: 7638.077433 | AL204: 6157.959123 | AM204: 4859.090358 | AN204: 3916.405377 | AO204: 3281.827308 | AP204: 2822.974037 | AQ204: 2448.5811 | AR204: 2123.493802 | AS204: 5967.122015 | AT204: 0 | AU204: 0 | AV204: 0 | AW204: 0 | AX204: 0 | AY204: 0 | AZ204: 0 | BA204: 0 | BB204: 0 | BC204: 0 | BD204: 0 | BE204: 0 | BF204: 0 | BG204: 0 | BH204: 0 | BI204: 0 | BJ204: 0 | BK204: 0 | BL204: 0 | BM204: 0 | BN204: 0 | BO204: 0 | BP204: 0 | BQ204: 0 | BR204: 0 | BS204: 0 | BT204: 0 | BU204: 0 | BV204: 0 | BW204: 0 | BX204: 0 | BY204: =SUM(BY199:BY203) -> 0 | BZ204: 0 | CA204: 0 | CB204: 0 | CC204: 0 | CD204: 0 | CE204: 0 | CF204: 0 | CG204: 0 | CH204: 0 | CI204: 0 | CJ204: 0 | CK204: 0 | CL204: 0 | CM204: 0 | CN204: 0 | CO204: 0 | CP204: 0 | CQ204: 0 | CR204: 0 | CS204: 0 | CT204: 0 | CU204: 0 | CV204: 0 | CW204: 0 | CX204: 0 | CY204: 0 | CZ204: 0 | DA204: 0 | DB204: 0 | DC204: 0 | DD204: 0 | DE204: 0 | DF204: 0 | DG204: 0
C206: Total Funding Including Equity for Development | F206: =units1 -> € 000's | L206: =L204-L199+L195 -> 29.19911387 | M206: =M204-M199+M195 -> 115.1121183 | N206: 248.9890081 | O206: 409.9322641 | P206: 564.3610542 | Q206: 672.8333455 | R206: 703.6306497 | S206: 647.1733174 | T206: 522.1058033 | U206: 367.3160453 | V206: 223.6236894 | W206: 116.7632627 | X206: 51.77893269 | Y206: 19.2996353 | Z206: 5.981344084 | AA206: 1.524293791 | AB206: 10094.36924 | AC206: 10624.29896 | AD206: 10589.44904 | AE206: 10444.50642 | AF206: 10355.48748 | AG206: 10328.53087 | AH206: 10227.60877 | AI206: 9828.371358 | AJ206: 8954.180697 | AK206: 7638.077433 | AL206: 6157.959123 | AM206: 4859.090358 | AN206: 3916.405377 | AO206: 3281.827308 | AP206: 2822.974037 | AQ206: 2448.5811 | AR206: 2123.493802 | AS206: 5967.122015 | AT206: 0 | AU206: 0 | AV206: 0 | AW206: 0 | AX206: 0 | AY206: 0 | AZ206: 0 | BA206: 0 | BB206: 0 | BC206: 0 | BD206: 0 | BE206: 0 | BF206: 0 | BG206: 0 | BH206: 0 | BI206: 0 | BJ206: 0 | BK206: 0 | BL206: 0 | BM206: 0 | BN206: 0 | BO206: 0 | BP206: 0 | BQ206: 0 | BR206: 0 | BS206: 0 | BT206: 0 | BU206: 0 | BV206: 0 | BW206: 0 | BX206: 0 | BY206: =BY204-BY199+BY195 -> 0 | BZ206: 0 | CA206: 0 | CB206: 0 | CC206: 0 | CD206: 0 | CE206: 0 | CF206: 0 | CG206: 0 | CH206: 0 | CI206: 0 | CJ206: 0 | CK206: 0 | CL206: 0 | CM206: 0 | CN206: 0 | CO206: 0 | CP206: 0 | CQ206: 0 | CR206: 0 | CS206: 0 | CT206: 0 | CU206: 0 | CV206: 0 | CW206: 0 | CX206: 0 | CY206: 0 | CZ206: 0 | DA206: 0 | DB206: 0 | DC206: 0 | DD206: 0 | DE206: 0 | DF206: 0 | DG206: 0
C208: Equity Up-Front | F208: =units1 -> € 000's | J208: =I185 -> 27417.2502 | L208: =$J$208 -> 27417.2502 | M208: =$J$208 -> 27417.2502 | N208: 27417.2502 | O208: 27417.2502 | P208: 27417.2502 | Q208: 27417.2502 | R208: 27417.2502 | S208: 27417.2502 | T208: 27417.2502 | U208: 27417.2502 | V208: 27417.2502 | W208: 27417.2502 | X208: 27417.2502 | Y208: 27417.2502 | Z208: 27417.2502 | AA208: 27417.2502 | AB208: =$J$208 -> 27417.2502 | AC208: 27417.2502 | AD208: 27417.2502 | AE208: 27417.2502 | AF208: 27417.2502 | AG208: 27417.2502 | AH208: 27417.2502 | AI208: 27417.2502 | AJ208: 27417.2502 | AK208: 27417.2502 | AL208: 27417.2502 | AM208: 27417.2502 | AN208: 27417.2502 | AO208: 27417.2502 | AP208: 27417.2502 | AQ208: 27417.2502 | AR208: 27417.2502 | AS208: 27417.2502 | AT208: 27417.2502 | AU208: 27417.2502 | AV208: 27417.2502 | AW208: 27417.2502 | AX208: 27417.2502 | AY208: 27417.2502 | AZ208: 27417.2502 | BA208: 27417.2502 | BB208: 27417.2502 | BC208: 27417.2502 | BD208: 27417.2502 | BE208: 27417.2502 | BF208: 27417.2502 | BG208: 27417.2502 | BH208: 27417.2502 | BI208: 27417.2502 | BJ208: 27417.2502 | BK208: 27417.2502 | BL208: 27417.2502 | BM208: 27417.2502 | BN208: 27417.2502 | BO208: 27417.2502 | BP208: 27417.2502 | BQ208: 27417.2502 | BR208: 27417.2502 | BS208: 27417.2502 | BT208: 27417.2502 | BU208: 27417.2502 | BV208: 27417.2502 | BW208: 27417.2502 | BX208: 27417.2502 | BY208: =$J$208 -> 27417.2502 | BZ208: 27417.2502 | CA208: 27417.2502 | CB208: 27417.2502 | CC208: 27417.2502 | CD208: 27417.2502 | CE208: 27417.2502 | CF208: 27417.2502 | CG208: 27417.2502 | CH208: 27417.2502 | CI208: 27417.2502 | CJ208: 27417.2502 | CK208: 27417.2502 | CL208: 27417.2502 | CM208: 27417.2502 | CN208: 27417.2502 | CO208: 27417.2502 | CP208: 27417.2502 | CQ208: 27417.2502 | CR208: 27417.2502 | CS208: 27417.2502 | CT208: 27417.2502 | CU208: 27417.2502 | CV208: 27417.2502 | CW208: 27417.2502 | CX208: 27417.2502 | CY208: 27417.2502 | CZ208: 27417.2502 | DA208: 27417.2502 | DB208: 27417.2502 | DC208: 27417.2502 | DD208: 27417.2502 | DE208: 27417.2502 | DF208: 27417.2502 | DG208: 27417.2502
C209: Less: Equity Commited | F209: =units1 -> € 000's | L209: =L213 -> 0 | M209: =M213 -> 0 | N209: 0 | O209: 0 | P209: 0 | Q209: 0 | R209: 0 | S209: 0 | T209: 0 | U209: 0 | V209: 0 | W209: 0 | X209: 0 | Y209: 0 | Z209: 0 | AA209: 0 | AB209: 0 | AC209: 14794.05343 | AD209: 25418.29981 | AE209: 27417.2502 | AF209: 27417.2502 | AG209: 27417.2502 | AH209: 27417.2502 | AI209: 27417.2502 | AJ209: 27417.2502 | AK209: 27417.2502 | AL209: 27417.2502 | AM209: 27417.2502 | AN209: 27417.2502 | AO209: 27417.2502 | AP209: 27417.2502 | AQ209: 27417.2502 | AR209: 27417.2502 | AS209: 27417.2502 | AT209: 27417.2502 | AU209: 27417.2502 | AV209: 27417.2502 | AW209: 27417.2502 | AX209: 27417.2502 | AY209: 27417.2502 | AZ209: 27417.2502 | BA209: 27417.2502 | BB209: 27417.2502 | BC209: 27417.2502 | BD209: 27417.2502 | BE209: 27417.2502 | BF209: 27417.2502 | BG209: 27417.2502 | BH209: 27417.2502 | BI209: 27417.2502 | BJ209: 27417.2502 | BK209: 27417.2502 | BL209: 27417.2502 | BM209: 27417.2502 | BN209: 27417.2502 | BO209: 27417.2502 | BP209: 27417.2502 | BQ209: 27417.2502 | BR209: 27417.2502 | BS209: 27417.2502 | BT209: 27417.2502 | BU209: 27417.2502 | BV209: 27417.2502 | BW209: 27417.2502 | BX209: 27417.2502 | BY209: =BY213 -> 27417.2502 | BZ209: 27417.2502 | CA209: 27417.2502 | CB209: 27417.2502 | CC209: 27417.2502 | CD209: 27417.2502 | CE209: 27417.2502 | CF209: 27417.2502 | CG209: 27417.2502 | CH209: 27417.2502 | CI209: 27417.2502 | CJ209: 27417.2502 | CK209: 27417.2502 | CL209: 27417.2502 | CM209: 27417.2502 | CN209: 27417.2502 | CO209: 27417.2502 | CP209: 27417.2502 | CQ209: 27417.2502 | CR209: 27417.2502 | CS209: 27417.2502 | CT209: 27417.2502 | CU209: 27417.2502 | CV209: 27417.2502 | CW209: 27417.2502 | CX209: 27417.2502 | CY209: 27417.2502 | CZ209: 27417.2502 | DA209: 27417.2502 | DB209: 27417.2502 | DC209: 27417.2502 | DD209: 27417.2502 | DE209: 27417.2502 | DF209: 27417.2502 | DG209: 27417.2502
C210: Remaining Equity | F210: =units1 -> € 000's | L210: =L208-L209 -> 27417.2502 | M210: =M208-M209 -> 27417.2502 | N210: 27417.2502 | O210: 27417.2502 | P210: 27417.2502 | Q210: 27417.2502 | R210: 27417.2502 | S210: 27417.2502 | T210: 27417.2502 | U210: 27417.2502 | V210: 27417.2502 | W210: 27417.2502 | X210: 27417.2502 | Y210: 27417.2502 | Z210: 27417.2502 | AA210: 27417.2502 | AB210: =AB208-AB209 -> 27417.2502 | AC210: 12623.19677 | AD210: 1998.950397 | AE210: 0 | AF210: 0 | AG210: 0 | AH210: 0 | AI210: 0 | AJ210: 0 | AK210: 0 | AL210: 0 | AM210: 0 | AN210: 0 | AO210: 0 | AP210: 0 | AQ210: 0 | AR210: 0 | AS210: 0 | AT210: 0 | AU210: 0 | AV210: 0 | AW210: 0 | AX210: 0 | AY210: 0 | AZ210: 0 | BA210: 0 | BB210: 0 | BC210: 0 | BD210: 0 | BE210: 0 | BF210: 0 | BG210: 0 | BH210: 0 | BI210: 0 | BJ210: 0 | BK210: 0 | BL210: 0 | BM210: 0 | BN210: 0 | BO210: 0 | BP210: 0 | BQ210: 0 | BR210: 0 | BS210: 0 | BT210: 0 | BU210: 0 | BV210: 0 | BW210: 0 | BX210: 0 | BY210: =BY208-BY209 -> 0 | BZ210: 0 | CA210: 0 | CB210: 0 | CC210: 0 | CD210: 0 | CE210: 0 | CF210: 0 | CG210: 0 | CH210: 0 | CI210: 0 | CJ210: 0 | CK210: 0 | CL210: 0 | CM210: 0 | CN210: 0 | CO210: 0 | CP210: 0 | CQ210: 0 | CR210: 0 | CS210: 0 | CT210: 0 | CU210: 0 | CV210: 0 | CW210: 0 | CX210: 0 | CY210: 0 | CZ210: 0 | DA210: 0 | DB210: 0 | DC210: 0 | DD210: 0 | DE210: 0 | DF210: 0 | DG210: 0
C212: Balance for Equity Commitment
D213: Opening Balance | F213: =units1 -> € 000's | L213: =K215 -> 0 | M213: =L215 -> 0 | N213: 0 | O213: 0 | P213: 0 | Q213: 0 | R213: 0 | S213: 0 | T213: 0 | U213: 0 | V213: 0 | W213: 0 | X213: 0 | Y213: 0 | Z213: 0 | AA213: 0 | AB213: 0 | AC213: 14794.05343 | AD213: 25418.29981 | AE213: 27417.2502 | AF213: 27417.2502 | AG213: 27417.2502 | AH213: 27417.2502 | AI213: 27417.2502 | AJ213: 27417.2502 | AK213: 27417.2502 | AL213: 27417.2502 | AM213: 27417.2502 | AN213: 27417.2502 | AO213: 27417.2502 | AP213: 27417.2502 | AQ213: 27417.2502 | AR213: 27417.2502 | AS213: 27417.2502 | AT213: 27417.2502 | AU213: 27417.2502 | AV213: 27417.2502 | AW213: 27417.2502 | AX213: 27417.2502 | AY213: 27417.2502 | AZ213: 27417.2502 | BA213: 27417.2502 | BB213: 27417.2502 | BC213: 27417.2502 | BD213: 27417.2502 | BE213: 27417.2502 | BF213: 27417.2502 | BG213: 27417.2502 | BH213: 27417.2502 | BI213: 27417.2502 | BJ213: 27417.2502 | BK213: 27417.2502 | BL213: 27417.2502 | BM213: 27417.2502 | BN213: 27417.2502 | BO213: 27417.2502 | BP213: 27417.2502 | BQ213: 27417.2502 | BR213: 27417.2502 | BS213: 27417.2502 | BT213: 27417.2502 | BU213: 27417.2502 | BV213: 27417.2502 | BW213: 27417.2502 | BX213: 27417.2502 | BY213: =BX215 -> 27417.2502 | BZ213: 27417.2502 | CA213: 27417.2502 | CB213: 27417.2502 | CC213: 27417.2502 | CD213: 27417.2502 | CE213: 27417.2502 | CF213: 27417.2502 | CG213: 27417.2502 | CH213: 27417.2502 | CI213: 27417.2502 | CJ213: 27417.2502 | CK213: 27417.2502 | CL213: 27417.2502 | CM213: 27417.2502 | CN213: 27417.2502 | CO213: 27417.2502 | CP213: 27417.2502 | CQ213: 27417.2502 | CR213: 27417.2502 | CS213: 27417.2502 | CT213: 27417.2502 | CU213: 27417.2502 | CV213: 27417.2502 | CW213: 27417.2502 | CX213: 27417.2502 | CY213: 27417.2502 | CZ213: 27417.2502 | DA213: 27417.2502 | DB213: 27417.2502 | DC213: 27417.2502 | DD213: 27417.2502 | DE213: 27417.2502 | DF213: 27417.2502 | DG213: 27417.2502
D214: Add: Equity Funding (MIN) | F214: =units1 -> € 000's | L214: =MIN(L210,L204) -> 0 | M214: =MIN(M210,M204) -> 0 | N214: 0 | O214: 0 | P214: 0 | Q214: 0 | R214: 0 | S214: 0 | T214: 0 | U214: 0 | V214: 0 | W214: 0 | X214: 0 | Y214: 0 | Z214: 0 | AA214: 0 | AB214: 14794.05343 | AC214: 10624.24638 | AD214: 1998.950397 | AE214: 0 | AF214: 0 | AG214: 0 | AH214: 0 | AI214: 0 | AJ214: 0 | AK214: 0 | AL214: 0 | AM214: 0 | AN214: 0 | AO214: 0 | AP214: 0 | AQ214: 0 | AR214: 0 | AS214: 0 | AT214: 0 | AU214: 0 | AV214: 0 | AW214: 0 | AX214: 0 | AY214: 0 | AZ214: 0 | BA214: 0 | BB214: 0 | BC214: 0 | BD214: 0 | BE214: 0 | BF214: 0 | BG214: 0 | BH214: 0 | BI214: 0 | BJ214: 0 | BK214: 0 | BL214: 0 | BM214: 0 | BN214: 0 | BO214: 0 | BP214: 0 | BQ214: 0 | BR214: 0 | BS214: 0 | BT214: 0 | BU214: 0 | BV214: 0 | BW214: 0 | BX214: 0 | BY214: =MIN(BY210,BY204) -> 0 | BZ214: 0 | CA214: 0 | CB214: 0 | CC214: 0 | CD214: 0 | CE214: 0 | CF214: 0 | CG214: 0 | CH214: 0 | CI214: 0 | CJ214: 0 | CK214: 0 | CL214: 0 | CM214: 0 | CN214: 0 | CO214: 0 | CP214: 0 | CQ214: 0 | CR214: 0 | CS214: 0 | CT214: 0 | CU214: 0 | CV214: 0 | CW214: 0 | CX214: 0 | CY214: 0 | CZ214: 0 | DA214: 0 | DB214: 0 | DC214: 0 | DD214: 0 | DE214: 0 | DF214: 0 | DG214: 0
D215: Closing Balance | F215: =units1 -> € 000's | L215: =SUM(L213:L214) -> 0 | M215: =SUM(M213:M214) -> 0 | N215: 0 | O215: 0 | P215: 0 | Q215: 0 | R215: 0 | S215: 0 | T215: 0 | U215: 0 | V215: 0 | W215: 0 | X215: 0 | Y215: 0 | Z215: 0 | AA215: 0 | AB215: 14794.05343 | AC215: 25418.29981 | AD215: 27417.2502 | AE215: 27417.2502 | AF215: 27417.2502 | AG215: 27417.2502 | AH215: 27417.2502 | AI215: 27417.2502 | AJ215: 27417.2502 | AK215: 27417.2502 | AL215: 27417.2502 | AM215: 27417.2502 | AN215: 27417.2502 | AO215: 27417.2502 | AP215: 27417.2502 | AQ215: 27417.2502 | AR215: 27417.2502 | AS215: 27417.2502 | AT215: 27417.2502 | AU215: 27417.2502 | AV215: 27417.2502 | AW215: 27417.2502 | AX215: 27417.2502 | AY215: 27417.2502 | AZ215: 27417.2502 | BA215: 27417.2502 | BB215: 27417.2502 | BC215: 27417.2502 | BD215: 27417.2502 | BE215: 27417.2502 | BF215: 27417.2502 | BG215: 27417.2502 | BH215: 27417.2502 | BI215: 27417.2502 | BJ215: 27417.2502 | BK215: 27417.2502 | BL215: 27417.2502 | BM215: 27417.2502 | BN215: 27417.2502 | BO215: 27417.2502 | BP215: 27417.2502 | BQ215: 27417.2502 | BR215: 27417.2502 | BS215: 27417.2502 | BT215: 27417.2502 | BU215: 27417.2502 | BV215: 27417.2502 | BW215: 27417.2502 | BX215: 27417.2502 | BY215: =SUM(BY213:BY214) -> 27417.2502 | BZ215: 27417.2502 | CA215: 27417.2502 | CB215: 27417.2502 | CC215: 27417.2502 | CD215: 27417.2502 | CE215: 27417.2502 | CF215: 27417.2502 | CG215: 27417.2502 | CH215: 27417.2502 | CI215: 27417.2502 | CJ215: 27417.2502 | CK215: 27417.2502 | CL215: 27417.2502 | CM215: 27417.2502 | CN215: 27417.2502 | CO215: 27417.2502 | CP215: 27417.2502 | CQ215: 27417.2502 | CR215: 27417.2502 | CS215: 27417.2502 | CT215: 27417.2502 | CU215: 27417.2502 | CV215: 27417.2502 | CW215: 27417.2502 | CX215: 27417.2502 | CY215: 27417.2502 | CZ215: 27417.2502 | DA215: 27417.2502 | DB215: 27417.2502 | DC215: 27417.2502 | DD215: 27417.2502 | DE215: 27417.2502 | DF215: 27417.2502 | DG215: 27417.2502
C217: Remaining Funding | F217: =units1 -> € 000's | L217: =L204-L214 -> 0 | M217: =M204-M214 -> 0 | N217: 0 | O217: 0 | P217: 0 | Q217: 0 | R217: 0 | S217: 0 | T217: 0 | U217: 0 | V217: 0 | W217: 0 | X217: 0 | Y217: 0 | Z217: 0 | AA217: 0 | AB217: 0 | AC217: 0 | AD217: 8590.491693 | AE217: 10444.50569 | AF217: 10355.48742 | AG217: 10328.53087 | AH217: 10227.60877 | AI217: 9828.371358 | AJ217: 8954.180697 | AK217: 7638.077433 | AL217: 6157.959123 | AM217: 4859.090358 | AN217: 3916.405377 | AO217: 3281.827308 | AP217: 2822.974037 | AQ217: 2448.5811 | AR217: 2123.493802 | AS217: 5967.122015 | AT217: 0 | AU217: 0 | AV217: 0 | AW217: 0 | AX217: 0 | AY217: 0 | AZ217: 0 | BA217: 0 | BB217: 0 | BC217: 0 | BD217: 0 | BE217: 0 | BF217: 0 | BG217: 0 | BH217: 0 | BI217: 0 | BJ217: 0 | BK217: 0 | BL217: 0 | BM217: 0 | BN217: 0 | BO217: 0 | BP217: 0 | BQ217: 0 | BR217: 0 | BS217: 0 | BT217: 0 | BU217: 0 | BV217: 0 | BW217: 0 | BX217: 0 | BY217: =BY204-BY214 -> 0 | BZ217: 0 | CA217: 0 | CB217: 0 | CC217: 0 | CD217: 0 | CE217: 0 | CF217: 0 | CG217: 0 | CH217: 0 | CI217: 0 | CJ217: 0 | CK217: 0 | CL217: 0 | CM217: 0 | CN217: 0 | CO217: 0 | CP217: 0 | CQ217: 0 | CR217: 0 | CS217: 0 | CT217: 0 | CU217: 0 | CV217: 0 | CW217: 0 | CX217: 0 | CY217: 0 | CZ217: 0 | DA217: 0 | DB217: 0 | DC217: 0 | DD217: 0 | DE217: 0 | DF217: 0 | DG217: 0
C219: Debt Pro Rata Funding | F219: =units1 -> € 000's | H219: =I190 -> 1 | L219: =L217*$H$219 -> 0 | M219: =M217*$H$219 -> 0 | N219: 0 | O219: 0 | P219: 0 | Q219: 0 | R219: 0 | S219: 0 | T219: 0 | U219: 0 | V219: 0 | W219: 0 | X219: 0 | Y219: 0 | Z219: 0 | AA219: 0 | AB219: 0 | AC219: 0 | AD219: 8590.491693 | AE219: 10444.50569 | AF219: 10355.48742 | AG219: 10328.53087 | AH219: 10227.60877 | AI219: 9828.371358 | AJ219: 8954.180697 | AK219: 7638.077433 | AL219: 6157.959123 | AM219: 4859.090358 | AN219: 3916.405377 | AO219: 3281.827308 | AP219: 2822.974037 | AQ219: 2448.5811 | AR219: 2123.493802 | AS219: 5967.122015 | AT219: 0 | AU219: 0 | AV219: 0 | AW219: 0 | AX219: 0 | AY219: 0 | AZ219: 0 | BA219: 0 | BB219: 0 | BC219: 0 | BD219: 0 | BE219: 0 | BF219: 0 | BG219: 0 | BH219: 0 | BI219: 0 | BJ219: 0 | BK219: 0 | BL219: 0 | BM219: 0 | BN219: 0 | BO219: 0 | BP219: 0 | BQ219: 0 | BR219: 0 | BS219: 0 | BT219: 0 | BU219: 0 | BV219: 0 | BW219: 0 | BX219: 0 | BY219: =BY217*$H$219 -> 0 | BZ219: 0 | CA219: 0 | CB219: 0 | CC219: 0 | CD219: 0 | CE219: 0 | CF219: 0 | CG219: 0 | CH219: 0 | CI219: 0 | CJ219: 0 | CK219: 0 | CL219: 0 | CM219: 0 | CN219: 0 | CO219: 0 | CP219: 0 | CQ219: 0 | CR219: 0 | CS219: 0 | CT219: 0 | CU219: 0 | CV219: 0 | CW219: 0 | CX219: 0 | CY219: 0 | CZ219: 0 | DA219: 0 | DB219: 0 | DC219: 0 | DD219: 0 | DE219: 0 | DF219: 0 | DG219: 0
C220: Equity Pro-Rata | F220: =units1 -> € 000's
C222: Debt Funding | F222: =units1 -> € 000's | H222: =I179 -> 109669.0008 | L222: =L219 -> 0 | M222: =M219 -> 0 | N222: 0 | O222: 0 | P222: 0 | Q222: 0 | R222: 0 | S222: 0 | T222: 0 | U222: 0 | V222: 0 | W222: 0 | X222: 0 | Y222: 0 | Z222: 0 | AA222: 0 | AB222: 0 | AC222: 0 | AD222: 8590.491693 | AE222: 10444.50569 | AF222: 10355.48742 | AG222: 10328.53087 | AH222: 10227.60877 | AI222: 9828.371358 | AJ222: 8954.180697 | AK222: 7638.077433 | AL222: 6157.959123 | AM222: 4859.090358 | AN222: 3916.405377 | AO222: 3281.827308 | AP222: 2822.974037 | AQ222: 2448.5811 | AR222: 2123.493802 | AS222: 5967.122015 | AT222: 0 | AU222: 0 | AV222: 0 | AW222: 0 | AX222: 0 | AY222: 0 | AZ222: 0 | BA222: 0 | BB222: 0 | BC222: 0 | BD222: 0 | BE222: 0 | BF222: 0 | BG222: 0 | BH222: 0 | BI222: 0 | BJ222: 0 | BK222: 0 | BL222: 0 | BM222: 0 | BN222: 0 | BO222: 0 | BP222: 0 | BQ222: 0 | BR222: 0 | BS222: 0 | BT222: 0 | BU222: 0 | BV222: 0 | BW222: 0 | BX222: 0 | BY222: =BY219 -> 0 | BZ222: 0 | CA222: 0 | CB222: 0 | CC222: 0 | CD222: 0 | CE222: 0 | CF222: 0 | CG222: 0 | CH222: 0 | CI222: 0 | CJ222: 0 | CK222: 0 | CL222: 0 | CM222: 0 | CN222: 0 | CO222: 0 | CP222: 0 | CQ222: 0 | CR222: 0 | CS222: 0 | CT222: 0 | CU222: 0 | CV222: 0 | CW222: 0 | CX222: 0 | CY222: 0 | CZ222: 0 | DA222: 0 | DB222: 0 | DC222: 0 | DD222: 0 | DE222: 0 | DF222: 0 | DG222: 0
C223: Equity Funding | F223: =units1 -> € 000's | L223: =L206-L222 -> 29.19911387 | M223: =M206-M222 -> 115.1121183 | N223: 248.9890081 | O223: 409.9322641 | P223: 564.3610542 | Q223: 672.8333455 | R223: 703.6306497 | S223: 647.1733174 | T223: 522.1058033 | U223: 367.3160453 | V223: 223.6236894 | W223: 116.7632627 | X223: 51.77893269 | Y223: 19.2996353 | Z223: 5.981344084 | AA223: 1.524293791 | AB223: 10094.36924 | AC223: 10624.29896 | AD223: 1998.957351 | AE223: 0.0007219096915 | AF223: 5.813118514e-05 | AG223: 0 | AH223: 0 | AI223: 0 | AJ223: 0 | AK223: 0 | AL223: 0 | AM223: 0 | AN223: 0 | AO223: 0 | AP223: 0 | AQ223: 0 | AR223: 0 | AS223: 0 | AT223: 0 | AU223: 0 | AV223: 0 | AW223: 0 | AX223: 0 | AY223: 0 | AZ223: 0 | BA223: 0 | BB223: 0 | BC223: 0 | BD223: 0 | BE223: 0 | BF223: 0 | BG223: 0 | BH223: 0 | BI223: 0 | BJ223: 0 | BK223: 0 | BL223: 0 | BM223: 0 | BN223: 0 | BO223: 0 | BP223: 0 | BQ223: 0 | BR223: 0 | BS223: 0 | BT223: 0 | BU223: 0 | BV223: 0 | BW223: 0 | BX223: 0 | BY223: =BY206-BY222 -> 0 | BZ223: 0 | CA223: 0 | CB223: 0 | CC223: 0 | CD223: 0 | CE223: 0 | CF223: 0 | CG223: 0 | CH223: 0 | CI223: 0 | CJ223: 0 | CK223: 0 | CL223: 0 | CM223: 0 | CN223: 0 | CO223: 0 | CP223: 0 | CQ223: 0 | CR223: 0 | CS223: 0 | CT223: 0 | CU223: 0 | CV223: 0 | CW223: 0 | CX223: 0 | CY223: 0 | CZ223: 0 | DA223: 0 | DB223: 0 | DC223: 0 | DD223: 0 | DE223: 0 | DF223: 0 | DG223: 0
A225: Debt Sizing From DSCR
B227: Repayment Flag | F227: flag | H227: =Inputs!G8 -> 2021-11-01 | I227: =Inputs!F106 -> 2037-11-01 | J227: =SUM(L227:DG227) -> 32 | L227: =AND(L4>=$H$227,L4<$I$227)*1 -> 0 | M227: =AND(M4>=$H$227,M4<$I$227)*1 -> 0 | N227: 0 | O227: 0 | P227: 0 | Q227: 0 | R227: 0 | S227: 0 | T227: 0 | U227: 0 | V227: 0 | W227: 0 | X227: 0 | Y227: 0 | Z227: 0 | AA227: 0 | AB227: 0 | AC227: 0 | AD227: 0 | AE227: 0 | AF227: 0 | AG227: 0 | AH227: 0 | AI227: 0 | AJ227: 0 | AK227: 0 | AL227: 0 | AM227: 0 | AN227: 0 | AO227: 0 | AP227: 0 | AQ227: 0 | AR227: 0 | AS227: 0 | AT227: 1 | AU227: 1 | AV227: 1 | AW227: 1 | AX227: 1 | AY227: 1 | AZ227: 1 | BA227: 1 | BB227: 1 | BC227: 1 | BD227: 1 | BE227: 1 | BF227: 1 | BG227: 1 | BH227: 1 | BI227: 1 | BJ227: 1 | BK227: 1 | BL227: 1 | BM227: 1 | BN227: 1 | BO227: 1 | BP227: 1 | BQ227: 1 | BR227: 1 | BS227: 1 | BT227: 1 | BU227: 1 | BV227: 1 | BW227: 1 | BX227: 1 | BY227: =AND(BY4>=$H$227,BY4<$I$227)*1 -> 1 | BZ227: 0 | CA227: 0 | CB227: 0 | CC227: 0 | CD227: 0 | CE227: 0 | CF227: 0 | CG227: 0 | CH227: 0 | CI227: 0 | CJ227: 0 | CK227: 0 | CL227: 0 | CM227: 0 | CN227: 0 | CO227: 0 | CP227: 0 | CQ227: 0 | CR227: 0 | CS227: 0 | CT227: 0 | CU227: 0 | CV227: 0 | CW227: 0 | CX227: 0 | CY227: 0 | CZ227: 0 | DA227: 0 | DB227: 0 | DC227: 0 | DD227: 0 | DE227: 0 | DF227: 0 | DG227: 0
B229: Cash Flow - P50
C230: Production at P50 | F230: GWh p.p. | L230: =L13 -> 0 | M230: =M13 -> 0 | N230: 0 | O230: 0 | P230: 0 | Q230: 0 | R230: 0 | S230: 0 | T230: 0 | U230: 0 | V230: 0 | W230: 0 | X230: 0 | Y230: 0 | Z230: 0 | AA230: 0 | AB230: 0 | AC230: 0 | AD230: 0 | AE230: 0 | AF230: 0 | AG230: 0 | AH230: 0 | AI230: 0 | AJ230: 0 | AK230: 0 | AL230: 0 | AM230: 0 | AN230: 0 | AO230: 0 | AP230: 0 | AQ230: 0 | AR230: 0 | AS230: 0 | AT230: 170.15 | AU230: 170.15 | AV230: 170.15 | AW230: 170.15 | AX230: 170.15 | AY230: 170.15 | AZ230: 170.15 | BA230: 170.15 | BB230: 170.15 | BC230: 170.15 | BD230: 170.15 | BE230: 170.15 | BF230: 170.15 | BG230: 170.15 | BH230: 170.15 | BI230: 170.15 | BJ230: 170.15 | BK230: 170.15 | BL230: 170.15 | BM230: 170.15 | BN230: 170.15 | BO230: 170.15 | BP230: 170.15 | BQ230: 170.15 | BR230: 170.15 | BS230: 170.15 | BT230: 170.15 | BU230: 170.15 | BV230: 170.15 | BW230: 170.15 | BX230: 170.15 | BY230: =BY13 -> 170.15 | BZ230: 170.15 | CA230: 170.15 | CB230: 170.15 | CC230: 170.15 | CD230: 170.15 | CE230: 170.15 | CF230: 170.15 | CG230: 170.15 | CH230: 170.15 | CI230: 170.15 | CJ230: 170.15 | CK230: 170.15 | CL230: 170.15 | CM230: 170.15 | CN230: 170.15 | CO230: 170.15 | CP230: 170.15 | CQ230: 170.15 | CR230: 170.15 | CS230: 170.15 | CT230: 170.15 | CU230: 170.15 | CV230: 170.15 | CW230: 170.15 | CX230: 170.15 | CY230: 170.15 | CZ230: 170.15 | DA230: 170.15 | DB230: 0 | DC230: 0 | DD230: 0 | DE230: 0 | DF230: 0 | DG230: 0
C231: PPA and Merchant Price | F231: =units2 -> €/MWH | L231: =L53*L47+L57*L58 -> 0 | M231: 0 | N231: 0 | O231: 0 | P231: 0 | Q231: 0 | R231: 0 | S231: 0 | T231: 0 | U231: 0 | V231: 0 | W231: 0 | X231: 0 | Y231: 0 | Z231: 0 | AA231: 0 | AB231: 0 | AC231: 0 | AD231: 0 | AE231: 0 | AF231: 0 | AG231: 0 | AH231: 0 | AI231: 0 | AJ231: 0 | AK231: 0 | AL231: 0 | AM231: 0 | AN231: 0 | AO231: 0 | AP231: 0 | AQ231: 0 | AR231: =AR53*AR47+AR57*AR58 -> 0 | AS231: 0 | AT231: 50.00883871 | AU231: 50.48168721 | AV231: 50.95900664 | AW231: 51.46607392 | AX231: 51.97818678 | AY231: 52.4953954 | AZ231: 53.01775051 | BA231: 53.54530331 | BB231: 54.07810552 | BC231: 54.61620938 | BD231: 55.15966763 | BE231: 55.70853356 | BF231: 56.26286098 | BG231: 56.82270424 | BH231: 57.3881182 | BI231: 57.95915832 | BJ231: 58.53588057 | BK231: 59.11834149 | BL231: 59.70659818 | BM231: 60.30070832 | BN231: 60.90073014 | BO231: 61.50672248 | BP231: 62.11874475 | BQ231: 62.73685693 | BR231: 63.36111964 | BS231: 63.99159407 | BT231: 64.62834203 | BU231: 65.27142595 | BV231: 65.92090887 | BW231: 66.57685447 | BX231: =BX53*BX47+BX57*BX58 -> 67.23932705 | BY231: 67.90839156 | BZ231: 68.58411359 | CA231: 69.26655939 | CB231: 69.95579586 | CC231: 70.65189058 | CD231: 71.35491178 | CE231: 72.06492839 | CF231: 72.78201002 | CG231: 73.50622696 | CH231: 42.36002858 | CI231: 42.36002858 | CJ231: 42.36002858 | CK231: 42.36002858 | CL231: 42.36002858 | CM231: 42.36002858 | CN231: 42.36002858 | CO231: 42.36002858 | CP231: 42.36002858 | CQ231: 42.36002858 | CR231: 42.36002858 | CS231: 42.36002858 | CT231: 42.36002858 | CU231: 42.36002858 | CV231: 42.36002858 | CW231: 42.36002858 | CX231: 42.36002858 | CY231: 42.36002858 | CZ231: 42.36002858 | DA231: 42.36002858 | DB231: 0 | DC231: 0 | DD231: 0 | DE231: 0 | DF231: 0 | DG231: 0
C232: Revenues | F232: =units1 -> € 000's | L232: =L230*L231 -> 0 | M232: =M230*M231 -> 0 | N232: 0 | O232: 0 | P232: 0 | Q232: 0 | R232: 0 | S232: 0 | T232: 0 | U232: 0 | V232: 0 | W232: 0 | X232: 0 | Y232: 0 | Z232: 0 | AA232: 0 | AB232: 0 | AC232: 0 | AD232: 0 | AE232: 0 | AF232: 0 | AG232: 0 | AH232: 0 | AI232: 0 | AJ232: 0 | AK232: 0 | AL232: 0 | AM232: 0 | AN232: 0 | AO232: 0 | AP232: 0 | AQ232: 0 | AR232: 0 | AS232: 0 | AT232: 8509.003906 | AU232: 8589.459079 | AV232: 8670.67498 | AW232: 8756.952478 | AX232: 8844.08848 | AY232: 8932.091528 | AZ232: 9020.970249 | BA232: 9110.733358 | BB232: 9201.389654 | BC232: 9292.948025 | BD232: 9385.417447 | BE232: 9478.806986 | BF232: 9573.125796 | BG232: 9668.383126 | BH232: 9764.588312 | BI232: 9861.750788 | BJ232: 9959.880079 | BK232: 10058.9858 | BL232: 10159.07768 | BM232: 10260.16552 | BN232: 10362.25923 | BO232: 10465.36883 | BP232: 10569.50442 | BQ232: 10674.67621 | BR232: 10780.89451 | BS232: 10888.16973 | BT232: 10996.5124 | BU232: 11105.93313 | BV232: 11216.44264 | BW232: 11328.05179 | BX232: 11440.7715 | BY232: =BY230*BY231 -> 11554.61282 | BZ232: 11669.58693 | CA232: 11785.70508 | CB232: 11902.97867 | CC232: 12021.41918 | CD232: 12141.03824 | CE232: 12261.84757 | CF232: 12383.859 | CG232: 12507.08452 | CH232: 7207.558862 | CI232: 7207.558862 | CJ232: 7207.558862 | CK232: 7207.558862 | CL232: 7207.558862 | CM232: 7207.558862 | CN232: 7207.558862 | CO232: 7207.558862 | CP232: 7207.558862 | CQ232: 7207.558862 | CR232: 7207.558862 | CS232: 7207.558862 | CT232: 7207.558862 | CU232: 7207.558862 | CV232: 7207.558862 | CW232: 7207.558862 | CX232: 7207.558862 | CY232: 7207.558862 | CZ232: 7207.558862 | DA232: 7207.558862 | DB232: 0 | DC232: 0 | DD232: 0 | DE232: 0 | DF232: 0 | DG232: 0
C233: Less: Operating Costs | F233: =units1 -> € 000's | L233: =L108 -> 0 | M233: =M108 -> 0 | N233: 0 | O233: 0 | P233: 0 | Q233: 0 | R233: 0 | S233: 0 | T233: 0 | U233: 0 | V233: 0 | W233: 0 | X233: 0 | Y233: 0 | Z233: 0 | AA233: 0 | AB233: 0 | AC233: 0 | AD233: 0 | AE233: 0 | AF233: 0 | AG233: 0 | AH233: 0 | AI233: 0 | AJ233: 0 | AK233: 0 | AL233: 0 | AM233: 0 | AN233: 0 | AO233: 0 | AP233: 0 | AQ233: 0 | AR233: 0 | AS233: 0 | AT233: 2555.1215 | AU233: 2568.568679 | AV233: 2582.149664 | AW233: 2595.865786 | AX233: 2609.71839 | AY233: 2623.708835 | AZ233: 2637.838492 | BA233: 2652.108745 | BB233: 2666.520995 | BC233: 2681.076653 | BD233: 2695.777148 | BE233: 2710.62392 | BF233: 2725.618424 | BG233: 2740.762132 | BH233: 2756.056526 | BI233: 2771.503108 | BJ233: 2787.10339 | BK233: 2802.858903 | BL233: 2818.771191 | BM233: 2834.841815 | BN233: 2851.072348 | BO233: 2867.464384 | BP233: 2884.019529 | BQ233: 2900.739405 | BR233: 2917.625653 | BS233: 2934.679927 | BT233: 2951.903899 | BU233: 2969.299259 | BV233: 2986.867711 | BW233: 3004.610977 | BX233: 3022.530798 | BY233: =BY108 -> 3040.62893 | BZ233: 3058.907147 | CA233: 3077.367242 | CB233: 3096.011024 | CC233: 3114.84032 | CD233: 3133.856978 | CE233: 3153.06286 | CF233: 3172.459851 | CG233: 3192.049851 | CH233: 3211.834781 | CI233: 3231.816581 | CJ233: 3251.99721 | CK233: 3272.378646 | CL233: 3292.962888 | CM233: 3313.751952 | CN233: 3334.747879 | CO233: 3355.952725 | CP233: 3377.36857 | CQ233: 3398.997513 | CR233: 3420.841674 | CS233: 3442.903196 | CT233: 3465.184241 | CU233: 3487.686994 | CV233: 3510.413659 | CW233: 3533.366467 | CX233: 3556.547666 | CY233: 3579.95953 | CZ233: 3603.604353 | DA233: 3627.484453 | DB233: 0 | DC233: 0 | DD233: 0 | DE233: 0 | DF233: 0 | DG233: 0
C234: Less: Tax | F234: =units1 -> € 000's
D235: CFADS 50 | F235: =units1 -> € 000's | L235: =L232-L233 -> 0 | M235: =M232-M233 -> 0 | N235: 0 | O235: 0 | P235: 0 | Q235: 0 | R235: 0 | S235: 0 | T235: 0 | U235: 0 | V235: 0 | W235: 0 | X235: 0 | Y235: 0 | Z235: 0 | AA235: 0 | AB235: 0 | AC235: 0 | AD235: 0 | AE235: 0 | AF235: 0 | AG235: 0 | AH235: 0 | AI235: 0 | AJ235: 0 | AK235: 0 | AL235: 0 | AM235: 0 | AN235: 0 | AO235: 0 | AP235: 0 | AQ235: 0 | AR235: 0 | AS235: 0 | AT235: 5953.882406 | AU235: 6020.8904 | AV235: 6088.525316 | AW235: 6161.086692 | AX235: 6234.370089 | AY235: 6308.382693 | AZ235: 6383.131758 | BA235: 6458.624613 | BB235: 6534.86866 | BC235: 6611.871372 | BD235: 6689.640299 | BE235: 6768.183066 | BF235: 6847.507372 | BG235: 6927.620994 | BH235: 7008.531786 | BI235: 7090.247681 | BJ235: 7172.776688 | BK235: 7256.126901 | BL235: 7340.306489 | BM235: 7425.323705 | BN235: 7511.186885 | BO235: 7597.904446 | BP235: 7685.48489 | BQ235: 7773.936802 | BR235: 7863.268854 | BS235: 7953.489804 | BT235: 8044.608498 | BU235: 8136.633867 | BV235: 8229.574934 | BW235: 8323.440811 | BX235: 8418.2407 | BY235: =BY232-BY233 -> 8513.983894 | BZ235: 8610.67978 | CA235: 8708.337838 | CB235: 8806.967642 | CC235: 8906.578862 | CD235: 9007.181262 | CE235: 9108.784706 | CF235: 9211.399154 | CG235: 9315.034666 | CH235: 3995.724081 | CI235: 3975.742281 | CJ235: 3955.561652 | CK235: 3935.180216 | CL235: 3914.595975 | CM235: 3893.80691 | CN235: 3872.810984 | CO235: 3851.606137 | CP235: 3830.190293 | CQ235: 3808.56135 | CR235: 3786.717188 | CS235: 3764.655666 | CT235: 3742.374621 | CU235: 3719.871869 | CV235: 3697.145203 | CW235: 3674.192395 | CX235: 3651.011196 | CY235: 3627.599333 | CZ235: 3603.95451 | DA235: 3580.074409 | DB235: 0 | DC235: 0 | DD235: 0 | DE235: 0 | DF235: 0 | DG235: 0
C237: Debt service | F237: =units1 -> € 000's | H237: =Inputs!F92 -> 1.35 | L237: =L235/$H$237 -> 0 | M237: =M235/$H$237 -> 0 | N237: 0 | O237: 0 | P237: 0 | Q237: 0 | R237: 0 | S237: 0 | T237: 0 | U237: 0 | V237: 0 | W237: 0 | X237: 0 | Y237: 0 | Z237: 0 | AA237: 0 | AB237: 0 | AC237: 0 | AD237: 0 | AE237: 0 | AF237: 0 | AG237: 0 | AH237: 0 | AI237: 0 | AJ237: 0 | AK237: 0 | AL237: 0 | AM237: 0 | AN237: 0 | AO237: 0 | AP237: 0 | AQ237: 0 | AR237: 0 | AS237: 0 | AT237: 4410.283263 | AU237: 4459.918815 | AV237: 4510.018753 | AW237: 4563.76792 | AX237: 4618.051918 | AY237: 4672.876069 | AZ237: 4728.245747 | BA237: 4784.16638 | BB237: 4840.643452 | BC237: 4897.682498 | BD237: 4955.289111 | BE237: 5013.468938 | BF237: 5072.227683 | BG237: 5131.571107 | BH237: 5191.505027 | BI237: 5252.035319 | BJ237: 5313.167917 | BK237: 5374.908815 | BL237: 5437.264066 | BM237: 5500.239782 | BN237: 5563.842137 | BO237: 5628.077368 | BP237: 5692.95177 | BQ237: 5758.471705 | BR237: 5824.643596 | BS237: 5891.473929 | BT237: 5958.969258 | BU237: 6027.136198 | BV237: 6095.981433 | BW237: 6165.511712 | BX237: 6235.733852 | BY237: =BY235/$H$237 -> 6306.654736 | BZ237: 6378.281319 | CA237: 6450.620621 | CB237: 6523.679735 | CC237: 6597.465824 | CD237: 6671.98612 | CE237: 6747.24793 | CF237: 6823.258632 | CG237: 6900.025679 | CH237: 2959.795616 | CI237: 2944.994282 | CJ237: 2930.045668 | CK237: 2914.948308 | CL237: 2899.700722 | CM237: 2884.301415 | CN237: 2868.748877 | CO237: 2853.041583 | CP237: 2837.177995 | CQ237: 2821.156555 | CR237: 2804.975695 | CS237: 2788.633827 | CT237: 2772.129349 | CU237: 2755.460643 | CV237: 2738.626076 | CW237: 2721.623997 | CX237: 2704.452738 | CY237: 2687.110617 | CZ237: 2669.595933 | DA237: 2651.906969 | DB237: 0 | DC237: 0 | DD237: 0 | DE237: 0 | DF237: 0 | DG237: 0
C239: Interest Rate
D240: Base Rate | F240: % p.a. | H240: =Inputs!F109 -> 0.027 | L240: =$H240 -> 0.027 | M240: =$H240 -> 0.027 | N240: 0.027 | O240: 0.027 | P240: 0.027 | Q240: 0.027 | R240: 0.027 | S240: 0.027 | T240: 0.027 | U240: 0.027 | V240: 0.027 | W240: 0.027 | X240: 0.027 | Y240: 0.027 | Z240: 0.027 | AA240: 0.027 | AB240: 0.027 | AC240: 0.027 | AD240: 0.027 | AE240: 0.027 | AF240: 0.027 | AG240: 0.027 | AH240: 0.027 | AI240: 0.027 | AJ240: 0.027 | AK240: 0.027 | AL240: 0.027 | AM240: 0.027 | AN240: 0.027 | AO240: 0.027 | AP240: 0.027 | AQ240: 0.027 | AR240: 0.027 | AS240: 0.027 | AT240: 0.027 | AU240: 0.027 | AV240: 0.027 | AW240: 0.027 | AX240: 0.027 | AY240: 0.027 | AZ240: 0.027 | BA240: 0.027 | BB240: 0.027 | BC240: 0.027 | BD240: 0.027 | BE240: 0.027 | BF240: 0.027 | BG240: 0.027 | BH240: 0.027 | BI240: 0.027 | BJ240: 0.027 | BK240: 0.027 | BL240: 0.027 | BM240: 0.027 | BN240: 0.027 | BO240: 0.027 | BP240: 0.027 | BQ240: 0.027 | BR240: 0.027 | BS240: 0.027 | BT240: 0.027 | BU240: 0.027 | BV240: 0.027 | BW240: 0.027 | BX240: 0.027 | BY240: =$H240 -> 0.027 | BZ240: 0.027 | CA240: 0.027 | CB240: 0.027 | CC240: 0.027 | CD240: 0.027 | CE240: 0.027 | CF240: 0.027 | CG240: 0.027 | CH240: 0.027 | CI240: 0.027 | CJ240: 0.027 | CK240: 0.027 | CL240: 0.027 | CM240: 0.027 | CN240: 0.027 | CO240: 0.027 | CP240: 0.027 | CQ240: 0.027 | CR240: 0.027 | CS240: 0.027 | CT240: 0.027 | CU240: 0.027 | CV240: 0.027 | CW240: 0.027 | CX240: 0.027 | CY240: 0.027 | CZ240: 0.027 | DA240: 0.027 | DB240: 0.027 | DC240: 0.027 | DD240: 0.027 | DE240: 0.027 | DF240: 0.027 | DG240: 0.027
D241: Credit Spread | F241: % p.a. | H241: =Inputs!F110 -> 0.015 | L241: =$H241 -> 0.015 | M241: 0.015 | N241: 0.015 | O241: 0.015 | P241: 0.015 | Q241: 0.015 | R241: 0.015 | S241: 0.015 | T241: 0.015 | U241: 0.015 | V241: 0.015 | W241: 0.015 | X241: 0.015 | Y241: 0.015 | Z241: 0.015 | AA241: 0.015 | AB241: 0.015 | AC241: 0.015 | AD241: 0.015 | AE241: 0.015 | AF241: 0.015 | AG241: 0.015 | AH241: 0.015 | AI241: 0.015 | AJ241: 0.015 | AK241: 0.015 | AL241: 0.015 | AM241: 0.015 | AN241: 0.015 | AO241: 0.015 | AP241: 0.015 | AQ241: 0.015 | AR241: 0.015 | AS241: 0.015 | AT241: 0.015 | AU241: 0.015 | AV241: 0.015 | AW241: 0.015 | AX241: 0.015 | AY241: 0.015 | AZ241: 0.015 | BA241: 0.015 | BB241: 0.015 | BC241: 0.015 | BD241: 0.015 | BE241: 0.015 | BF241: 0.015 | BG241: 0.015 | BH241: 0.015 | BI241: 0.015 | BJ241: 0.015 | BK241: 0.015 | BL241: 0.015 | BM241: 0.015 | BN241: 0.015 | BO241: 0.015 | BP241: 0.015 | BQ241: 0.015 | BR241: 0.015 | BS241: 0.015 | BT241: 0.015 | BU241: 0.015 | BV241: 0.015 | BW241: 0.015 | BX241: 0.015 | BY241: 0.015 | BZ241: 0.015 | CA241: 0.015 | CB241: 0.015 | CC241: 0.015 | CD241: 0.015 | CE241: 0.015 | CF241: 0.015 | CG241: 0.015 | CH241: 0.015 | CI241: 0.015 | CJ241: 0.015 | CK241: 0.015 | CL241: 0.015 | CM241: 0.015 | CN241: 0.015 | CO241: 0.015 | CP241: 0.015 | CQ241: 0.015 | CR241: 0.015 | CS241: 0.015 | CT241: 0.015 | CU241: 0.015 | CV241: 0.015 | CW241: 0.015 | CX241: 0.015 | CY241: 0.015 | CZ241: 0.015 | DA241: 0.015 | DB241: 0.015 | DC241: 0.015 | DD241: 0.015 | DE241: 0.015 | DF241: 0.015 | DG241: 0.015
D242: Total Rate | F242: % p.a. | H242: =SUM(H240:H241) -> 0.042 | L242: 0.042 | M242: 0.042 | N242: 0.042 | O242: 0.042 | P242: 0.042 | Q242: 0.042 | R242: 0.042 | S242: 0.042 | T242: 0.042 | U242: 0.042 | V242: 0.042 | W242: 0.042 | X242: 0.042 | Y242: 0.042 | Z242: 0.042 | AA242: 0.042 | AB242: 0.042 | AC242: 0.042 | AD242: 0.042 | AE242: 0.042 | AF242: 0.042 | AG242: 0.042 | AH242: 0.042 | AI242: 0.042 | AJ242: 0.042 | AK242: 0.042 | AL242: 0.042 | AM242: 0.042 | AN242: 0.042 | AO242: 0.042 | AP242: 0.042 | AQ242: 0.042 | AR242: 0.042 | AS242: 0.042 | AT242: 0.042 | AU242: 0.042 | AV242: 0.042 | AW242: 0.042 | AX242: 0.042 | AY242: 0.042 | AZ242: 0.042 | BA242: 0.042 | BB242: 0.042 | BC242: 0.042 | BD242: 0.042 | BE242: 0.042 | BF242: 0.042 | BG242: 0.042 | BH242: 0.042 | BI242: 0.042 | BJ242: 0.042 | BK242: 0.042 | BL242: 0.042 | BM242: 0.042 | BN242: 0.042 | BO242: 0.042 | BP242: 0.042 | BQ242: 0.042 | BR242: 0.042 | BS242: 0.042 | BT242: 0.042 | BU242: 0.042 | BV242: 0.042 | BW242: 0.042 | BX242: 0.042 | BY242: 0.042 | BZ242: 0.042 | CA242: 0.042 | CB242: 0.042 | CC242: 0.042 | CD242: 0.042 | CE242: 0.042 | CF242: 0.042 | CG242: 0.042 | CH242: 0.042 | CI242: 0.042 | CJ242: 0.042 | CK242: 0.042 | CL242: 0.042 | CM242: 0.042 | CN242: 0.042 | CO242: 0.042 | CP242: 0.042 | CQ242: 0.042 | CR242: 0.042 | CS242: 0.042 | CT242: 0.042 | CU242: 0.042 | CV242: 0.042 | CW242: 0.042 | CX242: 0.042 | CY242: 0.042 | CZ242: 0.042 | DA242: 0.042 | DB242: 0.042 | DC242: 0.042 | DD242: 0.042 | DE242: 0.042 | DF242: 0.042 | DG242: 0.042
D243: Total Rate | F243: % p.p. | L243: =L242/12*L3 -> 0.0035 | M243: =M242/12*M3 -> 0.0035 | N243: 0.0035 | O243: 0.0035 | P243: 0.0035 | Q243: 0.0035 | R243: 0.0035 | S243: 0.0035 | T243: 0.0035 | U243: 0.0035 | V243: 0.0035 | W243: 0.0035 | X243: 0.0035 | Y243: 0.0035 | Z243: 0.0035 | AA243: 0.0035 | AB243: 0.0035 | AC243: 0.0035 | AD243: 0.0035 | AE243: 0.0035 | AF243: 0.0035 | AG243: 0.0035 | AH243: 0.0035 | AI243: 0.0035 | AJ243: 0.0035 | AK243: 0.0035 | AL243: 0.0035 | AM243: 0.0035 | AN243: 0.0035 | AO243: 0.0035 | AP243: 0.0035 | AQ243: 0.0035 | AR243: 0.0035 | AS243: 0.0035 | AT243: 0.021 | AU243: 0.021 | AV243: 0.021 | AW243: 0.021 | AX243: 0.021 | AY243: 0.021 | AZ243: 0.021 | BA243: 0.021 | BB243: 0.021 | BC243: 0.021 | BD243: 0.021 | BE243: 0.021 | BF243: 0.021 | BG243: 0.021 | BH243: 0.021 | BI243: 0.021 | BJ243: 0.021 | BK243: 0.021 | BL243: 0.021 | BM243: 0.021 | BN243: 0.021 | BO243: 0.021 | BP243: 0.021 | BQ243: 0.021 | BR243: 0.021 | BS243: 0.021 | BT243: 0.021 | BU243: 0.021 | BV243: 0.021 | BW243: 0.021 | BX243: 0.021 | BY243: =BY242/12*BY3 -> 0.021 | BZ243: 0.021 | CA243: 0.021 | CB243: 0.021 | CC243: 0.021 | CD243: 0.021 | CE243: 0.021 | CF243: 0.021 | CG243: 0.021 | CH243: 0.021 | CI243: 0.021 | CJ243: 0.021 | CK243: 0.021 | CL243: 0.021 | CM243: 0.021 | CN243: 0.021 | CO243: 0.021 | CP243: 0.021 | CQ243: 0.021 | CR243: 0.021 | CS243: 0.021 | CT243: 0.021 | CU243: 0.021 | CV243: 0.021 | CW243: 0.021 | CX243: 0.021 | CY243: 0.021 | CZ243: 0.021 | DA243: 0.021 | DB243: 0.021 | DC243: 0.021 | DD243: 0.021 | DE243: 0.021 | DF243: 0.021 | DG243: 0.021
D245: PV Factor | F245: Index
D246: NPV of Debt Service | F246: =units1 -> € 000's
B248: Cash Flow - P99
C249: Production at P99 | F249: GWh p.p. | L249: =L14 -> 0 | M249: =M14 -> 0 | N249: 0 | O249: 0 | P249: 0 | Q249: 0 | R249: 0 | S249: 0 | T249: 0 | U249: 0 | V249: 0 | W249: 0 | X249: 0 | Y249: 0 | Z249: 0 | AA249: 0 | AB249: 0 | AC249: 0 | AD249: 0 | AE249: 0 | AF249: 0 | AG249: 0 | AH249: 0 | AI249: 0 | AJ249: 0 | AK249: 0 | AL249: 0 | AM249: 0 | AN249: 0 | AO249: 0 | AP249: 0 | AQ249: 0 | AR249: 0 | AS249: 0 | AT249: 128.0431035 | AU249: 128.0431035 | AV249: 128.0431035 | AW249: 128.0431035 | AX249: 128.0431035 | AY249: 128.0431035 | AZ249: 128.0431035 | BA249: 128.0431035 | BB249: 128.0431035 | BC249: 128.0431035 | BD249: 128.0431035 | BE249: 128.0431035 | BF249: 128.0431035 | BG249: 128.0431035 | BH249: 128.0431035 | BI249: 128.0431035 | BJ249: 128.0431035 | BK249: 128.0431035 | BL249: 128.0431035 | BM249: 128.0431035 | BN249: 128.0431035 | BO249: 128.0431035 | BP249: 128.0431035 | BQ249: 128.0431035 | BR249: 128.0431035 | BS249: 128.0431035 | BT249: 128.0431035 | BU249: 128.0431035 | BV249: 128.0431035 | BW249: 128.0431035 | BX249: 128.0431035 | BY249: =BY14 -> 128.0431035 | BZ249: 128.0431035 | CA249: 128.0431035 | CB249: 128.0431035 | CC249: 128.0431035 | CD249: 128.0431035 | CE249: 128.0431035 | CF249: 128.0431035 | CG249: 128.0431035 | CH249: 128.0431035 | CI249: 128.0431035 | CJ249: 128.0431035 | CK249: 128.0431035 | CL249: 128.0431035 | CM249: 128.0431035 | CN249: 128.0431035 | CO249: 128.0431035 | CP249: 128.0431035 | CQ249: 128.0431035 | CR249: 128.0431035 | CS249: 128.0431035 | CT249: 128.0431035 | CU249: 128.0431035 | CV249: 128.0431035 | CW249: 128.0431035 | CX249: 128.0431035 | CY249: 128.0431035 | CZ249: 128.0431035 | DA249: 128.0431035 | DB249: 0 | DC249: 0 | DD249: 0 | DE249: 0 | DF249: 0 | DG249: 0
C250: PPA and Merchant Price | F250: =units2 -> €/MWH | L250: =L231 -> 0 | M250: =M231 -> 0 | N250: 0 | O250: 0 | P250: 0 | Q250: 0 | R250: 0 | S250: 0 | T250: 0 | U250: 0 | V250: 0 | W250: 0 | X250: 0 | Y250: 0 | Z250: 0 | AA250: 0 | AB250: 0 | AC250: 0 | AD250: 0 | AE250: 0 | AF250: 0 | AG250: 0 | AH250: 0 | AI250: 0 | AJ250: 0 | AK250: 0 | AL250: 0 | AM250: 0 | AN250: 0 | AO250: 0 | AP250: 0 | AQ250: 0 | AR250: 0 | AS250: 0 | AT250: 50.00883871 | AU250: 50.48168721 | AV250: 50.95900664 | AW250: 51.46607392 | AX250: 51.97818678 | AY250: 52.4953954 | AZ250: 53.01775051 | BA250: 53.54530331 | BB250: 54.07810552 | BC250: 54.61620938 | BD250: 55.15966763 | BE250: 55.70853356 | BF250: 56.26286098 | BG250: 56.82270424 | BH250: 57.3881182 | BI250: 57.95915832 | BJ250: 58.53588057 | BK250: 59.11834149 | BL250: 59.70659818 | BM250: 60.30070832 | BN250: 60.90073014 | BO250: 61.50672248 | BP250: 62.11874475 | BQ250: 62.73685693 | BR250: 63.36111964 | BS250: 63.99159407 | BT250: 64.62834203 | BU250: 65.27142595 | BV250: 65.92090887 | BW250: 66.57685447 | BX250: 67.23932705 | BY250: =BY231 -> 67.90839156 | BZ250: 68.58411359 | CA250: 69.26655939 | CB250: 69.95579586 | CC250: 70.65189058 | CD250: 71.35491178 | CE250: 72.06492839 | CF250: 72.78201002 | CG250: 73.50622696 | CH250: 42.36002858 | CI250: 42.36002858 | CJ250: 42.36002858 | CK250: 42.36002858 | CL250: 42.36002858 | CM250: 42.36002858 | CN250: 42.36002858 | CO250: 42.36002858 | CP250: 42.36002858 | CQ250: 42.36002858 | CR250: 42.36002858 | CS250: 42.36002858 | CT250: 42.36002858 | CU250: 42.36002858 | CV250: 42.36002858 | CW250: 42.36002858 | CX250: 42.36002858 | CY250: 42.36002858 | CZ250: 42.36002858 | DA250: 42.36002858 | DB250: 0 | DC250: 0 | DD250: 0 | DE250: 0 | DF250: 0 | DG250: 0
C251: Revenues | F251: =units1 -> € 000's | L251: =L250*L249 -> 0 | M251: =M250*M249 -> 0 | N251: 0 | O251: 0 | P251: 0 | Q251: 0 | R251: 0 | S251: 0 | T251: 0 | U251: 0 | V251: 0 | W251: 0 | X251: 0 | Y251: 0 | Z251: 0 | AA251: 0 | AB251: 0 | AC251: 0 | AD251: 0 | AE251: 0 | AF251: 0 | AG251: 0 | AH251: 0 | AI251: 0 | AJ251: 0 | AK251: 0 | AL251: 0 | AM251: 0 | AN251: 0 | AO251: 0 | AP251: 0 | AQ251: 0 | AR251: 0 | AS251: 0 | AT251: 6403.286909 | AU251: 6463.8319 | AV251: 6524.949361 | AW251: 6589.875829 | AX251: 6655.448348 | AY251: 6721.673346 | AZ251: 6788.557315 | BA251: 6856.106813 | BB251: 6924.328461 | BC251: 6993.228949 | BD251: 7062.81503 | BE251: 7133.093528 | BF251: 7204.071331 | BG251: 7275.755398 | BH251: 7348.152758 | BI251: 7421.270506 | BJ251: 7495.115813 | BK251: 7569.695916 | BL251: 7645.018129 | BM251: 7721.089835 | BN251: 7797.918492 | BO251: 7875.511632 | BP251: 7953.876861 | BQ251: 8033.021864 | BR251: 8112.954399 | BS251: 8193.682301 | BT251: 8275.213487 | BU251: 8357.555947 | BV251: 8440.717756 | BW251: 8524.707066 | BX251: 8609.532112 | BY251: =BY250*BY249 -> 8695.201208 | BZ251: 8781.722754 | CA251: 8869.105232 | CB251: 8957.357209 | CC251: 9046.487337 | CD251: 9136.504353 | CE251: 9227.417083 | CF251: 9319.23444 | CG251: 9411.965425 | CH251: 5423.909522 | CI251: 5423.909522 | CJ251: 5423.909522 | CK251: 5423.909522 | CL251: 5423.909522 | CM251: 5423.909522 | CN251: 5423.909522 | CO251: 5423.909522 | CP251: 5423.909522 | CQ251: 5423.909522 | CR251: 5423.909522 | CS251: 5423.909522 | CT251: 5423.909522 | CU251: 5423.909522 | CV251: 5423.909522 | CW251: 5423.909522 | CX251: 5423.909522 | CY251: 5423.909522 | CZ251: 5423.909522 | DA251: 5423.909522 | DB251: 0 | DC251: 0 | DD251: 0 | DE251: 0 | DF251: 0 | DG251: 0
C252: Less: Operating Costs | F252: =units1 -> € 000's | L252: =L233 -> 0 | M252: =M233 -> 0 | N252: 0 | O252: 0 | P252: 0 | Q252: 0 | R252: 0 | S252: 0 | T252: 0 | U252: 0 | V252: 0 | W252: 0 | X252: 0 | Y252: 0 | Z252: 0 | AA252: 0 | AB252: 0 | AC252: 0 | AD252: 0 | AE252: 0 | AF252: 0 | AG252: 0 | AH252: 0 | AI252: 0 | AJ252: 0 | AK252: 0 | AL252: 0 | AM252: 0 | AN252: 0 | AO252: 0 | AP252: 0 | AQ252: 0 | AR252: 0 | AS252: 0 | AT252: 2555.1215 | AU252: 2568.568679 | AV252: 2582.149664 | AW252: 2595.865786 | AX252: 2609.71839 | AY252: 2623.708835 | AZ252: 2637.838492 | BA252: 2652.108745 | BB252: 2666.520995 | BC252: 2681.076653 | BD252: 2695.777148 | BE252: 2710.62392 | BF252: 2725.618424 | BG252: 2740.762132 | BH252: 2756.056526 | BI252: 2771.503108 | BJ252: 2787.10339 | BK252: 2802.858903 | BL252: 2818.771191 | BM252: 2834.841815 | BN252: 2851.072348 | BO252: 2867.464384 | BP252: 2884.019529 | BQ252: 2900.739405 | BR252: 2917.625653 | BS252: 2934.679927 | BT252: 2951.903899 | BU252: 2969.299259 | BV252: 2986.867711 | BW252: 3004.610977 | BX252: 3022.530798 | BY252: =BY233 -> 3040.62893 | BZ252: 3058.907147 | CA252: 3077.367242 | CB252: 3096.011024 | CC252: 3114.84032 | CD252: 3133.856978 | CE252: 3153.06286 | CF252: 3172.459851 | CG252: 3192.049851 | CH252: 3211.834781 | CI252: 3231.816581 | CJ252: 3251.99721 | CK252: 3272.378646 | CL252: 3292.962888 | CM252: 3313.751952 | CN252: 3334.747879 | CO252: 3355.952725 | CP252: 3377.36857 | CQ252: 3398.997513 | CR252: 3420.841674 | CS252: 3442.903196 | CT252: 3465.184241 | CU252: 3487.686994 | CV252: 3510.413659 | CW252: 3533.366467 | CX252: 3556.547666 | CY252: 3579.95953 | CZ252: 3603.604353 | DA252: 3627.484453 | DB252: 0 | DC252: 0 | DD252: 0 | DE252: 0 | DF252: 0 | DG252: 0
C253: Less: Tax | F253: =units1 -> € 000's
... 72 more rows

Sheet Annual FS
A1: Contents | B1: Annual FS
K3: =YEAR(Inputs!G4) -> 2019 | L3: =K3+1 -> 2020 | M3: =L3+1 -> 2021 | N3: 2022 | O3: 2023 | P3: 2024 | Q3: 2025 | R3: 2026 | S3: 2027 | T3: 2028 | U3: 2029 | V3: 2030 | W3: 2031 | X3: 2032 | Y3: 2033 | Z3: 2034 | AA3: 2035 | AB3: 2036 | AC3: 2037 | AD3: 2038 | AE3: 2039 | AF3: 2040 | AG3: 2041 | AH3: 2042 | AI3: 2043 | AJ3: 2044 | AK3: 2045 | AL3: 2046 | AM3: 2047 | AN3: 2048 | AO3: 2049 | AP3: 2050 | AQ3: 2051 | AR3: 2052 | AS3: 2053 | AT3: 2054
A6: Profit and Loss
C8: Revenues | F8: =units1 -> € 000's | K8: =SUMIF('Project Finance Model'!$49:$49,'Annual FS'!K$3,'Project Finance Model'!295:295) -> 0 | L8: =SUMIF('Project Finance Model'!$49:$49,'Annual FS'!L$3,'Project Finance Model'!295:295) -> 0 | M8: =SUMIF('Project Finance Model'!$49:$49,'Annual FS'!M$3,'Project Finance Model'!295:295) -> 8509.003906 | N8: =SUMIF('Project Finance Model'!$49:$49,'Annual FS'!N$3,'Project Finance Model'!295:295) -> 17260.13406 | O8: =SUMIF('Project Finance Model'!$49:$49,'Annual FS'!O$3,'Project Finance Model'!295:295) -> 17601.04096 | P8: =SUMIF('Project Finance Model'!$49:$49,'Annual FS'!P$3,'Project Finance Model'!295:295) -> 17953.06178 | Q8: =SUMIF('Project Finance Model'!$49:$49,'Annual FS'!Q$3,'Project Finance Model'!295:295) -> 18312.12301 | R8: =SUMIF('Project Finance Model'!$49:$49,'Annual FS'!R$3,'Project Finance Model'!295:295) -> 18678.36547 | S8: =SUMIF('Project Finance Model'!$49:$49,'Annual FS'!S$3,'Project Finance Model'!295:295) -> 19051.93278 | T8: =SUMIF('Project Finance Model'!$49:$49,'Annual FS'!T$3,'Project Finance Model'!295:295) -> 19432.97144 | U8: =SUMIF('Project Finance Model'!$49:$49,'Annual FS'!U$3,'Project Finance Model'!295:295) -> 19821.63087 | V8: =SUMIF('Project Finance Model'!$49:$49,'Annual FS'!V$3,'Project Finance Model'!295:295) -> 20218.06348 | W8: =SUMIF('Project Finance Model'!$49:$49,'Annual FS'!W$3,'Project Finance Model'!295:295) -> 20622.42475 | X8: =SUMIF('Project Finance Model'!$49:$49,'Annual FS'!X$3,'Project Finance Model'!295:295) -> 21034.87325 | Y8: =SUMIF('Project Finance Model'!$49:$49,'Annual FS'!Y$3,'Project Finance Model'!295:295) -> 21455.57071 | Z8: =SUMIF('Project Finance Model'!$49:$49,'Annual FS'!Z$3,'Project Finance Model'!295:295) -> 21884.68213 | AA8: =SUMIF('Project Finance Model'!$49:$49,'Annual FS'!AA$3,'Project Finance Model'!295:295) -> 22322.37577 | AB8: =SUMIF('Project Finance Model'!$49:$49,'Annual FS'!AB$3,'Project Finance Model'!295:295) -> 22768.82329 | AC8: =SUMIF('Project Finance Model'!$49:$49,'Annual FS'!AC$3,'Project Finance Model'!295:295) -> 23224.19975 | AD8: =SUMIF('Project Finance Model'!$49:$49,'Annual FS'!AD$3,'Project Finance Model'!295:295) -> 23688.68375 | AE8: =SUMIF('Project Finance Model'!$49:$49,'Annual FS'!AE$3,'Project Finance Model'!295:295) -> 24162.45742 | AF8: =SUMIF('Project Finance Model'!$49:$49,'Annual FS'!AF$3,'Project Finance Model'!295:295) -> 24645.70657 | AG8: =SUMIF('Project Finance Model'!$49:$49,'Annual FS'!AG$3,'Project Finance Model'!295:295) -> 19714.64338 | AH8: =SUMIF('Project Finance Model'!$49:$49,'Annual FS'!AH$3,'Project Finance Model'!295:295) -> 14415.11772 | AI8: =SUMIF('Project Finance Model'!$49:$49,'Annual FS'!AI$3,'Project Finance Model'!295:295) -> 14415.11772 | AJ8: =SUMIF('Project Finance Model'!$49:$49,'Annual FS'!AJ$3,'Project Finance Model'!295:295) -> 14415.11772 | AK8: =SUMIF('Project Finance Model'!$49:$49,'Annual FS'!AK$3,'Project Finance Model'!295:295) -> 14415.11772 | AL8: =SUMIF('Project Finance Model'!$49:$49,'Annual FS'!AL$3,'Project Finance Model'!295:295) -> 14415.11772 | AM8: =SUMIF('Project Finance Model'!$49:$49,'Annual FS'!AM$3,'Project Finance Model'!295:295) -> 14415.11772 | AN8: =SUMIF('Project Finance Model'!$49:$49,'Annual FS'!AN$3,'Project Finance Model'!295:295) -> 14415.11772 | AO8: =SUMIF('Project Finance Model'!$49:$49,'Annual FS'!AO$3,'Project Finance Model'!295:295) -> 14415.11772 | AP8: =SUMIF('Project Finance Model'!$49:$49,'Annual FS'!AP$3,'Project Finance Model'!295:295) -> 14415.11772 | AQ8: =SUMIF('Project Finance Model'!$49:$49,'Annual FS'!AQ$3,'Project Finance Model'!295:295) -> 7207.558862 | AR8: =SUMIF('Project Finance Model'!$49:$49,'Annual FS'!AR$3,'Project Finance Model'!295:295) -> 0 | AS8: =SUMIF('Project Finance Model'!$49:$49,'Annual FS'!AS$3,'Project Finance Model'!295:295) -> 0 | AT8: =SUMIF('Project Finance Model'!$49:$49,'Annual FS'!AT$3,'Project Finance Model'!295:295) -> 0
C9: Operating Cost | F9: € 000's | K9: =SUMIF('Project Finance Model'!$49:$49,'Annual FS'!K$3,'Project Finance Model'!296:296) -> 0 | L9: =SUMIF('Project Finance Model'!$49:$49,'Annual FS'!L$3,'Project Finance Model'!296:296) -> 0 | M9: =SUMIF('Project Finance Model'!$49:$49,'Annual FS'!M$3,'Project Finance Model'!296:296) -> 2555.1215 | N9: =SUMIF('Project Finance Model'!$49:$49,'Annual FS'!N$3,'Project Finance Model'!296:296) -> 5150.718343 | O9: =SUMIF('Project Finance Model'!$49:$49,'Annual FS'!O$3,'Project Finance Model'!296:296) -> 5205.584176 | P9: =SUMIF('Project Finance Model'!$49:$49,'Annual FS'!P$3,'Project Finance Model'!296:296) -> 5261.547327 | Q9: =SUMIF('Project Finance Model'!$49:$49,'Annual FS'!Q$3,'Project Finance Model'!296:296) -> 5318.62974 | R9: =SUMIF('Project Finance Model'!$49:$49,'Annual FS'!R$3,'Project Finance Model'!296:296) -> 5376.853801 | S9: =SUMIF('Project Finance Model'!$49:$49,'Annual FS'!S$3,'Project Finance Model'!296:296) -> 5436.242344 | T9: =SUMIF('Project Finance Model'!$49:$49,'Annual FS'!T$3,'Project Finance Model'!296:296) -> 5496.818658 | U9: =SUMIF('Project Finance Model'!$49:$49,'Annual FS'!U$3,'Project Finance Model'!296:296) -> 5558.606498 | V9: =SUMIF('Project Finance Model'!$49:$49,'Annual FS'!V$3,'Project Finance Model'!296:296) -> 5621.630094 | W9: =SUMIF('Project Finance Model'!$49:$49,'Annual FS'!W$3,'Project Finance Model'!296:296) -> 5685.914163 | X9: =SUMIF('Project Finance Model'!$49:$49,'Annual FS'!X$3,'Project Finance Model'!296:296) -> 5751.483913 | Y9: =SUMIF('Project Finance Model'!$49:$49,'Annual FS'!Y$3,'Project Finance Model'!296:296) -> 5818.365058 | Z9: =SUMIF('Project Finance Model'!$49:$49,'Annual FS'!Z$3,'Project Finance Model'!296:296) -> 5886.583826 | AA9: =SUMIF('Project Finance Model'!$49:$49,'Annual FS'!AA$3,'Project Finance Model'!296:296) -> 5956.166969 | AB9: =SUMIF('Project Finance Model'!$49:$49,'Annual FS'!AB$3,'Project Finance Model'!296:296) -> 6027.141775 | AC9: =SUMIF('Project Finance Model'!$49:$49,'Annual FS'!AC$3,'Project Finance Model'!296:296) -> 6099.536078 | AD9: =SUMIF('Project Finance Model'!$49:$49,'Annual FS'!AD$3,'Project Finance Model'!296:296) -> 6173.378266 | AE9: =SUMIF('Project Finance Model'!$49:$49,'Annual FS'!AE$3,'Project Finance Model'!296:296) -> 6248.697298 | AF9: =SUMIF('Project Finance Model'!$49:$49,'Annual FS'!AF$3,'Project Finance Model'!296:296) -> 6325.522711 | AG9: =SUMIF('Project Finance Model'!$49:$49,'Annual FS'!AG$3,'Project Finance Model'!296:296) -> 6403.884632 | AH9: =SUMIF('Project Finance Model'!$49:$49,'Annual FS'!AH$3,'Project Finance Model'!296:296) -> 6483.813791 | AI9: =SUMIF('Project Finance Model'!$49:$49,'Annual FS'!AI$3,'Project Finance Model'!296:296) -> 6565.341534 | AJ9: =SUMIF('Project Finance Model'!$49:$49,'Annual FS'!AJ$3,'Project Finance Model'!296:296) -> 6648.499831 | AK9: =SUMIF('Project Finance Model'!$49:$49,'Annual FS'!AK$3,'Project Finance Model'!296:296) -> 6733.321294 | AL9: =SUMIF('Project Finance Model'!$49:$49,'Annual FS'!AL$3,'Project Finance Model'!296:296) -> 6819.839187 | AM9: =SUMIF('Project Finance Model'!$49:$49,'Annual FS'!AM$3,'Project Finance Model'!296:296) -> 6908.087437 | AN9: =SUMIF('Project Finance Model'!$49:$49,'Annual FS'!AN$3,'Project Finance Model'!296:296) -> 6998.100653 | AO9: =SUMIF('Project Finance Model'!$49:$49,'Annual FS'!AO$3,'Project Finance Model'!296:296) -> 7089.914133 | AP9: =SUMIF('Project Finance Model'!$49:$49,'Annual FS'!AP$3,'Project Finance Model'!296:296) -> 7183.563882 | AQ9: =SUMIF('Project Finance Model'!$49:$49,'Annual FS'!AQ$3,'Project Finance Model'!296:296) -> 3627.484453 | AR9: =SUMIF('Project Finance Model'!$49:$49,'Annual FS'!AR$3,'Project Finance Model'!296:296) -> 0 | AS9: =SUMIF('Project Finance Model'!$49:$49,'Annual FS'!AS$3,'Project Finance Model'!296:296) -> 0 | AT9: =SUMIF('Project Finance Model'!$49:$49,'Annual FS'!AT$3,'Project Finance Model'!296:296) -> 0
